Workbook

Sheet Exh. ELJ-6 NG Bill Impact
E1: AVISTA UTILITIES
E2: WASHINGTON NATURAL GAS
E3: PRESENT AND PROPOSED RATE COMPONENTS BY SCHEDULE
E4: STAFF PROPOSED
A6: Schedule 101 Bill Impact
B7: Schedule 101 Present | G7: Schedule 101 Proposed
B8: Basic Charge | C8: Block 1 | D8: Block 2 | E8: Total Bill | G8: Basic Charge | H8: Block 1 | I8: Block 2 | J8: Total Bill | L8: Bill Impact | M8: % Change
B9: ='Rate Design'!D4 -> 9.5 | C9: ='Rate Design'!D16/100 -> 0.70194 | D9: ='Rate Design'!D17/100 -> 0.82492 | G9: ='Rate Design'!D26 -> 9.5 | H9: ='Exh. ELJ-6 NG Bill Components'!H15 -> 0.73653 | I9: ='Exh. ELJ-6 NG Bill Components'!H16 -> 0.86987
A10: 10 | B10: =$B$9 -> 9.5 | C10: =A10*$C$9 -> 7.0194 | E10: =SUM(B10:D10) -> 16.5194 | G10: =$G$9 -> 9.5 | H10: =A10*$H$9 -> 7.3653 | J10: =SUM(G10:I10) -> 16.8653 | L10: =J10-E10 -> 0.3459 | M10: =L10/E10 -> 0.02093901716
A11: =A10+10 -> 20 | B11: =$B$9 -> 9.5 | C11: 14.0388 | E11: =SUM(B11:D11) -> 23.5388 | G11: =$G$9 -> 9.5 | H11: 14.7306 | J11: 24.2306 | L11: 0.6918 | M11: 0.02938977348
A12: =A11+10 -> 30 | B12: 9.5 | C12: 21.0582 | E12: 30.5582 | G12: 9.5 | H12: 22.0959 | J12: 31.5959 | L12: 1.0377 | M12: 0.03395815199
A13: 40 | B13: 9.5 | C13: 28.0776 | E13: 37.5776 | G13: 9.5 | H13: 29.4612 | J13: 38.9612 | L13: 1.3836 | M13: 0.03681980754
A14: 50 | B14: 9.5 | C14: 35.097 | E14: 44.597 | G14: 9.5 | H14: 36.8265 | J14: 46.3265 | L14: 1.7295 | M14: 0.03878063547
A15: 60 | B15: 9.5 | C15: 42.1164 | E15: 51.6164 | G15: 9.5 | H15: 44.1918 | J15: 53.6918 | L15: 2.0754 | M15: 0.0402081509
A16: =ROUND('Pres & Prop Rev'!D46/'Pres & Prop Rev'!D48,0) -> 67 | B16: 9.5 | C16: =ROUND(A16*$C$9,2) -> 47.03 | E16: =SUM(B16:D16) -> 56.53 | G16: 9.5 | H16: =ROUND(A16*$H$9,2) -> 49.35 | J16: =SUM(G16:I16) -> 58.85 | L16: 2.32 | M16: 0.04104015567
A17: =A15+10 -> 70 | B17: 9.5 | C17: =ROUND(A17*$C$9,2) -> 49.14 | E17: 58.64 | G17: 9.5 | H17: =ROUND(A17*$H$9,2) -> 51.56 | J17: 61.06 | L17: =J17-E17 -> 2.42 | M17: 0.04126875853
A18: 80 | B18: 9.5 | C18: =70*$C$9 -> 49.1358 | D18: =(A18-70)*$D$9 -> 8.2492 | E18: =SUM(B18:D18) -> 66.885 | G18: 9.5 | H18: =70*$H$9 -> 51.5571 | I18: =(A18-70)*$I$9 -> 8.6987 | J18: 69.7558 | L18: 2.8708 | M18: 0.04292143231
A19: 90 | B19: 9.5 | C19: =70*$C$9 -> 49.1358 | D19: 16.4984 | E19: 75.1342 | G19: 9.5 | H19: =70*$H$9 -> 51.5571 | I19: 17.3974 | J19: 78.4545 | L19: 3.3203 | M19: 0.04419159318
A20: 100 | B20: 9.5 | C20: 49.1358 | D20: 24.7476 | E20: 83.3834 | G20: 9.5 | H20: 51.5571 | I20: 26.0961 | J20: 87.1532 | L20: 3.7698 | M20: 0.04521043757
A21: 110 | B21: 9.5 | C21: 49.1358 | D21: 32.9968 | E21: 91.6326 | G21: 9.5 | H21: 51.5571 | I21: 34.7948 | J21: 95.8519 | L21: 4.2193 | M21: 0.04604583958
A22: 120 | B22: 9.5 | C22: 49.1358 | D22: 41.246 | E22: 99.8818 | G22: 9.5 | H22: 51.5571 | I22: 43.4935 | J22: 104.5506 | L22: 4.6688 | M22: 0.04674325052
A23: 130 | B23: 9.5 | C23: 49.1358 | D23: 49.4952 | E23: 108.131 | G23: 9.5 | H23: 51.5571 | I23: 52.1922 | J23: 113.2493 | L23: 5.1183 | M23: 0.04733425197
A24: 140 | B24: 9.5 | C24: 49.1358 | D24: 57.7444 | E24: 116.3802 | G24: 9.5 | H24: 51.5571 | I24: 60.8909 | J24: 121.948 | L24: 5.5678 | M24: 0.04784147132
A25: 150 | B25: 9.5 | C25: 49.1358 | D25: 65.9936 | E25: 124.6294 | G25: 9.5 | H25: 51.5571 | I25: 69.5896 | J25: 130.6467 | L25: 6.0173 | M25: 0.04828154512
A26: 160 | B26: 9.5 | C26: 49.1358 | D26: 74.2428 | E26: 132.8786 | G26: 9.5 | H26: 51.5571 | I26: 78.2883 | J26: 139.3454 | L26: 6.4668 | M26: 0.04866697873
A27: 170 | B27: 9.5 | C27: 49.1358 | D27: 82.492 | E27: 141.1278 | G27: 9.5 | H27: 51.5571 | I27: 86.987 | J27: 148.0441 | L27: 6.9163 | M27: 0.04900735362
A28: 180 | B28: 9.5 | C28: 49.1358 | D28: 90.7412 | E28: 149.377 | G28: 9.5 | H28: 51.5571 | I28: 95.6857 | J28: 156.7428 | L28: 7.3658 | M28: 0.04931013476
A29: 190 | B29: 9.5 | C29: 49.1358 | D29: 98.9904 | E29: 157.6262 | G29: 9.5 | H29: 51.5571 | I29: 104.3844 | J29: 165.4415 | L29: 7.8153 | M29: 0.04958122444
A30: 200 | B30: 9.5 | C30: 49.1358 | D30: 107.2396 | E30: 165.8754 | G30: 9.5 | H30: 51.5571 | I30: 113.0831 | J30: 174.1402 | L30: 8.2648 | M30: 0.04982535084
A31: 210 | B31: 9.5 | C31: 49.1358 | D31: 115.4888 | E31: 174.1246 | G31: 9.5 | H31: 51.5571 | I31: 121.7818 | J31: 182.8389 | L31: 8.7143 | M31: 0.05004634612
A32: 220 | B32: 9.5 | C32: 49.1358 | D32: 123.738 | E32: 182.3738 | G32: 9.5 | H32: 51.5571 | I32: 130.4805 | J32: 191.5376 | L32: 9.1638 | M32: 0.05024734913
A33: 230 | B33: 9.5 | C33: 49.1358 | D33: 131.9872 | E33: 190.623 | G33: 9.5 | H33: 51.5571 | I33: 139.1792 | J33: 200.2363 | L33: 9.6133 | M33: 0.05043095534
A34: 240 | B34: 9.5 | C34: 49.1358 | D34: 140.2364 | E34: 198.8722 | G34: 9.5 | H34: 51.5571 | I34: 147.8779 | J34: 208.935 | L34: 10.0628 | M34: 0.05059932962
A35: 250 | B35: 9.5 | C35: 49.1358 | D35: 148.4856 | E35: 207.1214 | G35: 9.5 | H35: 51.5571 | I35: 156.5766 | J35: 217.6337 | L35: 10.5123 | M35: 0.05075429193
A36: 260 | B36: 9.5 | C36: 49.1358 | D36: 156.7348 | E36: 215.3706 | G36: 9.5 | H36: 51.5571 | I36: 165.2753 | J36: 226.3324 | L36: 10.9618 | M36: 0.05089738339
A37: 270 | B37: 9.5 | C37: 49.1358 | D37: 164.984 | E37: 223.6198 | G37: 9.5 | H37: 51.5571 | I37: 173.974 | J37: 235.0311 | L37: 11.4113 | M37: 0.05102991774
A38: 280 | B38: 9.5 | C38: 49.1358 | D38: 173.2332 | E38: 231.869 | G38: 9.5 | H38: 51.5571 | I38: 182.6727 | J38: 243.7298 | L38: 11.8608 | M38: 0.05115302175
A39: 290 | B39: 9.5 | C39: 49.1358 | D39: 181.4824 | E39: =SUM(B39:D39) -> 240.1182 | G39: 9.5 | H39: 51.5571 | I39: 191.3714 | J39: 252.4285 | L39: 12.3103 | M39: 0.05126766734
A40: 300 | B40: 9.5 | C40: 49.1358 | D40: 189.7316 | E40: 248.3674 | G40: 9.5 | H40: 51.5571 | I40: 200.0701 | J40: 261.1272 | L40: 12.7598 | M40: 0.05137469732
A41: 310 | B41: 9.5 | C41: 49.1358 | D41: 197.9808 | E41: =SUM(B41:D41) -> 256.6166 | G41: 9.5 | H41: 51.5571 | I41: 208.7688 | J41: =SUM(G41:I41) -> 269.8259 | L41: 13.2093 | M41: 0.05147484613
A42: 320 | B42: 9.5 | C42: 49.1358 | D42: 206.23 | E42: 264.8658 | G42: 9.5 | H42: 51.5571 | I42: 217.4675 | J42: 278.5246 | L42: 13.6588 | M42: 0.05156875671
A43: 330 | B43: 9.5 | C43: 49.1358 | D43: 214.4792 | E43: 273.115 | G43: 9.5 | H43: 51.5571 | I43: 226.1662 | J43: 287.2233 | L43: 14.1083 | M43: 0.05165699431
A44: 340 | B44: 9.5 | C44: 49.1358 | D44: 222.7284 | E44: 281.3642 | G44: 9.5 | H44: 51.5571 | I44: 234.8649 | J44: 295.922 | L44: 14.5578 | M44: 0.0517400579
A45: 350 | B45: 9.5 | C45: 49.1358 | D45: 230.9776 | E45: 289.6134 | G45: 9.5 | H45: 51.5571 | I45: 243.5636 | J45: 304.6207 | L45: 15.0073 | M45: 0.05181838962
A46: 360 | B46: 9.5 | C46: 49.1358 | D46: 239.2268 | E46: 297.8626 | G46: 9.5 | H46: 51.5571 | I46: 252.2623 | J46: 313.3194 | L46: 15.4568 | M46: 0.0518923826
A47: 370 | B47: 9.5 | C47: 49.1358 | D47: 247.476 | E47: 306.1118 | G47: 9.5 | H47: 51.5571 | I47: 260.961 | J47: 322.0181 | L47: 15.9063 | M47: 0.0519623876
A48: 380 | B48: 9.5 | C48: 49.1358 | D48: 255.7252 | E48: =SUM(B48:D48) -> 314.361 | G48: 9.5 | H48: 51.5571 | I48: 269.6597 | J48: 330.7168 | L48: 16.3558 | M48: 0.05202871858
A49: 390 | B49: 9.5 | C49: 49.1358 | D49: 263.9744 | E49: 322.6102 | G49: 9.5 | H49: 51.5571 | I49: 278.3584 | J49: 339.4155 | L49: 16.8053 | M49: 0.05209165736
A50: 400 | B50: 9.5 | C50: 49.1358 | D50: 272.2236 | E50: 330.8594 | G50: 9.5 | H50: 51.5571 | I50: 287.0571 | J50: 348.1142 | L50: 17.2548 | M50: 0.05215145769
A55: Schedule 101 Bill Impact with Tax and AFDUC Credit
H56: Exh. BAE-8
H57: first 70 | J57: 0.03617102005
H58: over 70 | J58: 0.04701130772
B61: Schedule 101 Present | G61: Schedule 101 Proposed
B62: Basic Charge | C62: Block 1 | D62: Block 2 | E62: Total Bill | G62: Basic Charge | H62: Block 1 | I62: Block 2 | J62: Tax Credit | K62: Total Bill | M62: Bill Impact | N62: % Change
B63: 9.5 | C63: 0.70194 | D63: 0.82492 | G63: 9.5 | H63: =H9 -> 0.73653 | I63: =I9 -> 0.86987
A64: 10 | B64: 9.5 | C64: =A64*$C$63 -> 7.0194 | E64: =SUM(B64:D64) -> 16.5194 | G64: 9.5 | H64: =A64*$H$63 -> 7.3653 | J64: =A64*$J$57 -> 0.3617102005 | K64: =SUM(G64:I64)-J64 -> 16.5035898 | M64: =K64-E64 -> -0.01581020052 | N64: =M64/E64 -> -0.0009570686901
A65: 20 | B65: 9.5 | C65: 14.0388 | E65: =SUM(B65:D65) -> 23.5388 | G65: 9.5 | H65: 14.7306 | J65: 0.723420401 | K65: =SUM(G65:I65)-J65 -> 23.5071796 | M65: =K65-E65 -> -0.03162040104 | N65: =M65/E65 -> -0.001343331055
A66: 30 | B66: 9.5 | C66: 21.0582 | E66: 30.5582 | G66: 9.5 | H66: 22.0959 | J66: 1.085130602 | K66: 30.5107694 | M66: -0.04743060156 | N66: -0.001552139902
A67: 40 | B67: 9.5 | C67: 28.0776 | E67: 37.5776 | G67: 9.5 | H67: 29.4612 | J67: 1.446840802 | K67: 37.5143592 | M67: -0.06324080208 | N67: -0.001682938827
A68: 50 | B68: 9.5 | C68: 35.097 | E68: 44.597 | G68: 9.5 | H68: 36.8265 | J68: 1.808551003 | K68: 44.517949 | M68: -0.0790510026 | N68: -0.001772563235
A69: 60 | B69: 9.5 | C69: 42.1164 | E69: 51.6164 | G69: 9.5 | H69: 44.1918 | J69: 2.170261203 | K69: 51.5215388 | M69: -0.09486120311 | N69: -0.001837811299
A70: 67 | B70: 9.5 | C70: 47.02998 | E70: 56.52998 | G70: 9.5 | H70: 49.34751 | J70: 2.423458343 | K70: =SUM(G70:I70)-J70 -> 56.42405166 | M70: =K70-E70 -> -0.1059283435 | N70: -0.00187384364
A71: 70 | B71: 9.5 | C71: 49.1358 | E71: 58.6358 | G71: 9.5 | H71: 51.5571 | J71: 2.531971404 | K71: 58.5251286 | M71: -0.1106714036 | N71: -0.00188743743
A72: 80 | B72: 9.5 | C72: =$C$71 -> 49.1358 | D72: =(A72-70)*$D$63 -> 8.2492 | E72: =SUM(B72:D72) -> 66.885 | G72: 9.5 | H72: =$H$71 -> 51.5571 | I72: =(A72-70)*$I$63 -> 8.6987 | J72: =$J$71+((A72-70)*$J$58) -> 3.002084481 | K72: 66.75371552 | M72: -0.1312844809 | N72: -0.001962838916
A73: 90 | B73: 9.5 | C73: 49.1358 | D73: 16.4984 | E73: 75.1342 | G73: 9.5 | H73: 51.5571 | I73: 17.3974 | J73: 3.472197558 | K73: 74.98230244 | M73: -0.1518975581 | N73: -0.002021683309
A74: 100 | B74: 9.5 | C74: 49.1358 | D74: 24.7476 | E74: 83.3834 | G74: 9.5 | H74: 51.5571 | I74: 26.0961 | J74: 3.942310635 | K74: 83.21088936 | M74: -0.1725106353 | N74: -0.002068884638
A75: 110 | B75: 9.5 | C75: 49.1358 | D75: 32.9968 | E75: 91.6326 | G75: 9.5 | H75: 51.5571 | I75: 34.7948 | J75: 4.412423713 | K75: 91.43947629 | M75: -0.1931237126 | N75: -0.002107587393
A76: 120 | B76: 9.5 | C76: 49.1358 | D76: 41.246 | E76: 99.8818 | G76: 9.5 | H76: 51.5571 | I76: 43.4935 | J76: 4.88253679 | K76: 99.66806321 | M76: -0.2137367898 | N76: -0.002139897257
A77: 130 | B77: 9.5 | C77: 49.1358 | D77: 49.4952 | E77: 108.131 | G77: 9.5 | H77: 51.5571 | I77: 52.1922 | J77: 5.352649867 | K77: 107.8966501 | M77: -0.234349867 | N77: -0.002167277349
A78: 140 | B78: 9.5 | C78: 49.1358 | D78: 57.7444 | E78: 116.3802 | G78: 9.5 | H78: 51.5571 | I78: 60.8909 | J78: 5.822762944 | K78: 116.1252371 | M78: -0.2549629443 | N78: -0.002190775959
A79: 150 | B79: 9.5 | C79: 49.1358 | D79: 65.9936 | E79: 124.6294 | G79: 9.5 | H79: 51.5571 | I79: 69.5896 | J79: 6.292876022 | K79: 124.353824 | M79: -0.2755760215 | N79: -0.002211163831
A80: 160 | B80: 9.5 | C80: 49.1358 | D80: 74.2428 | E80: 132.8786 | G80: 9.5 | H80: 51.5571 | I80: 78.2883 | J80: 6.762989099 | K80: 132.5824109 | M80: -0.2961890987 | N80: -0.002229020314
A81: 170 | B81: 9.5 | C81: 49.1358 | D81: 82.492 | E81: 141.1278 | G81: 9.5 | H81: 51.5571 | I81: 86.987 | J81: 7.233102176 | K81: 140.8109978 | M81: -0.316802176 | N81: -0.002244789304
A82: 180 | B82: 9.5 | C82: 49.1358 | D82: 90.7412 | E82: 149.377 | G82: 9.5 | H82: 51.5571 | I82: 95.6857 | J82: 7.703215253 | K82: 149.0395847 | M82: -0.3374152532 | N82: -0.00225881664
A83: 190 | B83: 9.5 | C83: 49.1358 | D83: 98.9904 | E83: 157.6262 | G83: 9.5 | H83: 51.5571 | I83: 104.3844 | J83: 8.17332833 | K83: 157.2681717 | M83: -0.3580283304 | N83: -0.002271375764
A84: 200 | B84: 9.5 | C84: 49.1358 | D84: 107.2396 | E84: 165.8754 | G84: 9.5 | H84: 51.5571 | I84: 113.0831 | J84: 8.643441408 | K84: 165.4967586 | M84: -0.3786414077 | N84: -0.002282685725
A85: 210 | B85: 9.5 | C85: 49.1358 | D85: 115.4888 | E85: 174.1246 | G85: 9.5 | H85: 51.5571 | I85: 121.7818 | J85: 9.113554485 | K85: 173.7253455 | M85: -0.3992544849 | N85: -0.002292924061
A86: 220 | B86: 9.5 | C86: 49.1358 | D86: 123.738 | E86: 182.3738 | G86: 9.5 | H86: 51.5571 | I86: 130.4805 | J86: 9.583667562 | K86: 181.9539324 | M86: -0.4198675621 | N86: -0.002302236188
A87: 230 | B87: 9.5 | C87: 49.1358 | D87: 131.9872 | E87: 190.623 | G87: 9.5 | H87: 51.5571 | I87: 139.1792 | J87: 10.05378064 | K87: 190.1825194 | M87: -0.4404806394 | N87: -0.002310742352
A88: 240 | B88: 9.5 | C88: 49.1358 | D88: 140.2364 | E88: 198.8722 | G88: 9.5 | H88: 51.5571 | I88: 147.8779 | J88: 10.52389372 | K88: 198.4111063 | M88: -0.4610937166 | N88: -0.002318542846
A89: 250 | B89: 9.5 | C89: 49.1358 | D89: 148.4856 | E89: 207.1214 | G89: 9.5 | H89: 51.5571 | I89: 156.5766 | J89: 10.99400679 | K89: 206.6396932 | M89: -0.4817067938 | N89: -0.002325721986
A90: 260 | B90: 9.5 | C90: 49.1358 | D90: 156.7348 | E90: 215.3706 | G90: 9.5 | H90: 51.5571 | I90: 165.2753 | J90: 11.46411987 | K90: 214.8682801 | M90: -0.5023198711 | N90: -0.002332351171
A91: 270 | B91: 9.5 | C91: 49.1358 | D91: 164.984 | E91: 223.6198 | G91: 9.5 | H91: 51.5571 | I91: 173.974 | J91: 11.93423295 | K91: 223.0968671 | M91: -0.5229329483 | N91: -0.002338491262
A92: 280 | B92: 9.5 | C92: 49.1358 | D92: 173.2332 | E92: 231.869 | G92: 9.5 | H92: 51.5571 | I92: 182.6727 | J92: 12.40434603 | K92: 231.325454 | M92: -0.5435460255 | N92: -0.002344194461
A93: 290 | B93: 9.5 | C93: 49.1358 | D93: 181.4824 | E93: 240.1182 | G93: 9.5 | H93: 51.5571 | I93: 191.3714 | J93: 12.8744591 | K93: 239.5540409 | M93: -0.5641591028 | N93: -0.002349505797
A94: 300 | B94: 9.5 | C94: 49.1358 | D94: 189.7316 | E94: 248.3674 | G94: 9.5 | H94: 51.5571 | I94: 200.0701 | J94: 13.34457218 | K94: 247.7826278 | M94: -0.58477218 | N94: -0.002354464314
A95: 310 | B95: 9.5 | C95: 49.1358 | D95: 197.9808 | E95: 256.6166 | G95: 9.5 | H95: 51.5571 | I95: 208.7688 | J95: 13.81468526 | K95: 256.0112147 | M95: -0.6053852572 | N95: -0.002359104038
A96: 320 | B96: 9.5 | C96: 49.1358 | D96: 206.23 | E96: 264.8658 | G96: 9.5 | H96: 51.5571 | I96: 217.4675 | J96: 14.28479833 | K96: 264.2398017 | M96: -0.6259983345 | N96: -0.002363454755
A97: 330 | B97: 9.5 | C97: 49.1358 | D97: 214.4792 | E97: 273.115 | G97: 9.5 | H97: 51.5571 | I97: 226.1662 | J97: 14.75491141 | K97: 272.4683886 | M97: -0.6466114117 | N97: -0.002367542653
A98: 340 | B98: 9.5 | C98: 49.1358 | D98: 222.7284 | E98: 281.3642 | G98: 9.5 | H98: 51.5571 | I98: 234.8649 | J98: 15.22502449 | K98: 280.6969755 | M98: -0.6672244889 | N98: -0.002371390848
A99: 350 | B99: 9.5 | C99: 49.1358 | D99: 230.9776 | E99: 289.6134 | G99: 9.5 | H99: 51.5571 | I99: 243.5636 | J99: 15.69513757 | K99: 288.9255624 | M99: -0.6878375662 | N99: -0.002375019824
A100: 360 | B100: 9.5 | C100: 49.1358 | D100: 239.2268 | E100: 297.8626 | G100: 9.5 | H100: 51.5571 | I100: 252.2623 | J100: 16.16525064 | K100: 297.1541494 | M100: -0.7084506434 | N100: -0.002378447792
A101: 370 | B101: 9.5 | C101: 49.1358 | D101: 247.476 | E101: 306.1118 | G101: 9.5 | H101: 51.5571 | I101: 260.961 | J101: 16.63536372 | K101: 305.3827363 | M101: -0.7290637206 | N101: -0.002381691005
A102: 380 | B102: 9.5 | C102: 49.1358 | D102: 255.7252 | E102: 314.361 | G102: 9.5 | H102: 51.5571 | I102: 269.6597 | J102: 17.1054768 | K102: 313.6113232 | M102: -0.7496767979 | N102: -0.002384764007
A103: 390 | B103: 9.5 | C103: 49.1358 | D103: 263.9744 | E103: 322.6102 | G103: 9.5 | H103: 51.5571 | I103: 278.3584 | J103: 17.57558988 | K103: 321.8399101 | M103: -0.7702898751 | N103: -0.002387679854
A104: 400 | B104: 9.5 | C104: 49.1358 | D104: 272.2236 | E104: 330.8594 | G104: 9.5 | H104: 51.5571 | I104: 287.0571 | J104: 18.04570295 | K104: 330.068497 | M104: -0.7909029523 | N104: -0.002390450301

Sheet Exh. ELJ-6 NG Bill Components
A1: AVISTA UTILITIES | P1: This worksheet uses Base & Billing rates from 'Rate Design' tab.
A2: WASHINGTON NATURAL GAS
A3: PRESENT AND PROPOSED RATE COMPONENTS BY SCHEDULE
I7: Proposed
D8: Present Base | E8: Present | G8: General | H8: Proposed | I8: Base
D9: Distribution | E9: Billing | F9: Present | G9: Rate | H9: Billing | I9: Distribution | M9: GRC
A10: Type of Service | D10: Rate | E10: Rate Adj. (1) | F10: Billing Rate | G10: Increase | H10: Rate(1) | I10: Rate | K10: Base | L10: Bill | M10: Revenue
B11: (a) | D11: (b) | E11: (c) | F11: (d) | G11: (e) | H11: (g) | I11: (h) | K11: check | L11: check | M11: Check
A12: General Service - Schedule 101
A13: Basic Charge | D13: ='Rate Design'!D4 -> 9.5 | E13: =F13-D13 -> 0 | F13: ='Rate Design'!D14 -> 9.5 | G13: =IF(ROUND(H13-F13,5)<>ROUND(I13-D13,5),#VALUE!,I13-D13) -> 0 | H13: ='Rate Design'!D36 -> 9.5 | I13: ='Rate Design'!D26 -> 9.5 | J13: =I13/D13-1 -> 0 | M13: =G13*'Pres & Prop Rev'!D25 -> 0
A14: Usage Charge:
A15: First 70 Therms | D15: ='Rate Design'!D6/100 -> 0.41035 | E15: =F15-D15 -> 0.29159 | F15: ='Rate Design'!D16/100 -> 0.70194 | G15: =I15-D15 -> 0.03459 | H15: =F15+G15 -> 0.73653 | I15: ='Rate Design'!D28/100 -> 0.44494 | J15: =I15/D15-1 -> 0.08429389546 | K15: =D15+G15-I15 -> 0 | L15: =F15+G15-H15 -> 0 | M15: =G15*'Pres & Prop Rev'!D31 -> 2872029.233 | V15: 155 Amort Rate | X15: Decoupling | Z15: Proposed
A16: All over 70 Therms | D16: ='Rate Design'!D7/100 -> 0.53333 | E16: =E15 -> 0.29159 | F16: ='Rate Design'!D17/100 -> 0.82492 | G16: =I16-D16 -> 0.04495 | H16: =F16+G16 -> 0.86987 | I16: ='Rate Design'!D29/100 -> 0.57828 | J16: =I16/D16-1 -> 0.08428177676 | K16: =D16+G16-I16 -> 0 | L16: =F16+G16-H16 -> 0 | M16: =G16*'Pres & Prop Rev'!D32 -> 2451252.436 | P16: =(70*D15)+(130*D16)+D13 -> 107.5574 | Q16: =(70*I15)+(130*I16)+I13 -> 115.8222 | R16: =(70*D15)+(430*D16)+D13 -> 267.5564 | S16: =(70*I15)+(430*I16)+I13 -> 289.3062 | Z16: Billing
A17: Large General Service - Schedule 111 | M17: =SUM(M13:M16) -> 5323281.669 | N17: =M17-'Pres & Prop Rev'!D195 -> 213961.2591 | U17: Large General Service - Schedule 112 | V17: Sch 111 | W17: Sch 112 | X17: Sch 175 | Y17: Difference | Z17: Rate
A18: Usage Charge: | J18: =I25/200+I26-I19 -> 0 | U18: Usage Charge:
A19: ="First "&TEXT('Rate Design'!M6,"#,##0")&" therms" -> First 200 therms | D19: ='Rate Design'!M11/100 -> 0.5378 | E19: =F19-D19 -> 0.29095 | F19: ='Rate Design'!M21/100 -> 0.82875 | G19: =I19-D19 -> 0.0795 | H19: =F19+G19 -> 0.90825 | I19: ='Rate Design'!M33/100 -> 0.6173 | J19: =I19/D19-1 -> 0.1478244701 | K19: =D19+G19-I19 -> 0 | L19: =F19+G19-H19 -> 0 | P19: =D19*200 -> 107.56 | Q19: =I19*200 -> 123.46 | U19: ="First "&TEXT('Rate Design'!AG6,"#,##0")&" therms" -> First 0 therms | V19: -0.07997 | W19: 0 | X19: 0.00691 | Y19: =V19-W19+X19 -> -0.07306 | Z19: =H19-Y19 -> 0.98131
A20: =TEXT('Rate Design'!M6,"#,##0")&" - "&TEXT('Rate Design'!M7,"#,##0")&" therms" -> 200 - 1,000 therms | D20: ='Rate Design'!E7/100 -> 0.36159 | E20: =F20-D20 -> 0.29095 | F20: ='Rate Design'!E17/100 -> 0.65254 | G20: =I20-D20 -> -0.00714 | H20: =F20+G20 -> 0.6454 | I20: ='Rate Design'!E29/100 -> 0.35445 | J20: =I20/D20-1 -> -0.0197461213 | K20: =D20+G20-I20 -> 0 | L20: =F20+G20-H20 -> 0 | M20: =G20*'Pres & Prop Rev'!E32 -> -125102.8672 | U20: =TEXT('Rate Design'!AG6,"#,##0")&" - "&TEXT('Rate Design'!AG7,"#,##0")&" therms" -> 0 - 0 therms | V20: =V19 -> -0.07997 | W20: =W19 -> 0 | X20: =X19 -> 0.00691 | Y20: =V20-W20+X20 -> -0.07306 | Z20: =H20-Y20 -> 0.71846
A21: =TEXT('Rate Design'!N7,"#,##0")&" - "&TEXT('Rate Design'!N8,"#,##0")&" therms" -> 1,000 - 10,000 therms | D21: ='Rate Design'!E8/100 -> 0.27562 | E21: =F21-D21 -> 0.29095 | F21: ='Rate Design'!E18/100 -> 0.56657 | G21: =I21-D21 -> -0.00544 | H21: =F21+G21 -> 0.56113 | I21: ='Rate Design'!E30/100 -> 0.27018 | J21: =I21/D21-1 -> -0.0197373195 | K21: =D21+G21-I21 -> 0 | L21: =F21+G21-H21 -> 0 | M21: =G21*'Pres & Prop Rev'!E33 -> -192992.3025 | U21: ="All over "&TEXT('Rate Design'!AG7,"#,##0")&" therms" -> All over 0 therms | V21: =V19 -> -0.07997 | W21: =W19 -> 0 | X21: =X19 -> 0.00691 | Y21: -0.07306 | Z21: 0.63419
A22: =TEXT('Rate Design'!N8,"#,##0")&" - "&TEXT('Rate Design'!N9,"#,##0")&" therms" -> 10,000 - 25,000 therms | D22: ='Rate Design'!E9/100 -> 0.23517 | E22: =F22-D22 -> 0.29095 | F22: ='Rate Design'!E19/100 -> 0.52612 | G22: =I22-D22 -> -0.00464 | H22: =F22+G22 -> 0.52148 | I22: ='Rate Design'!E31/100 -> 0.23053 | J22: =I22/D22-1 -> -0.01973040779 | K22: =D22+G22-I22 -> 0 | L22: =F22+G22-H22 -> 0 | M22: =G22*'Pres & Prop Rev'!E34 -> -3428.371813
A23: ="All over "&TEXT('Rate Design'!N9,"#,##0")&" therms" -> All over 25,000 therms | D23: ='Rate Design'!E10/100 -> 0.16497 | E23: 0.29095 | F23: ='Rate Design'!E20/100 -> 0.45592 | G23: =I23-D23 -> -0.00326 | H23: =F23+G23 -> 0.45266 | I23: ='Rate Design'!E32/100 -> 0.16171 | J23: =I23/D23-1 -> -0.0197611687 | K23: =D23+G23-I23 -> 0 | L23: =F23+G23-H23 -> 0 | M23: =G23*'Pres & Prop Rev'!E35 -> -4375.419467
A24: Minimum Charge: | U24: Minimum Charge:
A25: per month | D25: ='Rate Design'!E5 -> 107.56 | E25: =F25-D25 -> 0 | F25: ='Rate Design'!E15 -> 107.56 | G25: =IF(ROUND(H25-F25,5)<>ROUND(I25-D25,5),#VALUE!,I25-D25) -> 15.9 | H25: ='Rate Design'!E37 -> 123.46 | I25: ='Rate Design'!E27 -> 123.46 | J25: =I25/D25-1 -> 0.1478244701 | K25: =D25+G25-I25 -> 0 | L25: =F25+G25-H25 -> 0 | M25: =G25*'Pres & Prop Rev'!E49 -> 592338.6 | U25: per month
A26: per therm | D26: ='Rate Design'!E6/100 -> 0 | E26: =F26-D26 -> 0.29095 | F26: ='Rate Design'!E16/100 -> 0.29095 | G26: =I26-D26 -> 0 | H26: =E26 -> 0.29095 | I26: ='Rate Design'!E28/100 -> 0 | K26: =D26+G26-I26 -> 0 | L26: =F26+G26-H26 -> 0 | M26: =G26*'Pres & Prop Rev'!E31 -> 0 | U26: per therm | V26: =V19 -> -0.07997 | W26: =W19 -> 0 | X26: =X19 -> 0.00691 | Y26: =V26-W26+X26 -> -0.07306 | Z26: 0.36401
M27: =SUM(M19:M26) -> 266439.639 | N27: =-('Pres & Prop Rev'!E190-'Pres & Prop Rev'!E142-'Pres & Prop Rev'!F142) -> -7310.17 | Z27: Billing
A28: High Annual Load Factor Large General Service - Schedule 121 (Discontinued) | U28: High Annual Load Factor Large General Service - Schedule 121 | V28: Sch 121 | W28: Sch 122 | X28: Sch 175 | Y28: Difference | Z28: Rate
A29: Usage Charge: | J29: =I36/500+I37-I30 -> 0 | U29: Usage Charge:
A30: ="First "&TEXT('Rate Design'!N6,"#,##0")&" therms" -> First 500 therms | D30: ='Rate Design'!N11/100 -> 0 | E30: =F30-D30 -> 0 | F30: ='Rate Design'!N21/100 -> 0 | G30: 0 | H30: **DISCONTINUED** | J30: =I30/D30-1 ->  | K30: =D30+G30-I30 -> 0 | L30: =F30+G30 -> 0 | P30: =D30*500 -> 0 | Q30: =I30*500 -> 0 | U30: First 500 therms | V30: -0.05013 | W30: 0 | X30: 0.00691 | Y30: =V30-W30+X30 -> -0.04322 | Z30: =H30-Y30 -> 
A31: =TEXT('Rate Design'!N6,"#,##0")&" - "&TEXT('Rate Design'!N7,"#,##0")&" therms" -> 500 - 1,000 therms | D31: ='Rate Design'!F7/100 -> 0 | E31: =F31-D31 -> 0 | F31: ='Rate Design'!F17/100 -> 0 | J31: =I31/D31-1 ->  | K31: =D31+G31-I31 -> 0 | L31: =F31+G31-H31 -> 0 | M31: =G31*'Pres & Prop Rev'!F32 ->  | U31: 500 - 1,000 therms | V31: =V30 -> -0.05013 | W31: =W30 -> 0 | X31: =X30 -> 0.00691 | Y31: =V31-W31+X31 -> -0.04322 | Z31: =H31-Y31 -> 0.04322
A32: =TEXT('Rate Design'!N7,"#,##0")&" - "&TEXT('Rate Design'!N8,"#,##0")&" therms" -> 1,000 - 10,000 therms | D32: ='Rate Design'!F8/100 -> 0 | E32: =F32-D32 -> 0 | F32: ='Rate Design'!F18/100 -> 0 | J32: =I32/D32-1 ->  | K32: =D32+G32-I32 -> 0 | L32: =F32+G32-H32 -> 0 | M32: =G32*'Pres & Prop Rev'!F33 -> 0 | U32: 1,000 - 10,000 therms | V32: =V30 -> -0.05013 | W32: =W30 -> 0 | X32: =X30 -> 0.00691 | Y32: -0.04322 | Z32: 0.04322
A33: =TEXT('Rate Design'!N8,"#,##0")&" - "&TEXT('Rate Design'!N9,"#,##0")&" therms" -> 10,000 - 25,000 therms | D33: ='Rate Design'!F9/100 -> 0 | E33: =F33-D33 -> 0 | F33: ='Rate Design'!F19/100 -> 0 | J33: =I33/D33-1 ->  | K33: =D33+G33-I33 -> 0 | L33: =F33+G33-H33 -> 0 | M33: =G33*'Pres & Prop Rev'!F34 -> 0 | U33: 10,000 - 25,000 therms | V33: =V30 -> -0.05013 | W33: =W30 -> 0 | X33: =X30 -> 0.00691 | Y33: -0.04322 | Z33: 0.04322
A34: ="All over "&TEXT('Rate Design'!N9,"#,##0")&" therms" -> All over 25,000 therms | D34: ='Rate Design'!F10/100 -> 0 | E34: =F34-D34 -> 0 | F34: ='Rate Design'!F20/100 -> 0 | J34: =I34/D34-1 ->  | K34: =D34+G34-I34 -> 0 | L34: =F34+G34-H34 -> 0 | M34: =G34*'Pres & Prop Rev'!F35 -> 0 | U34: All over 25,000 therms | V34: =V30 -> -0.05013 | W34: =W30 -> 0 | X34: =X30 -> 0.00691 | Y34: -0.04322 | Z34: 0.04322
A35: Minimum Charge: | U35: Minimum Charge:
A36: per month | D36: ='Rate Design'!F5 -> 0 | E36: =F36-D36 -> 0 | F36: ='Rate Design'!F15 -> 0 | J36: =I36/D36-1 ->  | M36: =G36*'Pres & Prop Rev'!F49 -> 0 | U36: per month
A37: per therm | D37: ='Rate Design'!F6/100 -> 0 | E37: =F37-D37 -> 0 | F37: ='Rate Design'!F16/100 -> 0 | J37: =I37/D37-1 ->  | K37: =D37+G37-I37 -> 0 | L37: =F37+G37-H37 -> 0 | M37: =G37*'Pres & Prop Rev'!F31 ->  | U37: per therm | V37: =V30 -> -0.05013 | W37: =W30 -> 0 | X37: =X30 -> 0.00691 | Y37: =V37-W37+X37 -> -0.04322 | Z37: =H37-Y37 -> 0.04322
A38: Annual Minimum per therm | D38: Present: | E38: 0 | J38: =I38/E38-1 ->  | M38: =SUM(M30:M37) ->  | N38: =M38-'Pres & Prop Rev'!F195 ->  | U38: Annual Minimum per therm
Z39: Billing
A40: Interruptible Service - Schedule 132 | U40: Interruptible Service - Schedule 132 | V40: Sch 131 | W40: Sch 132 | X40: Sch 175 | Y40: Difference | Z40: Rate
A41: Usage Charge: | U41: Usage Charge:
A42: ="First "&TEXT('Rate Design'!O6,"#,##0")&" therms" -> First 10,000 therms | D42: ='Rate Design'!G6/100 -> 0.27008 | E42: =F42-D42 -> 0.23982 | F42: ='Rate Design'!G16/100 -> 0.5099 | G42: =I42-D42 -> 0.00734 | H42: =F42+G42 -> 0.51724 | I42: ='Rate Design'!G28/100 -> 0.27742 | J42: =I42/D42-1 -> 0.0271771327 | K42: =D42+G42-I42 -> 0 | L42: =F42+G42-H42 -> 0 | M42: =G42*'Pres & Prop Rev'!G31 -> 1614.8 | U42: First 10,000 therms | V42: 0 | W42: 0 | X42: 0.00691 | Y42: =V42-W42+X42 -> 0.00691 | Z42: =H42+Y42 -> 0.52415
A43: =TEXT('Rate Design'!O6,"#,##0")&" - "&TEXT('Rate Design'!O7,"#,##0")&" therms" -> 10,000 - 25,000 therms | D43: ='Rate Design'!G7/100 -> 0.21681 | E43: =F43-D43 -> 0.23982 | F43: ='Rate Design'!G17/100 -> 0.45663 | G43: =I43-D43 -> 0.00589 | H43: =F43+G43 -> 0.46252 | I43: ='Rate Design'!G29/100 -> 0.2227 | J43: =I43/D43-1 -> 0.0271666436 | K43: =D43+G43-I43 -> 0 | L43: =F43+G43-H43 -> 0 | M43: =G43*'Pres & Prop Rev'!G32 -> 1681.02519 | U43: 10,000 - 25,000 therms | V43: =V42 -> 0 | W43: =W42 -> 0 | X43: =X42 -> 0.00691 | Y43: =V43-W43+X43 -> 0.00691 | Z43: =H43+Y43 -> 0.46943
A44: =TEXT('Rate Design'!O7,"#,##0")&" - "&TEXT('Rate Design'!O8,"#,##0")&" therms" -> 25,000 - 50,000 therms | D44: ='Rate Design'!G8/100 -> 0.20373 | E44: =F44-D44 -> 0.23982 | F44: ='Rate Design'!G18/100 -> 0.44355 | G44: =I44-D44 -> 0.00553 | H44: =F44+G44 -> 0.44908 | I44: ='Rate Design'!G30/100 -> 0.20926 | J44: =I44/D44-1 -> 0.02714376871 | K44: =D44+G44-I44 -> 0 | L44: =F44+G44-H44 -> 0 | M44: =G44*'Pres & Prop Rev'!G33 -> 1756.820474 | U44: 25,000 - 50,000 therms | V44: =V42 -> 0 | W44: 0 | X44: 0.00691 | Y44: 0.00691 | Z44: 0.45599
A45: ="All over "&TEXT('Rate Design'!O8,"#,##0")&" therms" -> All over 50,000 therms | D45: ='Rate Design'!G9/100 -> 0.18203 | E45: =F45-D45 -> 0.23982 | F45: ='Rate Design'!G19/100 -> 0.42185 | G45: =I45-D45 -> 0.00495 | H45: =F45+G45 -> 0.4268 | I45: ='Rate Design'!G31/100 -> 0.18698 | J45: =I45/D45-1 -> 0.02719331978 | K45: =D45+G45-I45 -> 0 | L45: =F45+G45-H45 -> 0 | M45: =G45*'Pres & Prop Rev'!G34 -> 842.0344861 | U45: All over 50,000 therms | V45: 0 | W45: 0 | X45: 0.00691 | Y45: 0.00691 | Z45: 0.43371
A46: Annual Minimum per therm | D46: Present: | E46: 0.27544 | H46: Proposed: | I46: =D43+0.05901+N("Tariffed Demand Rate, 2020 PGA - Grossed up for Rev Related Items")+G43 -> 0.28171 | J46: =I46/E46-1 -> 0.02276357827 | M46: =SUM(M42:M45) -> 5894.68015 | N46: =M46-'Pres & Prop Rev'!G195 -> 0.0001499199889 | U46: Annual Minimum per therm
A48: Transportation Service - Schedule 146
A49: Basic Charge | D49: ='Rate Design'!H4 -> 625 | E49: =F49-D49 -> 0 | F49: ='Rate Design'!H14 -> 625 | G49: =IF(ROUND(H49-F49,5)<>ROUND(I49-D49,5),#VALUE!,I49-D49) -> 0 | H49: ='Rate Design'!H36 -> 625 | I49: ='Rate Design'!H26 -> 625 | J49: =I49/D49-1 -> 0 | M49: =G49*'Pres & Prop Rev'!H48 -> 0
A50: Usage Charge:
A51: ="First "&TEXT('Rate Design'!P6,"#,##0")&" therms" -> First 20,000 therms | D51: ='Rate Design'!H6/100 -> 0.10494 | E51: =F51-D51 -> -0.00184 | F51: ='Rate Design'!H16/100 -> 0.1031 | G51: =I51-D51 -> 0.00733 | H51: =F51+G51 -> 0.11043 | I51: ='Rate Design'!H28/100 -> 0.11227 | J51: =I51/D51-1 -> 0.06984943777 | K51: =D51+G51-I51 -> 0 | L51: =F51+G51-H51 -> 0 | M51: =G51*'Pres & Prop Rev'!H31 -> 59711.22086 | Q51: =F51+G51 -> 0.11043
A52: =TEXT('Rate Design'!P6,"#,##0")&" - "&TEXT('Rate Design'!P7,"#,##0")&" therms" -> 20,000 - 50,000 therms | D52: ='Rate Design'!H7/100 -> 0.09336 | E52: =F52-D52 -> -0.00184 | F52: ='Rate Design'!H17/100 -> 0.09152 | G52: =I52-D52 -> 0.00652 | H52: =F52+G52 -> 0.09804 | I52: ='Rate Design'!H29/100 -> 0.09988 | J52: =I52/D52-1 -> 0.06983718937 | K52: =D52+G52-I52 -> 0 | L52: =F52+G52-H52 -> 0 | M52: =G52*'Pres & Prop Rev'!H32 -> 53999.455 | Q52: =F52+G52 -> 0.09804
A53: =TEXT('Rate Design'!P7,"#,##0")&" - "&TEXT('Rate Design'!P8,"#,##0")&" therms" -> 50,000 - 300,000 therms | D53: ='Rate Design'!H8/100 -> 0.08419 | E53: =F53-D53 -> -0.00184 | F53: ='Rate Design'!H18/100 -> 0.08235 | G53: =I53-D53 -> 0.00588 | H53: =F53+G53 -> 0.08823 | I53: ='Rate Design'!H30/100 -> 0.09007 | J53: =I53/D53-1 -> 0.06984202399 | K53: =D53+G53-I53 -> 0 | L53: =F53+G53-H53 -> 0 | M53: =G53*'Pres & Prop Rev'!H33 -> 84733.54596 | Q53: 0.08823
A54: =TEXT('Rate Design'!P8,"#,##0")&" - "&TEXT('Rate Design'!P9,"#,##0")&" therms" -> 300,000 - 500,000 therms | D54: ='Rate Design'!H9/100 -> 0.07785 | E54: =F54-D54 -> -0.00184 | F54: ='Rate Design'!H19/100 -> 0.07601 | G54: =I54-D54 -> 0.00544 | H54: =F54+G54 -> 0.08145 | I54: ='Rate Design'!H31/100 -> 0.08329 | J54: =I54/D54-1 -> 0.06987797046 | K54: =D54+G54-I54 -> 0 | L54: =F54+G54-H54 -> 0 | M54: =G54*'Pres & Prop Rev'!H34 -> 16188.24792 | Q54: 0.08145
A55: ="All over "&TEXT('Rate Design'!P9,"#,##0")&" therms" -> All over 500,000 therms | D55: ='Rate Design'!H10/100 -> 0.05851 | E55: =F55-D55 -> -0.00184 | F55: ='Rate Design'!H20/100 -> 0.05667 | G55: =I55-D55 -> 0.00409 | H55: =F55+G55 -> 0.06076 | I55: ='Rate Design'!H32/100 -> 0.0626 | J55: =I55/D55-1 -> 0.06990258076 | K55: =D55+G55-I55 -> 0 | L55: =F55+G55-H55 -> 0 | M55: =G55*'Pres & Prop Rev'!H35 -> 13724.88253 | Q55: 0.06076
A56: Annual Minimum per therm | D56: Present: | E56: 0.09336 | H56: Proposed: | I56: =I52 -> 0.09988 | J56: =I56/E56-1 -> 0.06983718937 | M56: =SUM(M49:M55) -> 228357.3523 | N56: =M56-'Pres & Prop Rev'!H195 -> -1854.911648
M57: ='Pres & Prop Rev'!H156-'Pres & Prop Rev'!H107 -> 1854.91392 | N57: Annual Minimum Difference
A61: (1) Includes Schedule 150 (Purchase Gas Cost Adjustment), Schedule 155 (Gas Rate Adjustment), Schedule 194 (Remand Rebate), | M61: =M17+M27+M46+M56 -> 5823973.34 | N61: =N17+N27+N46+N56 -> 204796.1776
A62: Schedule 175 (Decoupling), Schedule 191 (DSM Adjustment), Schedule 194 (Remand) and Schedule 192 (LIRAP Adjustment). | N62: ='Pres & Prop Rev'!C190-'Pres & Prop Rev'!C142 -> -206651.08 | O62: Weather & Unbilled Revenue
N63: =M57 -> 1854.91392 | O63: Sch 456 Annual Minimum Difference
N64: =SUM(N61:N63) -> 0.01151221904

Sheet ROR
B1: AVISTA UTILITIES
B2: WASHINGTON GAS
B3: PRESENT & PROPOSED RATE OF RETURN BY RATE SCHEDULE
B4: 12 MONTHS ENDED DECEMBER 31, 2019
C7: Total | D7: Sch 101 | E7: Sch 111 | F7: Sch 121 | G7: Sch 131 | H7: Sch 146
B8: Total Rate Base | C8: =SUM(D8:H8) -> 455590771.8 | D8: 367936472.2 | E8: 64277721.09 | F8: 0 | G8: 849356.7642 | H8: 22527221.78 | I8: from COS | J8: "Summary" Line 467 | M8: =D8/$C$8 -> 0.8076029958 | N8: =E8/$C$8 -> 0.14108653 | O8: 0 | P8: 0.00186429756 | Q8: 0.04944617665
B10: Revenue From Retail Rates | C10: =SUM(D10:H10) -> 103412000 | D10: 79468609.31 | E10: 20145536.17 | F10: 0 | G10: 216984.0276 | H10: 3580870.499 | I10: from COS | J10: "Summary" Line 469 | M10: =D10/$C$10 -> 0.7684660321 | N10: =E10/$C$10 -> 0.1948084958 | O10: 0 | P10: 0.002098248053 | Q10: 0.03462722411
B11: Other Operating Revenues | C11: =SUM(D11:H11) -> 2276916.005 | D11: 1919002.885 | E11: 198694.3604 | F11: 0 | G11: 2259.964278 | H11: 156958.7946 | I11: from COS | J11: "Summary" Line 470
B12: Total Revenues | C12: =IF(ROUND(C10+C11,0)<>ROUND(SUM(D12:H12),0),#VALUE!,SUM(D12:H12)) -> 105688916 | D12: =D10+D11 -> 81387612.19 | E12: =E10+E11 -> 20344230.53 | F12: =F10+F11 -> 0 | G12: =G10+G11 -> 219243.9919 | H12: =H10+H11 -> 3737829.294
B14: Total Operating Exp b4 conv items & taxes | C14: =SUM(D14:H14) -> 75107382.53 | D14: =D17-D15-D16 -> 64529617.94 | E14: =E17-E15-E16 -> 7981200.22 | F14: =F17-F15-F16 -> 0 | G14: =G17-G15-G16 -> 101581.8582 | H14: =H17-H15-H16 -> 2494982.517
B15: Revenue Related conversion items | C15: =SUM(D15:H15) -> 4543440 | D15: 3491479.309 | E15: 885100.7121 | F15: 0 | G15: 9533.264133 | H15: 157326.7151 | I15: from COS | J15: "Summary" Line 536
B16: Income Taxes | C16: =SUM(D16:H16) -> 2527008.183 | D16: 775203.0456 | E16: 1647648.386 | F16: 0 | G16: 14541.38114 | H16: 89615.36992 | I16: from COS | J16: "Summary" Line 490
B17: Total Expenses | C17: =IF(ROUND(SUM(C14:C16),0)<>ROUND(SUM(D17:H17),0),#VALUE!,SUM(D17:H17)) -> 82177830.72 | D17: 68796300.29 | E17: 10513949.32 | F17: 0 | G17: 125656.5034 | H17: 2741924.602 | I17: from COS | J17: "Summary" Line 491 | M17: =D17/$C$17 -> 0.8371637422 | N17: =E17/$C$17 -> 0.1279414317 | O17: 0 | P17: 0.001529080317 | Q17: 0.0333657457
M18: =D17/D8 -> 0.1869787463 | N18: =E17/E8 -> 0.1635706609 | P18: 0.1479431362 | Q18: 0.1217160566
B19: Net Operating Income | C19: =IF(ROUND(C12-C17,0)<>ROUND(SUM(D19:H19),0),#VALUE!,SUM(D19:H19)) -> 23511085.29 | D19: =D12-D17 -> 12591311.9 | E19: =E12-E17 -> 9830281.208 | F19: =F12-F17 -> 0 | G19: =G12-G17 -> 93587.48846 | H19: =H12-H17 -> 995904.6916
B20: Present Rate of Return | C20: =C19/C8 -> 0.05160571009 | D20: =D19/D8 -> 0.03422142911 | E20: 0.1529345011 | G20: 0.1101863109 | H20: =H19/H8 -> 0.04420894424
B21: Present Return Ratio | C21: =C20/$C20 -> 1 | D21: =D20/$C20 -> 0.6631326079 | E21: 2.963518976 | G21: 2.135157344 | H21: =H20/$C20 -> 0.8566676859
B23: Interest Expense | C23: =SUM(D23:H23) -> 10962790.69 | D23: 8811563.723 | E23: 1575666.509 | F23: 0 | G23: 20858.51467 | H23: 554701.9446 | I23: from COS | J23: "Summary" Line 497
B25: Proposed Misc Revenue Increase | C25: 0
B26: Proposed Rate Revenue Increase | C26: 5619000 | D26: =C26/C10 -> 0.05433605384 | J26: % excludes special contract revenue
B27: Proposed Rev Increase | C27: =C25+C26 -> 5619000
D28: change
B29: Proposed Rate Revenues | C29: =C10+C26 -> 109031000 | D29: =C29-C10 -> 5619000 | F29: Uncollectibles | G29: 0.003326
B30: incremental conversion expenses | C30: =ROUND(C27*G29,-3)+ROUND(C27*G30,-3)+ROUND(C27*G31,-3) -> 246000 | F30: Commiss Fees | G30: 0.002
B31: incremental Income Taxes | C31: =ROUND(C27*G32,-3) -> 1128000 | F31: Excise Tax | G31: 0.038392
B32: Proposed Return | C32: =C19+C27-C30-C31 -> 27756085.29 | D32: =C32-C19 -> 4245000 | F32: Federal Inc Tax | G32: 0.200819
B33: Proposed Return % | C33: =C32/C8 -> 0.06092328249
B35: Allocation of incremental Misc Rev | C35: =SUM(D35:H35) -> 0 | D35: 0 | E35: 0 | F35: 0 | G35: 0 | H35: 0 | I35: from COS
B37: Target Relative Return | C37: =C38/C33 -> 1 | D37: =D39/D8/C33 -> 0.738964048 | E37: 2.533947784 | F37: 1 | G37: 1.877645498 | H37: 0.8535347702 | I37: Input | K37: =D26 -> 0.05433605384
B38: Target Return % | C38: =C39/C8 -> 0.06092328249 | D38: 0.04502011545 | E38: =E39/E8 -> 0.1543764167 | F38: =F39/F8 ->  | G38: 0.1143923271 | H38: =H39/H8 -> 0.05200013992
B39: Target Return (NOI b4 Interest) | C39: =C32 -> 27756085.29 | D39: =$C$32-SUM(E39:H39) -> 16564542.45 | E39: =E8*E37*$C$32/$C$8 -> 9922964.254 | F39: =F8*F37*$C$32/$C$8 -> 0 | G39: =G8*G37*$C$32/$C$8 -> 97159.8968 | H39: =H8*H37*$C$32/$C$8 -> 1171418.685 | I39: =ROUND(C39-SUM(D39:H39),0) -> 0
B40: Target Return after Interest Expense | C40: =C39-C23 -> 16793294.6 | D40: 7752978.731 | E40: 8347297.745 | F40: 0 | G40: 76301.38213 | H40: 616716.74 | I40: =ROUND(C40-SUM(D40:H40),0) -> 0
B41: Target Return b4 Income Taxes & Interest | C41: =C40+C16+C31+C23 -> 31411093.47 | D41: =D40+D23+D40/$C40*SUM($C$16,$C$31) -> 18251954.09 | E41: =E40+E23+E40/$C40*SUM($C$16,$C$31) -> 11739727.57 | F41: =F40+F23+F40/$C40*SUM($C$16,$C$31) -> 0 | G41: =G40+G23+G40/$C40*SUM($C$16,$C$31) -> 113766.6546 | H41: =H40+H23+H40/$C40*SUM($C$16,$C$31) -> 1305645.159 | I41: 0
B42: Target Return b4 Misc Rev | C42: =C41-C11-$C$25*C35 -> 29134177.47 | D42: =D41-D11-$C$25*D35 -> 16332951.2 | E42: 11541033.21 | F42: 0 | G42: =G41-G11-$C$25*G35 -> 111506.6903 | H42: =H41-H11-$C$25*H35 -> 1148686.365 | I42: 0
B43: =B14 -> Total Operating Exp b4 conv items & taxes | C43: 75107382.53 | D43: 64529617.94 | E43: 7981200.22 | F43: 0 | G43: =G14 -> 101581.8582 | H43: =H14 -> 2494982.517 | I43: 0
B44: Conversion Items | C44: =C15+C30 -> 4789440 | D44: =$C44*D46/$C46 -> 3715278.466 | E44: =$C44*E46/$C46 -> 896960.5374 | F44: =$C44*F46/$C46 -> 0 | G44: =$C44*G46/$C46 -> 9790.479131 | H44: =$C44*H46/$C46 -> 167410.5174 | I44: 0
B45: Incremental Rate Revenue | C45: =C26 -> 5619000 | D45: =(D42-D10+D14+($C$44*D10)/$C$29)/(1-$C$44/$C$29) -> 5109238.3 | E45: =(E42-E10+E14+($C$44*E10)/$C$29)/(1-$C$44/$C$29) -> 273657.8 | F45: =(F42-F10+F14+($C$44*F10)/$C$29)/(1-$C$44/$C$29) -> 0 | G45: =(G42-G10+G14+($C$44*G10)/$C$29)/(1-$C$44/$C$29) -> 5895 | H45: =(H42-H10+H14+($C$44*H10)/$C$29)/(1-$C$44/$C$29) -> 230208.9 | I45: 0
B46: Target Rate Revenue | C46: =C42+C43+C44 -> 109031000 | D46: =D10+D45 -> 84577847.61 | E46: =E10+E45 -> 20419193.97 | F46: =F10+F45 -> 0 | G46: =G10+G45 -> 222879.0276 | H46: =H10+H45 -> 3811079.399 | I46: 0
B47: Change in Rate Revenue | C47: =C46/C10-1 -> 0.05433605384 | D47: =D46/D10-1 -> 0.06429253443 | E47: =E46/E10-1 -> 0.01358404153 | F47: =F46/F10-1 ->  | G47: =G46/G10-1 -> 0.02716789832 | H47: =H46/H10-1 -> 0.06428852986
B49: Incremental Rate Revenue - rounded | C49: =SUM(D49:H49) -> 5618000 | D49: =ROUND(D45,-3) -> 5109000 | E49: =ROUND(E45,-3) -> 274000 | F49: 0 | G49: 6000 | H49: =ROUND(H45,-3)-1000 -> 229000
B50: Target Rate Revenue - rounded | C50: =SUM(D50:H50) -> 109031000 | D50: 84578000 | E50: 20419000 | F50: 0 | G50: 223000 | H50: 3811000
B52: Billed Revenue | C52: =SUM(D52:I52) -> 156193000 | D52: 112307000 | E52: 35342000 | F52: 3987000 | G52: 759000 | H52: 2254000 | I52: 1544000 | K52: =SUM(K49:O49) -> 0
B53: Billed Increase | C53: =C45/C52 -> 0.03597472358 | D53: =D45/D52 -> 0.04549349818 | E53: =E45/E52 -> 0.007743132816 | F53: 0 | G53: 0.007766798419 | H53: 0.102133496
B57: % movement towards unity | D57: =(D37-D21)/(1-D21) -> 0.2251076889 | E57: =(E37-E21)/(1-E21) -> 0.2187761854 | G57: 0.2268512349 | H57: -0.02185770637
B60: Billed Revenue | C60: =SUM(D60:I60) -> 161344959 | D60: ='Proposed Increase'!H14*1000 -> 117921147.6 | E60: ='Proposed Increase'!H15*1000 -> 37695307.62 | F60: ='Proposed Increase'!H16*1000 -> 0 | G60: ='Proposed Increase'!H17*1000 -> 455172.72 | H60: ='Proposed Increase'!H18*1000 -> 3512467.407 | I60: ='Proposed Increase'!H19*1000 -> 1760863.69
C61: =C45/C60 -> 0.03482600283 | D61: =D45/D60 -> 0.04332758292 | E61: =E45/E60 -> 0.007259731178 | G61: 0.01295112765 | H61: 0.06554050852 | I61: 0
B63: Uniform Present Return | C63: =C19 -> 23511085.29 | D63: =$C$63*D8/$C$8 -> 18987622.91 | E63: =$C$63*E8/$C$8 -> 3317097.44 | F63: 0 | G63: 43831.65893 | H63: =$C$63*H8/$C$8 -> 1162533.276
B64: Present Income Taxes at Unity | C64: =C16 -> 2527008.183 | D64: =$C$64*D8/$C$8 -> 2040819.379 | E64: =$C$64*E8/$C$8 -> 356526.8158 | F64: 0 | G64: 4711.095189 | H64: =$C$64*H8/$C$8 -> 124950.893
B65: Operating Expenses (Excl. Rev Rel exp & inc tax) | C65: =SUM(D65:H65) -> 75107382.53 | D65: =D14 -> 64529617.94 | E65: =E14 -> 7981200.22 | F65: 0 | G65: 101581.8582 | H65: =H14 -> 2494982.517
B66: Deduct Other Operating Revenues | C66: =SUM(D66:H66) -> -2276916.005 | D66: =-D11 -> -1919002.885 | E66: =-E11 -> -198694.3604 | F66: 0 | G66: -2259.964278 | H66: =-H11 -> -156958.7946
B67: Revenue Related Expenses at Unity | C67: =C15 -> 4543440 | D67: =$C67*(SUM(D63:D66)/SUM($C$63:$C$66)) -> 3843578.168 | E67: =$C67*(SUM(E63:E66)/SUM($C$63:$C$66)) -> 526458.9654 | F67: 0 | G67: 6795.023174 | H67: =$C67*(SUM(H63:H66)/SUM($C$63:$C$66)) -> 166607.8436
B68: Total Uniform Cost at Present Return | C68: =SUM(C63:C67) -> 103412000 | D68: =SUM(D63:D67) -> 87482635.51 | E68: 11982589.08 | F68: 0 | G68: 154659.6712 | H68: 3792115.736 | I68: Ties to COS line 574
B69: Exclude Cost of Gas w / Revenue Exp. | C69: =SUM(D69:H69) -> 0 | D69: 0 | E69: 0 | F69: 0 | G69: 0 | H69: 0 | I69: from COS line 575
B70: Total Uniform Current Margin | C70: =C68-C69 -> 103412000 | D70: =D68-D69 -> 87482635.51 | E70: 11982589.08 | F70: 0 | G70: 154659.6712 | H70: 3792115.736 | I70: Ties to COS line 560 | K70: =C26/C70 -> 0.05433605384
B72: Uniform Proposed Return | C72: =C32 -> 27756085.29 | D72: =$C$72*D8/$C$8 -> 22415897.63 | E72: =$C$72*E8/$C$8 -> 3916009.76 | F72: 0 | G72: 51745.60207 | H72: =$C$72*H8/$C$8 -> 1372432.296
B73: Proposed Income Taxes at Unity | C73: =C16+C31 -> 3655008.183 | D73: =$C$73*D8/$C$8 -> 2951795.558 | E73: =$C$73*E8/$C$8 -> 515672.4217 | F73: 0 | G73: 6814.022837 | H73: 180726.1803
B74: Operating Expenses (Excl. Rev Rel exp & inc tax) | C74: =SUM(D74:H74) -> 75107382.53 | D74: =D14 -> 64529617.94 | E74: =E14 -> 7981200.22 | F74: 0 | G74: 101581.8582 | H74: 2494982.517
B75: Deduct Other Operating Revenues | C75: =SUM(D75:H75) -> -2276916.005 | D75: =-D11+C25*D35 -> -1919002.885 | E75: =-E11+D25*E35 -> -198694.3604 | F75: 0 | G75: -2259.964278 | H75: -156958.7946
B76: Proposed Revenue Related Expenses at Unity | C76: =C15+C30 -> 4789440 | D76: =$C76*(SUM(D72:D75)/SUM($C$72:$C$75)) -> 4042215.299 | E76: =$C76*(SUM(E72:E75)/SUM($C$72:$C$75)) -> 561188.0787 | F76: =$C76*(SUM(F72:F75)/SUM($C$72:$C$75)) -> 0 | G76: =$C76*(SUM(G72:G75)/SUM($C$72:$C$75)) -> 7253.959567 | H76: =$C76*(SUM(H72:H75)/SUM($C$72:$C$75)) -> 178782.6628
B77: Total Uniform Cost at Proposed Return | C77: =SUM(C72:C76) -> 109031000 | D77: =SUM(D72:D76) -> 92020523.54 | E77: 12775376.12 | F77: 0 | G77: 165135.4784 | H77: 4069964.862 | I77: Ties to COS line 609
B78: Exclude Cost of Gas w / Revenue Exp. | C78: =SUM(D78:H78) -> 0 | D78: 0 | E78: 0 | F78: 0 | G78: 0 | H78: 0 | I78: Ties to COS line 610
B79: Total Uniform Proposed Margin | C79: =C77-C78 -> 109031000 | D79: =D77-D78 -> 92020523.54 | E79: =E77-E78 -> 12775376.12 | F79: =F77-F78 -> 0 | G79: =G77-G78 -> 165135.4784 | H79: =H77-H78 -> 4069964.862 | I79: Ties to COS line 611
B81: Revenue Change to Achieve Unity (rounded) | C81: =SUM(D81:H81) -> 5619000 | D81: =D77-D10 -> 12551914.23 | E81: =E77-E10 -> -7370160.046 | F81: 0 | G81: -51848.54926 | H81: =H77-H10 -> 489094.3627
B83: Revenue to Cost Ratio at Present Rates | C83: =C10/C68 -> 1 | D83: =D10/D68 -> 0.9083929495 | E83: =E10/E68 -> 1.681234 | G83: 1.402977428 | H83: =H10/H68 -> 0.9442935683
B84: Revenue to Cost Ratio at Proposed Rates | C84: =C46/C77 -> 1 | D84: =D46/D77 -> 0.9191193916 | E84: =E46/E77 -> 1.59832429 | G84: 1.349673794 | H84: 0.936391229
B85: Change in Revenue to Cost Ratio | C85: =ROUND(C84-C83,4) -> 0 | D85: =ROUND(D84-D83,2) -> 0.01 | E85: =ROUND(E84-E83,2) -> -0.08 | F85: =ROUND(F84-F83,2) ->  | G85: =ROUND(G84-G83,2) -> -0.05 | H85: =ROUND(H84-H83,2) -> -0.01
B87: % movement towards unity | D87: =(D84-D83)/(1-D83) -> 0.1170918828 | E87: =(E84-E83)/(1-E83) -> 0.1217051845 | G87: 0.1322744894 | H87: -0.1418568554
B90: Margin to Cost Ratio at Present Rates | C90: =(C10-C69)/C70 -> 1 | D90: =(D10-D69)/D70 -> 0.9083929495 | E90: =(E10-E69)/E70 -> 1.681234 | G90: 1.402977428 | H90: =(H10-H69)/H70 -> 0.9442935683
B91: Margin to Cost Ratio at Proposed Rates | C91: =(C46-C78)/C79 -> 1 | D91: =(D46-D78)/D79 -> 0.9191193916 | E91: 1.59832429 | G91: 1.349673794 | H91: =(H46-H78)/H79 -> 0.936391229
B92: Change in Margin to Cost Ratio | C92: =ROUND(C91-C90,4) -> 0 | D92: =ROUND(D91-D90,2) -> 0.01 | E92: =ROUND(E91-E90,2) -> -0.08 | F92: =ROUND(F91-F90,2) ->  | G92: =ROUND(G91-G90,2) -> -0.05 | H92: =ROUND(H91-H90,2) -> -0.01
B94: % movement towards unity | D94: =(D91-D90)/(1-D90) -> 0.1170918828 | E94: =(E91-E90)/(1-E90) -> 0.1217051845 | G94: 0.1322744894 | H94: -0.1418568554

Sheet Rate Spread
A2: Avista
A3: Natural Gas
A4: Rate Spread
D7: Base Tariff | F7: Base | H7: Base Tariff | I7: Total Billed | J7: Percent
D8: Distribution Revenue | E8: Percentage | F8: Tariff | G8: Proposed | H8: Distribution Revenue | I8: Revenue | J8: Increase
A9: Line | B9: Type of | C9: Schedule | D9: Under Present | E9: of Base | F9: Percent | G9: General | H9: Under Proposed | I9: at Present | J9: on Billed
A10: No. | B10: Service | C10: Number | D10: Rates | E10: Increase | F10: Increase | G10: Increase | H10: Rates | I10: Rates (1) | J10: Revenue | M10: Parity | N10: from Andreson 2019 Avista - WA Cost of Service (NG) - Base Case
B11: (a) | C11: (b) | D11: (c) | E11: (d) | F11: (e) | G11: (f) | I11: (g) | J11: (i)
A13: 1 | B13: General Service | C13: 101/102 | D13: ='Proposed Increase'!D14 -> 79468.69043 | E13: 1.183162713 | F13: =$E$23*E13 -> 0.06428869426 | G13: =D13*F13+0.1 -> 5109.038342 | H13: =D13+G13 -> 84577.72877 | I13: ='Proposed Increase'!H14 -> 117921.1476 | J13: =(G13)/I13 -> 0.04332588723 | M13: 0.92
A14: 2 | B14: Large General Service | C14: 111/112 | D14: ='Proposed Increase'!D15 -> 20145.48068 | E14: 0.25 | F14: =$E$23*E14 -> 0.01358407715 | G14: =D14*F14 -> 273.6577637 | H14: =D14+G14 -> 20419.13844 | I14: ='Proposed Increase'!H15 -> 37695.30762 | J14: =(G14)/I14 -> 0.007259730215 | M14: 1.63
A15: 3 | B15: Large General Svc.-High Annual Load Factor | C15: 121/122 | D15: ='Proposed Increase'!D16 -> 0 | E15: 1 | F15: =$E$23*E15 -> 0.05433630859 | G15: =D15*F15 -> 0 | H15: 0 | I15: ='Proposed Increase'!H16 -> 0
A16: 3 | B16: Interruptible Service | C16: 131/132 | D16: ='Proposed Increase'!D17 -> 216.98343 | E16: 0.5 | F16: 0.02716815429 | G16: 5.895039305 | H16: 222.8784693 | I16: ='Proposed Increase'!H17 -> 455.17272 | J16: 0.012951214 | M16: 1.36
A17: 4 | B17: Transportation Service | C17: 146 | D17: ='Proposed Increase'!D18 -> 3580.860637 | E17: =E13 -> 1.183162713 | F17: =$E$23*E17 -> 0.06428869426 | G17: 230.2088547 | H17: 3811.069491 | I17: ='Proposed Increase'!H18 -> 3512.467407 | J17: 0.06554049561 | M17: 0.92
A18: 5 | B18: Special Contracts | C18: 148 | D18: ='Proposed Increase'!D19 -> 1760.86369 | E18: 0 | F18: 0 | G18: 0 | H18: 1760.86369 | I18: ='Proposed Increase'!H19 -> 1760.86369 | J18: 0
A19: 6 | B19: Total | D19: ='Pres & Prop Rev'!$C$145/1000-0.2 -> 105172.3789 | F19: =D23/D19 -> 0.05342657512 | G19: =SUM(G13:G18)+0.2 -> 5619 | H19: =SUM(H13:H18) -> 110791.6789 | I19: =SUM(I13:I18)+0.4 -> 161345.359 | J19: =(G19)/I19 -> 0.0348259165
G20: =G19-D23 -> 0
B23: Revenue Requirement | D23: 5619 | E23: =D23/(D19-D18) -> 0.05433630859
B28: testimony scenarios
B31: w/o pandemic
D32: Base Tariff | F32: Base | H32: Base Tariff | I32: Total Billed | J32: Percent
D33: Distribution Revenue | E33: Percentage | F33: Tariff | G33: Proposed | H33: Distribution Revenue | I33: Revenue | J33: Increase
A34: Line | B34: Type of | C34: Schedule | D34: Under Present | E34: of Base | F34: Percent | G34: General | H34: Under Proposed | I34: at Present | J34: on Billed
A35: No. | B35: Service | C35: Number | D35: Rates | E35: Increase | F35: Increase | G35: Increase | H35: Rates | I35: Rates (1) | J35: Revenue | M35: Parity
B36: (a) | C36: (b) | D36: (c) | E36: (d) | F36: (e) | G36: (f) | I36: (g) | J36: (i)
A38: 1 | B38: General Service | C38: 101/102 | D38: ='Proposed Increase'!$D$14 -> 79468.69043 | E38: 1.22 | F38: =$E$23*E38 -> 0.06629029648 | G38: =D38*F38+0.1 -> 5268.103049 | H38: =D38+G38 -> 84736.79348 | I38: ='Proposed Increase'!$H$14 -> 117921.1476 | J38: =(G38)/I38 -> 0.04467479462 | M38: 0.92
A39: 2 | B39: Large General Service | C39: 111/112 | D39: ='Proposed Increase'!$D$15 -> 20145.48068 | E39: 0.1 | F39: =$E$23*E39 -> 0.005433630859 | G39: =D39*F39 -> 109.4631055 | H39: =D39+G39 -> 20254.94379 | I39: ='Proposed Increase'!$H$15 -> 37695.30762 | J39: =(G39)/I39 -> 0.002903892086 | M39: 1.62
A40: 3 | B40: Large General Svc.-High Annual Load Factor | C40: 121/122 | D40: ='Proposed Increase'!D37 -> 0 | E40: 1 | F40: =$E$23*E40 -> 0.05433630859 | G40: =D40*F40 -> 0 | H40: 0 | I40: ='Proposed Increase'!H37 -> 0
A41: 3 | B41: Interruptible Service | C41: 131/132 | D41: ='Proposed Increase'!$D$17 -> 216.98343 | E41: 0.25 | F41: =$E$23*E41 -> 0.01358407715 | G41: 2.947519653 | H41: 219.9309497 | I41: ='Proposed Increase'!$H$17 -> 455.17272 | J41: 0.006475607002 | M41: 1.34
A42: 4 | B42: Transportation Service | C42: 146 | D42: ='Proposed Increase'!$D$18 -> 3580.860637 | E42: =E38 -> 1.22 | F42: =$E$23*E42 -> 0.06629029648 | G42: 237.3763132 | H42: 3818.23695 | I42: ='Proposed Increase'!$H$18 -> 3512.467407 | J42: 0.06758107215 | M42: 0.92
A43: 5 | B43: Special Contracts | C43: 148 | D43: ='Proposed Increase'!$D$19 -> 1760.86369 | E43: 0 | F43: 0 | G43: 0 | H43: 1760.86369 | I43: ='Proposed Increase'!$H$19 -> 1760.86369 | J43: 0
A44: 6 | B44: Total | D44: ='Pres & Prop Rev'!$C$145/1000-0.2 -> 105172.3789 | F44: =D48/D44 -> 0.05342657512 | G44: =SUM(G38:G43)+0.2 -> 5618.089987 | H44: =SUM(H38:H43) -> 110790.7689 | I44: =SUM(I38:I43)+0.4 -> 161345.359 | J44: =(G44)/I44 -> 0.03482027634
G45: =G44-D48 -> -0.9100125313
B48: Revenue Requirement | D48: =$D$23 -> 5619 | E48: =$E$23 -> 0.05433630859
B52: within 10% parity
D53: Base Tariff | F53: Base | H53: Base Tariff | I53: Total Billed | J53: Percent
D54: Distribution Revenue | E54: Percentage | F54: Tariff | G54: Proposed | H54: Distribution Revenue | I54: Revenue | J54: Increase
A55: Line | B55: Type of | C55: Schedule | D55: Under Present | E55: of Base | F55: Percent | G55: General | H55: Under Proposed | I55: at Present | J55: on Billed
A56: No. | B56: Service | C56: Number | D56: Rates | E56: Increase | F56: Increase | G56: Increase | H56: Rates | I56: Rates (1) | J56: Revenue | M56: Parity
B57: (a) | C57: (b) | D57: (c) | E57: (d) | F57: (e) | G57: (f) | I57: (g) | J57: (i)
A59: 1 | B59: General Service | C59: 101/102 | D59: ='Proposed Increase'!D14 -> 79468.69043 | E59: 2.71 | F59: =$E$23*E59 -> 0.1472513963 | G59: =D59*F59+0.1 -> 11701.97563 | H59: =D59+G59 -> 91170.66606 | I59: ='Proposed Increase'!H14 -> 117921.1476 | J59: =(G59)/I59 -> 0.09923559824 | M59: 0.99
A60: 2 | B60: Large General Service | C60: 111/112 | D60: ='Proposed Increase'!D15 -> 20145.48068 | E60: -6 | F60: =$E$23*E60 -> -0.3260178515 | G60: =D60*F60 -> -6567.786329 | H60: =D60+G60 -> 13577.69435 | I60: ='Proposed Increase'!H15 -> 37695.30762 | J60: =(G60)/I60 -> -0.1742335252 | M60: 1.09
A61: 3 | B61: Large General Svc.-High Annual Load Factor | C61: 121/122 | D61: ='Proposed Increase'!D16 -> 0 | E61: 1 | F61: =$E$23*E61 -> 0.05433630859 | G61: =D61*F61 -> 0 | H61: 0 | I61: ='Proposed Increase'!H16 -> 0
A62: 3 | B62: Interruptible Service | C62: 131/132 | D62: ='Proposed Increase'!D17 -> 216.98343 | E62: -3.5 | F62: =$E$23*E62 -> -0.1901770801 | G62: -41.26527514 | H62: 175.7181549 | I62: ='Proposed Increase'!H17 -> 455.17272 | J62: -0.09065849802 | M62: 1.07
A63: 4 | B63: Transportation Service | C63: 146 | D63: ='Proposed Increase'!D18 -> 3580.860637 | E63: =E59 -> 2.71 | F63: =$E$23*E63 -> 0.1472513963 | G63: 527.2867286 | H63: 4108.147365 | I63: ='Proposed Increase'!H18 -> 3512.467407 | J63: 0.1501186111 | M63: 0.99
A64: 5 | B64: Special Contracts | C64: 148 | D64: ='Proposed Increase'!D19 -> 1760.86369 | E64: 0 | F64: 0 | G64: 0 | H64: 1760.86369 | I64: ='Proposed Increase'!H19 -> 1760.86369 | J64: 0
A65: 6 | B65: Total | D65: ='Pres & Prop Rev'!$C$145/1000-0.2 -> 105172.3789 | F65: =D69/D65 -> 0.05342657512 | G65: =SUM(G59:G64)+0.2 -> 5620.41075 | H65: =SUM(H59:H64) -> 110793.0896 | I65: =SUM(I59:I64)+0.4 -> 161345.359 | J65: =(G65)/I65 -> 0.03483466016
G66: =G65-D69 -> 1.41074982
B69: Revenue Requirement | D69: =$D$23 -> 5619 | E69: =$E$23 -> 0.05433630859

Sheet Rate Design
A1: PRESENT RATES | D1: 1 | E1: 2 | F1: 3 | G1: 4 | H1: 5 | L1: Tiers - used for bill comparisons
C2: TOTAL | D2: SCH. 101 | E2: SCH. 111,112,116 | F2: SCH. 121,122,126 | G2: SCH. 132 | H2: SCH. 146 | J2: Range Name | L2: SCH. 101 | M2: SCH. 111,112 | N2: SCH. 121,122 | O2: SCH. 131,132 | P2: SCH. 146
B3: Base Tariff Rates
A4: 1 | B4: BASIC CHARGE | D4: 9.5 | H4: 625
A5: 2 | B5: MONTHLY MINIMUM | E5: 107.56
A6: 3 | B6: BLOCK 1 PER THERM | D6: 41.035 | E6: 0 | G6: 27.008 | H6: 10.494 | L6: 9999999 | M6: 200 | N6: 500 | O6: 10000 | P6: 20000
A7: 4 | B7: BLOCK 2 PER THERM | D7: 53.333 | E7: 36.159 | G7: 21.681 | H7: 9.336 | I7: =H7/H6-1 -> -0.1103487707 | L7: 9999999 | M7: 1000 | N7: 1000 | O7: 25000 | P7: 50000
A8: 5 | B8: BLOCK 3 PER THERM | E8: 27.562 | G8: 20.373 | H8: 8.419 | I8: =H8/H7-1 -> -0.09822193659 | J8: Rates_Base_Present | L8: 9999999 | M8: 9999999 | N8: 10000 | O8: 50000 | P8: 300000
A9: 6 | B9: BLOCK 4 PER THERM | E9: 23.517 | G9: 18.203 | H9: 7.785 | I9: -0.0753058558 | L9: 9999999 | M9: 9999999 | N9: 25000 | O9: 9999999 | P9: 500000
A10: 7 | B10: BLOCK 5 PER THERM | E10: 16.497 | H10: 5.851 | I10: =H10/H9-1 -> -0.2484264611 | L10: 9999999 | M10: 9999999 | N10: 9999999 | O10: 9999999 | P10: 9999999
L11: 1st block rate | M11: =(M6/100*E6+E5)/M6*100 -> 53.78 | N11: =(N6/100*F6+F5)/N6*100 -> 0
B12: Billing Rates | G12: =IF(G13<>'Pres & Prop Rev'!G$5,#VALUE!,"") ->  | H12: =IF(H13<>'Pres & Prop Rev'!H$5,#VALUE!,"") ->  | L12: check | M12: =M6*M11/100-(M6*E6/100+E5) -> 0 | N12: =N6*N11/100-(N6*F6/100+F5) -> 0
D13: SCHEDULE 101 | E13: SCH. 111&112 | F13: SCH. 121&122 | G13: SCH. 131&132 | H13: SCHEDULE 146
A14: 1 | B14: BASIC CHARGE | D14: =D4 -> 9.5 | E14: 0 | F14: 0 | G14: 0 | H14: 625
A15: 2 | B15: MONTHLY MINIMUM | D15: 0 | E15: =E5 -> 107.56 | F15: =F5 -> 0 | G15: 0 | H15: 0
A16: 3 | B16: BLOCK 1 PER THERM | D16: =D6+26.15+0.429-0.685-2.141+3.028+2.378 -> 70.194 | E16: =E6+25.181+1.085+0.419-1.21+1.626+1.994 -> 29.095 | F16: =F6 -> 0 | G16: =G6+21.892+1.132-0.792+1.75 -> 50.99 | H16: =H6+0.056-0.353+0.113 -> 10.31 | L16: =L6 -> 9999999 | M16: 200 | N16: 500 | O16: 10000 | P16: 20000
A17: 4 | B17: BLOCK 2 PER THERM | D17: =D7+26.15+0.429-0.685-2.141+3.028+2.378 -> 82.492 | E17: =E7+25.181+1.085+0.419-1.21+1.626+1.994 -> 65.254 | F17: =F7 -> 0 | G17: =G7+21.892+1.132-0.792+1.75 -> 45.663 | H17: =H7+0.056-0.353+0.113 -> 9.152 | L17: 9999999 | M17: 1000 | N17: 1000 | O17: 25000 | P17: 50000
A18: 5 | B18: BLOCK 3 PER THERM | D18: =D8 -> 0 | E18: 56.657 | F18: =F8 -> 0 | G18: 44.355 | H18: 8.235 | J18: Rates_Billing_Present | L18: 9999999 | M18: 9999999 | N18: 10000 | O18: 50000 | P18: 300000
A19: 6 | B19: BLOCK 4 PER THERM | D19: =D9 -> 0 | E19: 52.612 | F19: 0 | G19: 42.185 | H19: 7.601 | L19: =L9 -> 9999999 | M19: 9999999 | N19: 25000 | O19: 9999999 | P19: 500000
A20: 7 | B20: BLOCK 5 PER THERM | D20: =D10 -> 0 | E20: 45.592 | F20: 0 | H20: 5.667 | L20: 9999999 | M20: 9999999 | N20: 9999999 | O20: 9999999 | P20: 9999999
L21: 1st block rate | M21: =(M16/100*E16+E15)/M16*100 -> 82.875 | N21: =(N16/100*F16+F15)/N16*100 -> 0
A22: PROPOSED RATES | L22: check | M22: =M16*M21/100-(M16*E16/100+E15) -> 0 | N22: =N16*N21/100-(N16*F16/100+F15) -> 0
B24: Base Tariff Rates | G24: =IF(G25<>'Pres & Prop Rev'!G$5,#VALUE!,"") ->  | H24: =IF(H25<>'Pres & Prop Rev'!H$5,#VALUE!,"") -> 
D25: SCHEDULE 101 | E25: SCH. 111&112 | F25: SCH. 121&122 | G25: SCH. 131&132 | H25: SCHEDULE 146
A26: 1 | B26: BASIC CHARGE | D26: =IF(D4>0,ROUND(D63,2),0) -> 9.5 | E26: =IF(E4>0,ROUND(E63,2),0) -> 0 | F26: =IF(F4>0,ROUND(F63,2),0) -> 0 | G26: =IF(G4>0,ROUND(G63,2),0) -> 0 | H26: =IF(H4>0,ROUND(H63,2),0) -> 625
A27: 2 | B27: MONTHLY MINIMUM | D27: =IF(D5>0,ROUND(D63,2),0) -> 0 | E27: =IF(E5>0,ROUND(E63,2),0) -> 123.46 | F27: =IF(F5>0,ROUND(F63,2),0) -> 0 | G27: =IF(G5>0,ROUND(G63,2),0) -> 0 | H27: =IF(H5>0,ROUND(H63,2),0) -> 0
A28: 2 | B28: BLOCK 1 PER THERM | D28: =ROUND(D82,3) -> 44.494 | E28: =ROUND(E82,3) -> 0 | F28: 0 | G28: 27.742 | H28: 11.227 | L28: 9999999 | M28: 200 | N28: 500 | O28: 10000 | P28: 20000
A29: 3 | B29: BLOCK 2 PER THERM | D29: =ROUND(D83,3) -> 57.828 | E29: 35.445 | F29: 0 | G29: 22.27 | H29: 9.988 | I29: =H29/H28-1 -> -0.1103589561 | L29: 9999999 | M29: 1000 | N29: 1000 | O29: 25000 | P29: 50000
A30: 4 | B30: BLOCK 3 PER THERM | D30: 0 | E30: =ROUND(E84,3) -> 27.018 | F30: 0 | G30: 20.926 | H30: 9.007 | I30: =H30/H29-1 -> -0.09821786143 | J30: Rates_Base_Proposed | L30: 9999999 | M30: 9999999 | N30: 10000 | O30: 50000 | P30: 300000
A31: 5 | B31: BLOCK 4 PER THERM | D31: =ROUND(D85,3) -> 0 | E31: =ROUND(E85,3) -> 23.053 | F31: 0 | G31: 18.698 | H31: 8.329 | I31: -0.07527478628 | L31: 9999999 | M31: 9999999 | N31: 25000 | O31: 9999999 | P31: 500000
A32: 6 | B32: BLOCK 5 PER THERM | D32: 0 | E32: 16.171 | F32: 0 | G32: 0 | H32: 6.26 | I32: =H32/H31-1 -> -0.2484091728 | L32: 9999999 | M32: 9999999 | N32: 9999999 | O32: 9999999 | P32: 9999999
L33: 1st block rate | M33: =(M28/100*E28+E27)/M28*100 -> 61.73 | N33: =(N28/100*F28+F27)/N28*100 -> 0
B34: Billing Rates | G34: =IF(G35<>'Pres & Prop Rev'!G$5,#VALUE!,"") ->  | H34: =IF(H35<>'Pres & Prop Rev'!H$5,#VALUE!,"") ->  | L34: check | M34: =M28*M33/100-(M28*E28/100+E27) -> 0 | N34: =N28*N33/100-(N28*F28/100+F27) -> 0
D35: SCHEDULE 101 | E35: SCH. 111&112 | F35: SCH. 121&122 | G35: SCH. 131&132 | H35: SCHEDULE 146 | L35: Basic Charge Calc | M35: =E5+(D26-D4)+(((D28/100)-(D6/100))*70)+(((D29/100)-(D7/100))*130) -> 115.8248 | N35: =F5+(D26-D4)+(70*((D28/100)-(D6/100)))+(430*((D29/100)-(D7/100))) -> 21.7498 | S35: 100
A36: 1 | B36: BASIC CHARGE | D36: =D26 -> 9.5 | E36: 0 | F36: 0 | G36: 0 | H36: 625 | S36: LIRAP increase
A37: 2 | B37: MONTHLY MINIMUM | D37: 0 | E37: 123.46 | F37: =F27 -> 0 | G37: 0 | H37: 0 | S37: 101 | T37: 111 | U37: 121 | V37: 131
A38: 2 | B38: BLOCK 1 PER THERM | D38: =D28+26.15+0.429-0.685-2.141+3.028+2.378 -> 73.653 | E38: =E28+25.181+1.085+0.419-1.21+1.626+1.994 -> 29.095 | F38: =F28 -> 0 | G38: =G28+21.892+1.132-0.792+1.75 -> 51.724 | H38: =H28+0.056-0.353+0.113 -> 11.043 | L38: =L28 -> 9999999 | M38: 200 | N38: 500 | O38: 10000 | P38: 20000 | S38: 0 | T38: 0 | U38: 0 | V38: 0
A39: 3 | B39: BLOCK 2 PER THERM | D39: =D29+26.15+0.429-0.685-2.141+3.028+2.378 -> 86.987 | E39: =E29+25.181+1.085+0.419-1.21+1.626+1.994 -> 64.54 | F39: =F29 -> 0 | G39: =G29+21.892+1.132-0.792+1.75 -> 46.252 | H39: =H29+0.056-0.353+0.113 -> 9.804 | L39: 9999999 | M39: 1000 | N39: 1000 | O39: 25000 | P39: 50000 | S39: =S$38 -> 0 | T39: =T$38 -> 0 | U39: =U$38 -> 0 | V39: =V$38 -> 0
A40: 4 | B40: BLOCK 3 PER THERM | D40: =D30 -> 0 | E40: 56.113 | F40: 0 | G40: 44.908 | H40: 8.823 | J40: Rates_Billing_Proposed | L40: 9999999 | M40: 9999999 | N40: 10000 | O40: 50000 | P40: 300000 | S40: =S$38 -> 0 | T40: 0 | U40: 0 | V40: 0
A41: 5 | B41: BLOCK 4 PER THERM | D41: =D31 -> 0 | E41: 52.148 | F41: 0 | G41: 42.68 | H41: 8.145 | L41: 9999999 | M41: 9999999 | N41: 25000 | O41: 9999999 | P41: 500000 | S41: 0 | T41: 0 | U41: 0 | V41: 0
A42: 6 | B42: BLOCK 5 PER THERM | D42: =D32 -> 0 | E42: 45.266 | F42: 0 | H42: 6.076 | L42: 9999999 | M42: 9999999 | N42: 9999999 | O42: 9999999 | P42: 9999999 | S42: 0 | T42: 0 | U42: 0 | V42: 0
L43: 1st block rate | M43: =(M38/100*E38+E37)/M38*100 -> 90.825 | N43: =(N38/100*F38+F37)/N38*100 -> 0
L44: check | M44: =M38*M43/100-(M38*E38/100+E37) -> 0 | N44: =N38*N43/100-(N38*F38/100+F37) -> 0
B47: Proposed Rate Workup - from Pres & Prop Rev tab
B49: THERMS
B50: BLOCK 1 | C50: =SUM(D50:H50) -> 97954962.66 | D50: ='Pres & Prop Rev'!D31 -> 83030622.51 | E50: ='Pres & Prop Rev'!E31 -> 6558198.145 | F50: ='Pres & Prop Rev'!F31 -> Sch 121/122 disc | G50: ='Pres & Prop Rev'!G31 -> 220000 | H50: ='Pres & Prop Rev'!H31 -> 8146142
B51: BLOCK 2 | C51: 80621806.67 | D51: ='Pres & Prop Rev'!D32 -> 54532868.44 | E51: ='Pres & Prop Rev'!E32 -> 17521409.97 | F51: ='Pres & Prop Rev'!F32 -> (UG-190335) | G51: ='Pres & Prop Rev'!G32 -> 285403.258 | H51: ='Pres & Prop Rev'!H32 -> 8282125
B52: BLOCK 3 | C52: 50204682.26 | D52: ='Pres & Prop Rev'!D33 -> 0 | E52: ='Pres & Prop Rev'!E33 -> 35476526.2 | F52: ='Pres & Prop Rev'!F33 -> 0 | G52: ='Pres & Prop Rev'!G33 -> 317689.055 | H52: ='Pres & Prop Rev'!H33 -> 14410467
B53: BLOCK 4 | C53: 3884762.081 | D53: ='Pres & Prop Rev'!D34 -> 0 | E53: ='Pres & Prop Rev'!E34 -> 738873.2356 | F53: ='Pres & Prop Rev'!F34 -> 0 | G53: ='Pres & Prop Rev'!G34 -> 170107.977 | H53: ='Pres & Prop Rev'!H34 -> 2975780.868
B54: BLOCK 5 | C54: 4697870.211 | D54: ='Pres & Prop Rev'!D35 -> 0 | E54: ='Pres & Prop Rev'!E35 -> 1342153.211 | F54: ='Pres & Prop Rev'!F35 -> 0 | G54: ='Pres & Prop Rev'!G35 -> 0 | H54: ='Pres & Prop Rev'!H35 -> 3355717
B55: ADJ. TO ACTUAL | C55: 0 | D55: ='Pres & Prop Rev'!D41 -> 0 | E55: ='Pres & Prop Rev'!E41 -> 0 | F55: ='Pres & Prop Rev'!F41 -> 0 | G55: ='Pres & Prop Rev'!G41 -> 0 | H55: ='Pres & Prop Rev'!H41 -> 0
B56: WEATHER & U/B THERMS | C56: -6779126 | D56: ='Pres & Prop Rev'!D44 -> -5467887 | E56: ='Pres & Prop Rev'!E44 -> -1311239 | F56: ='Pres & Prop Rev'!F44 -> 0 | G56: ='Pres & Prop Rev'!G44 -> 0 | H56: ='Pres & Prop Rev'!H44 -> 0 | I56: Proposed rates:
B57: TOTAL PROFORMA THERMS | C57: =IF(ROUND(SUM(D57:H57),3)<>ROUND(SUM(C50:C56),3),#VALUE!,SUM(D57:H57)) -> 230584957.9 | D57: =SUM(D50:D56) -> 132095604 | E57: =SUM(E50:E56) -> 60325921.76 | F57: =SUM(F50:F56) -> 0 | G57: =SUM(G50:G56) -> 993200.29 | H57: =SUM(H50:H56) -> 37170231.87 | I57: same as current
B58: TOTAL BILLS | D58: =SUM('Pres & Prop Rev'!D48:D49) -> 1984339 | E58: =SUM('Pres & Prop Rev'!E48:E49) -> 37254 | F58: =SUM('Pres & Prop Rev'!F48:F49) -> 0 | G58: =SUM('Pres & Prop Rev'!G48:G49) -> 24 | H58: =SUM('Pres & Prop Rev'!H48:H49) -> 456 | I58: diff than current
I59: Formulas to copy
B60: Proposed Revenue | C60: =SUM(D60:H60) -> 109030815.2 | D60: ='Rate Spread'!H13*1000 -> 84577728.77 | E60: =('Rate Spread'!H14+'Rate Spread'!H15)*1000 -> 20419138.44 | F60: 0 | G60: ='Rate Spread'!H16*1000 -> 222878.4693 | H60: ='Rate Spread'!H17*1000 -> 3811069.491 | I60: FLOOR | J60: CEILING | K60: OTHER
B61: Targeted Rate Increase | C61: =ROR!C47 -> 0.05433605384 | D61: =ROR!D47 -> 0.06429253443 | E61: =ROR!E47 -> 0.01358404153 | F61: =ROR!F47 ->  | G61: =ROR!G47 -> 0.02716789832 | H61: =ROR!H47 -> 0.06428852986
B62: Present Basic/Min Charge | D62: =D4+D5 -> 9.5 | E62: =E4+E5 -> 107.56 | F62: =F4+F5 -> 0 | G62: =G4+G5 -> 0 | H62: =H4+H5 -> 625
B63: BASIC/MIN CHARGE | D63: 9.5 | E63: 123.46 | F63: 0 | G63: 0 | H63: 625 | I63: =FLOOR(I62*(1+I$61),$I64) -> 0 | J63: =CEILING(J62*(1+J$61),$J64) -> 0 | K63: 1.05
B64: % D in Basic Charge | D64: =IF(D62,D63/D62-1,0) -> 0 | E64: =IF(E62,E63/E62-1,0) -> 0.1478244701 | F64: =IF(F62,F63/F62-1,0) -> 0 | G64: =IF(G62,G63/G62-1,0) -> 0 | H64: =IF(H62,H63/H62-1,0) -> 0 | I64: 0.05 | J64: 0.05
B65: Basic Charge Revenue | C65: =SUM(D65:H65) -> 23764014.8 | D65: =D58*D63 -> 18851220.5 | E65: =E58*E63 -> 4599378.84 | F65: =F58*F63 -> 0 | G65: =G58*G63 -> 0 | H65: =(H58*H63)+'Pres & Prop Rev'!H156 -> 313415.4605
D66: 0
B67: Present Block 1 Rate | D67: =D6 -> 41.035 | E67: 0 | F67: 0 | G67: 27.008 | H67: 10.494 | J67: =+E62+(D63-D62)+30*(D82/100)+130*(D83/100) -> 196.0844127
B68: Present Block 2 Rate | D68: 53.333 | E68: 36.159 | F68: 0 | G68: 21.681 | H68: 9.336
B69: Present Block 3 Rate | D69: 0 | E69: 27.562 | F69: 0 | G69: 20.373 | H69: 8.419
B70: Present Block 4 Rate | D70: =D9 -> 0 | E70: 23.517 | F70: =F9 -> 0 | G70: 18.203 | H70: 7.785
B71: Present Block 5 Rate | D71: 0 | E71: 16.497 | F71: 0 | G71: 0 | H71: 5.851
B73: 1) Flat Rate Increase | D73: 1 | E73: 1 | F73: 1 | G73: 1 | H73: 1
B74: 2) % Rate Increase | D74: 0.08429723322 | E74: -0.01974651984 | F74: 0 | G74: 0.02716817041 | H74: 0.06984795949 | K74: =K$61 -> 0
B75: Method ---> | D75: 2 | E75: 2 | F75: 2 | G75: 2 | H75: 2
F76: 0
A77: Calculated | B77: BLOCK 1 PER THERM | D77: =CHOOSE(D$75,D67+D$73,D67*(1+D$74)) -> 44.49413697 | E77: =E67 -> 0 | F77: =F67 -> 0 | G77: =CHOOSE(G$75,G67+G$73,G67*(1+G$74)) -> 27.74175795 | H77: 11.22698449
B78: BLOCK 2 PER THERM | D78: =CHOOSE(D$75,D68+D$73,D68*(1+D$74)) -> 57.82882434 | E78: =CHOOSE(E$75,E68+E$73,E68*(1+E$74)) -> 35.44498559 | G78: 22.2700331 | H78: 9.98810055
B79: BLOCK 3 PER THERM | D79: 0 | E79: =CHOOSE(E$75,E69+E$73,E69*(1+E$74)) -> 27.01774642 | G79: =CHOOSE(G$75,G69+G$73,G69*(1+G$74)) -> 20.92649714 | H79: 9.007049971
B80: BLOCK 4 PER THERM | D80: 0 | E80: =CHOOSE(E$75,E70+E$73,E70*(1+E$74)) -> 23.05262109 | G80: =CHOOSE(G$75,G70+G$73,G70*(1+G$74)) -> 18.69754221 | H80: 8.328766365
B81: BLOCK 5 PER THERM | D81: 0 | E81: 16.17124166 | G81: 0 | H81: =CHOOSE(H$75,H71+H$73,H71*(1+H$74)) -> 6.259680411
A82: Input | B82: BLOCK 1 PER THERM | D82: =D77 -> 44.49413697 | E82: =E77 -> 0 | F82: =F77 -> 0 | G82: =G77 -> 27.74175795 | H82: =H77 -> 11.22698449 | J82: =F82-F67 -> 0 | K82: =H82-H67 -> 0.7329844869 | L82: =D63+((D77/100)*200) -> 98.48827393 | M82: =E63+((E82/100)*200) -> 123.46 | P82: =F63+((F82/100)*500) -> 0
B83: BLOCK 2 PER THERM | D83: =D78-0.001 -> 57.82782434 | E83: =E78 -> 35.44498559 | F83: =F78 -> 0 | G83: =G78 -> 22.2700331 | H83: =H78 -> 9.98810055 | J83: =F83-F68 -> 0 | K83: =H83-H68 -> 0.6521005498
B84: BLOCK 3 PER THERM | E84: =E79 -> 27.01774642 | F84: =F79 -> 0 | G84: 20.92649714 | H84: 9.007049971 | J84: =F84-F69 -> 0 | K84: =H84-H69 -> 0.5880499709
B85: BLOCK 4 PER THERM | E85: =E80 -> 23.05262109 | F85: =F80 -> 0 | G85: =G80 -> 18.69754221 | H85: =H80 -> 8.328766365 | J85: =F85-F70 -> 0 | K85: 0.5437663646
B86: BLOCK 5 PER THERM | E86: 16.17124166 | F86: =F81 -> 0 | G86: 0 | H86: =H81 -> 6.259680411 | J86: 0 | K86: 0.408680411
B87: Blocks 1-5 Revenue | C87: =SUM(D87:H87) -> 88382254.39 | D87: =SUMPRODUCT(D50:D54,D82:D86)/100 -> 68478930.27 | E87: =SUMPRODUCT(E50:E54,E82:E86)/100 -> 16182791.61 | F87: =SUMPRODUCT(F50:F54,F82:F86)/100 -> 0 | G87: =SUMPRODUCT(G50:G54,G82:G86)/100 -> 222878.4693 | H87: =SUMPRODUCT(H50:H54,H82:H86)/100 -> 3497654.031 | L87: 101 | M87: 111/112 | N87: 101 | O87: 111 | P87: 121
B88: Adj. to Actual Revenue | C88: =SUM(D88:H88) -> 0 | D88: ='Pres & Prop Rev'!D168 -> 0 | E88: ='Pres & Prop Rev'!E168 -> 0 | F88: ='Pres & Prop Rev'!F168 -> 0 | G88: ='Pres & Prop Rev'!G168 -> 0 | H88: ='Pres & Prop Rev'!H168 -> 0 | K88: Breakeven Proof Calc | M88: 200 | N88: 500
B89: Weather & U/B Revenue | C89: =SUM(D89:H89) -> -3115454.01 | D89: ='Pres & Prop Rev'!D190 -> -2752422 | E89: ='Pres & Prop Rev'!E190 -> -363032.01 | F89: ='Pres & Prop Rev'!F190 -> 0 | G89: ='Pres & Prop Rev'!G190 -> 0 | H89: ='Pres & Prop Rev'!H190 -> 0 | K89: Basic Charge/Minimum | L89: =D63 -> 9.5 | M89: =E63 -> 123.46 | N89: =D63 -> 9.5 | O89: =E63 -> 123.46 | P89: =F63 -> 0
K90: Therm Rate | L90: =D82/100 -> 0.4449413697 | N90: =D82/100 -> 0.4449413697 | O90: =(E82/100) -> 0 | P90: =F82/100 -> 0
B91: Revenue Remaining | C91: =IF(ROUND(C60-C65-SUM(C87:C89),3)<>ROUND(SUM(D91:H91),3),#VALUE!,SUM(D91:H91)) -> 7.636845112e-08 | D91: =D60-D65-SUM(D87:D89) -> 0 | E91: =E60-E65-SUM(E87:E89) -> 9.685754776e-08 | F91: =F60-F65-SUM(F87:F89) -> 0 | G91: =G60-G65-SUM(G87:G89) -> 0 | H91: =H60-H65-SUM(H87:H89) -> -2.048909664e-08 | K91: Therm Rate | L91: =D83/100 -> 0.5782782434 | N91: =L91 -> 0.5782782434 | O91: ='Exh. ELJ-6 NG Bill Components'!D20 -> 0.36159
B92: Revenue Remaining - ¢/Th | C92: =C91/C57*100 -> 3.311944188e-14 | D92: 0 | E92: 1.605570954e-13 | G92: 0 | H92: -5.512232669e-14 | K92: Bill Calculation | L92: =(70*L90)+(130*L91)+L89 -> 115.8220675 | M92: =(M88*M90)+M89 -> 123.46 | N92: =((70*N90)+(430*N91))+N89 -> 289.3055405 | O92: =O89+(200*O90)+((N88-200)*O91) -> 231.937 | P92: =P89+(N88*P90) -> 0
B93: check - < $4k is rounding | C93: =SUM(D93:H93) -> -77.16392006 | D93: =D60-'Pres & Prop Rev'!D192-D91 -> 17.9323303 | E93: =E60-'Pres & Prop Rev'!E192-E91 -> -92.04628864 | F93: =F60-'Pres & Prop Rev'!F192-F91 -> 0 | G93: =G60-'Pres & Prop Rev'!G192-G91 -> 0.359305286 | H93: =H60-'Pres & Prop Rev'!H192-H91 -> -3.409266999
K94: Gas Costs | L94: 0 | M94: =E82/100 -> 0 | N94: =L94 -> 0 | O94: =M94 -> 0 | P94: =F82/100 -> 0
B95: Proposed Target | C95: =SUM(D95:H95) -> 109030815.2 | D95: =D60 -> 84577728.77 | E95: =E60 -> 20419138.44 | F95: =F60 -> 0 | G95: =G60 -> 222878.4693 | H95: =H60 -> 3811069.491 | K95: Gas Cost Revenue | L95: =L94*200 -> 0 | M95: =M94*200 -> 0 | N95: =$N$88*N94 -> 0 | O95: =$N$88*O94 -> 0 | P95: 0
B96: Proposed Actual | C96: ='Pres & Prop Rev'!C192-SUM('Pres & Prop Rev'!I192:J192) -> 109030892.3 | D96: ='Pres & Prop Rev'!D192 -> 84577710.84 | E96: ='Pres & Prop Rev'!E192 -> 20419230.49 | F96: ='Pres & Prop Rev'!F192 -> 0 | G96: ='Pres & Prop Rev'!G192 -> 222878.11 | H96: ='Pres & Prop Rev'!H192 -> 3811072.9 | K96: Gas Cost Difference | M96: =L95-M95 -> 0 | P96: =N95-P95 -> 0
C97: =SUM(D97:H97) -> 77.16391998 | D97: =D96-D95 -> -17.9323303 | E97: =E96-E95 -> 92.04628855 | F97: =F96-F95 -> 0 | G97: =G96-G95 -> -0.359305286 | H97: =H96-H95 -> 3.409267019
B98: Rate D Check | M98: =L92-M92-M96 -> -7.637932484 | P98: =N92-P92-P96 -> 289.3055405
B99: Basic/Min Charge | C99: =SUM('Pres & Prop Rev'!C155:C156)/SUM('Pres & Prop Rev'!C106:C107)-1 -> 0.02528977503 | D99: =SUM('Pres & Prop Rev'!D155:D156)/SUM('Pres & Prop Rev'!D106:D107)-1 -> 0 | E99: =SUM('Pres & Prop Rev'!E155:E156)/SUM('Pres & Prop Rev'!E106:E107)-1 -> 0.1478244701 | F99: =SUM('Pres & Prop Rev'!F155:F156)/SUM('Pres & Prop Rev'!F106:F107)-1 ->  | G99: =SUM('Pres & Prop Rev'!G155:G156)/SUM('Pres & Prop Rev'!G106:G107)-1 ->  | H99: =SUM('Pres & Prop Rev'!H155:H156)/SUM('Pres & Prop Rev'!H106:H107)-1 -> 0.005953622628
B100: Adj. to Actual Revenue | C100: ='Pres & Prop Rev'!C168/'Pres & Prop Rev'!C119-1 ->  | D100: ='Pres & Prop Rev'!D168/'Pres & Prop Rev'!D119-1 ->  | E100: ='Pres & Prop Rev'!E168/'Pres & Prop Rev'!E119-1 ->  | F100: ='Pres & Prop Rev'!F168/'Pres & Prop Rev'!F119-1 ->  | G100: ='Pres & Prop Rev'!G168/'Pres & Prop Rev'!G119-1 ->  | H100: ='Pres & Prop Rev'!H168/'Pres & Prop Rev'!H119-1 -> 
B101: Weather & U/B Revenue | C101: ='Pres & Prop Rev'!C190/'Pres & Prop Rev'!C142-1 -> 0.07104334153 | D101: ='Pres & Prop Rev'!D190/'Pres & Prop Rev'!D142-1 -> 0.08428779133 | E101: ='Pres & Prop Rev'!E190/'Pres & Prop Rev'!E142-1 -> -0.01973896141 | F101: ='Pres & Prop Rev'!F190/'Pres & Prop Rev'!F142-1 ->  | G101: ='Pres & Prop Rev'!G190/'Pres & Prop Rev'!G142-1 ->  | H101: ='Pres & Prop Rev'!H190/'Pres & Prop Rev'!H142-1 -> 
B102: Block Therm Charges | C102: =SUM('Pres & Prop Rev'!C157:C161)/SUM('Pres & Prop Rev'!C108:C112)-1 ->  | D102: =SUM('Pres & Prop Rev'!D157:D161)/SUM('Pres & Prop Rev'!D108:D112)-1 -> 0.08428831448 | E102: =SUM('Pres & Prop Rev'!E157:E161)/SUM('Pres & Prop Rev'!E108:E112)-1 -> -0.01974094441 | F102: =SUM('Pres & Prop Rev'!F157:F161)/SUM('Pres & Prop Rev'!F108:F112)-1 ->  | G102: =SUM('Pres & Prop Rev'!G157:G161)/SUM('Pres & Prop Rev'!G108:G112)-1 -> 0.02716649838 | H102: =SUM('Pres & Prop Rev'!H157:H161)/SUM('Pres & Prop Rev'!H108:H112)-1 -> 0.06984900245
B103: Overall Revenue | C103: ='Pres & Prop Rev'!C192/'Pres & Prop Rev'!C193-1 -> 0.05342815803 | D103: ='Pres & Prop Rev'!D192/'Pres & Prop Rev'!D193-1 -> 0.06429374475 | E103: ='Pres & Prop Rev'!E192/'Pres & Prop Rev'!E193-1 -> 0.01358864623 | F103: ='Pres & Prop Rev'!F192/'Pres & Prop Rev'!F193-1 ->  | G103: ='Pres & Prop Rev'!G192/'Pres & Prop Rev'!G193-1 -> 0.02716649838 | H103: ='Pres & Prop Rev'!H192/'Pres & Prop Rev'!H193-1 -> 0.06428964634
B105: Avg. Usage | D105: =D57/D58 -> 66.56907109 | E105: =E57/E58 -> 1619.313947 | F105: =F57/F58 ->  | G105: =G57/G58 -> 41383.34542 | H105: =H57/H58 -> 81513.66638
B106: Bill Compare: | C106: =INDEX($D$2:$H$2,I106) -> SCH. 101 | F106: =INDEX($D$2:$H$2,J106) -> SCH. 111,112,116 | I106: 1 | J106: 2
C107: Pres | D107: Prop | E107: % Incr | F107: Pres | G107: Prop | H107: % Incr
B108: 0 | C108: =I$108+MIN($B108,M$109)*I$109/100+MAX(0,MIN($B108-M$109,M$110-M$109))*I$110/100+MAX(0,MIN($B108-M$110,M$111-M$110))*I$111/100+MAX(0,MIN($B108-M$111,M$112-M$111))*I$112/100+MAX(0,B108-M$113)*I$113/100 -> 9.5 | D108: =J$108+MIN($B108,N$109)*J$109/100+MAX(0,MIN($B108-N$109,N$110-N$109))*J$110/100+MAX(0,MIN($B108-N$110,N$111-N$110))*J$111/100+MAX(0,MIN($B108-N$111,N$112-N$111))*J$112/100+MAX(0,C108-N$113)*J$113/100 -> 9.5 | E108: =D108/C108-1 -> 0 | F108: =K$108+MIN($B108,O$109)*K$109/100+MAX(0,MIN($B108-O$109,O$110-O$109))*K$110/100+MAX(0,MIN($B108-O$110,O$111-O$110))*K$111/100+MAX(0,MIN($B108-O$111,O$112-O$111))*K$112/100+MAX(0,E108-O$113)*K$113/100 -> 107.56 | G108: =L$108+MIN($B108,P$109)*L$109/100+MAX(0,MIN($B108-P$109,P$110-P$109))*L$110/100+MAX(0,MIN($B108-P$110,P$111-P$110))*L$111/100+MAX(0,MIN($B108-P$111,P$112-P$111))*L$112/100+MAX(0,F108-P$113)*L$113/100 -> 123.46 | H108: =G108/F108-1 -> 0.1478244701 | I108: =INDEX(CHOOSE(Base1_Billing2,$D$4:$H$4,$D$14:$H$14),$I$106)+INDEX(CHOOSE(Base1_Billing2,$D$5:$H$5,$D$15:$H$15),$I$106) -> 9.5 | J108: =INDEX(CHOOSE(Base1_Billing2,$D$26:$H$26,$D$36:$H$36),$I$106)+INDEX(CHOOSE(Base1_Billing2,$D$27:$H$27,$D$37:$H$37),$I$106) -> 9.5 | K108: =INDEX(CHOOSE(Base1_Billing2,$D$4:$H$4,$D$14:$H$14),$J$106)+INDEX(CHOOSE(Base1_Billing2,$D$5:$H$5,$D$15:$H$15),$J$106) -> 107.56 | L108: =INDEX(CHOOSE(Base1_Billing2,$D$26:$H$26,$D$36:$H$36),$J$106)+INDEX(CHOOSE(Base1_Billing2,$D$27:$H$27,$D$37:$H$37),$J$106) -> 123.46
B109: 65 | C109: =I$108+MIN($B109,M$109)*I$109/100+MAX(0,MIN($B109-M$109,M$110-M$109))*I$110/100+MAX(0,MIN($B109-M$110,M$111-M$110))*I$111/100+MAX(0,MIN($B109-M$111,M$112-M$111))*I$112/100+MAX(0,B109-M$113)*I$113/100 -> 36.17275 | D109: =J$108+MIN($B109,N$109)*J$109/100+MAX(0,MIN($B109-N$109,N$110-N$109))*J$110/100+MAX(0,MIN($B109-N$110,N$111-N$110))*J$111/100+MAX(0,MIN($B109-N$111,N$112-N$111))*J$112/100+MAX(0,C109-N$113)*J$113/100 -> 38.4211 | E109: 0.06215590465 | F109: =K$108+MIN($B109,O$109)*K$109/100+MAX(0,MIN($B109-O$109,O$110-O$109))*K$110/100+MAX(0,MIN($B109-O$110,O$111-O$110))*K$111/100+MAX(0,MIN($B109-O$111,O$112-O$111))*K$112/100+MAX(0,E109-O$113)*K$113/100 -> 107.56 | G109: =L$108+MIN($B109,P$109)*L$109/100+MAX(0,MIN($B109-P$109,P$110-P$109))*L$110/100+MAX(0,MIN($B109-P$110,P$111-P$110))*L$111/100+MAX(0,MIN($B109-P$111,P$112-P$111))*L$112/100+MAX(0,F109-P$113)*L$113/100 -> 123.46 | H109: 0.1478244701 | I109: =INDEX(CHOOSE(Base1_Billing2,$D6:$H6,$D16:$H16),$I$106) -> 41.035 | J109: =INDEX(CHOOSE(Base1_Billing2,$D28:$H28,$D38:$H38),$I$106) -> 44.494 | K109: =INDEX(CHOOSE(Base1_Billing2,$D6:$H6,$D16:$H16),$J$106) -> 0 | L109: =INDEX(CHOOSE(Base1_Billing2,$D28:$H28,$D38:$H38),$J$106) -> 0 | M109: =INDEX($L6:$P6,$I$106) -> 9999999 | N109: =INDEX($L28:$P28,$I$106) -> 9999999 | O109: =INDEX($L6:$P6,$J$106) -> 200 | P109: =INDEX($L28:$P28,$J$106) -> 200
B110: 2000 | C110: 830.2 | D110: 899.38 | E110: 0.08332931824 | F110: 672.452 | G110: 677.2 | H110: 0.007060727011 | I110: =INDEX(CHOOSE(Base1_Billing2,$D7:$H7,$D17:$H17),$I$106) -> 53.333 | J110: =INDEX(CHOOSE(Base1_Billing2,$D29:$H29,$D39:$H39),$I$106) -> 57.828 | K110: =INDEX(CHOOSE(Base1_Billing2,$D7:$H7,$D17:$H17),$J$106) -> 36.159 | L110: =INDEX(CHOOSE(Base1_Billing2,$D29:$H29,$D39:$H39),$J$106) -> 35.445 | M110: =INDEX($L7:$P7,$I$106) -> 9999999 | N110: =INDEX($L29:$P29,$I$106) -> 9999999 | O110: =INDEX($L7:$P7,$J$106) -> 1000 | P110: =INDEX($L29:$P29,$J$106) -> 1000
B111: 3000 | C111: 1240.55 | D111: 1344.32 | E111: 0.08364838177 | F111: 948.072 | G111: 947.38 | H111: -0.0007299023703 | I111: =INDEX(CHOOSE(Base1_Billing2,$D8:$H8,$D18:$H18),$I$106) -> 0 | J111: =INDEX(CHOOSE(Base1_Billing2,$D30:$H30,$D40:$H40),$I$106) -> 0 | K111: =INDEX(CHOOSE(Base1_Billing2,$D8:$H8,$D18:$H18),$J$106) -> 27.562 | L111: =INDEX(CHOOSE(Base1_Billing2,$D30:$H30,$D40:$H40),$J$106) -> 27.018 | M111: =INDEX($L8:$P8,$I$106) -> 9999999 | N111: =INDEX($L30:$P30,$I$106) -> 9999999 | O111: =INDEX($L8:$P8,$J$106) -> 9999999 | P111: =INDEX($L30:$P30,$J$106) -> 9999999
B112: 4000 | C112: 1650.9 | D112: 1789.26 | E112: 0.08380883155 | F112: 1223.692 | G112: 1217.56 | H112: -0.005011064876 | I112: =INDEX(CHOOSE(Base1_Billing2,$D9:$H9,$D19:$H19),$I$106) -> 0 | J112: =INDEX(CHOOSE(Base1_Billing2,$D31:$H31,$D41:$H41),$I$106) -> 0 | K112: =INDEX(CHOOSE(Base1_Billing2,$D9:$H9,$D19:$H19),$J$106) -> 23.517 | L112: =INDEX(CHOOSE(Base1_Billing2,$D31:$H31,$D41:$H41),$J$106) -> 23.053 | M112: =INDEX($L9:$P9,$I$106) -> 9999999 | N112: =INDEX($L31:$P31,$I$106) -> 9999999 | O112: =INDEX($L9:$P9,$J$106) -> 9999999 | P112: =INDEX($L31:$P31,$J$106) -> 9999999
B113: 5000 | C113: 2061.25 | D113: 2234.2 | E113: 0.08390539721 | F113: 1499.312 | G113: 1487.74 | H113: -0.007718206751 | I113: =INDEX(CHOOSE(Base1_Billing2,$D10:$H10,$D20:$H20),$I$106) -> 0 | J113: =INDEX(CHOOSE(Base1_Billing2,$D32:$H32,$D42:$H42),$I$106) -> 0 | K113: =INDEX(CHOOSE(Base1_Billing2,$D10:$H10,$D20:$H20),$J$106) -> 16.497 | L113: =INDEX(CHOOSE(Base1_Billing2,$D32:$H32,$D42:$H42),$J$106) -> 16.171 | M113: =INDEX($L10:$P10,$I$106) -> 9999999 | N113: =INDEX($L32:$P32,$I$106) -> 9999999 | O113: =INDEX($L10:$P10,$J$106) -> 9999999 | P113: =INDEX($L32:$P32,$J$106) -> 9999999
B114: 6000 | C114: 2471.6 | D114: 2679.14 | E114: 0.08396989804 | F114: 1774.932 | G114: 1757.92 | H114: -0.009584592537
B115: 7000 | C115: 2881.95 | D115: 3124.08 | E115: 0.08401603081 | F115: 2050.552 | G115: 2028.1 | H115: -0.01094924684
B116: 8000 | C116: 3292.3 | D116: 3569.02 | E116: 0.08405066367 | F116: 2326.172 | G116: 2298.28 | H116: -0.01199051489
B117: 9000 | C117: 3702.65 | D117: 4013.96 | E117: 0.08407762008 | F117: 2601.792 | G117: 2568.46 | H117: -0.01281117015
B118: 10000 | C118: 4113 | D118: 4458.9 | E118: 0.08409919767 | F118: 2877.412 | G118: 2838.64 | H118: -0.01347460843
B119: 11000 | C119: 4523.35 | D119: 4903.84 | E119: 0.08411686029 | F119: 3153.032 | G119: 3108.82 | H119: -0.01402205877
B120: 12000 | C120: 4933.7 | D120: 5348.78 | E120: 0.08413158481 | F120: 3428.652 | G120: 3379 | H120: -0.01448149302
B121: 13000 | C121: 5344.05 | D121: 5793.72 | E121: 0.08414404805 | F121: 3704.272 | G121: 3649.18 | H121: -0.01487255795
B122: 14000 | C122: 5754.4 | D122: 6238.66 | E122: 0.08415473377 | F122: 3979.892 | G122: 3919.36 | H122: -0.01520945795

Sheet Bill Impact
T1: tax credit with staff pass back method | X1: Exh. BAE-8
A2: Schedule 101 Bill Impact | T2: first 70 | V2: 0.03617102005
T3: over 70 | V3: 0.04701130772
Q5: tax credit
A6: Schedule 101 Present | G6: Schedule 101 Proposed
B7: Basic Charge | C7: Block 1 | D7: Block 2 | E7: Total Bill | G7: Basic Charge | H7: Block 1 | I7: Block 2 | J7: Total Bill | L7: Bill Impact | M7: % Change | Q7: Schedule 101 Present | W7: Schedule 101 Proposed
B8: ='Rate Design'!D4 -> 9.5 | C8: ='Rate Design'!D16/100 -> 0.70194 | D8: ='Rate Design'!D17/100 -> 0.82492 | G8: ='Rate Design'!D26 -> 9.5 | H8: ='Exh. ELJ-6 NG Bill Components'!H15 -> 0.73653 | I8: ='Exh. ELJ-6 NG Bill Components'!H16 -> 0.86987 | R8: Basic Charge | S8: Block 1 | T8: Block 2 | U8: Total Bill | W8: Basic Charge | X8: Block 1 | Y8: Block 2 | Z8: Tax Credit | AA8: Total Bill | AC8: Bill Impact | AD8: % Change
A9: 10 | B9: =$B$8 -> 9.5 | C9: =A9*$C$8 -> 7.0194 | E9: =SUM(B9:D9) -> 16.5194 | G9: =$G$8 -> 9.5 | H9: =A9*$H$8 -> 7.3653 | J9: =SUM(G9:I9) -> 16.8653 | L9: =J9-E9 -> 0.3459 | M9: =L9/E9 -> 0.02093901716 | R9: 9.5 | S9: 0.70194 | T9: 0.82492 | W9: 9.5 | X9: =H8 -> 0.73653 | Y9: =I8 -> 0.86987
A10: =A9+10 -> 20 | B10: =$B$8 -> 9.5 | C10: 14.0388 | E10: =SUM(B10:D10) -> 23.5388 | G10: =$G$8 -> 9.5 | H10: =A10*$H$8 -> 14.7306 | J10: 24.2306 | L10: 0.6918 | M10: 0.02938977348 | Q10: 10 | R10: 9.5 | S10: =Q10*$S$9 -> 7.0194 | U10: =SUM(R10:T10) -> 16.5194 | W10: 9.5 | X10: =Q10*$X$9 -> 7.3653 | Z10: =Q10*$V$2 -> 0.3617102005 | AA10: =SUM(W10:Y10)-Z10 -> 16.5035898 | AC10: =AA10-U10 -> -0.01581020052 | AD10: =AC10/U10 -> -0.0009570686901
A11: =A10+10 -> 30 | B11: 9.5 | C11: 21.0582 | E11: 30.5582 | G11: 9.5 | H11: 22.0959 | J11: 31.5959 | L11: 1.0377 | M11: 0.03395815199 | Q11: 20 | R11: 9.5 | S11: =Q11*$S$9 -> 14.0388 | U11: =SUM(R11:T11) -> 23.5388 | W11: 9.5 | X11: =Q11*$X$9 -> 14.7306 | Z11: =Q11*$V$2 -> 0.723420401 | AA11: =SUM(W11:Y11)-Z11 -> 23.5071796 | AC11: =AA11-U11 -> -0.03162040104 | AD11: =AC11/U11 -> -0.001343331055
A12: 40 | B12: 9.5 | C12: 28.0776 | E12: 37.5776 | G12: 9.5 | H12: 29.4612 | J12: 38.9612 | L12: 1.3836 | M12: 0.03681980754 | Q12: 30 | R12: 9.5 | S12: 21.0582 | U12: 30.5582 | W12: 9.5 | X12: 22.0959 | Z12: 1.085130602 | AA12: 30.5107694 | AC12: -0.04743060156 | AD12: -0.001552139902
A13: 50 | B13: 9.5 | C13: 35.097 | E13: 44.597 | G13: 9.5 | H13: 36.8265 | J13: 46.3265 | L13: 1.7295 | M13: 0.03878063547 | Q13: 40 | R13: 9.5 | S13: 28.0776 | U13: 37.5776 | W13: 9.5 | X13: 29.4612 | Z13: 1.446840802 | AA13: 37.5143592 | AC13: -0.06324080208 | AD13: -0.001682938827
A14: 60 | B14: 9.5 | C14: 42.1164 | E14: 51.6164 | G14: 9.5 | H14: 44.1918 | J14: 53.6918 | L14: 2.0754 | M14: 0.0402081509 | Q14: 50 | R14: 9.5 | S14: 35.097 | U14: 44.597 | W14: 9.5 | X14: 36.8265 | Z14: 1.808551003 | AA14: 44.517949 | AC14: -0.0790510026 | AD14: -0.001772563235
A15: =ROUND('Pres & Prop Rev'!D46/'Pres & Prop Rev'!D48,0) -> 67 | B15: 9.5 | C15: =ROUND(A15*$C$8,2) -> 47.03 | E15: =SUM(B15:D15) -> 56.53 | G15: 9.5 | H15: =ROUND(A15*$H$8,2) -> 49.35 | J15: =SUM(G15:I15) -> 58.85 | L15: 2.32 | M15: 0.04104015567 | Q15: 60 | R15: 9.5 | S15: 42.1164 | U15: 51.6164 | W15: 9.5 | X15: 44.1918 | Z15: 2.170261203 | AA15: 51.5215388 | AC15: -0.09486120311 | AD15: -0.001837811299
A16: =A14+10 -> 70 | B16: 9.5 | C16: =ROUND(A16*$C$8,2) -> 49.14 | E16: 58.64 | G16: 9.5 | H16: =ROUND(A16*$H$8,2) -> 51.56 | J16: 61.06 | L16: =J16-E16 -> 2.42 | M16: 0.04126875853 | Q16: 67 | R16: 9.5 | S16: 47.02998 | U16: 56.52998 | W16: 9.5 | X16: 49.34751 | Z16: 2.423458343 | AA16: 56.42405166 | AC16: -0.1059283435 | AD16: -0.00187384364
A17: 80 | B17: 9.5 | C17: =70*$C$8 -> 49.1358 | D17: =(A17-70)*$D$8 -> 8.2492 | E17: =SUM(B17:D17) -> 66.885 | G17: 9.5 | H17: =70*$H$8 -> 51.5571 | I17: =(A17-70)*$I$8 -> 8.6987 | J17: 69.7558 | L17: 2.8708 | M17: 0.04292143231 | Q17: 70 | R17: 9.5 | S17: 49.1358 | U17: 58.6358 | W17: 9.5 | X17: 51.5571 | Z17: 2.531971404 | AA17: 58.5251286 | AC17: -0.1106714036 | AD17: -0.00188743743
A18: 90 | B18: 9.5 | C18: =70*$C$8 -> 49.1358 | D18: =(A18-70)*$D$8 -> 16.4984 | E18: 75.1342 | G18: 9.5 | H18: =70*$H$8 -> 51.5571 | I18: =(A18-70)*$I$8 -> 17.3974 | J18: 78.4545 | L18: 3.3203 | M18: 0.04419159318 | Q18: 80 | R18: 9.5 | S18: =$S$17 -> 49.1358 | T18: =(Q18-70)*$T$9 -> 8.2492 | U18: =SUM(R18:T18) -> 66.885 | W18: 9.5 | X18: =$X$17 -> 51.5571 | Y18: =(Q18-70)*$Y$9 -> 8.6987 | Z18: =$Z$17+((Q18-70)*$V$3) -> 3.002084481 | AA18: 66.75371552 | AC18: -0.1312844809 | AD18: -0.001962838916
A19: 100 | B19: 9.5 | C19: 49.1358 | D19: =(A19-70)*$D$8 -> 24.7476 | E19: 83.3834 | G19: 9.5 | H19: 51.5571 | I19: 26.0961 | J19: 87.1532 | L19: 3.7698 | M19: 0.04521043757 | Q19: 90 | R19: 9.5 | S19: =$S$17 -> 49.1358 | T19: =(Q19-70)*$T$9 -> 16.4984 | U19: 75.1342 | W19: 9.5 | X19: =$X$17 -> 51.5571 | Y19: =(Q19-70)*$Y$9 -> 17.3974 | Z19: =$Z$17+((Q19-70)*$V$3) -> 3.472197558 | AA19: 74.98230244 | AC19: -0.1518975581 | AD19: -0.002021683309
A20: 110 | B20: 9.5 | C20: 49.1358 | D20: 32.9968 | E20: 91.6326 | G20: 9.5 | H20: 51.5571 | I20: 34.7948 | J20: 95.8519 | L20: 4.2193 | M20: 0.04604583958 | Q20: 100 | R20: 9.5 | S20: 49.1358 | T20: 24.7476 | U20: 83.3834 | W20: 9.5 | X20: 51.5571 | Y20: 26.0961 | Z20: 3.942310635 | AA20: 83.21088936 | AC20: -0.1725106353 | AD20: -0.002068884638
A21: 120 | B21: 9.5 | C21: 49.1358 | D21: 41.246 | E21: 99.8818 | G21: 9.5 | H21: 51.5571 | I21: 43.4935 | J21: 104.5506 | L21: 4.6688 | M21: 0.04674325052 | Q21: 110 | R21: 9.5 | S21: 49.1358 | T21: 32.9968 | U21: 91.6326 | W21: 9.5 | X21: 51.5571 | Y21: 34.7948 | Z21: 4.412423713 | AA21: 91.43947629 | AC21: -0.1931237126 | AD21: -0.002107587393
A22: 130 | B22: 9.5 | C22: 49.1358 | D22: 49.4952 | E22: 108.131 | G22: 9.5 | H22: 51.5571 | I22: 52.1922 | J22: 113.2493 | L22: 5.1183 | M22: 0.04733425197 | Q22: 120 | R22: 9.5 | S22: 49.1358 | T22: 41.246 | U22: 99.8818 | W22: 9.5 | X22: 51.5571 | Y22: 43.4935 | Z22: 4.88253679 | AA22: 99.66806321 | AC22: -0.2137367898 | AD22: -0.002139897257
A23: 140 | B23: 9.5 | C23: 49.1358 | D23: 57.7444 | E23: 116.3802 | G23: 9.5 | H23: 51.5571 | I23: 60.8909 | J23: 121.948 | L23: 5.5678 | M23: 0.04784147132 | Q23: 130 | R23: 9.5 | S23: 49.1358 | T23: 49.4952 | U23: 108.131 | W23: 9.5 | X23: 51.5571 | Y23: 52.1922 | Z23: 5.352649867 | AA23: 107.8966501 | AC23: -0.234349867 | AD23: -0.002167277349
A24: 150 | B24: 9.5 | C24: 49.1358 | D24: 65.9936 | E24: 124.6294 | G24: 9.5 | H24: 51.5571 | I24: 69.5896 | J24: 130.6467 | L24: 6.0173 | M24: 0.04828154512 | Q24: 140 | R24: 9.5 | S24: 49.1358 | T24: 57.7444 | U24: 116.3802 | W24: 9.5 | X24: 51.5571 | Y24: 60.8909 | Z24: 5.822762944 | AA24: 116.1252371 | AC24: -0.2549629443 | AD24: -0.002190775959
A25: 160 | B25: 9.5 | C25: 49.1358 | D25: 74.2428 | E25: 132.8786 | G25: 9.5 | H25: 51.5571 | I25: 78.2883 | J25: 139.3454 | L25: 6.4668 | M25: 0.04866697873 | Q25: 150 | R25: 9.5 | S25: 49.1358 | T25: 65.9936 | U25: 124.6294 | W25: 9.5 | X25: 51.5571 | Y25: 69.5896 | Z25: 6.292876022 | AA25: 124.353824 | AC25: -0.2755760215 | AD25: -0.002211163831
A26: 170 | B26: 9.5 | C26: 49.1358 | D26: 82.492 | E26: 141.1278 | G26: 9.5 | H26: 51.5571 | I26: 86.987 | J26: 148.0441 | L26: 6.9163 | M26: 0.04900735362 | Q26: 160 | R26: 9.5 | S26: 49.1358 | T26: 74.2428 | U26: 132.8786 | W26: 9.5 | X26: 51.5571 | Y26: 78.2883 | Z26: 6.762989099 | AA26: 132.5824109 | AC26: -0.2961890987 | AD26: -0.002229020314
A27: 180 | B27: 9.5 | C27: 49.1358 | D27: 90.7412 | E27: 149.377 | G27: 9.5 | H27: 51.5571 | I27: 95.6857 | J27: 156.7428 | L27: 7.3658 | M27: 0.04931013476 | Q27: 170 | R27: 9.5 | S27: 49.1358 | T27: 82.492 | U27: 141.1278 | W27: 9.5 | X27: 51.5571 | Y27: 86.987 | Z27: 7.233102176 | AA27: 140.8109978 | AC27: -0.316802176 | AD27: -0.002244789304
A28: 190 | B28: 9.5 | C28: 49.1358 | D28: 98.9904 | E28: 157.6262 | G28: 9.5 | H28: 51.5571 | I28: 104.3844 | J28: 165.4415 | L28: 7.8153 | M28: 0.04958122444 | Q28: 180 | R28: 9.5 | S28: 49.1358 | T28: 90.7412 | U28: 149.377 | W28: 9.5 | X28: 51.5571 | Y28: 95.6857 | Z28: 7.703215253 | AA28: 149.0395847 | AC28: -0.3374152532 | AD28: -0.00225881664
A29: 200 | B29: 9.5 | C29: 49.1358 | D29: 107.2396 | E29: 165.8754 | G29: 9.5 | H29: 51.5571 | I29: 113.0831 | J29: 174.1402 | L29: 8.2648 | M29: 0.04982535084 | Q29: 190 | R29: 9.5 | S29: 49.1358 | T29: 98.9904 | U29: 157.6262 | W29: 9.5 | X29: 51.5571 | Y29: 104.3844 | Z29: 8.17332833 | AA29: 157.2681717 | AC29: -0.3580283304 | AD29: -0.002271375764
A30: 210 | B30: 9.5 | C30: 49.1358 | D30: 115.4888 | E30: 174.1246 | G30: 9.5 | H30: 51.5571 | I30: 121.7818 | J30: 182.8389 | L30: 8.7143 | M30: 0.05004634612 | Q30: 200 | R30: 9.5 | S30: 49.1358 | T30: 107.2396 | U30: 165.8754 | W30: 9.5 | X30: 51.5571 | Y30: 113.0831 | Z30: 8.643441408 | AA30: 165.4967586 | AC30: -0.3786414077 | AD30: -0.002282685725
A31: 220 | B31: 9.5 | C31: 49.1358 | D31: 123.738 | E31: 182.3738 | G31: 9.5 | H31: 51.5571 | I31: 130.4805 | J31: 191.5376 | L31: 9.1638 | M31: 0.05024734913 | Q31: 210 | R31: 9.5 | S31: 49.1358 | T31: 115.4888 | U31: 174.1246 | W31: 9.5 | X31: 51.5571 | Y31: 121.7818 | Z31: 9.113554485 | AA31: 173.7253455 | AC31: -0.3992544849 | AD31: -0.002292924061
A32: 230 | B32: 9.5 | C32: 49.1358 | D32: 131.9872 | E32: 190.623 | G32: 9.5 | H32: 51.5571 | I32: 139.1792 | J32: 200.2363 | L32: 9.6133 | M32: 0.05043095534 | Q32: 220 | R32: 9.5 | S32: 49.1358 | T32: 123.738 | U32: 182.3738 | W32: 9.5 | X32: 51.5571 | Y32: 130.4805 | Z32: 9.583667562 | AA32: 181.9539324 | AC32: -0.4198675621 | AD32: -0.002302236188
A33: 240 | B33: 9.5 | C33: 49.1358 | D33: 140.2364 | E33: 198.8722 | G33: 9.5 | H33: 51.5571 | I33: 147.8779 | J33: 208.935 | L33: 10.0628 | M33: 0.05059932962 | Q33: 230 | R33: 9.5 | S33: 49.1358 | T33: 131.9872 | U33: 190.623 | W33: 9.5 | X33: 51.5571 | Y33: 139.1792 | Z33: 10.05378064 | AA33: 190.1825194 | AC33: -0.4404806394 | AD33: -0.002310742352
A34: 250 | B34: 9.5 | C34: 49.1358 | D34: 148.4856 | E34: 207.1214 | G34: 9.5 | H34: 51.5571 | I34: 156.5766 | J34: 217.6337 | L34: 10.5123 | M34: 0.05075429193 | Q34: 240 | R34: 9.5 | S34: 49.1358 | T34: 140.2364 | U34: 198.8722 | W34: 9.5 | X34: 51.5571 | Y34: 147.8779 | Z34: 10.52389372 | AA34: 198.4111063 | AC34: -0.4610937166 | AD34: -0.002318542846
A35: 260 | B35: 9.5 | C35: 49.1358 | D35: 156.7348 | E35: 215.3706 | G35: 9.5 | H35: 51.5571 | I35: 165.2753 | J35: 226.3324 | L35: 10.9618 | M35: 0.05089738339 | Q35: 250 | R35: 9.5 | S35: 49.1358 | T35: 148.4856 | U35: 207.1214 | W35: 9.5 | X35: 51.5571 | Y35: 156.5766 | Z35: 10.99400679 | AA35: 206.6396932 | AC35: -0.4817067938 | AD35: -0.002325721986
A36: 270 | B36: 9.5 | C36: 49.1358 | D36: 164.984 | E36: 223.6198 | G36: 9.5 | H36: 51.5571 | I36: 173.974 | J36: 235.0311 | L36: 11.4113 | M36: 0.05102991774 | Q36: 260 | R36: 9.5 | S36: 49.1358 | T36: 156.7348 | U36: 215.3706 | W36: 9.5 | X36: 51.5571 | Y36: 165.2753 | Z36: 11.46411987 | AA36: 214.8682801 | AC36: -0.5023198711 | AD36: -0.002332351171
A37: 280 | B37: 9.5 | C37: 49.1358 | D37: 173.2332 | E37: 231.869 | G37: 9.5 | H37: 51.5571 | I37: 182.6727 | J37: 243.7298 | L37: 11.8608 | M37: 0.05115302175 | Q37: 270 | R37: 9.5 | S37: 49.1358 | T37: 164.984 | U37: 223.6198 | W37: 9.5 | X37: 51.5571 | Y37: 173.974 | Z37: 11.93423295 | AA37: 223.0968671 | AC37: -0.5229329483 | AD37: -0.002338491262
A38: 290 | B38: 9.5 | C38: 49.1358 | D38: 181.4824 | E38: =SUM(B38:D38) -> 240.1182 | G38: 9.5 | H38: 51.5571 | I38: 191.3714 | J38: 252.4285 | L38: 12.3103 | M38: 0.05126766734 | Q38: 280 | R38: 9.5 | S38: 49.1358 | T38: 173.2332 | U38: 231.869 | W38: 9.5 | X38: 51.5571 | Y38: 182.6727 | Z38: 12.40434603 | AA38: 231.325454 | AC38: -0.5435460255 | AD38: -0.002344194461
A39: 300 | B39: 9.5 | C39: 49.1358 | D39: 189.7316 | E39: 248.3674 | G39: 9.5 | H39: 51.5571 | I39: 200.0701 | J39: 261.1272 | L39: 12.7598 | M39: 0.05137469732 | Q39: 290 | R39: 9.5 | S39: 49.1358 | T39: 181.4824 | U39: 240.1182 | W39: 9.5 | X39: 51.5571 | Y39: 191.3714 | Z39: 12.8744591 | AA39: 239.5540409 | AC39: -0.5641591028 | AD39: -0.002349505797
A40: 310 | B40: 9.5 | C40: 49.1358 | D40: 197.9808 | E40: =SUM(B40:D40) -> 256.6166 | G40: 9.5 | H40: 51.5571 | I40: 208.7688 | J40: =SUM(G40:I40) -> 269.8259 | L40: 13.2093 | M40: 0.05147484613 | Q40: 300 | R40: 9.5 | S40: 49.1358 | T40: 189.7316 | U40: 248.3674 | W40: 9.5 | X40: 51.5571 | Y40: 200.0701 | Z40: 13.34457218 | AA40: 247.7826278 | AC40: -0.58477218 | AD40: -0.002354464314
A41: 320 | B41: 9.5 | C41: 49.1358 | D41: 206.23 | E41: 264.8658 | G41: 9.5 | H41: 51.5571 | I41: 217.4675 | J41: 278.5246 | L41: 13.6588 | M41: 0.05156875671 | Q41: 310 | R41: 9.5 | S41: 49.1358 | T41: 197.9808 | U41: 256.6166 | W41: 9.5 | X41: 51.5571 | Y41: 208.7688 | Z41: 13.81468526 | AA41: 256.0112147 | AC41: -0.6053852572 | AD41: -0.002359104038
A42: 330 | B42: 9.5 | C42: 49.1358 | D42: 214.4792 | E42: 273.115 | G42: 9.5 | H42: 51.5571 | I42: 226.1662 | J42: 287.2233 | L42: 14.1083 | M42: 0.05165699431 | Q42: 320 | R42: 9.5 | S42: 49.1358 | T42: 206.23 | U42: 264.8658 | W42: 9.5 | X42: 51.5571 | Y42: 217.4675 | Z42: 14.28479833 | AA42: 264.2398017 | AC42: -0.6259983345 | AD42: -0.002363454755
A43: 340 | B43: 9.5 | C43: 49.1358 | D43: 222.7284 | E43: 281.3642 | G43: 9.5 | H43: 51.5571 | I43: 234.8649 | J43: 295.922 | L43: 14.5578 | M43: 0.0517400579 | Q43: 330 | R43: 9.5 | S43: 49.1358 | T43: 214.4792 | U43: 273.115 | W43: 9.5 | X43: 51.5571 | Y43: 226.1662 | Z43: 14.75491141 | AA43: 272.4683886 | AC43: -0.6466114117 | AD43: -0.002367542653
A44: 350 | B44: 9.5 | C44: 49.1358 | D44: 230.9776 | E44: 289.6134 | G44: 9.5 | H44: 51.5571 | I44: 243.5636 | J44: 304.6207 | L44: 15.0073 | M44: 0.05181838962 | Q44: 340 | R44: 9.5 | S44: 49.1358 | T44: 222.7284 | U44: 281.3642 | W44: 9.5 | X44: 51.5571 | Y44: 234.8649 | Z44: 15.22502449 | AA44: 280.6969755 | AC44: -0.6672244889 | AD44: -0.002371390848
A45: 360 | B45: 9.5 | C45: 49.1358 | D45: 239.2268 | E45: 297.8626 | G45: 9.5 | H45: 51.5571 | I45: 252.2623 | J45: 313.3194 | L45: 15.4568 | M45: 0.0518923826 | Q45: 350 | R45: 9.5 | S45: 49.1358 | T45: 230.9776 | U45: 289.6134 | W45: 9.5 | X45: 51.5571 | Y45: 243.5636 | Z45: 15.69513757 | AA45: 288.9255624 | AC45: -0.6878375662 | AD45: -0.002375019824
A46: 370 | B46: 9.5 | C46: 49.1358 | D46: 247.476 | E46: 306.1118 | G46: 9.5 | H46: 51.5571 | I46: 260.961 | J46: 322.0181 | L46: 15.9063 | M46: 0.0519623876 | Q46: 360 | R46: 9.5 | S46: 49.1358 | T46: 239.2268 | U46: 297.8626 | W46: 9.5 | X46: 51.5571 | Y46: 252.2623 | Z46: 16.16525064 | AA46: 297.1541494 | AC46: -0.7084506434 | AD46: -0.002378447792
A47: 380 | B47: 9.5 | C47: 49.1358 | D47: =(A47-70)*$D$8 -> 255.7252 | E47: =SUM(B47:D47) -> 314.361 | G47: 9.5 | H47: 51.5571 | I47: 269.6597 | J47: 330.7168 | L47: 16.3558 | M47: 0.05202871858 | Q47: 370 | R47: 9.5 | S47: 49.1358 | T47: 247.476 | U47: 306.1118 | W47: 9.5 | X47: 51.5571 | Y47: 260.961 | Z47: 16.63536372 | AA47: 305.3827363 | AC47: -0.7290637206 | AD47: -0.002381691005
A48: 390 | B48: 9.5 | C48: 49.1358 | D48: 263.9744 | E48: 322.6102 | G48: 9.5 | H48: 51.5571 | I48: 278.3584 | J48: 339.4155 | L48: 16.8053 | M48: 0.05209165736 | Q48: 380 | R48: 9.5 | S48: 49.1358 | T48: 255.7252 | U48: 314.361 | W48: 9.5 | X48: 51.5571 | Y48: 269.6597 | Z48: 17.1054768 | AA48: 313.6113232 | AC48: -0.7496767979 | AD48: -0.002384764007
A49: 400 | B49: 9.5 | C49: 49.1358 | D49: 272.2236 | E49: 330.8594 | G49: 9.5 | H49: 51.5571 | I49: 287.0571 | J49: 348.1142 | L49: 17.2548 | M49: 0.05215145769 | Q49: 390 | R49: 9.5 | S49: 49.1358 | T49: 263.9744 | U49: 322.6102 | W49: 9.5 | X49: 51.5571 | Y49: 278.3584 | Z49: 17.57558988 | AA49: 321.8399101 | AC49: -0.7702898751 | AD49: -0.002387679854
Q50: 400 | R50: 9.5 | S50: 49.1358 | T50: 272.2236 | U50: 330.8594 | W50: 9.5 | X50: 51.5571 | Y50: 287.0571 | Z50: 18.04570295 | AA50: 330.068497 | AC50: -0.7909029523 | AD50: -0.002390450301
A53: Breakeven Analysis (Base Rates)
A55: Schedule 101 | G55: Schedule 111
B56: Basic Charge | C56: Block 1 | D56: Block 2 | E56: Total Bill | G56: Minimum Charge | H56: Block 1 | I56: Block 2 | J56: Block 3 | K56: Total Bill | M56: Bill Differential
B57: ='Exh. ELJ-6 NG Bill Components'!I13 -> 9.5 | C57: ='Rate Design'!D28/100 -> 0.44494 | D57: ='Rate Design'!D29/100 -> 0.57828 | G57: ='Rate Design'!E27 -> 123.46 | H57: ='Rate Design'!E28/100 -> 0 | I57: ='Rate Design'!E29/100 -> 0.35445 | J57: ='Rate Design'!E30/100 -> 0.27018
A58: 10 | B58: =$B$57 -> 9.5 | C58: =A58*$C$57 -> 4.4494 | E58: =SUM(B58:D58) -> 13.9494 | G58: =$G$57 -> 123.46 | H58: =A58*$H$57 -> 0 | K58: =SUM(G58:J58) -> 123.46 | M58: =K58-E58 -> 109.5106
A59: =A58+10 -> 20 | B59: 9.5 | C59: =A59*$C$57 -> 8.8988 | E59: =SUM(B59:D59) -> 18.3988 | G59: =$G$57 -> 123.46 | H59: =A59*$H$57 -> 0 | K59: =SUM(G59:J59) -> 123.46 | M59: 105.0612
A60: =A59+10 -> 30 | B60: 9.5 | C60: 13.3482 | E60: 22.8482 | G60: 123.46 | H60: 0 | K60: 123.46 | M60: 100.6118
A61: 40 | B61: 9.5 | C61: 17.7976 | E61: 27.2976 | G61: 123.46 | H61: 0 | K61: 123.46 | M61: 96.1624
A62: 50 | B62: 9.5 | C62: 22.247 | E62: 31.747 | G62: 123.46 | H62: 0 | K62: 123.46 | M62: 91.713
A63: 60 | B63: 9.5 | C63: 26.6964 | E63: 36.1964 | G63: 123.46 | H63: 0 | K63: 123.46 | M63: 87.2636
A64: 70 | B64: 9.5 | C64: =A64*$C$57 -> 31.1458 | E64: 40.6458 | G64: 123.46 | H64: 0 | K64: 123.46 | M64: 82.8142
A65: 80 | B65: 9.5 | C65: =70*$C$57 -> 31.1458 | D65: =(A65-70)*$D$57 -> 5.7828 | E65: 46.4286 | G65: 123.46 | H65: 0 | K65: 123.46 | M65: 77.0314
A66: 90 | B66: 9.5 | C66: =70*$C$57 -> 31.1458 | D66: =(A66-70)*$D$57 -> 11.5656 | E66: 52.2114 | G66: 123.46 | H66: 0 | K66: 123.46 | M66: 71.2486
A67: 100 | B67: 9.5 | C67: 31.1458 | D67: 17.3484 | E67: 57.9942 | G67: 123.46 | H67: 0 | K67: 123.46 | M67: 65.4658
A68: 110 | B68: 9.5 | C68: 31.1458 | D68: 23.1312 | E68: 63.777 | G68: 123.46 | H68: 0 | K68: 123.46 | M68: 59.683
A69: 120 | B69: 9.5 | C69: 31.1458 | D69: 28.914 | E69: 69.5598 | G69: 123.46 | H69: 0 | K69: 123.46 | M69: 53.9002
A70: 130 | B70: 9.5 | C70: 31.1458 | D70: 34.6968 | E70: 75.3426 | G70: 123.46 | H70: 0 | K70: 123.46 | M70: 48.1174
A71: 140 | B71: 9.5 | C71: 31.1458 | D71: 40.4796 | E71: 81.1254 | G71: 123.46 | H71: 0 | K71: 123.46 | M71: 42.3346
A72: 150 | B72: 9.5 | C72: 31.1458 | D72: 46.2624 | E72: 86.9082 | G72: 123.46 | H72: 0 | K72: 123.46 | M72: 36.5518
A73: 160 | B73: 9.5 | C73: 31.1458 | D73: 52.0452 | E73: 92.691 | G73: 123.46 | H73: 0 | K73: 123.46 | M73: 30.769
A74: 170 | B74: 9.5 | C74: 31.1458 | D74: 57.828 | E74: 98.4738 | G74: 123.46 | H74: 0 | K74: 123.46 | M74: 24.9862
A75: 180 | B75: 9.5 | C75: 31.1458 | D75: 63.6108 | E75: 104.2566 | G75: 123.46 | H75: 0 | K75: 123.46 | M75: 19.2034
A76: 190 | B76: 9.5 | C76: 31.1458 | D76: 69.3936 | E76: 110.0394 | G76: 123.46 | H76: 0 | K76: 123.46 | M76: 13.4206
A77: 200 | B77: 9.5 | C77: 31.1458 | D77: 75.1764 | E77: 115.8222 | G77: 123.46 | H77: 0 | K77: 123.46 | M77: 7.6378
A78: 210 | B78: 9.5 | C78: 31.1458 | D78: 80.9592 | E78: 121.605 | G78: 123.46 | H78: =200*$H$57 -> 0 | I78: =(A78-200)*$I$57 -> 3.5445 | K78: 127.0045 | M78: 5.3995
A79: 220 | B79: 9.5 | C79: 31.1458 | D79: 86.742 | E79: 127.3878 | G79: 123.46 | H79: 0 | I79: =(A79-200)*$I$57 -> 7.089 | K79: 130.549 | M79: 3.1612
A80: 230 | B80: 9.5 | C80: 31.1458 | D80: 92.5248 | E80: 133.1706 | G80: 123.46 | H80: 0 | I80: 10.6335 | K80: 134.0935 | M80: 0.9229
A81: 240 | B81: 9.5 | C81: 31.1458 | D81: 98.3076 | E81: 138.9534 | G81: 123.46 | H81: 0 | I81: 14.178 | K81: 137.638 | M81: -1.3154
A82: 250 | B82: 9.5 | C82: 31.1458 | D82: 104.0904 | E82: 144.7362 | G82: 123.46 | H82: 0 | I82: 17.7225 | K82: 141.1825 | M82: -3.5537
A83: 260 | B83: 9.5 | C83: 31.1458 | D83: 109.8732 | E83: 150.519 | G83: 123.46 | H83: 0 | I83: 21.267 | K83: 144.727 | M83: -5.792
A84: 270 | B84: 9.5 | C84: 31.1458 | D84: 115.656 | E84: 156.3018 | G84: 123.46 | H84: 0 | I84: 24.8115 | K84: 148.2715 | M84: -8.0303
A85: 280 | B85: 9.5 | C85: 31.1458 | D85: 121.4388 | E85: 162.0846 | G85: 123.46 | H85: 0 | I85: 28.356 | K85: 151.816 | M85: -10.2686
A86: 290 | B86: 9.5 | C86: 31.1458 | D86: 127.2216 | E86: 167.8674 | G86: 123.46 | H86: 0 | I86: 31.9005 | K86: 155.3605 | M86: -12.5069
A87: 300 | B87: 9.5 | C87: 31.1458 | D87: 133.0044 | E87: 173.6502 | G87: 123.46 | H87: 0 | I87: 35.445 | K87: 158.905 | M87: -14.7452
A88: 310 | B88: 9.5 | C88: 31.1458 | D88: 138.7872 | E88: 179.433 | G88: 123.46 | H88: 0 | I88: 38.9895 | K88: 162.4495 | M88: -16.9835
A89: 320 | B89: 9.5 | C89: 31.1458 | D89: 144.57 | E89: 185.2158 | G89: 123.46 | H89: 0 | I89: 42.534 | K89: 165.994 | M89: -19.2218
A90: 330 | B90: 9.5 | C90: 31.1458 | D90: 150.3528 | E90: 190.9986 | G90: 123.46 | H90: 0 | I90: 46.0785 | K90: 169.5385 | M90: -21.4601
A91: 340 | B91: 9.5 | C91: 31.1458 | D91: 156.1356 | E91: 196.7814 | G91: 123.46 | H91: 0 | I91: 49.623 | K91: 173.083 | M91: -23.6984
A92: 350 | B92: 9.5 | C92: 31.1458 | D92: 161.9184 | E92: 202.5642 | G92: 123.46 | H92: 0 | I92: 53.1675 | K92: 176.6275 | M92: -25.9367
A93: 500 | B93: 9.5 | C93: 31.1458 | D93: 248.6604 | E93: =SUM(B93:D93) -> 289.3062 | G93: 123.46 | H93: 0 | I93: =(A93-200)*$I$57 -> 106.335 | K93: =SUM(G93:J93) -> 229.795 | M93: -59.5112
A96: Breakeven Analysis (Base Rates)
A98: Schedule 101 | H98: Schedule 121
B99: Basic Charge | C99: Block 1 | D99: Block 2 | E99: Block 3 | F99: Total Bill | H99: Minimum Charge | I99: Block 1 | J99: Block 2 | K99: Block 3 | L99: Block 4 | M99: Total Bill | O99: Bill Differential
B100: =B57 -> 9.5 | C100: =C57 -> 0.44494 | D100: 0.57828 | E100: 0 | H100: ='Rate Design'!F27 -> 0 | I100: ='Rate Design'!F28/100 -> 0 | J100: ='Rate Design'!F29/100 -> 0 | K100: ='Rate Design'!F30/100 -> 0 | L100: ='Rate Design'!F31/100 -> 0
A101: 200 | B101: =$B$100 -> 9.5 | C101: =70*$C$100 -> 31.1458 | D101: =D100*(A101-70) -> 75.1764 | F101: =SUM(B101:E101) -> 115.8222 | H101: =$H$100 -> 0 | I101: =A101*$I$100 -> 0 | M101: =SUM(H101:L101) -> 0 | O101: =M101-F101 -> -115.8222
A102: 500 | B102: =$B$100 -> 9.5 | C102: =$C$101 -> 31.1458 | D102: =D100*(A102-70) -> 248.6604 | F102: =SUM(B102:E102) -> 289.3062 | H102: =$H$100 -> 0 | I102: =A102*$I$100 -> 0 | M102: =SUM(H102:L102) -> 0 | O102: =M102-F102 -> -289.3062

Sheet Pres & Prop Rev
J3: TRANSPORT
A4: WORK PAPER | D4: GEN SERVICE | E4: LRG GEN SVC | F4: EX LRG GEN SVC | G4: INTERRUPTIBLE | H4: TRANSPORT | I4: TRANSPORT | J4: SCH 148 - WSU
A5: REFERENCE | C5: TOTAL | D5: SCH. 101 & 102 | E5: SCH. 111,112&116 | F5: SCH. 121,122&126 | G5: SCH. 131&132 | H5: SCHEDULE 146 | I5: SCHEDULE 148 | J5: ANN. MINIMUM | Q5: Print Header for all printed pages on this worksheet:
B6: PRESENT BILL DETERMINANTS | M6: Calculate all revenue exhibits using ____ rates: | Q6: ="AVISTA UTILITIES WASHINGTON NATURAL GAS PRO FORMA REVENUE UNDER PRESENT AND PROPOSED "&O9&" RATES 12 MONTHS ENDED DECEMBER 31, 2019" -> AVISTA UTILITIES WASHINGTON NATURAL GAS PRO FORMA REVENUE UNDER PRESENT AND PROPOSED BASE TARIFF RATES 12 MONTHS ENDED DECEMBER 31, 2019
B7: THERMS | L7: 1) | M7: BASE TARIFF
A8: JDM-G-8 | B8: BLOCK 1 | D8: ='Bill Determ'!E7 -> 83030622.51 | E8: ='Bill Determ'!B24 -> 6558198.145 | F8: Sch 121/122 disc | G8: ='Bill Determ'!B37 -> 220000 | H8: ='Bill Determ'!B41 -> 8146142 | I8: ='Bill Determ'!B47 -> 24245810 | J8: ='Bill Determ'!B53 -> 10933465 | M8: or | O8: 1
A9: JDM-G-8 | B9: BLOCK 2 | D9: ='Bill Determ'!F7 -> 54532868.44 | E9: ='Bill Determ'!C24 -> 17521409.97 | F9: (UG-190335) | G9: ='Bill Determ'!C37 -> 285403.258 | H9: ='Bill Determ'!C41 -> 8282125 | I9: ='Bill Determ'!B48 -> 6193304 | L9: 2) | M9: BILLING | O9: =CHOOSE(Base1_Billing2,M7,M9) -> BASE TARIFF
A10: JDM-G-8 | B10: BLOCK 3 | E10: ='Bill Determ'!D24 -> 35476526.2 | G10: ='Bill Determ'!D37 -> 317689.055 | H10: ='Bill Determ'!D41 -> 14410467 | I10: ='Bill Determ'!B49 -> 2132147 | O10: =CHOOSE(Base1_Billing2,"Base","Billing") -> Base
A11: JDM-G-8 | B11: BLOCK 4 | E11: ='Bill Determ'!E24 -> 738873.2356 | G11: ='Bill Determ'!E37 -> 170107.977 | H11: ='Bill Determ'!E41 -> 2975780.868 | I11: ='Bill Determ'!B50 -> 5419126
A12: JDM-G-8 | B12: BLOCK 5 | E12: ='Bill Determ'!F24 -> 1342153.211 | H12: ='Bill Determ'!F41 -> 3355717 | I12: ='Bill Determ'!B44 -> 7907179
B14: SUBTOTAL | C14: =SUM(D14:J14) -> 294195114.9 | D14: =SUM(D8:D12) -> 137563491 | E14: 61637160.76 | F14: 0 | G14: 993200.29 | H14: =SUM(H8:H12) -> 37170231.87 | I14: =SUM(I8:I12) -> 45897566 | J14: 10933465
B15: LOAD ADJUSTMENT
B17: SUBTOTAL | C17: =SUM(D17:J17) -> 294195114.9 | D17: =D14+D15 -> 137563491 | E17: 61637160.76 | F17: 0 | G17: 993200.29 | H17: =H14+H15 -> 37170231.87 | I17: 45897566 | J17: 10933465
B18: ADJUSTMENT TO ACTUAL | C18: =SUM(D18:J18) -> 0 | D18: ='Bill Determ'!G9 -> 0 | E18: ='Bill Determ'!E17 -> 0
B20: TOTAL BEFORE ADJUSTMENT | C20: =SUM(D20:J20) -> 294195114.9 | D20: =D17+D18 -> 137563491 | E20: 61637160.76 | F20: 0 | G20: 993200.29 | H20: =H17+I18 -> 37170231.87 | I20: =I17+I18 -> 45897566 | J20: 10933465
A21: JDM-G-3 | B21: WEATHER & UNBILLED REV. ADJ. | C21: =SUM(D21:J21) -> -6779126 | D21: =D134+D137 -> -5467887 | E21: =E134+E137 -> -1311239 | F21: =F134+F137 -> 0 | G21: 0 | H21: =H134+H137 -> 0 | I21: 0 | J21: 0
B23: TOTAL PROFORMA THERMS | C23: =IF(ROUND(SUM(C20:C21),3)<>ROUND(SUM(D23:J23),3),#VALUE!,SUM(D23:J23)) -> 287415988.9 | D23: =SUM(D20:D21) -> 132095604 | E23: 60325921.76 | F23: 0 | G23: 993200.29 | H23: =SUM(H20:H21) -> 37170231.87 | I23: 45897566 | J23: 10933465
A25: JDM-G-8 | B25: TOTAL BILLS | D25: ='Bill Determ'!C7 -> 1984339 | G25: ='Bill Determ'!G37 -> 24 | H25: ='Bill Determ'!H41 -> 456 | I25: ='Bill Determ'!C51 -> 48 | J25: ='Bill Determ'!C53 -> 12
A26: JDM-G-8 | B26: TOTAL MINIMUM BILLS | E26: ='Bill Determ'!H24 -> 37254
B29: PROPOSED BILL DETERMINANTS
B30: THERMS
B31: BLOCK 1 | D31: ='Bill Determ'!E7 -> 83030622.51 | E31: ='Bill Determ'!B24 -> 6558198.145 | F31: Sch 121/122 disc | G31: =G8 -> 220000 | H31: 8146142 | I31: 24245810 | J31: 10933465
B32: BLOCK 2 | D32: ='Bill Determ'!F7 -> 54532868.44 | E32: ='Bill Determ'!C24 -> 17521409.97 | F32: (UG-190335) | G32: =G9 -> 285403.258 | H32: 8282125 | I32: 6193304 | J32: 0
B33: BLOCK 3 | D33: =D10 -> 0 | E33: ='Bill Determ'!D24 -> 35476526.2 | G33: =G10 -> 317689.055 | H33: 14410467 | I33: 2132147 | J33: 0
B34: BLOCK 4 | D34: =D11 -> 0 | E34: ='Bill Determ'!E24 -> 738873.2356 | G34: =G11 -> 170107.977 | H34: 2975780.868 | I34: 5419126 | J34: 0
B35: BLOCK 5 | D35: =D12 -> 0 | E35: ='Bill Determ'!F24 -> 1342153.211 | G35: =G12 -> 0 | H35: 3355717 | I35: 7907179 | J35: 0
B37: SUBTOTAL | C37: =SUM(D37:J37) -> 294195114.9 | D37: =SUM(D31:D35) -> 137563491 | E37: =SUM(E31:E35) -> 61637160.76 | F37: 0 | G37: 993200.29 | H37: =SUM(H31:H35) -> 37170231.87 | I37: =SUM(I31:I35) -> 45897566 | J37: 10933465
B38: NET SHIFTING ADJUSTMENT | C38: =SUM(D38:J38) -> 0 | D38: =D15 -> 0 | E38: 0 | F38: 0 | G38: 0 | H38: =H15 -> 0 | I38: 0 | J38: 0
B40: SUBTOTAL | C40: =SUM(D40:J40) -> 294195114.9 | D40: =D37+D38 -> 137563491 | E40: 61637160.76 | F40: 0 | G40: 993200.29 | H40: =H37+H38 -> 37170231.87 | I40: 45897566 | J40: 10933465
B41: ADJUSTMENT TO ACTUAL | C41: =SUM(D41:J41) -> 0 | D41: =D18 -> 0 | E41: 0 | F41: 0 | G41: 0 | H41: 0 | I41: 0 | J41: 0
B43: TOTAL BEFORE ADJUSTMENT | C43: =SUM(D43:J43) -> 294195114.9 | D43: =D40+D41 -> 137563491 | E43: 61637160.76 | F43: 0 | G43: 993200.29 | H43: =H40+H41 -> 37170231.87 | I43: =I40+I41 -> 45897566 | J43: 10933465
B44: WEATHER & UNBILLED REV. ADJ. | C44: =SUM(D44:J44) -> -6779126 | D44: =D21 -> -5467887 | E44: =E21+F21 -> -1311239 | G44: 0 | H44: =H21 -> 0 | I44: 0 | J44: 0
B46: TOTAL PROFORMA THERMS | C46: =IF(ROUND(SUM(C43:C44),3)<>ROUND(SUM(D46:J46),3),#VALUE!,SUM(D46:J46)) -> 287415988.9 | D46: =D43+D44 -> 132095604 | E46: 60325921.76 | F46: 0 | G46: 993200.29 | H46: =H43+H44 -> 37170231.87 | I46: 45897566 | J46: 10933465
B48: TOTAL BILLS | D48: =D25 -> 1984339 | E48: 0 | F48: 0 | G48: =G25 -> 24 | H48: =H25 -> 456 | I48: =I25 -> 48 | J48: =J25 -> 12
B49: TOTAL MINIMUM BILLS | D49: 0 | E49: ='Bill Determ'!H24 -> 37254
E50: 2 | F50: 3 | G50: 4 | H50: 5 | I50: 6 | J50: 7
J52: TRANSPORT
A53: WORK PAPER | D53: GEN SERVICE | E53: LRG GEN SVC | F53: EX LRG GEN SVC | G53: INTERRUPTIBLE | H53: TRANSPORT | I53: TRANSPORT | J53: SCH 148 - WSU | M53: ="selected in cell "&CELL("address",Base1_Billing2)&":" -> selected in cell $O$8:
A54: REFERENCE | C54: TOTAL | D54: SCHEDULE 101 | E54: SCHEDULE 111 | F54: SCHEDULE 121 | G54: SCHEDULE 131 | H54: SCHEDULE 146 | I54: SCHEDULE 148 | J54: ANN. MINIMUM | M54: =O10 -> Base
B55: PRESENT RATES | I55: -1 | J55: -2 | M55: ="Rates_"&$M$54&"_Present" -> Rates_Base_Present | O55: - range name where Present Rates table can be found
A56: JDM-G-13/14 | B56: BASIC CHARGE | D56: =INDEX(INDIRECT($M$55),$K56,D$50) -> 9.5 | E56: =INDEX(INDIRECT($M$55),$K56,E$50) -> 0 | F56: 0 | G56: 0 | H56: 625 | I56: 200 | J56: 26332 | K56: 1 | M56: ="Rates_"&$M$54&"_Proposed" -> Rates_Base_Proposed | O56: - range name where Proposed Rates table can be found
A57: JDM-G-13/14 | B57: MONTHLY/ANNUAL MINIMUM | D57: 0 | E57: 107.56 | F57: 0 | G57: 0 | I57: 0 | J57: 0 | K57: 2
A59: JDM-G-13/14 | B59: BLOCK 1 PER THERM | D59: =INDEX(INDIRECT($M$55),$K59,D$50) -> 41.035 | E59: =INDEX(INDIRECT($M$55),$K59,E$50) -> 0 | F59: 0 | G59: 27.008 | H59: 10.494 | I59: 2.8 | J59: 1 | K59: 3
A60: JDM-G-13/14 | B60: BLOCK 2 PER THERM | D60: 53.333 | E60: 36.159 | F60: 0 | G60: 21.681 | H60: 9.336 | I60: 4.5 | J60: 0 | K60: 4
A61: JDM-G-13/14 | B61: BLOCK 3 PER THERM | D61: 0 | E61: 27.562 | F61: 0 | G61: 20.373 | H61: 8.419 | I61: 3.168 | J61: 0 | K61: 5
A62: JDM-G-13/14 | B62: BLOCK 4 PER THERM | D62: 0 | E62: 23.517 | F62: 0 | G62: 18.203 | H62: 7.785 | I62: 2.5 | J62: 0 | K62: 6
A63: JDM-G-13/14 | B63: BLOCK 5 PER THERM | D63: 0 | E63: 16.497 | F63: 0 | G63: 0 | H63: 5.851 | I63: 2.091 | J63: 0 | K63: 7
B65: ADJUST TO ACTUAL PER THERM | D65: =(D118-D106-D107)/D17*100 -> 45.91016864 | E65: =(E118-E106-E107)/E17*100 -> 26.7838142 | G65: =(G118-G106-G107)/G17*100 -> 21.84689555 | H65: =(H118-H106-H107)/H17*100 -> 8.795479408
B73: PROPOSED RATES
B74: BASIC CHARGE | D74: =INDEX(INDIRECT($M$56),$K74,D$50) -> 9.5 | E74: =INDEX(INDIRECT($M$56),$K74,E$50) -> 0 | F74: 0 | G74: 0 | H74: 625 | I74: 200 | J74: 26332 | K74: 1
B75: MONTHLY MINIMUM | D75: 0 | E75: 123.46 | F75: 0 | G75: 0 | H75: 0 | I75: 0 | J75: 0 | K75: 2
B77: BLOCK 1 PER THERM | D77: =INDEX(INDIRECT($M$56),$K77,D$50) -> 44.494 | E77: =INDEX(INDIRECT($M$56),$K77,E$50) -> 0 | F77: 0 | G77: 27.742 | H77: 11.227 | I77: 2.8 | J77: 1 | K77: 3
B78: BLOCK 2 PER THERM | D78: =INDEX(INDIRECT($M$56),$K78,D$50) -> 57.828 | E78: 35.445 | F78: 0 | G78: 22.27 | H78: 9.988 | I78: 4.5 | J78: 0 | K78: 4
B79: BLOCK 3 PER THERM | D79: 0 | E79: 27.018 | F79: 0 | G79: 20.926 | H79: 9.007 | I79: 3.168 | J79: 0 | K79: 5
B80: BLOCK 4 PER THERM | D80: 0 | E80: 23.053 | F80: 0 | G80: 18.698 | H80: 8.329 | I80: 2.5 | J80: 0 | K80: 6
B81: BLOCK 5 PER THERM | D81: 0 | E81: 16.171 | F81: 0 | G81: 0 | H81: 6.26 | I81: 2.091 | J81: 0 | K81: 7
B83: ADJUST TO ACTUAL PER THERM | D83: =(D167-D155-D156)/D40*100 -> 49.77985937 | E83: =(E167-E155-E156)/E40*100 -> 26.25507642 | G83: =(G167-G155-G156)/G40*100 -> 22.44039921 | H83: =(H167-H155-H156)/H40*100 -> 9.409834871
B87: (1) Block 1 - Kaiser-Trentwood - workpaper JDM-G-19
B88: Block 2 - Lamb-Weston - workpaper JDM-G-21
B89: Block 3 - Mutual Materials - workpaper JDM-G-25
B90: Block 4 - Washington Potato - workpaper JDM-G-23
B91: Block 5 - Avista Electric generating facilities billed at 2.091 cents/therm (Sch. 148 floor)
B93: (2) Monthly minimum / rate per therm - workpaper JDM-G-27
B97: ="Note: Rates exclude Sch. 150 (Purch. Gas Cost Adj.)"&IF(Base1_Billing2=2,"Sch. 150 (Purch. Gas Cost Adj.), Sch. 155 (Gas Rate Adj.), and Sch. 191 (Public Purp. Rider Adj.)","") -> Note: Rates exclude Sch. 150 (Purch. Gas Cost Adj.)
J101: TRANSPORT
A102: WORK PAPER | D102: GEN SERVICE | E102: LRG GEN SVC | F102: EX LRG GEN SVC | G102: INTERRUPTIBLE | H102: TRANSPORT | I102: TRANSPORT | J102: SCH 148 - WSU
A103: REFERENCE | C103: TOTAL | D103: SCHEDULE 101 | E103: SCHEDULE 111 | F103: SCHEDULE 121 | G103: SCHEDULE 131 | H103: SCHEDULE 146 | I103: SCHEDULE 148 | J103: ANN. MINIMUM
B104: PRESENT REVENUE
B105: =UPPER(CHOOSE(Base1_Billing2,$O$9,$O$10))&" REVENUE" -> BASE TARIFF REVENUE
B106: BASIC CHARGE | C106: =SUM(D106:J106) -> 19461804.5 | D106: =D25*D56 -> 18851220.5 | E106: 0 | F106: 0 | G106: 0 | H106: =H25*H56 -> 285000 | I106: =I25*I56 -> 9600 | J106: =J25*J56 -> 315984
B107: MONTHLY/ANNUAL MINIMUM | C107: 4033600.787 | D107: =D26*D57 -> 0 | E107: =E26*E57 -> 4007040.24 | F107: =F26*F57 -> 0 | G107: 0 | H107: ='Big Schedules'!W47 -> 26560.54656 | I107: 0 | J107: 0
B108: BLOCK 1 | D108: =ROUND(D8*D59/100,2) -> 34071615.95 | E108: =ROUND(E8*E59/100,2) -> 0 | G108: 59417.6 | H108: 854856.14 | I108: =ROUND(I8*I59/100,2) -> 678882.68 | J108: =ROUND(J8*J59/100,2) -> 109334.65
B109: BLOCK 2 | D109: 29084014.73 | E109: 6335566.63 | G109: 61878.28 | H109: 773219.19 | I109: 278698.68 | J109: 0
B110: BLOCK 3 | C110: 11123526.58 | D110: 0 | E110: 9778040.15 | F110: 0 | G110: 64722.79 | H110: 1213217.22 | I110: =ROUND(I10*I61/100,2) -> 67546.42 | J110: 0
B111: BLOCK 4 | C111: 571868.27 | D111: =ROUND(D11*D62/100,2) -> 0 | E111: 173760.82 | F111: 0 | G111: 30964.76 | H111: 231664.54 | I111: 135478.15 | J111: 0
B112: BLOCK 5 | C112: 583097.13 | D112: =ROUND(D12*D63/100,2) -> 0 | E112: 221415.02 | F112: 0 | G112: 0 | H112: 196343 | I112: 165339.11 | J112: 0
B113: ANNUAL MINIMUM | C113: 0 | J113: =BFG!F11 -> 0
B115: SUBTOTAL | C115: =IF(ROUND(SUM(D115:J115),3)<>ROUND(SUM(C106:C113),3),#VALUE!,SUM(D115:J115)) ->  | D115: =SUM(D106:D113) -> 82006851.18 | E115: 20515822.86 | G115: 216983.43 | H115: =SUM(H106:H113) -> 3580860.637 | I115: 1335545.04 | J115: =SUM(J106:J113) -> 425318.65
B116: NET SHIFTING ADJUSTMENT
B118: SUBTOTAL | C118: =SUM(D118:J118) ->  | D118: =D115+D116 -> 82006851.18 | E118: 20515822.86 | G118: 216983.43 | H118: =H115+H116 -> 3580860.637 | I118: 1335545.04 | J118: 425318.65
B119: ADJUST TO ACTUAL | C119: =SUM(D119:J119) -> 0 | D119: =ROUND(D18*D65/100,2) -> 0 | E119: =ROUND(E18*E65/100,2) -> 0 | G119: =ROUND(G18*G65/100,2) -> 0 | H119: 0 | I119: 0 | J119: 0
B121: ="TOTAL "&UPPER(CHOOSE(Base1_Billing2,$O$9,$O$10))&" REVENUE" -> TOTAL BASE TARIFF REVENUE | C121: =IF(ROUND(C118+C119,3)<>ROUND(SUM(D121:J121),3),#VALUE!,SUM(D121:J121)) ->  | D121: =D118+D119 -> 82006851.18 | E121: 20515822.86 | G121: 216983.43 | H121: =H118+H119 -> 3580860.637 | I121: 1335545.04 | J121: 425318.65
B124: ADJUSTMENT REVENUE
B125: UNBILLED REVENUE ADJUSTMENT
A126: JDM-G-15 | B126: UNBILLED LOAD THERMS | C126: =SUM(D126:J126) -> -991272 | D126: ='12MEDEC19'!P204 -> -1042511 | E126: ='12MEDEC19'!P205+'12MEDEC19'!P206 -> 51239
A127: JDM-G-2/5/6 | B127: UNBILLED LOAD RATE | D127: =D65 -> 45.91016864 | E127: =E65 -> 26.7838142 | H127: =H65 -> 8.795479408
B128: UNBILLED LOAD REVENUE | C128: =SUM(D128:J128) -> -464894.8 | D128: =ROUND(D126*D127/100,2) -> -478618.56 | E128: =ROUND(E126*E127/100,2) -> 13723.76 | F128: =ROUND(F126*F127/100,2) -> 0
A130: JDM-G-14 | B130: WEATHER-SENSITIVE THERMS | C130: =SUM(D130:J130) -> 0 | D130: 0 | E130: 0
A131: JDM-G-2/5 | B131: WEATHER-SENSITIVE RATE | D131: =D59 -> 41.035 | E131: =I232 -> 28.18878089
B132: WEATHER-SENSITIVE REVENUE | C132: =SUM(D132:J132) -> 0 | D132: =ROUND(D130*D131/100,2) -> 0 | E132: =ROUND(E130*E131/100,2) -> 0
B134: TOTAL UNBILLED THERM ADJ | C134: =IF(ROUND(SUM(D134:J134),3)<>ROUND(C126+C130,3),#VALUE!,SUM(D134:J134)) -> -991272 | D134: =D126+D130 -> -1042511 | E134: =E126+E130 -> 51239 | F134: =F126+F130 -> 0
B135: TOTAL UNBILLED REVENUE ADJ | C135: =IF(ROUND(SUM(D135:J135),3)<>ROUND(C128+C132,3),#VALUE!,SUM(D135:J135)) -> -464894.8 | D135: =D128+D132 -> -478618.56 | E135: =E128+E132 -> 13723.76
B136: WEATHER NORMALIZATION ADJ
A137: JDM-G-17 | B137: WEATHER-SENSITIVE THERMS | C137: =SUM(D137:J137) -> -5787854 | D137: -4425376 | E137: =-1360628-1850 -> -1362478
A138: JDM-G-2/5/6 | B138: WEATHER-SENSITIVE RATE | D138: =I208 -> 46.54615084 | E138: =I232 -> 28.18878089
B139: WEATHER-SENSITIVE REVENUE | C139: =SUM(D139:J139) -> -2443908.13 | D139: =ROUND(D137*D138/100,2) -> -2059842.19 | E139: =ROUND(E137*E138/100,2) -> -384065.94 | F139: =ROUND(F137*F138/100,2) -> 0
B140: OTHER ADJUSTMENTS
B142: TOTAL ADJUSTMENT REVENUE | C142: =IF(ROUND(SUM(D142:J142),3)<>ROUND(C135+C139+C140,3),#VALUE!,SUM(D142:J142)) -> -2908802.93 | D142: =D135+D139+D140 -> -2538460.75 | E142: =E135+E139+E140 -> -370342.18 | G142: 0 | H142: 0 | I142: 0 | J142: 0
B143: =B121 -> TOTAL BASE TARIFF REVENUE | C143: =SUM(D143:J143) -> 108081381.8 | D143: =D121 -> 82006851.18 | E143: 20515822.86 | G143: 216983.43 | H143: =H121 -> 3580860.637 | I143: 1335545.04 | J143: 425318.65
B145: TOTAL PRESENT REVENUE | C145: =IF(ROUND(SUM(D145:J145),3)<>ROUND(C142+C143,3),#VALUE!,SUM(D145:J145)) -> 105172578.9 | D145: =D142+D143 -> 79468390.43 | E145: 20145480.68 | G145: 216983.43 | H145: =H142+H143 -> 3580860.637 | I145: 1335545.04 | J145: 425318.65
J150: TRANSPORT
A151: WORK PAPER | D151: GEN SERVICE | E151: LRG GEN SVC | F151: EX LRG GEN SVC | G151: INTERRUPTIBLE | H151: TRANSPORT | I151: TRANSPORT | J151: SCH 148 - WSU
A152: REFERENCE | C152: TOTAL | D152: SCHEDULE 101 | E152: SCHEDULE 111 | F152: SCHEDULE 121 | G152: SCHEDULE 131 | H152: SCHEDULE 146 | I152: SCHEDULE 148 | J152: ANN. MINIMUM
B153: PROPOSED REVENUE
B154: =UPPER(CHOOSE(Base1_Billing2,$O$9,$O$10))&" REVENUE" -> BASE TARIFF REVENUE
B155: BASIC CHARGE | C155: =SUM(D155:J155) -> 19461804.5 | D155: =D48*D74 -> 18851220.5 | E155: =E48*E74 -> 0 | F155: 0 | G155: 0 | H155: 285000 | I155: 9600 | J155: 315984
B156: MONTHLY/ANNUAL MINIMUM | C156: 4627794.3 | D156: =D49*D75 -> 0 | E156: =E49*E75 -> 4599378.84 | F156: 0 | G156: 0 | H156: ='Big Schedules'!X47 -> 28415.46048 | I156: 0 | J156: 0
B157: BLOCK 1 | C157: 38707462.27 | D157: =ROUND(D31*D77/100,2) -> 36943645.18 | E157: =ROUND(E31*E77/100,2) -> 0 | G157: 61032.4 | H157: 914567.36 | I157: 678882.68 | J157: 109334.65
B158: BLOCK 2 | C158: 38915207.56 | D158: =ROUND(D32*D78/100,2) -> 31535267.16 | E158: 6210463.76 | G158: 63559.31 | H158: 827218.65 | I158: 278698.68 | J158: 0
B159: BLOCK 3 | C159: 11017024.64 | D159: 0 | E159: 9585047.85 | F159: 0 | G159: 66479.61 | H159: 1297950.76 | I159: 67546.42 | J159: 0
B160: BLOCK 4 | C160: 585470.18 | D160: 0 | E160: 170332.45 | F160: 0 | G160: 31806.79 | H160: 247852.79 | I160: 135478.15 | J160: 0
B161: BLOCK 5 | C161: 592446.59 | D161: 0 | E161: 217039.6 | F161: 0 | G161: 0 | H161: 210067.88 | I161: 165339.11 | J161: 0
B162: ANNUAL MINIMUM | C162: 0 | J162: =BFG!F11 -> 0
B164: SUBTOTAL | C164: =IF(ROUND(SUM(D164:J164),3)<>ROUND(SUM(C155:C162),3),#VALUE!,SUM(D164:J164)) -> 113907210 | D164: =SUM(D155:D163) -> 87330132.84 | E164: 20782262.5 | F164: 0 | G164: 222878.11 | H164: =SUM(H155:H163) -> 3811072.9 | I164: 1335545.04 | J164: 425318.65
B165: NET SHIFTING ADJUSTMENT
B167: SUBTOTAL | C167: =SUM(D167:J167) -> 113907210 | D167: =D164+D165 -> 87330132.84 | E167: 20782262.5 | F167: 0 | G167: 222878.11 | H167: =H164+H165 -> 3811072.9 | I167: 1335545.04 | J167: 425318.65
B168: ADJUST TO ACTUAL | C168: =SUM(D168:J168) -> 0 | D168: =ROUND(D41*D83/100,2) -> 0 | E168: =ROUND(E41*E83/100,2) -> 0 | G168: 0 | H168: 0 | I168: 0 | J168: 0
B170: ="TOTAL "&UPPER(CHOOSE(Base1_Billing2,$O$9,$O$10))&" REVENUE" -> TOTAL BASE TARIFF REVENUE | C170: =IF(ROUND(SUM(D170:J170),3)<>ROUND(C167+C168,3),#VALUE!,SUM(D170:J170)) -> 113907210 | D170: =D167+D168 -> 87330132.84 | E170: 20782262.5 | F170: 0 | G170: 222878.11 | H170: =H167+H168 -> 3811072.9 | I170: 1335545.04 | J170: 425318.65
B172: ADJUSTMENT REVENUE
B173: UNBILLED REVENUE ADJUSTMENT
B174: BASE LOAD THERMS | C174: =SUM(D174:J174) -> -991272 | D174: =D126 -> -1042511 | E174: =E126+F126 -> 51239 | F174: 0
A175: JDM-G-2/5/6 | B175: BASE LOAD RATE | D175: =D83 -> 49.77985937 | E175: =E83 -> 26.25507642 | H175: =H83 -> 9.409834871
B176: BASE LOAD REVENUE | C176: =SUM(D176:J176) -> -505507.67 | D176: =ROUND(D174*D175/100,2) -> -518960.51 | E176: =ROUND(E174*E175/100,2) -> 13452.84 | F176: =ROUND(F174*F175/100,2) -> 0
B178: WEATHER-SENSITIVE THERMS | C178: =SUM(D178:J178) -> 0 | D178: =D130 -> 0 | E178: =E130 -> 0 | F178: =F130 -> 0
A179: JDM-G-2/5 | B179: WEATHER-SENSITIVE RATE | D179: =D77 -> 44.494 | E179: =I244 -> 27.63236172 | F179: =F83 -> 0
B180: WEATHER-SENSITIVE REVENUE | C180: =SUM(D180:J180) -> 0 | D180: =ROUND(D178*D179/100,2) -> 0 | E180: =ROUND(E178*E179/100,2) -> 0 | F180: =ROUND(F178*F179/100,2) -> 0
B182: TOTAL UNBILLED THERM ADJ | C182: =C174+C178 -> -991272 | D182: =D174+D178 -> -1042511 | E182: =E174+E178 -> 51239 | F182: =F174+F178 -> 0
B183: TOTAL UNBILLED REVENUE ADJ | C183: =C176+C180 -> -505507.67 | D183: =D176+D180 -> -518960.51 | E183: =E176+E180 -> 13452.84
B184: WEATHER NORMALIZATION ADJ
B185: WEATHER-SENSITIVE THERMS | C185: =SUM(D185:J185) -> -5787854 | D185: =D137 -> -4425376 | E185: =E137+F137 -> -1362478 | F185: 0
A186: JDM-G-2/5/6 | B186: WEATHER-SENSITIVE RATE | D186: =I217 -> 50.46941757 | E186: =I244 -> 27.63236172
B187: WEATHER-SENSITIVE REVENUE | C187: =SUM(D187:J187) -> -2609946.34 | D187: =ROUND(D185*D186/100,2) -> -2233461.49 | E187: =ROUND(E185*E186/100,2) -> -376484.85 | F187: =ROUND(F185*F186/100,2) -> 0
B188: OTHER ADJUSTMENTS
B190: TOTAL ADJUSTMENT REVENUE | C190: =SUM(D190:J190) -> -3115454.01 | D190: =D187+D183 -> -2752422 | E190: =E187+E183 -> -363032.01 | F190: 0 | G190: 0 | H190: =H187+H183 -> 0 | I190: 0 | J190: 0
B191: =B170 -> TOTAL BASE TARIFF REVENUE | C191: =SUM(D191:J191) -> 113907210 | D191: =D170 -> 87330132.84 | E191: 20782262.5 | F191: 0 | G191: 222878.11 | H191: =H170 -> 3811072.9 | I191: 1335545.04 | J191: 425318.65
B192: TOTAL PROPOSED REVENUE | C192: =SUM(D192:J192) -> 110791756 | D192: =D190+D191 -> 84577710.84 | E192: 20419230.49 | F192: 0 | G192: 222878.11 | H192: =H190+H191 -> 3811072.9 | I192: 1335545.04 | J192: 425318.65
B193: TOTAL PRESENT REVENUE | C193: =SUM(D193:J193) -> 105172578.9 | D193: =D145 -> 79468390.43 | E193: =E145 -> 20145480.68 | G193: 216983.43 | H193: =H145 -> 3580860.637 | I193: 1335545.04 | J193: 425318.65
B195: TOTAL INCREASED REVENUE | C195: =SUM(D195:J195) -> 5619177.164 | D195: =D192-D193 -> 5109320.41 | E195: =E192-E193-F193 -> 273749.81 | G195: =G192-G193 -> 5894.68 | H195: =H192-H193 -> 230212.2639 | I195: 0 | J195: 0
B196: PERCENT REVENUE INCREASE | C196: =C195/C193 -> 0.05342815803 | D196: =D195/D193 -> 0.06429374475 | E196: 0.01358864623 | G196: 0.02716649838 | H196: 0.06428964634 | I196: 0 | J196: 0
A200: WORK PAPER | D200: TOTAL | E200: TOTAL | F200: BASE LOAD | G200: BASE LOAD | H200: WTHR-SENS. | I200: WTHR-SENS.
A201: REFERENCE | C201: RATES | D201: THERMS | E201: REVENUE | F201: THERMS(1) | G201: REVENUE | H201: THERMS | I201: REVENUE
B202: PRESENT BASELOAD AND WEATHER-SENSITIVE RATE
B203: SCHEDULE 101
B204: 0-70 THERMS | C204: =D59 -> 41.035 | D204: =D8 -> 83030622.51 | E204: =C204*D204/100 -> 34071615.95 | F204: =MIN(D204,F207) -> 15874712 | G204: =F204*C204/100 -> 6514188.069 | H204: =D204-F204 -> 67155910.51 | I204: =H204*C204/100 -> 27557427.88 | K204: =H204/H207 -> 0.551866089
B205: OVER 70 THERMS | C205: =D60 -> 53.333 | D205: =D9 -> 54532868.44 | E205: =C205*D205/100 -> 29084014.73 | F205: =MIN(F207-F204,D205) -> 0 | G205: =F205*C205/100 -> 0 | H205: =D205-F205 -> 54532868.44 | I205: =H205*C205/100 -> 29084014.73 | K205: =H205/H207 -> 0.448133911
B207: TOTAL | D207: =D204+D205 -> 137563491 | E207: =E204+E205 -> 63155630.67 | F207: =8*D25 -> 15874712 | G207: =G204+G205 -> 6514188.069 | H207: =H204+H205 -> 121688779 | I207: =I204+I205 -> 56641442.6
B208: AVERAGE RATE | E208: =E207/D207*100 -> 45.91016863 | G208: =G207/F207*100 -> 41.035 | I208: =I207/H207*100 -> 46.54615084
B211: PROPOSED BASELOAD AND WEATHER-SENSITIVE RATE
B212: SCHEDULE 101
B213: 0-70 THERMS | C213: =D77 -> 44.494 | D213: =D8 -> 83030622.51 | E213: =C213*D213/100 -> 36943645.18 | F213: =MIN(D213,F216) -> 15874712 | G213: =F213*C213/100 -> 7063294.357 | H213: =D213-F213 -> 67155910.51 | I213: =H213*C213/100 -> 29880350.82
B214: OVER 70 THERMS | C214: =D78 -> 57.828 | D214: =D9 -> 54532868.44 | E214: =C214*D214/100 -> 31535267.16 | F214: =MIN(F216-F213,D214) -> 0 | G214: =F214*C214/100 -> 0 | H214: =D214-F214 -> 54532868.44 | I214: =H214*C214/100 -> 31535267.16
B216: TOTAL | D216: =D213+D214 -> 137563491 | E216: =E213+E214 -> 68478912.34 | F216: =F207 -> 15874712 | G216: =G213+G214 -> 7063294.357 | H216: =H213+H214 -> 121688779 | I216: =I212+I213+I214 -> 61415617.98
B217: AVERAGE RATE | E217: =E216/D216*100 -> 49.77985937 | G217: =G216/F216*100 -> 44.494 | I217: =I216/H216*100 -> 50.46941757
B220: (1) Base load per bill for Schedule 101 is shown on workpaper JDM-G-18 multiplied by total billings from JDM-G-1, or
B221: ="13 X "&TEXT(D25,"#,##0")&" = "&TEXT(F207,"#,##0") -> 13 X 1,984,339 = 15,874,712
B223: PRESENT BASELOAD AND WEATHER-SENSITIVE RATE
B224: SCHEDULE 111
B225: 0-200 THERMS | C225: =E59 -> 0 | D225: =E8 -> 6558198.145 | E225: =C225*D225/100 -> 0 | F225: =MIN(D225,F231) -> 6558198.145 | G225: =F225*C225/100 -> 0 | H225: =D225-F225 -> 0 | I225: =H225*C225/100 -> 0
B226: 201-1,000 THERMS | C226: =E60 -> 36.159 | D226: =E9 -> 17521409.97 | E226: =C226*D226/100 -> 6335566.632 | F226: =MIN(F231-F225,D226) -> 12329579.85 | G226: =F226*C226/100 -> 4458252.78 | H226: =D226-F226 -> 5191830.117 | I226: =H226*C226/100 -> 1877313.852
B227: 1001-10,000 THERMS | C227: =E61 -> 27.562 | D227: =E10 -> 35476526.2 | E227: =C227*D227/100 -> 9778040.152 | F227: =MIN(F231-F225-F226,D227) -> 0 | G227: =F227*C227/100 -> 0 | H227: =D227-F227 -> 35476526.2 | I227: =H227*C227/100 -> 9778040.152
B228: 10,001-25,000 THERMS | C228: 23.517 | D228: 738873.2356 | E228: 173760.8188 | F228: =MIN(F231-F225-F226-F227,D228) -> 0 | G228: 0 | H228: 738873.2356 | I228: 173760.8188
B229: OVER 25,000 THERMS | C229: 16.497 | D229: 1342153.211 | E229: 221415.0152 | F229: =MIN(F231-F225-F226-F227-F228,D229) -> 0 | G229: =F229*C229/100 -> 0 | H229: =D229-F229 -> 1342153.211 | I229: =H229*C229/100 -> 221415.0152
B231: TOTAL | D231: =D225+D226+D229+D227+D228 -> 61637160.76 | E231: =E225+E226+E229+E227+E228 -> 16508782.62 | F231: =507*E26 -> 18887778 | G231: =G225+G226+G229 -> 4458252.78 | H231: =H225+H226+H229+H227+H228 -> 42749382.76 | I231: =I225+I226+I229+I227+I228 -> 12050529.84
B232: AVERAGE RATE | E232: =E231/D231*100 -> 26.7838142 | G232: =G231/F231*100 -> 23.6039029 | I232: =I231/H231*100 -> 28.18878089
B235: PROPOSED BASELOAD AND WEATHER-SENSITIVE RATE
B236: SCHEDULE 111
B237: 0-200 THERMS | C237: =E77 -> 0 | D237: =E31 -> 6558198.145 | E237: =C237*D237/100 -> 0 | F237: =MIN(D237,F243) -> 6558198.145 | G237: =F237*C237/100 -> 0 | H237: =D237-F237 -> 0 | I237: =H237*C237/100 -> 0
B238: 201-1,000 THERMS | C238: =E78 -> 35.445 | D238: =E32 -> 17521409.97 | E238: =C238*D238/100 -> 6210463.764 | F238: =MIN(F243-F237,D238) -> 12329579.85 | G238: =F238*C238/100 -> 4370219.579 | H238: =D238-F238 -> 5191830.117 | I238: =H238*C238/100 -> 1840244.185
B239: 1001-10,000 THERMS | C239: =E79 -> 27.018 | D239: =E33 -> 35476526.2 | E239: =C239*D239/100 -> 9585047.849 | F239: =MIN(F243-F237-F238,D239) -> 0 | G239: =F239*C239/100 -> 0 | H239: =D239-F239 -> 35476526.2 | I239: =H239*C239/100 -> 9585047.849
B240: 10,001-25,000 THERMS | C240: =E80 -> 23.053 | D240: =E34 -> 738873.2356 | E240: =C240*D240/100 -> 170332.447 | F240: =MIN(F243-F237-F238-F239,D240) -> 0 | G240: =F240*C240/100 -> 0 | H240: =D240-F240 -> 738873.2356 | I240: =H240*C240/100 -> 170332.447
B241: OVER 25,000 THERMS | C241: =E81 -> 16.171 | D241: =E35 -> 1342153.211 | E241: 217039.5957 | F241: =MIN(F243-F237-F238-F239-F240,D241) -> 0 | G241: =F241*C241/100 -> 0 | H241: =D241-F241 -> 1342153.211 | I241: =H241*C241/100 -> 217039.5957
B243: TOTAL | D243: =D237+D238+D239+D240+D241 -> 61637160.76 | E243: =E237+E238+E239+E240+E241 -> 16182883.66 | F243: =F231 -> 18887778 | G243: =G237+G238+G239 -> 4370219.579 | H243: =H237+H238+H239+H240+H241 -> 42749382.76 | I243: =I236+I237+I238+I239+I240+I241 -> 11812664.08
B244: AVERAGE RATE | E244: =E243/D243*100 -> 26.25507641 | G244: =G243/F243*100 -> 23.13781737 | I244: =I243/H243*100 -> 27.63236172
B247: (1) Base load per bill for Schedule 111 is shown on workpaper JDM-G-18 multiplied by total billings from JDM-G-1, or
B248: ="522 X "&TEXT(E26,"#,##0")&" = "&TEXT(F231,"#,##0") -> 522 X 37,254 = 18,887,778
A250: WORK PAPER | D250: TOTAL | E250: TOTAL | F250: BASE LOAD | G250: BASE LOAD | H250: WTHR-SENS. | I250: WTHR-SENS.
A251: REFERENCE | C251: RATES | D251: THERMS | E251: REVENUE | F251: THERMS(1) | G251: REVENUE | H251: THERMS | I251: REVENUE
B253: PRESENT BASELOAD AND WEATHER-SENSITIVE RATE
B254: SCHEDULE 121
B255: 0-500 THERMS | C255: =F59 -> 0 | D255: =F8 -> Sch 121/122 disc | E255: =C255*D255/100 ->  | F255: =MIN(D255,F261) -> 0 | G255: =F255*C255/100 -> 0 | H255: =D255-F255 ->  | I255: =H255*C255/100 -> 
B256: 501-1,000 THERMS | C256: =F60 -> 0 | D256: =F9 -> (UG-190335) | E256: =C256*D256/100 ->  | F256: =MIN(F261-F255,D256) -> 0 | G256: =F256*C256/100 -> 0 | H256: =D256-F256 ->  | I256: =H256*C256/100 -> 
B257: 1001-10,000 THERMS | C257: =F61 -> 0 | D257: =F10 -> 0 | E257: =C257*D257/100 -> 0 | F257: =MIN(F261-F255-F256,D257) -> 0 | G257: =F257*C257/100 -> 0 | H257: =D257-F257 -> 0 | I257: =H257*C257/100 -> 0
B258: 10,001-25,000 THERMS | C258: =F62 -> 0 | D258: =F11 -> 0 | E258: =C258*D258/100 -> 0 | F258: =MIN(F261-F255-F256-F257,D258) -> 0 | G258: =F258*C258/100 -> 0 | H258: =D258-F258 -> 0 | I258: =H258*C258/100 -> 0
B259: OVER 25,000 THERMS | C259: =F63 -> 0 | D259: =F12 -> 0 | E259: 0 | F259: =MIN(F261-F255-F256-F257-F258,D259) -> 0 | G259: 0 | H259: 0 | I259: 0
B261: TOTAL | D261: =D255+D256+D257+D258+D259 ->  | E261: =E255+E256+E257+E258+E259 ->  | F261: =507*F26 -> 0 | G261: =G255+G256+G257 -> 0 | H261: =H255+H256+H257+H258+H259 ->  | I261: =I255+I256+I257+I258+I259 -> 
B262: AVERAGE RATE | E262: =E261/D261*100 ->  | G262: =G261/F261*100 ->  | I262: =I261/H261*100 -> 
B265: PROPOSED BASELOAD AND WEATHER-SENSITIVE RATE
B266: SCHEDULE 121
B267: 0-500 THERMS | C267: =F77 -> 0 | D267: =F31 -> Sch 121/122 disc | E267: =C267*D267/100 ->  | F267: =MIN(D267,F273) -> 0 | G267: =F267*C267/100 -> 0 | H267: =D267-F267 ->  | I267: =H267*C267/100 -> 
B268: 501-1,000 THERMS | C268: =F78 -> 0 | D268: =F32 -> (UG-190335) | E268: =C268*D268/100 ->  | F268: =MIN(F273-F267,D268) -> 0 | G268: =F268*C268/100 -> 0 | H268: =D268-F268 ->  | I268: =H268*C268/100 -> 
B269: 1001-10,000 THERMS | C269: =F79 -> 0 | D269: =F33 -> 0 | E269: 0 | F269: =MIN(F273-F267-F268,D269) -> 0 | G269: =F269*C269/100 -> 0 | H269: 0 | I269: 0
B270: 10,001-25,000 THERMS | C270: =F80 -> 0 | D270: =F34 -> 0 | E270: 0 | F270: =MIN(F273-F267-F268-F269,D270) -> 0 | G270: =F270*C270/100 -> 0 | H270: 0 | I270: 0
B271: OVER 25,000 THERMS | C271: =F81 -> 0 | D271: =F35 -> 0 | E271: 0 | F271: =MIN(F273-F267-F268-F269-F270,D271) -> 0 | G271: 0 | H271: 0 | I271: 0
B273: TOTAL | D273: =D267+D268+D269+D270+D271 ->  | E273: =E267+E268+E269+E270+E271 ->  | F273: =F261 -> 0 | G273: =G267+G268+G269+G270+G271 -> 0 | H273: =H267+H268+H269+H270+H271 ->  | I273: =I266+I267+I268+I269+I270+I271 -> 
B274: AVERAGE RATE | E274: =E273/D273*100 ->  | G274: =G273/F273*100 ->  | I274: =I273/H273*100 -> 
B276: (1) Base load per bill for Schedule 121 is shown on workpaper JDM-G-18 multiplied by total billings from JDM-G-1, or
B277: ="10,807 X "&TEXT(F26,"#,##0")&" = "&TEXT(F261,"#,##0") -> 10,807 X 0 = 0
D283: =D195/D48 -> 2.574822351 | E283: =E195/E49 -> 7.34819912 | G283: =G195/G48 -> 245.6116667 | H283: =H195/H48 -> 504.851456

Sheet Proposed Increase
A1: AVISTA UTILITIES | N1: This worksheet pulls data from 'Pres & Prop Rev' tab.
A2: WASHINGTON NATURAL GAS
A3: PROPOSED INCREASE BY SERVICE SCHEDULE
A4: 12 MONTHS ENDED DECEMBER 31, 2019
A5: (000s of Dollars)
D8: Base Tariff | F8: Base Tariff | G8: Base | H8: Total Billed | K8: Percent
D9: Distribution Revenue | E9: Proposed | F9: Distribution Revenue | G9: Tariff | H9: Revenue | I9: Proposed | K9: Increase | L9: Billed | M9: Revenue | V9: Base Revenue
A10: Line | B10: Type of | C10: Schedule | D10: Under Present | E10: General | F10: Under Proposed | G10: Percent | H10: at Present | I10: General | K10: on Billed | L10: Change | M10: Per | P10: Present | R10: Therm | S10: Sch 150 | T10: Sch 150 | V10: plus
A11: No. | B11: Service | C11: Number | D11: Rates | E11: Increase | F11: Rates | G11: Increase | H11: Rates (1) | I11: Increase | K11: Revenue | L11: GRC | M11: Customer | O11: # of Bills | P11: Avg Bill | R11: Sales | S11: PGA Rate | T11: Revenue | V11: Sch 150
B12: (a) | C12: (b) | D12: (c) | E12: (d) | F12: (e) | G12: (f) | H12: (g) | I12: (h) | K12: (j)
A14: 1 | B14: General Service | C14: 101/102 | D14: ='Pres & Prop Rev'!$D$145/1000+0.3 -> 79468.69043 | E14: ='Pres & Prop Rev'!$D$195/1000-0.3 -> 5109.02041 | F14: ='Pres & Prop Rev'!$D$192/1000 -> 84577.71084 | G14: =E14/D14 -> 0.06428972696 | H14: =117986.14758-65 -> 117921.1476 | I14: =E14 -> 5109.02041 | K14: =(I14+J14)/H14 -> 0.04332573516 | L14: =I14/H14 -> 0.04332573516 | M14: =(D14*1000)/(O14/12) -> 480.5752874 | O14: ='Bill Determ'!C7 -> 1984339 | P14: ='Exh. ELJ-6 NG Bill Impact'!E16 -> 56.53 | R14: ='Pres & Prop Rev'!D23 -> 132095604 | S14: 0.2719 | T14: =(R14*S14)/1000 -> 35916.79471 | V14: =D14+T14 -> 115385.4851 | X14: =I14/V14 -> 0.04427784312
A15: 2 | B15: Large General Service | C15: 111/112/116 | D15: ='Pres & Prop Rev'!$E$145/1000 -> 20145.48068 | E15: ='Pres & Prop Rev'!$E$195/1000 -> 273.74981 | F15: ='Pres & Prop Rev'!$E$192/1000 -> 20419.23049 | G15: =E15/D15 -> 0.01358864623 | H15: =37697.30762-2 -> 37695.30762 | I15: =E15 -> 273.74981 | K15: 0.007262172066 | L15: 0.007262172066 | M15: =((D15+D16+D17)*1000)/((O15+O16+O17)/12) -> 6545.486843 | O15: ='Bill Determ'!H24 -> 37254 | P15: =(H15*1000)/O15 -> 1011.845912 | R15: ='Pres & Prop Rev'!E23 -> 60325921.76 | S15: 0.26157 | T15: 15779.45136 | V15: 35924.93204
A16: 3 | B16: Large General Svc.-High Annual Load Factor (2) | C16: 121/122/126 | D16: 0 | E16: ='Pres & Prop Rev'!$F$195/1000 -> 0 | F16: ='Pres & Prop Rev'!$F$192/1000 -> 0 | G16: 0 | H16: 0 | I16: 0 | O16: ='Bill Determ'!H30 -> 53 | P16: =(H16*1000)/O16 -> 0 | R16: ='Pres & Prop Rev'!F23 -> 0 | S16: 0.27574 | T16: 0 | V16: 0
A17: 3 | B17: Interruptible Service | C17: 131/132 | D17: ='Pres & Prop Rev'!$G$145/1000 -> 216.98343 | E17: ='Pres & Prop Rev'!$G$195/1000 -> 5.89468 | F17: ='Pres & Prop Rev'!$G$192/1000 -> 222.87811 | G17: =E17/D17 -> 0.02716649838 | H17: 455.17272 | I17: 5.89468 | K17: 0.01295042462 | L17: 0.01295042462 | O17: ='Bill Determ'!G37 -> 24 | P17: =(H17*1000)/O17 -> 18965.53 | R17: ='Pres & Prop Rev'!G23 -> 993200.29 | S17: 0.22815 | T17: 226.5986462 | V17: 443.5820762
A18: 4 | B18: Transportation Service | C18: 146 | D18: ='Pres & Prop Rev'!$H$145/1000 -> 3580.860637 | E18: ='Pres & Prop Rev'!$H$195/1000 -> 230.2122639 | F18: ='Pres & Prop Rev'!$H$192/1000 -> 3811.0729 | G18: =E18/D18 -> 0.06428964634 | H18: 3512.467407 | I18: 230.2122639 | K18: 0.06554146623 | L18: 0.06554146623 | O18: ='Bill Determ'!H41 -> 456 | P18: =(H18*1000)/O18 -> 7702.7794 | R18: ='Pres & Prop Rev'!H23 -> 37170231.87 | S18: 0 | T18: 0 | V18: 3580.860637
A19: 5 | B19: Special Contracts | C19: 148 | D19: =SUM('Pres & Prop Rev'!$I$145:$J$145)/1000 -> 1760.86369 | E19: =SUM('Pres & Prop Rev'!$I$195:$J$195)/1000 -> 0 | F19: =SUM('Pres & Prop Rev'!$I$192:$J$192)/1000 -> 1760.86369 | G19: 0 | H19: 1760.86369 | I19: 0 | K19: 0 | L19: 0 | R19: ='Pres & Prop Rev'!I23+'Pres & Prop Rev'!J23 -> 56831031 | S19: 0 | T19: 0 | V19: 1760.86369
A20: 6 | B20: Total | D20: ='Pres & Prop Rev'!$C$145/1000 -> 105172.5789 | E20: ='Pres & Prop Rev'!$C$195/1000 -> 5619.177164 | F20: ='Pres & Prop Rev'!$C$192/1000 -> 110791.756 | G20: =E20/D20 -> 0.05342815803 | H20: =SUM(H14:H19)+0.4 -> 161345.359 | I20: =SUM(I14:I19) -> 5618.877164 | K20: 0.03482515517 | L20: 0.03482515517 | R20: =SUM(R14:R19) -> 287415988.9 | T20: =SUM(T14:T19) -> 51922.84472 | V20: 157095.4236
D21: =ROUND(D20-SUM(D14:D19),0) -> 0 | F21: =ROUND(F20-SUM(F14:F19),0) -> 0 | J21: =ROUND(J20-SUM(J14:J19),-1) -> 0
A22: (1) Includes Schedule 150 (Purchase Gas Cost Adjustment), Schedule 155 (Gas Rate Adjustment), Schedule 194 (Remand Rebate), Schedule 175 (Decoupling),
A23: Schedule 191 (DSM Adjustment), Schedule 194 (Remand) and Schedule 192 (LIRAP Adjustment).
D28: =SUM(ROUND(D14:D19,0)) -> 105173 | E28: =SUM(ROUND(E14:E19,0)) -> 5619 | F28: =SUM(ROUND(F14:F19,0)) -> 110792 | H28: =SUM(ROUND(H14:H19,0)) -> 161344 | K28: =SUM(ROUND(K14:K19,0)) -> 
D29: =ROUND(D20,0)-D28 -> 0 | E29: =ROUND(E20,0)-E28 -> 0 | F29: =ROUND(F20,0)-F28 -> 0 | H29: =ROUND(H20,0)-H28 -> 1 | K29: =ROUND(K20,0)-K28 -> 
J31: 111/121 | K31: 112/122
G32: Rate Sch. | H32: Therms | J32: Sch 155 Rate | K32: Sch 155 Rate | L32: Billing Impact
G33: 112 | H33: ='12MEDEC19'!P93 -> 149421.32 | J33: 0.01085 | K33: 0 | L33: =(H33*(K33-J33)/1000) -> -1.621221322
G34: 116 | H34: 0 | J34: 0.01085 | K34: 0 | L34: =(H34*(K34-J34)/1000) -> 0 | M34: No 116 in Test Year
G35: 122 | H35: 0 | J35: 0 | K35: 0 | L35: =(H35*(K35-J35)/1000) -> 0
G36: 126 | H36: 0 | J36: 0 | K36: 0 | L36: =(H36*(K36-J36)/1000) -> 0 | M36: No 126 in Test Year
J37: 111/121 | K37: 112/122
G38: Rate Sch. | H38: Therms | J38: Sch 175 Rate | K38: Sch 175 Rate | L38: Billing Impact
G39: 112 | H39: ='12MEDEC19'!P93 -> 149421.32 | J39: 0 | K39: 0 | L39: =(H39*(K39-J39)/1000) -> 0
G40: 122 | H40: ='12MEDEC19'!P121 -> 1207302.755 | J40: 0 | K40: 0 | L40: =(H40*(K40-J40)/1000) -> 0
G43: Rate Sch. | H43: Therms | J43: Sch 189 Rate | K43: Sch 155 Rate | L43: Billing Impact
G44: 102 | H44: ='12MEDEC19'!P69 -> 135024.0068 | J44: -0.48469 | L44: =((H44*J44)/1000) -> -65.44478586

Sheet Present&Propoed Class ROR
A1: AVISTA UTILITIES | N1: This worksheet pulls data from 'ROR' tab.
A2: WASHINGTON NATURAL GAS
A3: PRESENT & PROPOSED RATES OF RETURN BY RATE SCHEDULE
A4: 12 MONTHS ENDED DECEMBER 31, 2019
D9: Present Rates | H9: Base | J9: Proposed Rates
D10: Present | E10: Present | F10: Present | H10: Tariff | J10: Proposed | K10: Proposed | L10: Proposed | M10: % Move
A11: Line | B11: Type of | C11: Sch. | D11: Rate of | E11: Parity | F11: Return | H11: Proposed | J11: Rate of | K11: Parity | L11: Return | M11: Towards
A12: No. | B12: Service | C12: Number | D12: Return | E12: Ratio | F12: Ratio | H12: Increase | J12: Return | K12: Ratio | L12: Ratio | M12: Parity
B13: (a) | C13: (b) | D13: (c) | E13: (d) | F13: (e) | H13: (f) | J13: (g) | K13: (h) | L13: (i)
A15: 1 | B15: General Service | C15: 101 | D15: =INDEX(ROR!$C$20:$H$20,$A15+1) -> 0.03422142911 | E15: 0.91 | F15: =INDEX(ROR!$C$21:$H$21,$A15+1) -> 0.6631326079 | H15: ='Proposed Increase'!G14 -> 0.06428972696 | J15: =INDEX(ROR!$C$38:$H$38,$A15+1) -> 0.04502011545 | K15: 0.91 | L15: =INDEX(ROR!$C$37:$H$37,$A15+1) -> 0.738964048
A16: 2 | B16: Large General Service | C16: 111 | D16: =INDEX(ROR!$C$20:$H$20,$A16+1) -> 0.1529345011 | E16: 1.7 | F16: =INDEX(ROR!$C$21:$H$21,$A16+1) -> 2.963518976 | H16: ='Proposed Increase'!G15 -> 0.01358864623 | J16: =INDEX(ROR!$C$38:$H$38,$A16+1) -> 0.1543764167 | K16: 1.7 | L16: =INDEX(ROR!$C$37:$H$37,$A16+1) -> 2.533947784
A17: 3 | B17: Large General Svc.-High Annual Load Factor | C17: 121
A18: 3 | B18: Interruptible Service | C18: 131 | D18: =ROR!G20 -> 0.1101863109 | E18: 1.4 | F18: =ROR!G21 -> 2.135157344 | H18: ='Proposed Increase'!G17 -> 0.02716649838 | J18: =ROR!G38 -> 0.1143923271 | K18: 1.4 | L18: =ROR!G37 -> 1.877645498
A19: 4 | B19: Transportation Service | C19: 146 | D19: =ROR!H20 -> 0.04420894424 | E19: 0.91 | F19: =ROR!H21 -> 0.8566676859 | H19: ='Proposed Increase'!G18 -> 0.06428964634 | J19: =ROR!H38 -> 0.05200013992 | K19: 0.91 | L19: =ROR!H37 -> 0.8535347702
A20: 5 | B20: Total | D20: =INDEX(ROR!$C$20:$H$20,1) -> 0.05160571009 | E20: =INDEX(ROR!$C$21:$H$21,1) -> 1 | F20: =INDEX(ROR!$C$21:$H$21,1) -> 1 | H20: =INDEX(ROR!$C$47:$H$47,1) -> 0.05433605384 | J20: =INDEX(ROR!$C$38:$H$38,1) -> 0.06092328249 | K20: =INDEX(ROR!$C$37:$H$37,1) -> 1 | L20: =INDEX(ROR!$C$37:$H$37,1) -> 1

Sheet BFG (hidden)
A1: AVISTA UTILITIES
A2: GAS ANNUAL MINIMUM DEFICIENCY FOR B.F. GOODRICH
A3: STATE OF WASHINGTON
A4: BASED ON 2007 ANNUAL MINIMUM
F6: Gas
A7: Annual Minimum Usage Requirement(1) | F7: 10500000
A8: Less: Jan 09 - Dec 09 Usage(2) | F8: =SUMIF('Big Schedules'!$B$4:$B$47,"BF Goodrich",'Big Schedules'!$O$4:$O$47) -> 0
A9: Usage Deficiency | F9: =F7-F8 -> 10500000
A10: Deficiency Charge per therm(3) | F10: 0
A11: Annual Minimum Deficiency | F11: =F9*F10 -> 0
A16: (1) Per Contract - workpaper BJH-G-36
A17: (2) From workpaper BJH-G-9
A18: (3) From workpaper BJH-G-35
A21: ** Annual Minimum Ended in 2009
F24: =ROUND(F11-'Pres & Prop Rev'!J113,0) -> 0

Sheet Bill Determ
A1: AVISTA UTILITIES
A2: WASHINGTON GAS
A3: USAGE & BILLINGS BY RATE SCHEDULE
A4: 12 MONTHS ENDED DECEMBER 31, 2019
A6: Schedule 101/102 | B6: Total therms | C6: Total Billings | E6: 0-70 | F6: >70 | G6: Total Therms
A7: therms per Revenue Run(1)(2) | B7: ='12MEDEC19'!P162 -> 137563491 | C7: ='12MEDEC19'!O26 -> 1984339 | E7: ='Block Usage'!O17 -> 83030622.51 | F7: ='Block Usage'!O18 -> 54532868.44 | G7: =SUM(D7:F7) -> 137563491
G8: ='12MEDEC19'!P162 -> 137563491
A9: Schedule 111,112, 116 - Adjusted | B9: 0-200 thms | C9: 201-1000 thms | D9: > 1000 thms | E9: Total | F9: Billings | G9: =G8-G7 -> 0
A10: therms by block(2) | B10: ='Block Usage'!O35 -> 6545798.145 | C10: ='Block Usage'!O36 -> 17475325.3 | D10: ='Block Usage'!O37 -> 35005100.21 | E10: =SUM(B10:D10) -> 59026223.66
A11: less: shifted to Sch 146 | B11: 0 | C11: 0 | D11: 0 | E11: =SUM(B11:D11) -> 0
A12: Total therms by block | B12: =SUM(B10:B11) -> 6545798.145 | C12: =SUM(C10:C11) -> 17475325.3 | D12: =SUM(D10:D11) -> 35005100.21 | E12: =SUM(E10:E11) -> 59026223.66
A13: Per Rev. Run(1) | E13: ='12MEDEC19'!P163 -> 59026223.66 | F13: ='12MEDEC19'!O27 -> 37192
A14: less: shifted to Sch. 146 | B14: 0 | C14: 0 | D14: 0 | E14: =SUM(B14:D14) -> 0 | F14: 0
A15: less: shifted from Sch. 121 | E15: 0 | F15: 0
A16: Total | E16: =E13+E14+E15 -> 59026223.66 | F16: =F13+F14+F15 -> 37192
A17: Adjust. To Actual | E17: =E16-E12 -> 0
D18: 1001-10000 | E18: 10000- | G18: Total
A19: Schedule 111,112, 116 | B19: 0-200 thms | C19: 201-1000 thms | D19: therms | E19: 25000 thms | F19: >25000 thms | G19: therms | H19: Total Billings
A20: therms by block(2) | B20: =B12 -> 6545798.145 | C20: =C12 -> 17475325.3 | D20: =D12 -> 35005100.21 | G20: =SUM(B20:F20) -> 59026223.66 | H20: =F16 -> 37192
A21: Sch 146 to Sch 112 | B21: ='Big Schedules'!Q52 -> 2200 | C21: ='Big Schedules'!R52 -> 8800 | D21: ='Big Schedules'!S52 -> 99000 | E21: ='Big Schedules'!T52 -> 120033 | F21: ='Big Schedules'!U52 -> 233247 | G21: =SUM(B21:F21) -> 463280 | H21: 11
A22: Sch 112 to 146 | B22: =-'Big Schedules'!Q51 -> -400 | C22: =-'Big Schedules'!R51 -> -1600 | D22: =-'Big Schedules'!S51 -> -18000 | E22: =-'Big Schedules'!T51 -> -30000 | F22: =-'Big Schedules'!U51 -> -505228.868 | G22: -555228.868 | H22: -2
A23: Add: Sch 121/122 | B23: =H28*200 -> 10600 | C23: =B28+C28-B23 -> 38884.667 | D23: =D28 -> 390425.995 | E23: =E28 -> 648840.2356 | F23: =F28 -> 1614135.079 | G23: 2702885.976 | H23: =H30 -> 53
A24: Total | B24: =SUM(B20:B23) -> 6558198.145 | C24: 17521409.97 | D24: 35476526.2 | E24: 738873.2356 | F24: 1342153.211 | G24: 61637160.76 | H24: 37254
D26: 1001-10000 | E26: 10000- | G26: Total
A27: Schedule 121,122 (Discontinued) | B27: 0-500 thms | C27: 501-1000 thms | D27: therms | E27: 25000 thms | F27: >25000 thms | G27: therms | H27: Total Billings
A28: therms by block(3) | B28: ='Block Usage'!O60 -> 25079.767 | C28: ='Block Usage'!O61 -> 24404.9 | D28: ='Block Usage'!O62 -> 390425.995 | E28: ='Block Usage'!O63 -> 648840.2356 | F28: ='Block Usage'!O64 -> 1614135.079 | G28: =SUM(B28:F28) -> 2702885.976 | H28: ='12MEDEC19'!O28 -> 53
A29: less: Closed Acct | B29: 0 | C29: 0 | D29: 0 | E29: 0 | F29: 0 | G29: =SUM(B29:F29) -> 0 | H29: 0
A30: Total therms by block | B30: =SUM(B28:B29) -> 25079.767 | C30: =SUM(C28:C29) -> 24404.9 | D30: 390425.995 | E30: 648840.2356 | F30: 1614135.079 | G30: 2702885.976 | H30: 53
A31: Per Rev. Run(1) | G31: ='12MEDEC19'!P164 -> 2702885.976
A32: less: Acct closed (2) | G32: =G29 -> 0
A33: Total | G33: =G31+G32 -> 2702885.976
G34: =G30-G33 -> 0
B35: first | C35: next | D35: next | E35: over | F35: Total
A36: Schedule 131,132 | B36: 10000 thms | C36: 15000 thms | D36: 25000 thms | E36: 50000 thms | F36: therms | G36: Total Billings
A37: billed/pro forma therms(3) | B37: ='Big Schedules'!Q79 -> 220000 | C37: ='Big Schedules'!R79 -> 285403.258 | D37: ='Big Schedules'!S79 -> 317689.055 | E37: ='Big Schedules'!T79 -> 170107.977 | F37: =SUM(B37:E37) -> 993200.29 | G37: 24
B39: first | C39: next | D39: next | E39: next | F39: over | G39: Total
A40: Schedule 146 | B40: 20000 thms | C40: 30000 thms | D40: 250000 thms | E40: 200000 thms | F40: 500000 thms | G40: therms | H40: Total Billings
A41: billed/pro forma therms(4) | B41: ='Big Schedules'!Q47 -> 8146142 | C41: ='Big Schedules'!R47 -> 8282125 | D41: ='Big Schedules'!S47 -> 14410467 | E41: ='Big Schedules'!T47 -> 2975780.868 | F41: ='Big Schedules'!U47 -> 3355717 | G41: =SUM(B41:F41) -> 37170231.87 | H41: =38*12 -> 456
A43: Sch. 147-Interdepartmental(3) | B43: Total therms
A44: billed/pro forma therms | B44: ='12MEDEC19'!P146 -> 7907179
A46: Sch. 148-Sp. Contracts(3) | B46: Total therms | C46: Total Billings
A47: Kaiser -Trentwood | B47: ='Big Schedules'!O87 -> 24245810 | C47: 12
A48: Lamb-Weston | B48: ='Big Schedules'!O88 -> 6193304 | C48: 12
A49: Mutual Materials | B49: ='Big Schedules'!O89 -> 2132147 | C49: 12
A50: Washington Potato | B50: ='Big Schedules'!O90 -> 5419126 | C50: 12
A51: Total | B51: =SUM(B47:B50) -> 37990387 | C51: =SUM(C47:C50) -> 48
A53: Wash. State Univ. | B53: =MAX(8000000,'Big Schedules'!O91) -> 10933465 | C53: 12
A55: (1) shown on workpaper JDM-G-11
A56: (2) shown on workpaper JDM-G-9
A57: (3) shown on workpaper JDM-G-10
A58: (4) shown on workpaper JDM-G-9
A66: USAGE
A67: Revenue Run therms, this sheet | B67: =B7+E16+F37+G41+B44+B51+B53+G28 -> 294287063.7
A69: actual Revenue Run therms | B69: ='12MEDEC19'!P169 -> 294195114.9
A70: less:
A71: Sch 132 Jan 2016 billing | B71: =-'Big Schedules'!C84 -> 0
A72: Schedule 121 Shifting | B72: =G29 -> 0
A73: Sch 146 Shifting | B73: =-'Big Schedules'!O47+G41 -> 0
A74: Sch 11/12 Shifting | B74: =-E15-E14 -> 0
B75: =B69-SUM(B70:B74) -> 294195114.9
A76: Diff | B76: =B67-B75 -> 91948.868
A78: from Present Rev tab | B78: =SUM('Pres & Prop Rev'!D20:J20) -> 294195114.9
A79: this sheet | B79: =B67 -> 294287063.7
A80: Diff | B80: =B78-B79 -> -91948.868
A83: CUSTOMERS
A84: Customers from this sheet | B84: =C7+F16+G37+H41+C51+C53+H28 -> 2022124
A86: Rev. Run customers | B86: ='12MEDEC19'!O33 -> 2022164
A87: less:
A88: Sch 111 | B88: =-F14 -> 0
A89: Sch 121/122 | B89: 0
A90: Sch 131 normalize | B90: 0
A91: Stimson switching--reduce Sch 146 | B91: 0
A92: Sch 146 normalize | B92: ='12MEDEC19'!O30-'Bill Determ'!H41 -> 7
A93: Sch 147 customers not billed | B93: ='12MEDEC19'!O31 -> 34
A94: Sch 148 normalize | B94: 0
B95: =B86-SUM(B87:B94) -> 2022123
A96: Diff | B96: =B84-B95 -> 1
A98: from Present Rev tab | B98: =SUM('Pres & Prop Rev'!D25:J26) -> 2022133
A99: Diff | B99: =B95-B98 -> -10

Sheet LIRAP
B5: Scheduling 192 - LIRAP
E8: Present | F8: Present | H8: Proposed | I8: Proposed | K8: Total | R8: Present
B9: Type of | C9: Schedule | D9: Billing | E9: LIRAP Funding | F9: LIRAP Funding | G9: LIRAP Funding | H9: LIRAP Funding | I9: LIRAP | K9: Incremental | R9: Billed
B10: Service | C10: Number | D10: Determinants | E10: Rate | F10: Revenue | G10: Increased | H10: Revenue | I10: Rate | K10: Rate | R10: Revenue
B11: (a) | C11: (b) | D11: (c) | E11: (d) | F11: (e) | G11: (f) | H11: (g) | I11: (h) | K11: Change
K12: (m)
B13: General Service | C13: 101/102 | D13: ='Pres & Prop Rev'!D46 -> 132095604 | E13: 0.02378 | F13: =D13*E13 -> 3141233.462 | G13: =F13*$G$43 -> 0 | H13: =F13+G13 -> 3141233.462 | I13: =ROUND(H13/D13,5) -> 0.02378 | K13: =I13-E13 -> 0 | R13: ='Proposed Increase'!H14*1000 -> 117921147.6 | S13: =(G13)/R13 -> 0
B14: Large General Service | C14: 111/112 | D14: ='Pres & Prop Rev'!E46 -> 60325921.76 | E14: 0.01994 | F14: =D14*E14 -> 1202898.88 | G14: =F14*$G$43 -> 0 | H14: =F14+G14 -> 1202898.88 | I14: =ROUND(H14/D14,5) -> 0.01994 | K14: =I14-E14 -> 0 | R14: ='Proposed Increase'!H15*1000 -> 37695307.62 | S14: =(G14)/R14 -> 0
B15: Interruptible Service | C15: 131/132 | D15: ='Pres & Prop Rev'!G46 -> 993200.29 | E15: 0.0175 | F15: 17381.00507 | G15: =F15*$G$43 -> 0 | H15: 17381.00507 | I15: 0.0175 | K15: 0 | R15: ='Proposed Increase'!H17*1000 -> 455172.72 | S15: 0
B16: Transportation Service | C16: 146 | D16: ='Pres & Prop Rev'!H46 -> 37170231.87 | E16: 0.00113 | F16: 42002.36201 | G16: 0 | H16: 42002.36201 | I16: 0.00113 | K16: 0 | R16: ='Proposed Increase'!H18*1000 -> 3512467.407 | S16: 0
B17: Special Contracts | C17: 148 | D17: ='Pres & Prop Rev'!I46+'Pres & Prop Rev'!J46 -> 56831031 | F17: 0 | G17: =F17*$G$37 -> 0 | H17: 0 | R17: ='Proposed Increase'!H19*1000 -> 1760863.69 | S17: 0
B18: Total | D18: =SUM(D13:D17) -> 287415988.9 | F18: =SUM(F13:F17) -> 4403515.709 | G18: =SUM(G13:G17) -> 0 | H18: =SUM(H13:H17) -> 4403515.709 | R18: =SUM(R13:R17) -> 161344959 | S18: 0
E20: Net Funding | F20: =F18*G36 -> 0 | G20: =G18*G36 -> 0 | H20: =H18*G36 -> 0
G21: 0

Sheet Block Usage
A1: WASHINGTON NATURAL GAS SYSTEM
C2: January | D2: February | E2: March | F2: April | G2: May | H2: June | I2: July | J2: August | K2: September | L2: October | M2: November | N2: December | O2: Annual Total
A3: Rate Design Program Monthly Results
B4: Schedule 101/102
B5: Block 1 | C5: ='12MEDEC19'!D54+'12MEDEC19'!D67 -> 10610601.11 | D5: ='12MEDEC19'!E54+'12MEDEC19'!E67 -> 10486299.12 | E5: ='12MEDEC19'!F54+'12MEDEC19'!F67 -> 10910412.13 | F5: ='12MEDEC19'!G54+'12MEDEC19'!G67 -> 8797187.2 | G5: ='12MEDEC19'!H54+'12MEDEC19'!H67 -> 5885884.223 | H5: ='12MEDEC19'!I54+'12MEDEC19'!I67 -> 2897129.94 | I5: ='12MEDEC19'!J54+'12MEDEC19'!J67 -> 2322824.844 | J5: ='12MEDEC19'!K54+'12MEDEC19'!K67 -> 1984671.035 | K5: ='12MEDEC19'!L54+'12MEDEC19'!L67 -> 2237133.579 | L5: ='12MEDEC19'!M54+'12MEDEC19'!M67 -> 6569382.893 | M5: ='12MEDEC19'!N54+'12MEDEC19'!N67 -> 9629226.227 | N5: ='12MEDEC19'!O54+'12MEDEC19'!O67 -> 10707855.48 | O5: =SUM(C5:N5) -> 83038607.78
B6: Block 2 | C6: ='12MEDEC19'!D55+'12MEDEC19'!D68 -> 10581701.58 | D6: ='12MEDEC19'!E55+'12MEDEC19'!E68 -> 11447521.42 | E6: ='12MEDEC19'!F55+'12MEDEC19'!F68 -> 13032219.3 | F6: ='12MEDEC19'!G55+'12MEDEC19'!G68 -> 3084148.607 | G6: ='12MEDEC19'!H55+'12MEDEC19'!H68 -> 703411.4815 | H6: ='12MEDEC19'!I55+'12MEDEC19'!I68 -> 184270.9728 | I6: ='12MEDEC19'!J55+'12MEDEC19'!J68 -> 212771.1179 | J6: ='12MEDEC19'!K55+'12MEDEC19'!K68 -> 157927.0928 | K6: ='12MEDEC19'!L55+'12MEDEC19'!L68 -> 206884.5618 | L6: ='12MEDEC19'!M55+'12MEDEC19'!M68 -> 1038308.035 | M6: ='12MEDEC19'!N55+'12MEDEC19'!N68 -> 4317670.019 | N6: ='12MEDEC19'!O55+'12MEDEC19'!O68 -> 9570046.605 | O6: =SUM(C6:N6) -> 54536880.8
A7: Therms | B7: Total | C7: =SUM(C5:C6) -> 21192302.69 | D7: 21933820.54 | E7: 23942631.43 | F7: 11881335.81 | G7: 6589295.705 | H7: 3081400.913 | I7: 2535595.961 | J7: 2142598.127 | K7: 2444018.14 | L7: 7607690.928 | M7: 13946896.25 | N7: 20277902.08 | O7: 137575488.6
B8: Billed Customers | C8: ='12MEDEC19'!C26 -> 164455 | D8: ='12MEDEC19'!D26 -> 161561 | E8: ='12MEDEC19'!E26 -> 167095 | F8: ='12MEDEC19'!F26 -> 163106 | G8: ='12MEDEC19'!G26 -> 166886 | H8: ='12MEDEC19'!H26 -> 164587 | I8: ='12MEDEC19'!I26 -> 165355 | J8: ='12MEDEC19'!J26 -> 165693 | K8: ='12MEDEC19'!K26 -> 162332 | L8: ='12MEDEC19'!L26 -> 169448 | M8: ='12MEDEC19'!M26 -> 166729 | N8: ='12MEDEC19'!N26 -> 167092 | O8: =SUM(C8:N8) -> 1984339
B9: Block 1 Limit | C9: =C8*70 -> 11511850 | D9: =D8*70 -> 11309270 | E9: 11696650 | F9: 11417420 | G9: 11682020 | H9: 11521090 | I9: 11574850 | J9: 11598510 | K9: 11363240 | L9: 11861360 | M9: 11671030 | N9: 11696440 | O9: =SUM(C9:N9) -> 138903730
B10: Revenue Run Total | C10: ='12MEDEC19'!D162 -> 21191020.07 | D10: ='12MEDEC19'!E162 -> 21932387.54 | E10: ='12MEDEC19'!F162 -> 23941573.43 | F10: ='12MEDEC19'!G162 -> 11880514.81 | G10: ='12MEDEC19'!H162 -> 6587646.705 | H10: ='12MEDEC19'!I162 -> 3080579.913 | I10: ='12MEDEC19'!J162 -> 2535595.961 | J10: ='12MEDEC19'!K162 -> 2142554.127 | K10: ='12MEDEC19'!L162 -> 2443888.14 | L10: ='12MEDEC19'!M162 -> 7606580.928 | M10: ='12MEDEC19'!N162 -> 13945184.25 | N10: ='12MEDEC19'!O162 -> 20275965.08 | O10: =SUM(C10:N10) -> 137563491
B11: Difference | C11: =C10-C7 -> -1282.62 | D11: -1433 | E11: -1058 | F11: -821 | G11: -1649 | H11: -821 | I11: 0 | J11: -44 | K11: -130 | L11: -1110 | M11: -1712 | N11: -1937 | O11: =SUM(C11:N11) -> -11997.62 | P11: =O11/O10 -> -8.721514638e-05
B13: Block 1 | C13: =(C5/C$7)*C$11 -> -642.1845419 | D13: =(D5/D$7)*D$11 -> -685.100282 | E13: -482.1197731 | F13: -607.8854102 | G13: -1472.968208 | H13: -771.9033479 | I13: 0 | J13: -40.75683835 | K13: -118.9955837 | L13: -958.5056859 | M13: -1182.000282 | N13: -1022.843289 | O13: =SUM(C13:N13) -> -7985.263242
B14: Block 2 | C14: =(C6/C$7)*C$11 -> -640.4354581 | D14: =(D6/D$7)*D$11 -> -747.899718 | E14: -575.8802269 | F14: -213.1145898 | G14: -176.0317923 | H14: -49.09665212 | I14: 0 | J14: -3.243161653 | K14: -11.00441629 | L14: -151.4943141 | M14: -529.9997176 | N14: -914.1567109 | O14: =SUM(C14:N14) -> -4012.356758
C15: =SUM(C13:C14) -> -1282.62 | D15: -1433 | E15: -1058 | F15: -821 | G15: -1649 | H15: -821 | I15: 0 | J15: -44 | K15: -130 | L15: -1110 | M15: -1712 | N15: -1937 | O15: -11997.62
B17: Block 1 | C17: =C5+C13 -> 10609958.92 | D17: 10485614.02 | E17: 10909930.01 | F17: 8796579.314 | G17: 5884411.255 | H17: 2896358.037 | I17: 2322824.844 | J17: 1984630.278 | K17: 2237014.583 | L17: 6568424.387 | M17: 9628044.227 | N17: 10706832.64 | O17: =SUM(C17:N17) -> 83030622.51
B18: Block 2 | C18: =C6+C14 -> 10581061.14 | D18: 11446773.52 | E18: 13031643.42 | F18: 3083935.493 | G18: 703235.4497 | H18: 184221.8761 | I18: 212771.1179 | J18: 157923.8496 | K18: 206873.5574 | L18: 1038156.541 | M18: 4317140.019 | N18: 9569132.448 | O18: =SUM(C18:N18) -> 54532868.44
C19: =SUM(C17:C18) -> 21191020.07 | D19: 21932387.54 | E19: 23941573.43 | F19: 11880514.81 | G19: 6587646.705 | H19: 3080579.913 | I19: 2535595.961 | J19: 2142554.127 | K19: 2443888.14 | L19: 7606580.928 | M19: 13945184.25 | N19: 20275965.08 | O19: 137563491
C20: =C19-C10 -> 0 | D20: 0 | E20: 0 | F20: 0 | G20: 0 | H20: 0 | I20: 0 | J20: 0 | K20: 0 | L20: 0 | M20: 0 | N20: 0 | O20: 0
B22: Schedule 111/112
B23: Block 1 | C23: ='12MEDEC19'!D78 -> 614056.3554 | D23: ='12MEDEC19'!E78 -> 602122.7429 | E23: ='12MEDEC19'!F78 -> 622422.3471 | F23: ='12MEDEC19'!G78 -> 609380.2634 | G23: ='12MEDEC19'!H78 -> 576533.9739 | H23: ='12MEDEC19'!I78 -> 475143.3911 | I23: ='12MEDEC19'!J78 -> 418973.5248 | J23: ='12MEDEC19'!K78 -> 390683.5233 | K23: ='12MEDEC19'!L78 -> 412392.8779 | L23: ='12MEDEC19'!M78 -> 583775.726 | M23: ='12MEDEC19'!N78 -> 605892.1986 | N23: ='12MEDEC19'!O78 -> 617103.1087 | O23: =SUM(C23:N23) -> 6528480.033
B24: Block 2 | C24: ='12MEDEC19'!D79 -> 2138595.432 | D24: ='12MEDEC19'!E79 -> 2126686.935 | E24: ='12MEDEC19'!F79 -> 2204489.04 | F24: ='12MEDEC19'!G79 -> 1740453.232 | G24: ='12MEDEC19'!H79 -> 1233274.335 | H24: ='12MEDEC19'!I79 -> 790386.6164 | I24: ='12MEDEC19'!J79 -> 661102.0173 | J24: ='12MEDEC19'!K79 -> 598927.161 | K24: ='12MEDEC19'!L79 -> 653630.3168 | L24: ='12MEDEC19'!M79 -> 1291112.343 | M24: ='12MEDEC19'!N79 -> 1852542.154 | N24: ='12MEDEC19'!O79 -> 2139447.97 | O24: =SUM(C24:N24) -> 17430647.55
B25: Block 3 | C25: ='12MEDEC19'!D80 -> 5155066.875 | D25: ='12MEDEC19'!E80 -> 5631083.606 | E25: ='12MEDEC19'!F80 -> 6052517.296 | F25: ='12MEDEC19'!G80 -> 3000246.717 | G25: ='12MEDEC19'!H80 -> 1482782.707 | H25: ='12MEDEC19'!I80 -> 1094702.384 | I25: ='12MEDEC19'!J80 -> 849960.7211 | J25: ='12MEDEC19'!K80 -> 736777.6499 | K25: ='12MEDEC19'!L80 -> 911913.0962 | L25: ='12MEDEC19'!M80 -> 1783804.863 | M25: ='12MEDEC19'!N80 -> 3226679.969 | N25: ='12MEDEC19'!O80 -> 4992833.867 | O25: =SUM(C25:N25) -> 34918369.75
A26: Therms | B26: Total | C26: =SUM(C23:C25) -> 7907718.662 | D26: =SUM(D23:D25) -> 8359893.284 | E26: 8879428.683 | F26: 5350080.213 | G26: 3292591.016 | H26: 2360232.392 | I26: =SUM(I23:I25) -> 1930036.263 | J26: =SUM(J23:J25) -> 1726388.334 | K26: 1977936.291 | L26: 3658692.931 | M26: 5685114.321 | N26: 7749384.945 | O26: 58877497.34
B27: Revenue Run Total | C27: ='12MEDEC19'!D163 -> 7925020.088 | D27: ='12MEDEC19'!E163 -> 8382073.838 | E27: ='12MEDEC19'!F163 -> 8896947.849 | F27: ='12MEDEC19'!G163 -> 5362314.001 | G27: ='12MEDEC19'!H163 -> 3301881.122 | H27: ='12MEDEC19'!I163 -> 2366158.616 | I27: ='12MEDEC19'!J163 -> 1935589.253 | J27: ='12MEDEC19'!K163 -> 1732053.42 | K27: ='12MEDEC19'!L163 -> 1984701.585 | L27: ='12MEDEC19'!M163 -> 3670233.173 | M27: ='12MEDEC19'!N163 -> 5701042.633 | N27: ='12MEDEC19'!O163 -> 7768208.077 | O27: =SUM(C27:N27) -> 59026223.66
C28: =C27-C26 -> 17301.426 | D28: 22180.554 | E28: 17519.166 | F28: 12233.788 | G28: 9290.106 | H28: 5926.224 | I28: 5552.99 | J28: 5665.086 | K28: 6765.294 | L28: 11540.242 | M28: 15928.312 | N28: 18823.132 | O28: =SUM(C28:N28) -> 148726.32 | P28: =O28/O27 -> 0.002519665172
B30: Block 1 | C30: =(C23/C$26)*C$28 -> 1343.503866 | D30: =(D23/D$26)*D$28 -> 1597.558194 | E30: 1228.043021 | F30: 1393.442464 | G30: 1626.701192 | H30: 1193.020728 | I30: 1205.446674 | J30: 1282.01501 | K30: 1410.540408 | L30: 1841.344239 | M30: 1697.563045 | N30: 1498.933574 | O30: =SUM(C30:N30) -> 17318.11241
B31: Block 2 | C31: =(C24/C$26)*C$28 -> 4679.067655 | D31: =(D24/D$26)*D$28 -> 5642.547434 | E31: 4349.470085 | F31: 3979.816193 | G31: 3479.706178 | H31: 1984.553789 | I31: 1902.08493 | J31: 1965.359594 | K31: 2235.664152 | L31: 4072.423995 | M31: 5190.373976 | N31: 5196.684875 | O31: =SUM(C31:N31) -> 44677.75285
B32: Block 3 | C32: =(C25/C$26)*C$28 -> 11278.85448 | D32: =(D25/D$26)*D$28 -> 14940.44837 | E32: 11941.65289 | F32: 6860.529343 | G32: 4183.69863 | H32: 2748.649483 | I32: 2445.458396 | J32: 2417.711396 | K32: 3119.08944 | L32: 5626.473766 | M32: 9040.374979 | N32: 12127.51355 | O32: =SUM(C32:N32) -> 86730.45473
C33: =SUM(C30:C32) -> 17301.426 | D33: =SUM(D30:D32) -> 22180.554 | E33: 17519.166 | F33: 12233.788 | G33: 9290.106 | H33: 5926.224 | I33: 5552.99 | J33: 5665.086 | K33: 6765.294 | L33: 11540.242 | M33: 15928.312 | N33: 18823.132 | O33: =SUM(O30:O32) -> 148726.32
B35: Block 1 | C35: =C23+C30 -> 615399.8593 | D35: =D23+D30 -> 603720.3011 | E35: 623650.3901 | F35: 610773.7058 | G35: 578160.6751 | H35: 476336.4118 | I35: 420178.9714 | J35: 391965.5383 | K35: 413803.4183 | L35: 585617.0703 | M35: 607589.7616 | N35: 618602.0423 | O35: =SUM(C35:N35) -> 6545798.145
B36: Block 2 | C36: =C24+C31 -> 2143274.5 | D36: 2132329.482 | E36: 2208838.51 | F36: 1744433.048 | G36: 1236754.041 | H36: 792371.1702 | I36: 663004.1023 | J36: 600892.5206 | K36: 655865.981 | L36: 1295184.767 | M36: 1857732.528 | N36: 2144644.654 | O36: =SUM(C36:N36) -> 17475325.3
B37: Block 3 | C37: 5166345.729 | D37: 5646024.055 | E37: 6064458.949 | F37: 3007107.247 | G37: 1486966.406 | H37: 1097451.034 | I37: 852406.1795 | J37: 739195.3613 | K37: 915032.1857 | L37: 1789431.336 | M37: 3235720.344 | N37: 5004961.381 | O37: =SUM(C37:N37) -> 35005100.21
C38: =SUM(C35:C37) -> 7925020.088 | D38: 8382073.838 | E38: 8896947.849 | F38: 5362314.001 | G38: 3301881.122 | H38: 2366158.616 | I38: 1935589.253 | J38: 1732053.42 | K38: 1984701.585 | L38: 3670233.173 | M38: 5701042.633 | N38: 7768208.077 | O38: 59026223.66
C39: =C38-C27 -> 0 | D39: 0 | E39: 0 | F39: 0 | G39: 0 | H39: 0 | I39: 0 | J39: 0 | K39: 0 | L39: 0 | M39: 0 | N39: 0 | O39: 0
B43: Schedule 121/122
B44: Block 1 | C44: ='12MEDEC19'!D102+'12MEDEC19'!D116 -> 2000 | D44: ='12MEDEC19'!E102+'12MEDEC19'!E116 -> 2000 | E44: ='12MEDEC19'!F102+'12MEDEC19'!F116 -> 2000 | F44: ='12MEDEC19'!G102+'12MEDEC19'!G116 -> 2762.183 | G44: ='12MEDEC19'!H102+'12MEDEC19'!H116 -> 3000 | H44: ='12MEDEC19'!I102+'12MEDEC19'!I116 -> -3099.08267 | I44: ='12MEDEC19'!J102+'12MEDEC19'!J116 -> 2000 | J44: ='12MEDEC19'!K102+'12MEDEC19'!K116 -> 2416.66667 | K44: ='12MEDEC19'!L102+'12MEDEC19'!L116 -> 2500 | L44: ='12MEDEC19'!M102+'12MEDEC19'!M116 -> 2500 | M44: ='12MEDEC19'!N102+'12MEDEC19'!N116 -> 3000 | N44: ='12MEDEC19'!O102+'12MEDEC19'!O116 -> 4000 | O44: =SUM(C44:N44) -> 25079.767
B45: Block 2 | C45: ='12MEDEC19'!D103+'12MEDEC19'!D117 -> 2000 | D45: ='12MEDEC19'!E103+'12MEDEC19'!E117 -> 2000 | E45: ='12MEDEC19'!F103+'12MEDEC19'!F117 -> 2000 | F45: ='12MEDEC19'!G103+'12MEDEC19'!G117 -> 2233.7 | G45: ='12MEDEC19'!H103+'12MEDEC19'!H117 -> 2871.2 | H45: ='12MEDEC19'!I103+'12MEDEC19'!I117 -> -3116.66666 | I45: ='12MEDEC19'!J103+'12MEDEC19'!J117 -> 2000 | J45: ='12MEDEC19'!K103+'12MEDEC19'!K117 -> 2416.66666 | K45: ='12MEDEC19'!L103+'12MEDEC19'!L117 -> 2500 | L45: ='12MEDEC19'!M103+'12MEDEC19'!M117 -> 2500 | M45: ='12MEDEC19'!N103+'12MEDEC19'!N117 -> 3000 | N45: ='12MEDEC19'!O103+'12MEDEC19'!O117 -> 4000 | O45: =SUM(C45:N45) -> 24404.9
B46: Block 3 | C46: ='12MEDEC19'!D104+'12MEDEC19'!D118 -> 36000 | D46: ='12MEDEC19'!E104+'12MEDEC19'!E118 -> 36000 | E46: ='12MEDEC19'!F104+'12MEDEC19'!F118 -> 36000 | F46: ='12MEDEC19'!G104+'12MEDEC19'!G118 -> 35504.148 | G46: ='12MEDEC19'!H104+'12MEDEC19'!H118 -> 38844.405 | H46: ='12MEDEC19'!I104+'12MEDEC19'!I118 -> -54941.101 | I46: ='12MEDEC19'!J104+'12MEDEC19'!J118 -> 30935.783 | J46: ='12MEDEC19'!K104+'12MEDEC19'!K118 -> 37270.389 | K46: ='12MEDEC19'!L104+'12MEDEC19'!L118 -> 36289.355 | L46: ='12MEDEC19'!M104+'12MEDEC19'!M118 -> 39125 | M46: ='12MEDEC19'!N104+'12MEDEC19'!N118 -> 50833.216 | N46: ='12MEDEC19'!O104+'12MEDEC19'!O118 -> 68564.8 | O46: 390425.995
B47: Block 4 | C47: ='12MEDEC19'!D105+'12MEDEC19'!D119 -> 51521.375 | D47: ='12MEDEC19'!E105+'12MEDEC19'!E119 -> 51230.736 | E47: ='12MEDEC19'!F105+'12MEDEC19'!F119 -> 50818.734 | F47: ='12MEDEC19'!G105+'12MEDEC19'!G119 -> 45000 | G47: ='12MEDEC19'!H105+'12MEDEC19'!H119 -> 45000 | H47: ='12MEDEC19'!I105+'12MEDEC19'!I119 -> 18070.43859 | I47: ='12MEDEC19'!J105+'12MEDEC19'!J119 -> 45000 | J47: ='12MEDEC19'!K105+'12MEDEC19'!K119 -> 57500 | K47: ='12MEDEC19'!L105+'12MEDEC19'!L119 -> 44698.952 | L47: ='12MEDEC19'!M105+'12MEDEC19'!M119 -> 60000 | M47: ='12MEDEC19'!N105+'12MEDEC19'!N119 -> 75000 | N47: ='12MEDEC19'!O105+'12MEDEC19'!O119 -> 105000 | O47: =SUM(C47:N47) -> 648840.2356
B48: Block 5 | C48: ='12MEDEC19'!D106+'12MEDEC19'!D120 -> 139840.618 | D48: ='12MEDEC19'!E106+'12MEDEC19'!E120 -> 134685.744 | E48: ='12MEDEC19'!F106+'12MEDEC19'!F120 -> 143454.33 | F48: ='12MEDEC19'!G106+'12MEDEC19'!G120 -> 79910.603 | G48: ='12MEDEC19'!H106+'12MEDEC19'!H120 -> 58672.897 | H48: ='12MEDEC19'!I106+'12MEDEC19'!I120 -> 27615.303 | I48: ='12MEDEC19'!J106+'12MEDEC19'!J120 -> 28238.733 | J48: ='12MEDEC19'!K106+'12MEDEC19'!K120 -> 35104.96767 | K48: ='12MEDEC19'!L106+'12MEDEC19'!L120 -> 25157.077 | L48: ='12MEDEC19'!M106+'12MEDEC19'!M120 -> 63989.418 | M48: ='12MEDEC19'!N106+'12MEDEC19'!N120 -> 317806.159 | N48: ='12MEDEC19'!O106+'12MEDEC19'!O120 -> 559659.229 | O48: =SUM(C48:N48) -> 1614135.079
A49: Therms | B49: Total | C49: =SUM(C44:C48) -> 231361.993 | D49: =SUM(D44:D48) -> 225916.48 | E49: 234273.064 | F49: 165410.634 | G49: 148388.502 | H49: -15471.10874 | I49: =SUM(I44:I48) -> 108174.516 | J49: =SUM(J44:J48) -> 134708.69 | K49: 111145.384 | L49: 168114.418 | M49: 449639.375 | N49: 741224.029 | O49: 2702885.976
B50: Revenue Run Total | C50: ='12MEDEC19'!D164 -> 231361.993 | D50: ='12MEDEC19'!E164 -> 225916.48 | E50: ='12MEDEC19'!F164 -> 234273.064 | F50: ='12MEDEC19'!G164 -> 165410.634 | G50: ='12MEDEC19'!H164 -> 148388.502 | H50: ='12MEDEC19'!I164 -> -15471.10874 | I50: ='12MEDEC19'!J164 -> 108174.516 | J50: ='12MEDEC19'!K164 -> 134708.69 | K50: ='12MEDEC19'!L164 -> 111145.384 | L50: ='12MEDEC19'!M164 -> 168114.418 | M50: ='12MEDEC19'!N164 -> 449639.375 | N50: ='12MEDEC19'!O164 -> 741224.029 | O50: =SUM(C50:N50) -> 2702885.976
C51: =C50-C49 -> 0 | D51: 0 | E51: 0 | F51: 0 | G51: 0 | H51: 0 | I51: 0 | J51: 0 | K51: 0 | L51: 0 | M51: 0 | N51: 0 | O51: =SUM(C51:N51) -> 0 | P51: =O51/O50 -> 0
B53: Block 1 | C53: =(C44/C$49)*C$51 -> 0 | D53: =(D44/D$49)*D$51 -> 0 | E53: 0 | F53: 0 | G53: 0 | H53: 0 | I53: 0 | J53: 0 | K53: 0 | L53: 0 | M53: 0 | N53: 0 | O53: =SUM(C53:N53) -> 0
B54: Block 2 | C54: =(C45/C$49)*C$51 -> 0 | D54: 0 | E54: 0 | F54: 0 | G54: 0 | H54: 0 | I54: 0 | J54: 0 | K54: 0 | L54: 0 | M54: 0 | N54: 0 | O54: =SUM(C54:N54) -> 0
B55: Block 3 | C55: =(C46/C$49)*C$51 -> 0 | D55: 0 | E55: 0 | F55: 0 | G55: 0 | H55: 0 | I55: 0 | J55: 0 | K55: 0 | L55: 0 | M55: 0 | N55: 0 | O55: 0
B56: Block 4 | C56: 0 | D56: 0 | E56: 0 | F56: 0 | G56: 0 | H56: 0 | I56: 0 | J56: 0 | K56: 0 | L56: 0 | M56: 0 | N56: 0 | O56: =SUM(C56:N56) -> 0
B57: Block 5 | C57: 0 | D57: 0 | E57: 0 | F57: 0 | G57: 0 | H57: 0 | I57: 0 | J57: 0 | K57: 0 | L57: 0 | M57: 0 | N57: 0 | O57: =SUM(C57:N57) -> 0
C58: =SUM(C53:C57) -> 0 | D58: =SUM(D53:D57) -> 0 | E58: 0 | F58: 0 | G58: 0 | H58: 0 | I58: 0 | J58: 0 | K58: 0 | L58: 0 | M58: 0 | N58: 0 | O58: =SUM(O53:O57) -> 0
B60: Block 1 | C60: =C44+C53 -> 2000 | D60: =D44+D53 -> 2000 | E60: 2000 | F60: 2762.183 | G60: 3000 | H60: -3099.08267 | I60: 2000 | J60: 2416.66667 | K60: 2500 | L60: 2500 | M60: 3000 | N60: 4000 | O60: =SUM(C60:N60) -> 25079.767
B61: Block 2 | C61: =C45+C54 -> 2000 | D61: 2000 | E61: 2000 | F61: 2233.7 | G61: 2871.2 | H61: -3116.66666 | I61: 2000 | J61: 2416.66666 | K61: 2500 | L61: 2500 | M61: 3000 | N61: 4000 | O61: =SUM(C61:N61) -> 24404.9
B62: Block 3 | C62: =C46+C55 -> 36000 | D62: 36000 | E62: 36000 | F62: 35504.148 | G62: 38844.405 | H62: -54941.101 | I62: 30935.783 | J62: 37270.389 | K62: 36289.355 | L62: 39125 | M62: 50833.216 | N62: 68564.8 | O62: 390425.995
B63: Block 4 | C63: =C47+C56 -> 51521.375 | D63: 51230.736 | E63: 50818.734 | F63: 45000 | G63: 45000 | H63: 18070.43859 | I63: 45000 | J63: 57500 | K63: 44698.952 | L63: 60000 | M63: 75000 | N63: 105000 | O63: =SUM(C63:N63) -> 648840.2356
B64: Block 5 | C64: =C48+C57 -> 139840.618 | D64: 134685.744 | E64: 143454.33 | F64: 79910.603 | G64: 58672.897 | H64: 27615.303 | I64: 28238.733 | J64: 35104.96767 | K64: 25157.077 | L64: 63989.418 | M64: 317806.159 | N64: 559659.229 | O64: =SUM(C64:N64) -> 1614135.079
C65: =SUM(C60:C64) -> 231361.993 | D65: 225916.48 | E65: 234273.064 | F65: 165410.634 | G65: 148388.502 | H65: -15471.10874 | I65: 108174.516 | J65: 134708.69 | K65: 111145.384 | L65: 168114.418 | M65: 449639.375 | N65: 741224.029 | O65: 2702885.976
C66: =C65-C50 -> 0 | D66: 0 | E66: 0 | F66: 0 | G66: 0 | H66: 0 | I66: 0 | J66: 0 | K66: 0 | L66: 0 | M66: 0 | N66: 0 | O66: 0

Sheet Big Schedules
B1: Washington Gas Billing Determinants by Customer
Q2: 1st | R2: =Q3 -> 20000 | S2: =R3 -> 50000 | T2: =S3 -> 300000 | U2: =T3 -> 500000 | W2: Present | X2: Proposed
B3: ANNUAL USAGE, Sch 146 | O3: 12-mo ended | Q3: 20000 | R3: 50000 | S3: 300000 | T3: 500000 | U3: 99999999 | W3: Annual | X3: Annual | Y3: Present Base | Z3: Proposed Base
B4: Washington | C4: 2019-01-01 | D4: 2019-02-01 | E4: 2019-03-01 | F4: 2019-04-01 | G4: 2019-05-01 | H4: 2019-06-01 | I4: 2019-07-01 | J4: 2019-08-01 | K4: 2019-09-01 | L4: 2019-10-01 | M4: 2019-11-01 | N4: 2019-12-01 | O4: Total | Q4: thms/mo | R4: thms/mo | S4: thms/mo | T4: thms/mo | U4: thms/mo | W4: Minimum | X4: Minimum | Y4: Revenue | Z4: Revenue
A5: 1 | B5: Deaconess Medical Center | C5: 136935 | D5: 141948 | E5: 159270 | F5: 130278 | G5: 94746 | H5: 87324 | I5: 76742 | J5: 74037 | K5: 68716 | L5: 77822 | M5: 111113 | N5: 127723 | O5: =SUM(C5:N5) -> 1286654 | Q5: =Q$3*12-SUMPRODUCT(--($C5:$N5<=Q$3),Q$3-$C5:$N5) -> 240000 | R5: =R$3*12-SUM($Q5:Q5)-SUMPRODUCT(--($C5:$N5<=R$3),R$3-$C5:$N5) -> 360000 | S5: =S$3*12-SUM($Q5:R5)-SUMPRODUCT(--($C5:$N5<=S$3),S$3-$C5:$N5) -> 686654 | T5: =T$3*12-SUM($Q5:S5)-SUMPRODUCT(--($C5:$N5<=T$3),T$3-$C5:$N5) -> 0 | U5: =U$3*12-SUM($Q5:T5)-SUMPRODUCT(--($C5:$N5<=U$3),U$3-$C5:$N5) -> 0 | W5: =IF(O5<250000,(250000-O5)*'Exh. ELJ-6 NG Bill Components'!$E$56,0) -> 0 | X5: =IF(O5<250000,(250000-O5)*'Exh. ELJ-6 NG Bill Components'!$I$56,0) -> 0 | Y5: =Q5*'Exh. ELJ-6 NG Bill Components'!$D$51+'Big Schedules'!R5*'Exh. ELJ-6 NG Bill Components'!$D$52+'Big Schedules'!S5*'Exh. ELJ-6 NG Bill Components'!$D$53+'Big Schedules'!T5*'Exh. ELJ-6 NG Bill Components'!$D$54+'Big Schedules'!U5*'Exh. ELJ-6 NG Bill Components'!$D$55+'Exh. ELJ-6 NG Bill Components'!$D$49*12+W5 -> 124104.6003 | Z5: =Q5*'Exh. ELJ-6 NG Bill Components'!$I$51+'Big Schedules'!R5*'Exh. ELJ-6 NG Bill Components'!$I$52+'Big Schedules'!S5*'Exh. ELJ-6 NG Bill Components'!$I$53+'Big Schedules'!T5*'Exh. ELJ-6 NG Bill Components'!$I$54+'Big Schedules'!U5*'Exh. ELJ-6 NG Bill Components'!$I$55+'Exh. ELJ-6 NG Bill Components'!$I$49*12+X5 -> 132248.5258 | AA5: =Z5/Y5-1 -> 0.06562146369
A6: =A5+1 -> 2 | B6: 92 Ces/Cer-M (to Sch 112) | C6: 398669 | D6: 423181 | E6: 468841 | F6: 335580 | G6: 183201 | H6: 55128 | I6: 24793 | J6: 16538 | K6: 15451 | L6: 56217 | M6: =25000+193461 -> 218461 | N6: =25000+9447.51115+302320.35685 -> 336767.868 | O6: =SUM(C6:N6) -> 2532827.868 | Q6: 231989 | R6: =R$3*12-SUM($Q6:Q6)-SUMPRODUCT(--($C6:$N6<=R$3),R$3-$C6:$N6) -> 274793 | S6: =S$3*12-SUM($Q6:R6)-SUMPRODUCT(--($C6:$N6<=S$3),S$3-$C6:$N6) -> 1563007 | T6: =T$3*12-SUM($Q6:S6)-SUMPRODUCT(--($C6:$N6<=T$3),T$3-$C6:$N6) -> 463038.868 | U6: =U$3*12-SUM($Q6:T6)-SUMPRODUCT(--($C6:$N6<=U$3),U$3-$C6:$N6) -> 0 | W6: =IF(O6<250000,(250000-O6)*'Exh. ELJ-6 NG Bill Components'!$E$56,0) -> 0 | X6: =IF(O6<250000,(250000-O6)*'Exh. ELJ-6 NG Bill Components'!$I$56,0) -> 0 | Y6: =Q6*'Exh. ELJ-6 NG Bill Components'!$D$51+'Big Schedules'!R6*'Exh. ELJ-6 NG Bill Components'!$D$52+'Big Schedules'!S6*'Exh. ELJ-6 NG Bill Components'!$D$53+'Big Schedules'!T6*'Exh. ELJ-6 NG Bill Components'!$D$54+'Big Schedules'!U6*'Exh. ELJ-6 NG Bill Components'!$D$55+'Exh. ELJ-6 NG Bill Components'!$D$49*12+W6 -> 225136.7353 | Z6: =Q6*'Exh. ELJ-6 NG Bill Components'!$I$51+'Big Schedules'!R6*'Exh. ELJ-6 NG Bill Components'!$I$52+'Big Schedules'!S6*'Exh. ELJ-6 NG Bill Components'!$I$53+'Big Schedules'!T6*'Exh. ELJ-6 NG Bill Components'!$I$54+'Big Schedules'!U6*'Exh. ELJ-6 NG Bill Components'!$I$55+'Exh. ELJ-6 NG Bill Components'!$I$49*12+X6 -> 240338.2777 | AA6: =Z6/Y6-1 -> 0.06752137677
A7: =A6+1 -> 3 | B7: Baker Commodities Inc. | C7: 37257 | D7: 52126 | E7: 36826 | F7: 37633 | G7: 46107 | H7: 37644 | I7: 32545 | J7: 40575 | K7: 33469 | L7: 33325 | M7: 46682 | N7: 36861 | O7: =SUM(C7:N7) -> 471050 | Q7: 240000 | R7: =R$3*12-SUM($Q7:Q7)-SUMPRODUCT(--($C7:$N7<=R$3),R$3-$C7:$N7) -> 228924 | S7: =S$3*12-SUM($Q7:R7)-SUMPRODUCT(--($C7:$N7<=S$3),S$3-$C7:$N7) -> 2126 | T7: =T$3*12-SUM($Q7:S7)-SUMPRODUCT(--($C7:$N7<=T$3),T$3-$C7:$N7) -> 0 | U7: =U$3*12-SUM($Q7:T7)-SUMPRODUCT(--($C7:$N7<=U$3),U$3-$C7:$N7) -> 0 | W7: =IF(O7<250000,(250000-O7)*'Exh. ELJ-6 NG Bill Components'!$E$56,0) -> 0 | X7: =IF(O7<250000,(250000-O7)*'Exh. ELJ-6 NG Bill Components'!$I$56,0) -> 0 | Y7: =Q7*'Exh. ELJ-6 NG Bill Components'!$D$51+'Big Schedules'!R7*'Exh. ELJ-6 NG Bill Components'!$D$52+'Big Schedules'!S7*'Exh. ELJ-6 NG Bill Components'!$D$53+'Big Schedules'!T7*'Exh. ELJ-6 NG Bill Components'!$D$54+'Big Schedules'!U7*'Exh. ELJ-6 NG Bill Components'!$D$55+'Exh. ELJ-6 NG Bill Components'!$D$49*12+W7 -> 54236.93258 | Z7: =Q7*'Exh. ELJ-6 NG Bill Components'!$I$51+'Big Schedules'!R7*'Exh. ELJ-6 NG Bill Components'!$I$52+'Big Schedules'!S7*'Exh. ELJ-6 NG Bill Components'!$I$53+'Big Schedules'!T7*'Exh. ELJ-6 NG Bill Components'!$I$54+'Big Schedules'!U7*'Exh. ELJ-6 NG Bill Components'!$I$55+'Exh. ELJ-6 NG Bill Components'!$I$49*12+X7 -> 57501.21794 | AA7: =Z7/Y7-1 -> 0.06018565588
A8: 4 | B8: Western States Asphalt Inc | C8: 382 | D8: 484 | E8: 573 | F8: 5051 | G8: 26227 | H8: 21219 | I8: 21075 | J8: 25610 | K8: 19545 | L8: 17065 | M8: 16614 | N8: 446 | O8: 154291 | Q8: 140160 | R8: =R$3*12-SUM($Q8:Q8)-SUMPRODUCT(--($C8:$N8<=R$3),R$3-$C8:$N8) -> 14131 | S8: =S$3*12-SUM($Q8:R8)-SUMPRODUCT(--($C8:$N8<=S$3),S$3-$C8:$N8) -> 0 | T8: =T$3*12-SUM($Q8:S8)-SUMPRODUCT(--($C8:$N8<=T$3),T$3-$C8:$N8) -> 0 | U8: =U$3*12-SUM($Q8:T8)-SUMPRODUCT(--($C8:$N8<=U$3),U$3-$C8:$N8) -> 0 | W8: =IF(O8<250000,(250000-O8)*'Exh. ELJ-6 NG Bill Components'!$E$56,0) -> 8935.39224 | X8: =IF(O8<250000,(250000-O8)*'Exh. ELJ-6 NG Bill Components'!$I$56,0) -> 9559.41492 | Y8: =Q8*'Exh. ELJ-6 NG Bill Components'!$D$51+'Big Schedules'!R8*'Exh. ELJ-6 NG Bill Components'!$D$52+'Big Schedules'!S8*'Exh. ELJ-6 NG Bill Components'!$D$53+'Big Schedules'!T8*'Exh. ELJ-6 NG Bill Components'!$D$54+'Big Schedules'!U8*'Exh. ELJ-6 NG Bill Components'!$D$55+'Exh. ELJ-6 NG Bill Components'!$D$49*12+W8 -> 32463.0528 | Z8: =Q8*'Exh. ELJ-6 NG Bill Components'!$I$51+'Big Schedules'!R8*'Exh. ELJ-6 NG Bill Components'!$I$52+'Big Schedules'!S8*'Exh. ELJ-6 NG Bill Components'!$I$53+'Big Schedules'!T8*'Exh. ELJ-6 NG Bill Components'!$I$54+'Big Schedules'!U8*'Exh. ELJ-6 NG Bill Components'!$I$55+'Exh. ELJ-6 NG Bill Components'!$I$49*12+X8 -> 34206.5824 | AA8: 0.05370812199
A9: 5 | B9: Inland Northwest Dairies | C9: 29538 | D9: 30403 | E9: 28813 | F9: 27145 | G9: 22205 | H9: 19961 | I9: 17479 | J9: 17867 | K9: 17684 | L9: 19793 | M9: 25426 | N9: 26854 | O9: 283168 | Q9: 232784 | R9: =R$3*12-SUM($Q9:Q9)-SUMPRODUCT(--($C9:$N9<=R$3),R$3-$C9:$N9) -> 50384 | S9: =S$3*12-SUM($Q9:R9)-SUMPRODUCT(--($C9:$N9<=S$3),S$3-$C9:$N9) -> 0 | T9: =T$3*12-SUM($Q9:S9)-SUMPRODUCT(--($C9:$N9<=T$3),T$3-$C9:$N9) -> 0 | U9: =U$3*12-SUM($Q9:T9)-SUMPRODUCT(--($C9:$N9<=U$3),U$3-$C9:$N9) -> 0 | W9: =IF(O9<250000,(250000-O9)*'Exh. ELJ-6 NG Bill Components'!$E$56,0) -> 0 | X9: =IF(O9<250000,(250000-O9)*'Exh. ELJ-6 NG Bill Components'!$I$56,0) -> 0 | Y9: =Q9*'Exh. ELJ-6 NG Bill Components'!$D$51+'Big Schedules'!R9*'Exh. ELJ-6 NG Bill Components'!$D$52+'Big Schedules'!S9*'Exh. ELJ-6 NG Bill Components'!$D$53+'Big Schedules'!T9*'Exh. ELJ-6 NG Bill Components'!$D$54+'Big Schedules'!U9*'Exh. ELJ-6 NG Bill Components'!$D$55+'Exh. ELJ-6 NG Bill Components'!$D$49*12+W9 -> 36632.2032 | Z9: =Q9*'Exh. ELJ-6 NG Bill Components'!$I$51+'Big Schedules'!R9*'Exh. ELJ-6 NG Bill Components'!$I$52+'Big Schedules'!S9*'Exh. ELJ-6 NG Bill Components'!$I$53+'Big Schedules'!T9*'Exh. ELJ-6 NG Bill Components'!$I$54+'Big Schedules'!U9*'Exh. ELJ-6 NG Bill Components'!$I$55+'Exh. ELJ-6 NG Bill Components'!$I$49*12+X9 -> 38667.0136 | AA9: 0.05554703846
A10: 6 | B10: Central Pre-Mix Block | C10: 20202 | D10: 31796 | E10: 25977 | F10: 26314 | G10: 30629 | H10: 36221 | I10: 32595 | J10: 31084 | K10: 29363 | L10: 26798 | M10: 30988 | N10: 23051 | O10: 345018 | Q10: 240000 | R10: =R$3*12-SUM($Q10:Q10)-SUMPRODUCT(--($C10:$N10<=R$3),R$3-$C10:$N10) -> 105018 | S10: =S$3*12-SUM($Q10:R10)-SUMPRODUCT(--($C10:$N10<=S$3),S$3-$C10:$N10) -> 0 | T10: =T$3*12-SUM($Q10:S10)-SUMPRODUCT(--($C10:$N10<=T$3),T$3-$C10:$N10) -> 0 | U10: =U$3*12-SUM($Q10:T10)-SUMPRODUCT(--($C10:$N10<=U$3),U$3-$C10:$N10) -> 0 | W10: =IF(O10<250000,(250000-O10)*'Exh. ELJ-6 NG Bill Components'!$E$56,0) -> 0 | X10: =IF(O10<250000,(250000-O10)*'Exh. ELJ-6 NG Bill Components'!$I$56,0) -> 0 | Y10: =Q10*'Exh. ELJ-6 NG Bill Components'!$D$51+'Big Schedules'!R10*'Exh. ELJ-6 NG Bill Components'!$D$52+'Big Schedules'!S10*'Exh. ELJ-6 NG Bill Components'!$D$53+'Big Schedules'!T10*'Exh. ELJ-6 NG Bill Components'!$D$54+'Big Schedules'!U10*'Exh. ELJ-6 NG Bill Components'!$D$55+'Exh. ELJ-6 NG Bill Components'!$D$49*12+W10 -> 42490.08048 | Z10: =Q10*'Exh. ELJ-6 NG Bill Components'!$I$51+'Big Schedules'!R10*'Exh. ELJ-6 NG Bill Components'!$I$52+'Big Schedules'!S10*'Exh. ELJ-6 NG Bill Components'!$I$53+'Big Schedules'!T10*'Exh. ELJ-6 NG Bill Components'!$I$54+'Big Schedules'!U10*'Exh. ELJ-6 NG Bill Components'!$I$55+'Exh. ELJ-6 NG Bill Components'!$I$49*12+X10 -> 44933.99784 | AA10: 0.05751736246
A11: 7 | B11: Johanna Beverage Co | C11: 29967 | D11: 32083 | E11: 25075 | F11: 24766 | G11: 27138 | H11: 26647 | I11: 20182 | J11: 20039 | K11: 25217 | L11: 28222 | M11: 34257 | N11: 26439 | O11: 320032 | Q11: 240000 | R11: =R$3*12-SUM($Q11:Q11)-SUMPRODUCT(--($C11:$N11<=R$3),R$3-$C11:$N11) -> 80032 | S11: =S$3*12-SUM($Q11:R11)-SUMPRODUCT(--($C11:$N11<=S$3),S$3-$C11:$N11) -> 0 | T11: =T$3*12-SUM($Q11:S11)-SUMPRODUCT(--($C11:$N11<=T$3),T$3-$C11:$N11) -> 0 | U11: =U$3*12-SUM($Q11:T11)-SUMPRODUCT(--($C11:$N11<=U$3),U$3-$C11:$N11) -> 0 | W11: =IF(O11<250000,(250000-O11)*'Exh. ELJ-6 NG Bill Components'!$E$56,0) -> 0 | X11: =IF(O11<250000,(250000-O11)*'Exh. ELJ-6 NG Bill Components'!$I$56,0) -> 0 | Y11: =Q11*'Exh. ELJ-6 NG Bill Components'!$D$51+'Big Schedules'!R11*'Exh. ELJ-6 NG Bill Components'!$D$52+'Big Schedules'!S11*'Exh. ELJ-6 NG Bill Components'!$D$53+'Big Schedules'!T11*'Exh. ELJ-6 NG Bill Components'!$D$54+'Big Schedules'!U11*'Exh. ELJ-6 NG Bill Components'!$D$55+'Exh. ELJ-6 NG Bill Components'!$D$49*12+W11 -> 40157.38752 | Z11: =Q11*'Exh. ELJ-6 NG Bill Components'!$I$51+'Big Schedules'!R11*'Exh. ELJ-6 NG Bill Components'!$I$52+'Big Schedules'!S11*'Exh. ELJ-6 NG Bill Components'!$I$53+'Big Schedules'!T11*'Exh. ELJ-6 NG Bill Components'!$I$54+'Big Schedules'!U11*'Exh. ELJ-6 NG Bill Components'!$I$55+'Exh. ELJ-6 NG Bill Components'!$I$49*12+X11 -> 42438.39616 | AA11: 0.05680171896
A12: 8 | B12: Holy Family Hospital | C12: 74000 | D12: 74395 | E12: 81186 | F12: 70296 | G12: 50619 | H12: 43647 | I12: 41070 | J12: 41261 | K12: 38104 | L12: 43783 | M12: 62929 | N12: 70164 | O12: 691454 | Q12: 240000 | R12: =R$3*12-SUM($Q12:Q12)-SUMPRODUCT(--($C12:$N12<=R$3),R$3-$C12:$N12) -> 317865 | S12: =S$3*12-SUM($Q12:R12)-SUMPRODUCT(--($C12:$N12<=S$3),S$3-$C12:$N12) -> 133589 | T12: =T$3*12-SUM($Q12:S12)-SUMPRODUCT(--($C12:$N12<=T$3),T$3-$C12:$N12) -> 0 | U12: =U$3*12-SUM($Q12:T12)-SUMPRODUCT(--($C12:$N12<=U$3),U$3-$C12:$N12) -> 0 | W12: =IF(O12<250000,(250000-O12)*'Exh. ELJ-6 NG Bill Components'!$E$56,0) -> 0 | X12: =IF(O12<250000,(250000-O12)*'Exh. ELJ-6 NG Bill Components'!$I$56,0) -> 0 | Y12: =Q12*'Exh. ELJ-6 NG Bill Components'!$D$51+'Big Schedules'!R12*'Exh. ELJ-6 NG Bill Components'!$D$52+'Big Schedules'!S12*'Exh. ELJ-6 NG Bill Components'!$D$53+'Big Schedules'!T12*'Exh. ELJ-6 NG Bill Components'!$D$54+'Big Schedules'!U12*'Exh. ELJ-6 NG Bill Components'!$D$55+'Exh. ELJ-6 NG Bill Components'!$D$49*12+W12 -> 73608.33431 | Z12: =Q12*'Exh. ELJ-6 NG Bill Components'!$I$51+'Big Schedules'!R12*'Exh. ELJ-6 NG Bill Components'!$I$52+'Big Schedules'!S12*'Exh. ELJ-6 NG Bill Components'!$I$53+'Big Schedules'!T12*'Exh. ELJ-6 NG Bill Components'!$I$54+'Big Schedules'!U12*'Exh. ELJ-6 NG Bill Components'!$I$55+'Exh. ELJ-6 NG Bill Components'!$I$49*12+X12 -> 78225.51743 | AA12: 0.0627263633
A13: 9 | B13: Spokane Steel Foundry | C13: 32070 | D13: 46618 | E13: 38888 | F13: 35668 | G13: 35882 | H13: 34597 | I13: 32442 | J13: 30124 | K13: 29699 | L13: 32206 | M13: 36719 | N13: 26680 | O13: 411593 | Q13: 240000 | R13: =R$3*12-SUM($Q13:Q13)-SUMPRODUCT(--($C13:$N13<=R$3),R$3-$C13:$N13) -> 171593 | S13: =S$3*12-SUM($Q13:R13)-SUMPRODUCT(--($C13:$N13<=S$3),S$3-$C13:$N13) -> 0 | T13: =T$3*12-SUM($Q13:S13)-SUMPRODUCT(--($C13:$N13<=T$3),T$3-$C13:$N13) -> 0 | U13: =U$3*12-SUM($Q13:T13)-SUMPRODUCT(--($C13:$N13<=U$3),U$3-$C13:$N13) -> 0 | W13: =IF(O13<250000,(250000-O13)*'Exh. ELJ-6 NG Bill Components'!$E$56,0) -> 0 | X13: =IF(O13<250000,(250000-O13)*'Exh. ELJ-6 NG Bill Components'!$I$56,0) -> 0 | Y13: =Q13*'Exh. ELJ-6 NG Bill Components'!$D$51+'Big Schedules'!R13*'Exh. ELJ-6 NG Bill Components'!$D$52+'Big Schedules'!S13*'Exh. ELJ-6 NG Bill Components'!$D$53+'Big Schedules'!T13*'Exh. ELJ-6 NG Bill Components'!$D$54+'Big Schedules'!U13*'Exh. ELJ-6 NG Bill Components'!$D$55+'Exh. ELJ-6 NG Bill Components'!$D$49*12+W13 -> 48705.52248 | Z13: =Q13*'Exh. ELJ-6 NG Bill Components'!$I$51+'Big Schedules'!R13*'Exh. ELJ-6 NG Bill Components'!$I$52+'Big Schedules'!S13*'Exh. ELJ-6 NG Bill Components'!$I$53+'Big Schedules'!T13*'Exh. ELJ-6 NG Bill Components'!$I$54+'Big Schedules'!U13*'Exh. ELJ-6 NG Bill Components'!$I$55+'Exh. ELJ-6 NG Bill Components'!$I$49*12+X13 -> 51583.50884 | AA13: 0.05908952853
A14: 10 | B14: Huntwood Industries | C14: 64921 | D14: 78918 | E14: 80962 | F14: 79522 | G14: 57594 | H14: 45969 | I14: 43203 | J14: 39862 | K14: 39826 | L14: 41704 | M14: 62557 | N14: 58393 | O14: 693431 | Q14: 240000 | R14: =R$3*12-SUM($Q14:Q14)-SUMPRODUCT(--($C14:$N14<=R$3),R$3-$C14:$N14) -> 320564 | S14: =S$3*12-SUM($Q14:R14)-SUMPRODUCT(--($C14:$N14<=S$3),S$3-$C14:$N14) -> 132867 | T14: =T$3*12-SUM($Q14:S14)-SUMPRODUCT(--($C14:$N14<=T$3),T$3-$C14:$N14) -> 0 | U14: =U$3*12-SUM($Q14:T14)-SUMPRODUCT(--($C14:$N14<=U$3),U$3-$C14:$N14) -> 0 | W14: =IF(O14<250000,(250000-O14)*'Exh. ELJ-6 NG Bill Components'!$E$56,0) -> 0 | X14: =IF(O14<250000,(250000-O14)*'Exh. ELJ-6 NG Bill Components'!$I$56,0) -> 0 | Y14: =Q14*'Exh. ELJ-6 NG Bill Components'!$D$51+'Big Schedules'!R14*'Exh. ELJ-6 NG Bill Components'!$D$52+'Big Schedules'!S14*'Exh. ELJ-6 NG Bill Components'!$D$53+'Big Schedules'!T14*'Exh. ELJ-6 NG Bill Components'!$D$54+'Big Schedules'!U14*'Exh. ELJ-6 NG Bill Components'!$D$55+'Exh. ELJ-6 NG Bill Components'!$D$49*12+W14 -> 73799.52777 | Z14: =Q14*'Exh. ELJ-6 NG Bill Components'!$I$51+'Big Schedules'!R14*'Exh. ELJ-6 NG Bill Components'!$I$52+'Big Schedules'!S14*'Exh. ELJ-6 NG Bill Components'!$I$53+'Big Schedules'!T14*'Exh. ELJ-6 NG Bill Components'!$I$54+'Big Schedules'!U14*'Exh. ELJ-6 NG Bill Components'!$I$55+'Exh. ELJ-6 NG Bill Components'!$I$49*12+X14 -> 78430.06301 | AA14: 0.06274478144
A15: 11 | B15: Western States Asphalt Inc | C15: 38338 | D15: 35621 | E15: 37272 | F15: 96729 | G15: 81151 | H15: 77504 | I15: 77651 | J15: 71234 | K15: 67184 | L15: 59614 | M15: 62615 | N15: 57594 | O15: 762507 | Q15: 240000 | R15: =R$3*12-SUM($Q15:Q15)-SUMPRODUCT(--($C15:$N15<=R$3),R$3-$C15:$N15) -> 321231 | S15: =S$3*12-SUM($Q15:R15)-SUMPRODUCT(--($C15:$N15<=S$3),S$3-$C15:$N15) -> 201276 | T15: =T$3*12-SUM($Q15:S15)-SUMPRODUCT(--($C15:$N15<=T$3),T$3-$C15:$N15) -> 0 | U15: =U$3*12-SUM($Q15:T15)-SUMPRODUCT(--($C15:$N15<=U$3),U$3-$C15:$N15) -> 0 | W15: =IF(O15<250000,(250000-O15)*'Exh. ELJ-6 NG Bill Components'!$E$56,0) -> 0 | X15: =IF(O15<250000,(250000-O15)*'Exh. ELJ-6 NG Bill Components'!$I$56,0) -> 0 | Y15: =Q15*'Exh. ELJ-6 NG Bill Components'!$D$51+'Big Schedules'!R15*'Exh. ELJ-6 NG Bill Components'!$D$52+'Big Schedules'!S15*'Exh. ELJ-6 NG Bill Components'!$D$53+'Big Schedules'!T15*'Exh. ELJ-6 NG Bill Components'!$D$54+'Big Schedules'!U15*'Exh. ELJ-6 NG Bill Components'!$D$55+'Exh. ELJ-6 NG Bill Components'!$D$49*12+W15 -> 79621.1526 | Z15: =Q15*'Exh. ELJ-6 NG Bill Components'!$I$51+'Big Schedules'!R15*'Exh. ELJ-6 NG Bill Components'!$I$52+'Big Schedules'!S15*'Exh. ELJ-6 NG Bill Components'!$I$53+'Big Schedules'!T15*'Exh. ELJ-6 NG Bill Components'!$I$54+'Big Schedules'!U15*'Exh. ELJ-6 NG Bill Components'!$I$55+'Exh. ELJ-6 NG Bill Components'!$I$49*12+X15 -> 84658.2816 | AA15: 0.06326370362
A16: 12 | B16: Hollister-Stier Laboratories | C16: 45846 | D16: 47156 | E16: 47974 | F16: 40493 | G16: 38172 | H16: 37798 | I16: 36926 | J16: 37391 | K16: 39924 | L16: 36696 | M16: 44814 | N16: 45944 | O16: 499134 | Q16: 240000 | R16: =R$3*12-SUM($Q16:Q16)-SUMPRODUCT(--($C16:$N16<=R$3),R$3-$C16:$N16) -> 259134 | S16: =S$3*12-SUM($Q16:R16)-SUMPRODUCT(--($C16:$N16<=S$3),S$3-$C16:$N16) -> 0 | T16: =T$3*12-SUM($Q16:S16)-SUMPRODUCT(--($C16:$N16<=T$3),T$3-$C16:$N16) -> 0 | U16: =U$3*12-SUM($Q16:T16)-SUMPRODUCT(--($C16:$N16<=U$3),U$3-$C16:$N16) -> 0 | W16: =IF(O16<250000,(250000-O16)*'Exh. ELJ-6 NG Bill Components'!$E$56,0) -> 0 | X16: =IF(O16<250000,(250000-O16)*'Exh. ELJ-6 NG Bill Components'!$I$56,0) -> 0 | Y16: =Q16*'Exh. ELJ-6 NG Bill Components'!$D$51+'Big Schedules'!R16*'Exh. ELJ-6 NG Bill Components'!$D$52+'Big Schedules'!S16*'Exh. ELJ-6 NG Bill Components'!$D$53+'Big Schedules'!T16*'Exh. ELJ-6 NG Bill Components'!$D$54+'Big Schedules'!U16*'Exh. ELJ-6 NG Bill Components'!$D$55+'Exh. ELJ-6 NG Bill Components'!$D$49*12+W16 -> 56878.35024 | Z16: =Q16*'Exh. ELJ-6 NG Bill Components'!$I$51+'Big Schedules'!R16*'Exh. ELJ-6 NG Bill Components'!$I$52+'Big Schedules'!S16*'Exh. ELJ-6 NG Bill Components'!$I$53+'Big Schedules'!T16*'Exh. ELJ-6 NG Bill Components'!$I$54+'Big Schedules'!U16*'Exh. ELJ-6 NG Bill Components'!$I$55+'Exh. ELJ-6 NG Bill Components'!$I$49*12+X16 -> 60327.10392 | AA16: 0.06063385568
A17: 13 | B17: Inland Asphalt Co | C17: 0 | D17: 0 | E17: 0 | F17: 0 | G17: 25026 | H17: 35256 | I17: 37434 | J17: 40410 | K17: 50098 | L17: 73747 | M17: 49717 | N17: 24865 | O17: 336553 | Q17: 160000 | R17: =R$3*12-SUM($Q17:Q17)-SUMPRODUCT(--($C17:$N17<=R$3),R$3-$C17:$N17) -> 152708 | S17: =S$3*12-SUM($Q17:R17)-SUMPRODUCT(--($C17:$N17<=S$3),S$3-$C17:$N17) -> 23845 | T17: =T$3*12-SUM($Q17:S17)-SUMPRODUCT(--($C17:$N17<=T$3),T$3-$C17:$N17) -> 0 | U17: =U$3*12-SUM($Q17:T17)-SUMPRODUCT(--($C17:$N17<=U$3),U$3-$C17:$N17) -> 0 | W17: =IF(O17<250000,(250000-O17)*'Exh. ELJ-6 NG Bill Components'!$E$56,0) -> 0 | X17: =IF(O17<250000,(250000-O17)*'Exh. ELJ-6 NG Bill Components'!$I$56,0) -> 0 | Y17: =Q17*'Exh. ELJ-6 NG Bill Components'!$D$51+'Big Schedules'!R17*'Exh. ELJ-6 NG Bill Components'!$D$52+'Big Schedules'!S17*'Exh. ELJ-6 NG Bill Components'!$D$53+'Big Schedules'!T17*'Exh. ELJ-6 NG Bill Components'!$D$54+'Big Schedules'!U17*'Exh. ELJ-6 NG Bill Components'!$D$55+'Exh. ELJ-6 NG Bill Components'!$D$49*12+W17 -> 40554.72943 | Z17: =Q17*'Exh. ELJ-6 NG Bill Components'!$I$51+'Big Schedules'!R17*'Exh. ELJ-6 NG Bill Components'!$I$52+'Big Schedules'!S17*'Exh. ELJ-6 NG Bill Components'!$I$53+'Big Schedules'!T17*'Exh. ELJ-6 NG Bill Components'!$I$54+'Big Schedules'!U17*'Exh. ELJ-6 NG Bill Components'!$I$55+'Exh. ELJ-6 NG Bill Components'!$I$49*12+X17 -> 42863.39419 | AA17: 0.05692714
A18: 14 | B18: Valley Hosp & Medical Ctr | C18: 39362 | D18: 39959 | E18: 42558 | F18: 37481 | G18: 28192 | H18: 23186 | I18: 21140 | J18: 19941 | K18: 20137 | L18: 22984 | M18: 34634 | N18: 37992 | O18: 367566 | Q18: 239941 | R18: =R$3*12-SUM($Q18:Q18)-SUMPRODUCT(--($C18:$N18<=R$3),R$3-$C18:$N18) -> 127625 | S18: =S$3*12-SUM($Q18:R18)-SUMPRODUCT(--($C18:$N18<=S$3),S$3-$C18:$N18) -> 0 | T18: =T$3*12-SUM($Q18:S18)-SUMPRODUCT(--($C18:$N18<=T$3),T$3-$C18:$N18) -> 0 | U18: =U$3*12-SUM($Q18:T18)-SUMPRODUCT(--($C18:$N18<=U$3),U$3-$C18:$N18) -> 0 | W18: =IF(O18<250000,(250000-O18)*'Exh. ELJ-6 NG Bill Components'!$E$56,0) -> 0 | X18: =IF(O18<250000,(250000-O18)*'Exh. ELJ-6 NG Bill Components'!$I$56,0) -> 0 | Y18: =Q18*'Exh. ELJ-6 NG Bill Components'!$D$51+'Big Schedules'!R18*'Exh. ELJ-6 NG Bill Components'!$D$52+'Big Schedules'!S18*'Exh. ELJ-6 NG Bill Components'!$D$53+'Big Schedules'!T18*'Exh. ELJ-6 NG Bill Components'!$D$54+'Big Schedules'!U18*'Exh. ELJ-6 NG Bill Components'!$D$55+'Exh. ELJ-6 NG Bill Components'!$D$49*12+W18 -> 44594.47854 | Z18: =Q18*'Exh. ELJ-6 NG Bill Components'!$I$51+'Big Schedules'!R18*'Exh. ELJ-6 NG Bill Components'!$I$52+'Big Schedules'!S18*'Exh. ELJ-6 NG Bill Components'!$I$53+'Big Schedules'!T18*'Exh. ELJ-6 NG Bill Components'!$I$54+'Big Schedules'!U18*'Exh. ELJ-6 NG Bill Components'!$I$55+'Exh. ELJ-6 NG Bill Components'!$I$49*12+X18 -> 47185.36107 | AA18: 0.05809872914
A19: 15 | B19: Inland Empire Paper Co | C19: 0 | D19: 0 | E19: 0 | F19: 0 | G19: 161846 | H19: 65006 | I19: 35790 | J19: 165048 | K19: 12685 | L19: 40856 | M19: 1800 | N19: 0 | O19: 483031 | Q19: 114485 | R19: =R$3*12-SUM($Q19:Q19)-SUMPRODUCT(--($C19:$N19<=R$3),R$3-$C19:$N19) -> 126646 | S19: =S$3*12-SUM($Q19:R19)-SUMPRODUCT(--($C19:$N19<=S$3),S$3-$C19:$N19) -> 241900 | T19: =T$3*12-SUM($Q19:S19)-SUMPRODUCT(--($C19:$N19<=T$3),T$3-$C19:$N19) -> 0 | U19: =U$3*12-SUM($Q19:T19)-SUMPRODUCT(--($C19:$N19<=U$3),U$3-$C19:$N19) -> 0 | W19: =IF(O19<250000,(250000-O19)*'Exh. ELJ-6 NG Bill Components'!$E$56,0) -> 0 | X19: =IF(O19<250000,(250000-O19)*'Exh. ELJ-6 NG Bill Components'!$I$56,0) -> 0 | Y19: =Q19*'Exh. ELJ-6 NG Bill Components'!$D$51+'Big Schedules'!R19*'Exh. ELJ-6 NG Bill Components'!$D$52+'Big Schedules'!S19*'Exh. ELJ-6 NG Bill Components'!$D$53+'Big Schedules'!T19*'Exh. ELJ-6 NG Bill Components'!$D$54+'Big Schedules'!U19*'Exh. ELJ-6 NG Bill Components'!$D$55+'Exh. ELJ-6 NG Bill Components'!$D$49*12+W19 -> 51703.28746 | Z19: =Q19*'Exh. ELJ-6 NG Bill Components'!$I$51+'Big Schedules'!R19*'Exh. ELJ-6 NG Bill Components'!$I$52+'Big Schedules'!S19*'Exh. ELJ-6 NG Bill Components'!$I$53+'Big Schedules'!T19*'Exh. ELJ-6 NG Bill Components'!$I$54+'Big Schedules'!U19*'Exh. ELJ-6 NG Bill Components'!$I$55+'Exh. ELJ-6 NG Bill Components'!$I$49*12+X19 -> 54790.56643 | AA19: 0.05971146365
A20: 16 | B20: Quarry Tile Co | C20: 34166 | D20: 50923 | E20: 59143 | F20: 60482 | G20: 47884 | H20: 40509 | I20: 42154 | J20: 40530 | K20: 42876 | L20: 41611 | M20: 48232 | N20: 42396 | O20: =SUM(C20:N20) -> 550906 | Q20: 240000 | R20: =R$3*12-SUM($Q20:Q20)-SUMPRODUCT(--($C20:$N20<=R$3),R$3-$C20:$N20) -> 290358 | S20: =S$3*12-SUM($Q20:R20)-SUMPRODUCT(--($C20:$N20<=S$3),S$3-$C20:$N20) -> 20548 | T20: =T$3*12-SUM($Q20:S20)-SUMPRODUCT(--($C20:$N20<=T$3),T$3-$C20:$N20) -> 0 | U20: =U$3*12-SUM($Q20:T20)-SUMPRODUCT(--($C20:$N20<=U$3),U$3-$C20:$N20) -> 0 | W20: =IF(O20<250000,(250000-O20)*'Exh. ELJ-6 NG Bill Components'!$E$56,0) -> 0 | X20: =IF(O20<250000,(250000-O20)*'Exh. ELJ-6 NG Bill Components'!$I$56,0) -> 0 | Y20: =Q20*'Exh. ELJ-6 NG Bill Components'!$D$51+'Big Schedules'!R20*'Exh. ELJ-6 NG Bill Components'!$D$52+'Big Schedules'!S20*'Exh. ELJ-6 NG Bill Components'!$D$53+'Big Schedules'!T20*'Exh. ELJ-6 NG Bill Components'!$D$54+'Big Schedules'!U20*'Exh. ELJ-6 NG Bill Components'!$D$55+'Exh. ELJ-6 NG Bill Components'!$D$49*12+W20 -> 61523.359 | Z20: =Q20*'Exh. ELJ-6 NG Bill Components'!$I$51+'Big Schedules'!R20*'Exh. ELJ-6 NG Bill Components'!$I$52+'Big Schedules'!S20*'Exh. ELJ-6 NG Bill Components'!$I$53+'Big Schedules'!T20*'Exh. ELJ-6 NG Bill Components'!$I$54+'Big Schedules'!U20*'Exh. ELJ-6 NG Bill Components'!$I$55+'Exh. ELJ-6 NG Bill Components'!$I$49*12+X20 -> 65296.5154 | AA20: =Z20/Y20-1 -> 0.06132884259
A21: 17 | B21: Northern Quest Casino | C21: 102373 | D21: 110964 | E21: 121017 | F21: 100555 | G21: 71153 | H21: 55263 | I21: 51689 | J21: 52604 | K21: 52163 | L21: 58976 | M21: 88943 | N21: 98010 | O21: 963710 | Q21: 240000 | R21: =R$3*12-SUM($Q21:Q21)-SUMPRODUCT(--($C21:$N21<=R$3),R$3-$C21:$N21) -> 360000 | S21: =S$3*12-SUM($Q21:R21)-SUMPRODUCT(--($C21:$N21<=S$3),S$3-$C21:$N21) -> 363710 | T21: =T$3*12-SUM($Q21:S21)-SUMPRODUCT(--($C21:$N21<=T$3),T$3-$C21:$N21) -> 0 | U21: =U$3*12-SUM($Q21:T21)-SUMPRODUCT(--($C21:$N21<=U$3),U$3-$C21:$N21) -> 0 | W21: =IF(O21<250000,(250000-O21)*'Exh. ELJ-6 NG Bill Components'!$E$56,0) -> 0 | X21: =IF(O21<250000,(250000-O21)*'Exh. ELJ-6 NG Bill Components'!$I$56,0) -> 0 | Y21: =Q21*'Exh. ELJ-6 NG Bill Components'!$D$51+'Big Schedules'!R21*'Exh. ELJ-6 NG Bill Components'!$D$52+'Big Schedules'!S21*'Exh. ELJ-6 NG Bill Components'!$D$53+'Big Schedules'!T21*'Exh. ELJ-6 NG Bill Components'!$D$54+'Big Schedules'!U21*'Exh. ELJ-6 NG Bill Components'!$D$55+'Exh. ELJ-6 NG Bill Components'!$D$49*12+W21 -> 96915.9449 | Z21: =Q21*'Exh. ELJ-6 NG Bill Components'!$I$51+'Big Schedules'!R21*'Exh. ELJ-6 NG Bill Components'!$I$52+'Big Schedules'!S21*'Exh. ELJ-6 NG Bill Components'!$I$53+'Big Schedules'!T21*'Exh. ELJ-6 NG Bill Components'!$I$54+'Big Schedules'!U21*'Exh. ELJ-6 NG Bill Components'!$I$55+'Exh. ELJ-6 NG Bill Components'!$I$49*12+X21 -> 103160.9597 | AA21: 0.06443743397
A22: 18 | B22: Whitworth University | C22: 56027 | D22: 58999 | E22: 63954 | F22: 51324 | G22: 30049 | H22: 19219 | I22: 14082 | J22: 11714 | K22: 13481 | L22: 21731 | M22: 44263 | N22: 49882 | O22: 434725 | Q22: 218496 | R22: =R$3*12-SUM($Q22:Q22)-SUMPRODUCT(--($C22:$N22<=R$3),R$3-$C22:$N22) -> 185925 | S22: =S$3*12-SUM($Q22:R22)-SUMPRODUCT(--($C22:$N22<=S$3),S$3-$C22:$N22) -> 30304 | T22: =T$3*12-SUM($Q22:S22)-SUMPRODUCT(--($C22:$N22<=T$3),T$3-$C22:$N22) -> 0 | U22: =U$3*12-SUM($Q22:T22)-SUMPRODUCT(--($C22:$N22<=U$3),U$3-$C22:$N22) -> 0 | W22: =IF(O22<250000,(250000-O22)*'Exh. ELJ-6 NG Bill Components'!$E$56,0) -> 0 | X22: =IF(O22<250000,(250000-O22)*'Exh. ELJ-6 NG Bill Components'!$I$56,0) -> 0 | Y22: =Q22*'Exh. ELJ-6 NG Bill Components'!$D$51+'Big Schedules'!R22*'Exh. ELJ-6 NG Bill Components'!$D$52+'Big Schedules'!S22*'Exh. ELJ-6 NG Bill Components'!$D$53+'Big Schedules'!T22*'Exh. ELJ-6 NG Bill Components'!$D$54+'Big Schedules'!U22*'Exh. ELJ-6 NG Bill Components'!$D$55+'Exh. ELJ-6 NG Bill Components'!$D$49*12+W22 -> 50338.222 | Z22: =Q22*'Exh. ELJ-6 NG Bill Components'!$I$51+'Big Schedules'!R22*'Exh. ELJ-6 NG Bill Components'!$I$52+'Big Schedules'!S22*'Exh. ELJ-6 NG Bill Components'!$I$53+'Big Schedules'!T22*'Exh. ELJ-6 NG Bill Components'!$I$54+'Big Schedules'!U22*'Exh. ELJ-6 NG Bill Components'!$I$55+'Exh. ELJ-6 NG Bill Components'!$I$49*12+X22 -> 53330.2162 | AA22: 0.05943782043
A23: 19 | B23: Goodrich | C23: 779708 | D23: 822615 | E23: 755701 | F23: 843724 | G23: 798636 | H23: 756480 | I23: 767901 | J23: 737026 | K23: 748772 | L23: 781364 | M23: 774559 | N23: 789231 | O23: 9355717 | Q23: 240000 | R23: =R$3*12-SUM($Q23:Q23)-SUMPRODUCT(--($C23:$N23<=R$3),R$3-$C23:$N23) -> 360000 | S23: =S$3*12-SUM($Q23:R23)-SUMPRODUCT(--($C23:$N23<=S$3),S$3-$C23:$N23) -> 3000000 | T23: =T$3*12-SUM($Q23:S23)-SUMPRODUCT(--($C23:$N23<=T$3),T$3-$C23:$N23) -> 2400000 | U23: =U$3*12-SUM($Q23:T23)-SUMPRODUCT(--($C23:$N23<=U$3),U$3-$C23:$N23) -> 3355717 | W23: =IF(O23<250000,(250000-O23)*'Exh. ELJ-6 NG Bill Components'!$E$56,0) -> 0 | X23: =IF(O23<250000,(250000-O23)*'Exh. ELJ-6 NG Bill Components'!$I$56,0) -> 0 | Y23: =Q23*'Exh. ELJ-6 NG Bill Components'!$D$51+'Big Schedules'!R23*'Exh. ELJ-6 NG Bill Components'!$D$52+'Big Schedules'!S23*'Exh. ELJ-6 NG Bill Components'!$D$53+'Big Schedules'!T23*'Exh. ELJ-6 NG Bill Components'!$D$54+'Big Schedules'!U23*'Exh. ELJ-6 NG Bill Components'!$D$55+'Exh. ELJ-6 NG Bill Components'!$D$49*12+W23 -> 702048.2017 | Z23: =Q23*'Exh. ELJ-6 NG Bill Components'!$I$51+'Big Schedules'!R23*'Exh. ELJ-6 NG Bill Components'!$I$52+'Big Schedules'!S23*'Exh. ELJ-6 NG Bill Components'!$I$53+'Big Schedules'!T23*'Exh. ELJ-6 NG Bill Components'!$I$54+'Big Schedules'!U23*'Exh. ELJ-6 NG Bill Components'!$I$55+'Exh. ELJ-6 NG Bill Components'!$I$49*12+X23 -> 750575.4842 | AA23: 0.06912243691
A24: 20 | B24: Franz Bakery | C24: 38346 | D24: 39900 | E24: 40328 | F24: 40435 | G24: 38139 | H24: 35235 | I24: 32652 | J24: 32486 | K24: 33352 | L24: 31159 | M24: 42531 | N24: 42494 | O24: 447057 | Q24: 240000 | R24: =R$3*12-SUM($Q24:Q24)-SUMPRODUCT(--($C24:$N24<=R$3),R$3-$C24:$N24) -> 207057 | S24: =S$3*12-SUM($Q24:R24)-SUMPRODUCT(--($C24:$N24<=S$3),S$3-$C24:$N24) -> 0 | T24: =T$3*12-SUM($Q24:S24)-SUMPRODUCT(--($C24:$N24<=T$3),T$3-$C24:$N24) -> 0 | U24: =U$3*12-SUM($Q24:T24)-SUMPRODUCT(--($C24:$N24<=U$3),U$3-$C24:$N24) -> 0 | W24: =IF(O24<250000,(250000-O24)*'Exh. ELJ-6 NG Bill Components'!$E$56,0) -> 0 | X24: =IF(O24<250000,(250000-O24)*'Exh. ELJ-6 NG Bill Components'!$I$56,0) -> 0 | Y24: =Q24*'Exh. ELJ-6 NG Bill Components'!$D$51+'Big Schedules'!R24*'Exh. ELJ-6 NG Bill Components'!$D$52+'Big Schedules'!S24*'Exh. ELJ-6 NG Bill Components'!$D$53+'Big Schedules'!T24*'Exh. ELJ-6 NG Bill Components'!$D$54+'Big Schedules'!U24*'Exh. ELJ-6 NG Bill Components'!$D$55+'Exh. ELJ-6 NG Bill Components'!$D$49*12+W24 -> 52016.44152 | Z24: =Q24*'Exh. ELJ-6 NG Bill Components'!$I$51+'Big Schedules'!R24*'Exh. ELJ-6 NG Bill Components'!$I$52+'Big Schedules'!S24*'Exh. ELJ-6 NG Bill Components'!$I$53+'Big Schedules'!T24*'Exh. ELJ-6 NG Bill Components'!$I$54+'Big Schedules'!U24*'Exh. ELJ-6 NG Bill Components'!$I$55+'Exh. ELJ-6 NG Bill Components'!$I$49*12+X24 -> 55125.65316 | AA24: 0.05977363213
A25: 21 | B25: Inland Asphalt Co | C25: 8 | D25: 7 | E25: 7 | F25: 6 | G25: 401 | H25: 58667 | I25: 105137 | J25: 41700 | K25: 69061 | L25: 37544 | M25: 62153 | N25: 16413 | O25: 391104 | Q25: 136842 | R25: =R$3*12-SUM($Q25:Q25)-SUMPRODUCT(--($C25:$N25<=R$3),R$3-$C25:$N25) -> 159244 | S25: =S$3*12-SUM($Q25:R25)-SUMPRODUCT(--($C25:$N25<=S$3),S$3-$C25:$N25) -> 95018 | T25: =T$3*12-SUM($Q25:S25)-SUMPRODUCT(--($C25:$N25<=T$3),T$3-$C25:$N25) -> 0 | U25: =U$3*12-SUM($Q25:T25)-SUMPRODUCT(--($C25:$N25<=U$3),U$3-$C25:$N25) -> 0 | W25: =IF(O25<250000,(250000-O25)*'Exh. ELJ-6 NG Bill Components'!$E$56,0) -> 0 | X25: =IF(O25<250000,(250000-O25)*'Exh. ELJ-6 NG Bill Components'!$I$56,0) -> 0 | Y25: =Q25*'Exh. ELJ-6 NG Bill Components'!$D$51+'Big Schedules'!R25*'Exh. ELJ-6 NG Bill Components'!$D$52+'Big Schedules'!S25*'Exh. ELJ-6 NG Bill Components'!$D$53+'Big Schedules'!T25*'Exh. ELJ-6 NG Bill Components'!$D$54+'Big Schedules'!U25*'Exh. ELJ-6 NG Bill Components'!$D$55+'Exh. ELJ-6 NG Bill Components'!$D$49*12+W25 -> 44726.78474 | Z25: =Q25*'Exh. ELJ-6 NG Bill Components'!$I$51+'Big Schedules'!R25*'Exh. ELJ-6 NG Bill Components'!$I$52+'Big Schedules'!S25*'Exh. ELJ-6 NG Bill Components'!$I$53+'Big Schedules'!T25*'Exh. ELJ-6 NG Bill Components'!$I$54+'Big Schedules'!U25*'Exh. ELJ-6 NG Bill Components'!$I$55+'Exh. ELJ-6 NG Bill Components'!$I$49*12+X25 -> 47326.81332 | AA25: 0.05813135451
A26: 22 | B26: Boise Cascade Wood Products LLC | C26: 173092 | D26: 295905 | E26: 331530 | F26: 293984 | G26: 254108 | H26: 212429 | I26: 175116 | J26: 185562 | K26: 195836 | L26: 202609 | M26: 303840 | N26: 314974 | O26: =SUM(C26:N26) -> 2938985 | Q26: 240000 | R26: =R$3*12-SUM($Q26:Q26)-SUMPRODUCT(--($C26:$N26<=R$3),R$3-$C26:$N26) -> 360000 | S26: =S$3*12-SUM($Q26:R26)-SUMPRODUCT(--($C26:$N26<=S$3),S$3-$C26:$N26) -> 2288641 | T26: =T$3*12-SUM($Q26:S26)-SUMPRODUCT(--($C26:$N26<=T$3),T$3-$C26:$N26) -> 50344 | U26: =U$3*12-SUM($Q26:T26)-SUMPRODUCT(--($C26:$N26<=U$3),U$3-$C26:$N26) -> 0 | W26: =IF(O26<250000,(250000-O26)*'Exh. ELJ-6 NG Bill Components'!$E$56,0) -> 0 | X26: =IF(O26<250000,(250000-O26)*'Exh. ELJ-6 NG Bill Components'!$I$56,0) -> 0 | Y26: =Q26*'Exh. ELJ-6 NG Bill Components'!$D$51+'Big Schedules'!R26*'Exh. ELJ-6 NG Bill Components'!$D$52+'Big Schedules'!S26*'Exh. ELJ-6 NG Bill Components'!$D$53+'Big Schedules'!T26*'Exh. ELJ-6 NG Bill Components'!$D$54+'Big Schedules'!U26*'Exh. ELJ-6 NG Bill Components'!$D$55+'Exh. ELJ-6 NG Bill Components'!$D$49*12+W26 -> 262895.1662 | Z26: =Q26*'Exh. ELJ-6 NG Bill Components'!$I$51+'Big Schedules'!R26*'Exh. ELJ-6 NG Bill Components'!$I$52+'Big Schedules'!S26*'Exh. ELJ-6 NG Bill Components'!$I$53+'Big Schedules'!T26*'Exh. ELJ-6 NG Bill Components'!$I$54+'Big Schedules'!U26*'Exh. ELJ-6 NG Bill Components'!$I$55+'Exh. ELJ-6 NG Bill Components'!$I$49*12+X26 -> 280732.6466 | AA26: =Z26/Y26-1 -> 0.06785016514
A27: 23 | B27: Travis Pattern & Foundry | C27: 74758 | D27: 137307 | E27: 123889 | F27: 127713 | G27: 126078 | H27: 113500 | I27: 101178 | J27: 92298 | K27: 107440 | L27: 106624 | M27: 128187 | N27: 121364 | O27: 1360336 | Q27: 240000 | R27: =R$3*12-SUM($Q27:Q27)-SUMPRODUCT(--($C27:$N27<=R$3),R$3-$C27:$N27) -> 360000 | S27: =S$3*12-SUM($Q27:R27)-SUMPRODUCT(--($C27:$N27<=S$3),S$3-$C27:$N27) -> 760336 | W27: =IF(O27<250000,(250000-O27)*'Exh. ELJ-6 NG Bill Components'!$E$56,0) -> 0 | X27: =IF(O27<250000,(250000-O27)*'Exh. ELJ-6 NG Bill Components'!$I$56,0) -> 0 | Y27: =Q27*'Exh. ELJ-6 NG Bill Components'!$D$51+'Big Schedules'!R27*'Exh. ELJ-6 NG Bill Components'!$D$52+'Big Schedules'!S27*'Exh. ELJ-6 NG Bill Components'!$D$53+'Big Schedules'!T27*'Exh. ELJ-6 NG Bill Components'!$D$54+'Big Schedules'!U27*'Exh. ELJ-6 NG Bill Components'!$D$55+'Exh. ELJ-6 NG Bill Components'!$D$49*12+W27 -> 130307.8878 | Z27: =Q27*'Exh. ELJ-6 NG Bill Components'!$I$51+'Big Schedules'!R27*'Exh. ELJ-6 NG Bill Components'!$I$52+'Big Schedules'!S27*'Exh. ELJ-6 NG Bill Components'!$I$53+'Big Schedules'!T27*'Exh. ELJ-6 NG Bill Components'!$I$54+'Big Schedules'!U27*'Exh. ELJ-6 NG Bill Components'!$I$55+'Exh. ELJ-6 NG Bill Components'!$I$49*12+X27 -> 138885.0635 | AA27: 0.06582238284
A28: 24 | B28: Gonzaga University | C28: 95860 | D28: 101631 | E28: 136614 | F28: 87399 | G28: 48233 | H28: 15596 | I28: 6580 | J28: 5392 | K28: 6770 | L28: 24692 | M28: 67775 | N28: 83267 | O28: 679809 | Q28: 194338 | R28: =R$3*12-SUM($Q28:Q28)-SUMPRODUCT(--($C28:$N28<=R$3),R$3-$C28:$N28) -> 212925 | S28: =S$3*12-SUM($Q28:R28)-SUMPRODUCT(--($C28:$N28<=S$3),S$3-$C28:$N28) -> 272546 | W28: =IF(O28<250000,(250000-O28)*'Exh. ELJ-6 NG Bill Components'!$E$56,0) -> 0 | X28: =IF(O28<250000,(250000-O28)*'Exh. ELJ-6 NG Bill Components'!$I$56,0) -> 0 | Y28: =Q28*'Exh. ELJ-6 NG Bill Components'!$D$51+'Big Schedules'!R28*'Exh. ELJ-6 NG Bill Components'!$D$52+'Big Schedules'!S28*'Exh. ELJ-6 NG Bill Components'!$D$53+'Big Schedules'!T28*'Exh. ELJ-6 NG Bill Components'!$D$54+'Big Schedules'!U28*'Exh. ELJ-6 NG Bill Components'!$D$55+'Exh. ELJ-6 NG Bill Components'!$D$49*12+W28 -> 70718.15546 | Z28: =Q28*'Exh. ELJ-6 NG Bill Components'!$I$51+'Big Schedules'!R28*'Exh. ELJ-6 NG Bill Components'!$I$52+'Big Schedules'!S28*'Exh. ELJ-6 NG Bill Components'!$I$53+'Big Schedules'!T28*'Exh. ELJ-6 NG Bill Components'!$I$54+'Big Schedules'!U28*'Exh. ELJ-6 NG Bill Components'!$I$55+'Exh. ELJ-6 NG Bill Components'!$I$49*12+X28 -> 75133.49448 | AA28: 0.06243572094
A29: 25 | B29: Waste Management Of Spokane | C29: 38467 | D29: 42528 | E29: 37634 | F29: 40994 | G29: 48410 | H29: 49537 | I29: 47507 | J29: 53423 | K29: 52081 | L29: 49722 | M29: 53917 | N29: 51693 | O29: 565913 | Q29: 240000 | R29: =R$3*12-SUM($Q29:Q29)-SUMPRODUCT(--($C29:$N29<=R$3),R$3-$C29:$N29) -> 314799 | S29: =S$3*12-SUM($Q29:R29)-SUMPRODUCT(--($C29:$N29<=S$3),S$3-$C29:$N29) -> 11114 | W29: =IF(O29<250000,(250000-O29)*'Exh. ELJ-6 NG Bill Components'!$E$56,0) -> 0 | X29: =IF(O29<250000,(250000-O29)*'Exh. ELJ-6 NG Bill Components'!$I$56,0) -> 0 | Y29: =Q29*'Exh. ELJ-6 NG Bill Components'!$D$51+'Big Schedules'!R29*'Exh. ELJ-6 NG Bill Components'!$D$52+'Big Schedules'!S29*'Exh. ELJ-6 NG Bill Components'!$D$53+'Big Schedules'!T29*'Exh. ELJ-6 NG Bill Components'!$D$54+'Big Schedules'!U29*'Exh. ELJ-6 NG Bill Components'!$D$55+'Exh. ELJ-6 NG Bill Components'!$D$49*12+W29 -> 63010.9223 | Z29: =Q29*'Exh. ELJ-6 NG Bill Components'!$I$51+'Big Schedules'!R29*'Exh. ELJ-6 NG Bill Components'!$I$52+'Big Schedules'!S29*'Exh. ELJ-6 NG Bill Components'!$I$53+'Big Schedules'!T29*'Exh. ELJ-6 NG Bill Components'!$I$54+'Big Schedules'!U29*'Exh. ELJ-6 NG Bill Components'!$I$55+'Exh. ELJ-6 NG Bill Components'!$I$49*12+X29 -> 66887.9621 | AA29: 0.0615296469
A30: 26 | B30: Purina Mills Inc | C30: 15196 | D30: 16154 | E30: 16726 | F30: 15691 | G30: 11420 | H30: 10944 | I30: 9427 | J30: 9865 | K30: 8840 | L30: 9636 | M30: 12089 | N30: 12505 | O30: =SUM(C30:N30) -> 148493 | Q30: 148493 | R30: =R$3*12-SUM($Q30:Q30)-SUMPRODUCT(--($C30:$N30<=R$3),R$3-$C30:$N30) -> 0 | S30: =S$3*12-SUM($Q30:R30)-SUMPRODUCT(--($C30:$N30<=S$3),S$3-$C30:$N30) -> 0 | W30: =IF(O30<250000,(250000-O30)*'Exh. ELJ-6 NG Bill Components'!$E$56,0) -> 9476.69352 | X30: =IF(O30<250000,(250000-O30)*'Exh. ELJ-6 NG Bill Components'!$I$56,0) -> 10138.51916 | Y30: =Q30*'Exh. ELJ-6 NG Bill Components'!$D$51+'Big Schedules'!R30*'Exh. ELJ-6 NG Bill Components'!$D$52+'Big Schedules'!S30*'Exh. ELJ-6 NG Bill Components'!$D$53+'Big Schedules'!T30*'Exh. ELJ-6 NG Bill Components'!$D$54+'Big Schedules'!U30*'Exh. ELJ-6 NG Bill Components'!$D$55+'Exh. ELJ-6 NG Bill Components'!$D$49*12+W30 -> 32559.54894 | Z30: =Q30*'Exh. ELJ-6 NG Bill Components'!$I$51+'Big Schedules'!R30*'Exh. ELJ-6 NG Bill Components'!$I$52+'Big Schedules'!S30*'Exh. ELJ-6 NG Bill Components'!$I$53+'Big Schedules'!T30*'Exh. ELJ-6 NG Bill Components'!$I$54+'Big Schedules'!U30*'Exh. ELJ-6 NG Bill Components'!$I$55+'Exh. ELJ-6 NG Bill Components'!$I$49*12+X30 -> 34309.82827 | AA30: =Z30/Y30-1 -> 0.05375625237
A31: 27 | B31: SCC Campus | C31: 64337 | D31: 68698 | E31: 75769 | F31: 55838 | G31: 32071 | H31: 15671 | I31: 10009 | J31: 5501 | K31: 6010 | L31: 13549 | M31: 42664 | N31: 53454 | O31: 443571 | Q31: 190740 | R31: =R$3*12-SUM($Q31:Q31)-SUMPRODUCT(--($C31:$N31<=R$3),R$3-$C31:$N31) -> 184735 | S31: =S$3*12-SUM($Q31:R31)-SUMPRODUCT(--($C31:$N31<=S$3),S$3-$C31:$N31) -> 68096 | W31: =IF(O31<250000,(250000-O31)*'Exh. ELJ-6 NG Bill Components'!$E$56,0) -> 0 | X31: =IF(O31<250000,(250000-O31)*'Exh. ELJ-6 NG Bill Components'!$I$56,0) -> 0 | Y31: =Q31*'Exh. ELJ-6 NG Bill Components'!$D$51+'Big Schedules'!R31*'Exh. ELJ-6 NG Bill Components'!$D$52+'Big Schedules'!S31*'Exh. ELJ-6 NG Bill Components'!$D$53+'Big Schedules'!T31*'Exh. ELJ-6 NG Bill Components'!$D$54+'Big Schedules'!U31*'Exh. ELJ-6 NG Bill Components'!$D$55+'Exh. ELJ-6 NG Bill Components'!$D$49*12+W31 -> 50496.11744 | Z31: =Q31*'Exh. ELJ-6 NG Bill Components'!$I$51+'Big Schedules'!R31*'Exh. ELJ-6 NG Bill Components'!$I$52+'Big Schedules'!S31*'Exh. ELJ-6 NG Bill Components'!$I$53+'Big Schedules'!T31*'Exh. ELJ-6 NG Bill Components'!$I$54+'Big Schedules'!U31*'Exh. ELJ-6 NG Bill Components'!$I$55+'Exh. ELJ-6 NG Bill Components'!$I$49*12+X31 -> 53499.11832 | AA31: 0.05946993615
A32: 28 | B32: Shamrock Paving | C32: 0 | D32: 0 | E32: 0 | F32: 0 | G32: 11768 | H32: 25055 | I32: 28164 | J32: 23059 | K32: 21057 | L32: 21838 | M32: 32503 | N32: 11515 | O32: 174959 | Q32: 143283 | R32: =R$3*12-SUM($Q32:Q32)-SUMPRODUCT(--($C32:$N32<=R$3),R$3-$C32:$N32) -> 31676 | S32: =S$3*12-SUM($Q32:R32)-SUMPRODUCT(--($C32:$N32<=S$3),S$3-$C32:$N32) -> 0 | T32: =T$3*12-SUM($Q32:S32)-SUMPRODUCT(--($C32:$N32<=T$3),T$3-$C32:$N32) -> 0 | U32: =U$3*12-SUM($Q32:T32)-SUMPRODUCT(--($C32:$N32<=U$3),U$3-$C32:$N32) -> 0 | W32: =IF(O32<250000,(250000-O32)*'Exh. ELJ-6 NG Bill Components'!$E$56,0) -> 7005.82776 | X32: =IF(O32<250000,(250000-O32)*'Exh. ELJ-6 NG Bill Components'!$I$56,0) -> 7495.09508 | Y32: =Q32*'Exh. ELJ-6 NG Bill Components'!$D$51+'Big Schedules'!R32*'Exh. ELJ-6 NG Bill Components'!$D$52+'Big Schedules'!S32*'Exh. ELJ-6 NG Bill Components'!$D$53+'Big Schedules'!T32*'Exh. ELJ-6 NG Bill Components'!$D$54+'Big Schedules'!U32*'Exh. ELJ-6 NG Bill Components'!$D$55+'Exh. ELJ-6 NG Bill Components'!$D$49*12+W32 -> 32499.21714 | Z32: =Q32*'Exh. ELJ-6 NG Bill Components'!$I$51+'Big Schedules'!R32*'Exh. ELJ-6 NG Bill Components'!$I$52+'Big Schedules'!S32*'Exh. ELJ-6 NG Bill Components'!$I$53+'Big Schedules'!T32*'Exh. ELJ-6 NG Bill Components'!$I$54+'Big Schedules'!U32*'Exh. ELJ-6 NG Bill Components'!$I$55+'Exh. ELJ-6 NG Bill Components'!$I$49*12+X32 -> 34245.27637 | AA32: 0.05372619354
A33: 29 | B33: Eastern Washington University | C33: 308651 | D33: 313647 | E33: 335334 | F33: 279028 | G33: 180272 | H33: 124150 | I33: 108119 | J33: 99647 | K33: 97858 | L33: 128582 | M33: 228917 | N33: 272415 | O33: 2476620 | Q33: 240000 | R33: =R$3*12-SUM($Q33:Q33)-SUMPRODUCT(--($C33:$N33<=R$3),R$3-$C33:$N33) -> 360000 | S33: =S$3*12-SUM($Q33:R33)-SUMPRODUCT(--($C33:$N33<=S$3),S$3-$C33:$N33) -> 1818988 | T33: =T$3*12-SUM($Q33:S33)-SUMPRODUCT(--($C33:$N33<=T$3),T$3-$C33:$N33) -> 57632 | U33: =U$3*12-SUM($Q33:T33)-SUMPRODUCT(--($C33:$N33<=U$3),U$3-$C33:$N33) -> 0 | W33: =IF(O33<250000,(250000-O33)*'Exh. ELJ-6 NG Bill Components'!$E$56,0) -> 0 | X33: =IF(O33<250000,(250000-O33)*'Exh. ELJ-6 NG Bill Components'!$I$56,0) -> 0 | Y33: =Q33*'Exh. ELJ-6 NG Bill Components'!$D$51+'Big Schedules'!R33*'Exh. ELJ-6 NG Bill Components'!$D$52+'Big Schedules'!S33*'Exh. ELJ-6 NG Bill Components'!$D$53+'Big Schedules'!T33*'Exh. ELJ-6 NG Bill Components'!$D$54+'Big Schedules'!U33*'Exh. ELJ-6 NG Bill Components'!$D$55+'Exh. ELJ-6 NG Bill Components'!$D$49*12+W33 -> 223922.4509 | Z33: =Q33*'Exh. ELJ-6 NG Bill Components'!$I$51+'Big Schedules'!R33*'Exh. ELJ-6 NG Bill Components'!$I$52+'Big Schedules'!S33*'Exh. ELJ-6 NG Bill Components'!$I$53+'Big Schedules'!T33*'Exh. ELJ-6 NG Bill Components'!$I$54+'Big Schedules'!U33*'Exh. ELJ-6 NG Bill Components'!$I$55+'Exh. ELJ-6 NG Bill Components'!$I$49*12+X33 -> 239038.0184 | AA33: 0.06750358197
A34: 30 | B34: Lakeland Village | C34: 56138 | D34: 57943 | E34: 58378 | F34: 52527 | G34: 40628 | H34: 33082 | I34: 27902 | J34: 26873 | K34: 26833 | L34: 32842 | M34: 48228 | N34: 50926 | O34: 512300 | Q34: 240000 | R34: =R$3*12-SUM($Q34:Q34)-SUMPRODUCT(--($C34:$N34<=R$3),R$3-$C34:$N34) -> 246388 | S34: =S$3*12-SUM($Q34:R34)-SUMPRODUCT(--($C34:$N34<=S$3),S$3-$C34:$N34) -> 25912 | T34: =T$3*12-SUM($Q34:S34)-SUMPRODUCT(--($C34:$N34<=T$3),T$3-$C34:$N34) -> 0 | U34: =U$3*12-SUM($Q34:T34)-SUMPRODUCT(--($C34:$N34<=U$3),U$3-$C34:$N34) -> 0 | W34: =IF(O34<250000,(250000-O34)*'Exh. ELJ-6 NG Bill Components'!$E$56,0) -> 0 | X34: =IF(O34<250000,(250000-O34)*'Exh. ELJ-6 NG Bill Components'!$I$56,0) -> 0 | Y34: =Q34*'Exh. ELJ-6 NG Bill Components'!$D$51+'Big Schedules'!R34*'Exh. ELJ-6 NG Bill Components'!$D$52+'Big Schedules'!S34*'Exh. ELJ-6 NG Bill Components'!$D$53+'Big Schedules'!T34*'Exh. ELJ-6 NG Bill Components'!$D$54+'Big Schedules'!U34*'Exh. ELJ-6 NG Bill Components'!$D$55+'Exh. ELJ-6 NG Bill Components'!$D$49*12+W34 -> 57869.91496 | Z34: =Q34*'Exh. ELJ-6 NG Bill Components'!$I$51+'Big Schedules'!R34*'Exh. ELJ-6 NG Bill Components'!$I$52+'Big Schedules'!S34*'Exh. ELJ-6 NG Bill Components'!$I$53+'Big Schedules'!T34*'Exh. ELJ-6 NG Bill Components'!$I$54+'Big Schedules'!U34*'Exh. ELJ-6 NG Bill Components'!$I$55+'Exh. ELJ-6 NG Bill Components'!$I$49*12+X34 -> 61387.92728 | AA34: 0.06079173129
A35: 31 | B35: Spokane Falls Campus | C35: 50834 | D35: 52265 | E35: 58117 | F35: 44232 | G35: 25371 | H35: 12586 | I35: 7623 | J35: 4152 | K35: 3759 | L35: 11002 | M35: 31101 | N35: 39657 | O35: 340699 | Q35: 179122 | R35: =R$3*12-SUM($Q35:Q35)-SUMPRODUCT(--($C35:$N35<=R$3),R$3-$C35:$N35) -> 150361 | S35: =S$3*12-SUM($Q35:R35)-SUMPRODUCT(--($C35:$N35<=S$3),S$3-$C35:$N35) -> 11216 | T35: =T$3*12-SUM($Q35:S35)-SUMPRODUCT(--($C35:$N35<=T$3),T$3-$C35:$N35) -> 0 | U35: =U$3*12-SUM($Q35:T35)-SUMPRODUCT(--($C35:$N35<=U$3),U$3-$C35:$N35) -> 0 | W35: =IF(O35<250000,(250000-O35)*'Exh. ELJ-6 NG Bill Components'!$E$56,0) -> 0 | X35: =IF(O35<250000,(250000-O35)*'Exh. ELJ-6 NG Bill Components'!$I$56,0) -> 0 | Y35: =Q35*'Exh. ELJ-6 NG Bill Components'!$D$51+'Big Schedules'!R35*'Exh. ELJ-6 NG Bill Components'!$D$52+'Big Schedules'!S35*'Exh. ELJ-6 NG Bill Components'!$D$53+'Big Schedules'!T35*'Exh. ELJ-6 NG Bill Components'!$D$54+'Big Schedules'!U35*'Exh. ELJ-6 NG Bill Components'!$D$55+'Exh. ELJ-6 NG Bill Components'!$D$49*12+W35 -> 41279.04068 | Z35: =Q35*'Exh. ELJ-6 NG Bill Components'!$I$51+'Big Schedules'!R35*'Exh. ELJ-6 NG Bill Components'!$I$52+'Big Schedules'!S35*'Exh. ELJ-6 NG Bill Components'!$I$53+'Big Schedules'!T35*'Exh. ELJ-6 NG Bill Components'!$I$54+'Big Schedules'!U35*'Exh. ELJ-6 NG Bill Components'!$I$55+'Exh. ELJ-6 NG Bill Components'!$I$49*12+X35 -> 43638.30874 | AA35: 0.05715413976
A36: 32 | B36: Alsco | C36: 20180 | D36: 21571 | E36: 19566 | F36: 19367 | G36: 20166 | H36: 20092 | I36: 18183 | J36: 19828 | K36: 18997 | L36: 18754 | M36: 22063 | N36: 18994 | O36: 237761 | Q36: 233689 | R36: =R$3*12-SUM($Q36:Q36)-SUMPRODUCT(--($C36:$N36<=R$3),R$3-$C36:$N36) -> 4072 | S36: =S$3*12-SUM($Q36:R36)-SUMPRODUCT(--($C36:$N36<=S$3),S$3-$C36:$N36) -> 0 | T36: =T$3*12-SUM($Q36:S36)-SUMPRODUCT(--($C36:$N36<=T$3),T$3-$C36:$N36) -> 0 | U36: =U$3*12-SUM($Q36:T36)-SUMPRODUCT(--($C36:$N36<=U$3),U$3-$C36:$N36) -> 0 | W36: =IF(O36<250000,(250000-O36)*'Exh. ELJ-6 NG Bill Components'!$E$56,0) -> 1142.63304 | X36: =IF(O36<250000,(250000-O36)*'Exh. ELJ-6 NG Bill Components'!$I$56,0) -> 1222.43132 | Y36: =Q36*'Exh. ELJ-6 NG Bill Components'!$D$51+'Big Schedules'!R36*'Exh. ELJ-6 NG Bill Components'!$D$52+'Big Schedules'!S36*'Exh. ELJ-6 NG Bill Components'!$D$53+'Big Schedules'!T36*'Exh. ELJ-6 NG Bill Components'!$D$54+'Big Schedules'!U36*'Exh. ELJ-6 NG Bill Components'!$D$55+'Exh. ELJ-6 NG Bill Components'!$D$49*12+W36 -> 33546.11862 | Z36: =Q36*'Exh. ELJ-6 NG Bill Components'!$I$51+'Big Schedules'!R36*'Exh. ELJ-6 NG Bill Components'!$I$52+'Big Schedules'!S36*'Exh. ELJ-6 NG Bill Components'!$I$53+'Big Schedules'!T36*'Exh. ELJ-6 NG Bill Components'!$I$54+'Big Schedules'!U36*'Exh. ELJ-6 NG Bill Components'!$I$55+'Exh. ELJ-6 NG Bill Components'!$I$49*12+X36 -> 35365.40671 | AA36: 0.0542324467
A37: 33 | B37: Lamb Weston | C37: 83677 | D37: 81422 | E37: 87580 | F37: 59692 | G37: 13623 | H37: 2331 | I37: 17 | J37: 0 | K37: 0 | L37: 2464 | M37: 46894 | N37: 90804 | O37: =SUM(C37:N37) -> 468504 | Q37: 138435 | R37: =R$3*12-SUM($Q37:Q37)-SUMPRODUCT(--($C37:$N37<=R$3),R$3-$C37:$N37) -> 176894 | S37: =S$3*12-SUM($Q37:R37)-SUMPRODUCT(--($C37:$N37<=S$3),S$3-$C37:$N37) -> 153175 | T37: =T$3*12-SUM($Q37:S37)-SUMPRODUCT(--($C37:$N37<=T$3),T$3-$C37:$N37) -> 0 | U37: =U$3*12-SUM($Q37:T37)-SUMPRODUCT(--($C37:$N37<=U$3),U$3-$C37:$N37) -> 0 | W37: =IF(O37<250000,(250000-O37)*'Exh. ELJ-6 NG Bill Components'!$E$56,0) -> 0 | X37: =IF(O37<250000,(250000-O37)*'Exh. ELJ-6 NG Bill Components'!$I$56,0) -> 0 | Y37: =Q37*'Exh. ELJ-6 NG Bill Components'!$D$51+'Big Schedules'!R37*'Exh. ELJ-6 NG Bill Components'!$D$52+'Big Schedules'!S37*'Exh. ELJ-6 NG Bill Components'!$D$53+'Big Schedules'!T37*'Exh. ELJ-6 NG Bill Components'!$D$54+'Big Schedules'!U37*'Exh. ELJ-6 NG Bill Components'!$D$55+'Exh. ELJ-6 NG Bill Components'!$D$49*12+W37 -> 51437.99599 | Z37: =Q37*'Exh. ELJ-6 NG Bill Components'!$I$51+'Big Schedules'!R37*'Exh. ELJ-6 NG Bill Components'!$I$52+'Big Schedules'!S37*'Exh. ELJ-6 NG Bill Components'!$I$53+'Big Schedules'!T37*'Exh. ELJ-6 NG Bill Components'!$I$54+'Big Schedules'!U37*'Exh. ELJ-6 NG Bill Components'!$I$55+'Exh. ELJ-6 NG Bill Components'!$I$49*12+X37 -> 54506.74242 | AA37: =Z37/Y37-1 -> 0.05965913662
A38: 34 | B38: Creach Greenhouse | C38: 45465 | D38: 56740 | E38: 87025 | F38: 58156 | G38: 27596 | H38: 12841 | I38: 3854 | J38: 3039 | K38: 3299 | L38: 12869 | M38: 39295 | N38: 46526 | O38: 396705 | Q38: 175902 | R38: =R$3*12-SUM($Q38:Q38)-SUMPRODUCT(--($C38:$N38<=R$3),R$3-$C38:$N38) -> 168882 | S38: =S$3*12-SUM($Q38:R38)-SUMPRODUCT(--($C38:$N38<=S$3),S$3-$C38:$N38) -> 51921 | T38: =T$3*12-SUM($Q38:S38)-SUMPRODUCT(--($C38:$N38<=T$3),T$3-$C38:$N38) -> 0 | U38: =U$3*12-SUM($Q38:T38)-SUMPRODUCT(--($C38:$N38<=U$3),U$3-$C38:$N38) -> 0 | W38: =IF(O38<250000,(250000-O38)*'Exh. ELJ-6 NG Bill Components'!$E$56,0) -> 0 | X38: =IF(O38<250000,(250000-O38)*'Exh. ELJ-6 NG Bill Components'!$I$56,0) -> 0 | Y38: =Q38*'Exh. ELJ-6 NG Bill Components'!$D$51+'Big Schedules'!R38*'Exh. ELJ-6 NG Bill Components'!$D$52+'Big Schedules'!S38*'Exh. ELJ-6 NG Bill Components'!$D$53+'Big Schedules'!T38*'Exh. ELJ-6 NG Bill Components'!$D$54+'Big Schedules'!U38*'Exh. ELJ-6 NG Bill Components'!$D$55+'Exh. ELJ-6 NG Bill Components'!$D$49*12+W38 -> 46097.20839 | Z38: =Q38*'Exh. ELJ-6 NG Bill Components'!$I$51+'Big Schedules'!R38*'Exh. ELJ-6 NG Bill Components'!$I$52+'Big Schedules'!S38*'Exh. ELJ-6 NG Bill Components'!$I$53+'Big Schedules'!T38*'Exh. ELJ-6 NG Bill Components'!$I$54+'Big Schedules'!U38*'Exh. ELJ-6 NG Bill Components'!$I$55+'Exh. ELJ-6 NG Bill Components'!$I$49*12+X38 -> 48792.97617 | AA38: 0.0584800658
A39: 35 | B39: Sacred Heart Medical Center | C39: 271736 | D39: 275120 | E39: 304766 | F39: 253635 | G39: 183371 | H39: 160654 | I39: 144340 | J39: 145387 | K39: 143497 | L39: 156428 | M39: 214443 | N39: 232377 | O39: 2485754 | Q39: 240000 | R39: =R$3*12-SUM($Q39:Q39)-SUMPRODUCT(--($C39:$N39<=R$3),R$3-$C39:$N39) -> 360000 | S39: =S$3*12-SUM($Q39:R39)-SUMPRODUCT(--($C39:$N39<=S$3),S$3-$C39:$N39) -> 1880988 | T39: =T$3*12-SUM($Q39:S39)-SUMPRODUCT(--($C39:$N39<=T$3),T$3-$C39:$N39) -> 4766 | U39: =U$3*12-SUM($Q39:T39)-SUMPRODUCT(--($C39:$N39<=U$3),U$3-$C39:$N39) -> 0 | W39: =IF(O39<250000,(250000-O39)*'Exh. ELJ-6 NG Bill Components'!$E$56,0) -> 0 | X39: =IF(O39<250000,(250000-O39)*'Exh. ELJ-6 NG Bill Components'!$I$56,0) -> 0 | Y39: =Q39*'Exh. ELJ-6 NG Bill Components'!$D$51+'Big Schedules'!R39*'Exh. ELJ-6 NG Bill Components'!$D$52+'Big Schedules'!S39*'Exh. ELJ-6 NG Bill Components'!$D$53+'Big Schedules'!T39*'Exh. ELJ-6 NG Bill Components'!$D$54+'Big Schedules'!U39*'Exh. ELJ-6 NG Bill Components'!$D$55+'Exh. ELJ-6 NG Bill Components'!$D$49*12+W39 -> 225026.6128 | Z39: =Q39*'Exh. ELJ-6 NG Bill Components'!$I$51+'Big Schedules'!R39*'Exh. ELJ-6 NG Bill Components'!$I$52+'Big Schedules'!S39*'Exh. ELJ-6 NG Bill Components'!$I$53+'Big Schedules'!T39*'Exh. ELJ-6 NG Bill Components'!$I$54+'Big Schedules'!U39*'Exh. ELJ-6 NG Bill Components'!$I$55+'Exh. ELJ-6 NG Bill Components'!$I$49*12+X39 -> 240219.1493 | AA39: 0.06751439881
A40: 36 | B40: Veterans Admin Hospital | C40: 64659 | D40: 65416 | E40: 69752 | F40: 62318 | G40: 51049 | H40: 47456 | I40: 43164 | J40: 40990 | K40: 36980 | L40: 43207 | M40: 56514 | N40: 60373 | O40: 641878 | Q40: 240000 | R40: =R$3*12-SUM($Q40:Q40)-SUMPRODUCT(--($C40:$N40<=R$3),R$3-$C40:$N40) -> 321797 | S40: =S$3*12-SUM($Q40:R40)-SUMPRODUCT(--($C40:$N40<=S$3),S$3-$C40:$N40) -> 80081 | T40: =T$3*12-SUM($Q40:S40)-SUMPRODUCT(--($C40:$N40<=T$3),T$3-$C40:$N40) -> 0 | U40: =U$3*12-SUM($Q40:T40)-SUMPRODUCT(--($C40:$N40<=U$3),U$3-$C40:$N40) -> 0 | W40: =IF(O40<250000,(250000-O40)*'Exh. ELJ-6 NG Bill Components'!$E$56,0) -> 0 | X40: =IF(O40<250000,(250000-O40)*'Exh. ELJ-6 NG Bill Components'!$I$56,0) -> 0 | Y40: =Q40*'Exh. ELJ-6 NG Bill Components'!$D$51+'Big Schedules'!R40*'Exh. ELJ-6 NG Bill Components'!$D$52+'Big Schedules'!S40*'Exh. ELJ-6 NG Bill Components'!$D$53+'Big Schedules'!T40*'Exh. ELJ-6 NG Bill Components'!$D$54+'Big Schedules'!U40*'Exh. ELJ-6 NG Bill Components'!$D$55+'Exh. ELJ-6 NG Bill Components'!$D$49*12+W40 -> 69470.58731 | Z40: =Q40*'Exh. ELJ-6 NG Bill Components'!$I$51+'Big Schedules'!R40*'Exh. ELJ-6 NG Bill Components'!$I$52+'Big Schedules'!S40*'Exh. ELJ-6 NG Bill Components'!$I$53+'Big Schedules'!T40*'Exh. ELJ-6 NG Bill Components'!$I$54+'Big Schedules'!U40*'Exh. ELJ-6 NG Bill Components'!$I$55+'Exh. ELJ-6 NG Bill Components'!$I$49*12+X40 -> 73798.78003 | AA40: 0.06230252093
A41: 37 | B41: Eastern State Hospital | C41: 54886 | D41: 55088 | E41: 57957 | F41: 49719 | G41: 35468 | H41: 23816 | I41: 18528 | J41: 14997 | K41: 13918 | L41: 25961 | M41: 43631 | N41: 47769 | O41: 441738 | Q41: 227443 | R41: =R$3*12-SUM($Q41:Q41)-SUMPRODUCT(--($C41:$N41<=R$3),R$3-$C41:$N41) -> 196364 | S41: =S$3*12-SUM($Q41:R41)-SUMPRODUCT(--($C41:$N41<=S$3),S$3-$C41:$N41) -> 17931 | T41: =T$3*12-SUM($Q41:S41)-SUMPRODUCT(--($C41:$N41<=T$3),T$3-$C41:$N41) -> 0 | U41: =U$3*12-SUM($Q41:T41)-SUMPRODUCT(--($C41:$N41<=U$3),U$3-$C41:$N41) -> 0 | W41: =IF(O41<250000,(250000-O41)*'Exh. ELJ-6 NG Bill Components'!$E$56,0) -> 0 | X41: =IF(O41<250000,(250000-O41)*'Exh. ELJ-6 NG Bill Components'!$I$56,0) -> 0 | Y41: =Q41*'Exh. ELJ-6 NG Bill Components'!$D$51+'Big Schedules'!R41*'Exh. ELJ-6 NG Bill Components'!$D$52+'Big Schedules'!S41*'Exh. ELJ-6 NG Bill Components'!$D$53+'Big Schedules'!T41*'Exh. ELJ-6 NG Bill Components'!$D$54+'Big Schedules'!U41*'Exh. ELJ-6 NG Bill Components'!$D$55+'Exh. ELJ-6 NG Bill Components'!$D$49*12+W41 -> 51210.02235 | Z41: =Q41*'Exh. ELJ-6 NG Bill Components'!$I$51+'Big Schedules'!R41*'Exh. ELJ-6 NG Bill Components'!$I$52+'Big Schedules'!S41*'Exh. ELJ-6 NG Bill Components'!$I$53+'Big Schedules'!T41*'Exh. ELJ-6 NG Bill Components'!$I$54+'Big Schedules'!U41*'Exh. ELJ-6 NG Bill Components'!$I$55+'Exh. ELJ-6 NG Bill Components'!$I$49*12+X41 -> 54262.9071 | AA41: 0.0596149857
A42: 38 | B42: Lane Mt Silica Co | C42: 100131 | D42: 83882 | E42: 53330 | F42: 82757 | G42: 73901 | H42: 86582 | I42: 89751 | J42: 95273 | K42: 104949 | L42: 102047 | M42: 104729 | N42: 97346 | O42: 1074678 | Q42: 240000 | R42: =R$3*12-SUM($Q42:Q42)-SUMPRODUCT(--($C42:$N42<=R$3),R$3-$C42:$N42) -> 360000 | S42: =S$3*12-SUM($Q42:R42)-SUMPRODUCT(--($C42:$N42<=S$3),S$3-$C42:$N42) -> 474678 | T42: =T$3*12-SUM($Q42:S42)-SUMPRODUCT(--($C42:$N42<=T$3),T$3-$C42:$N42) -> 0 | U42: =U$3*12-SUM($Q42:T42)-SUMPRODUCT(--($C42:$N42<=U$3),U$3-$C42:$N42) -> 0 | W42: =IF(O42<250000,(250000-O42)*'Exh. ELJ-6 NG Bill Components'!$E$56,0) -> 0 | X42: =IF(O42<250000,(250000-O42)*'Exh. ELJ-6 NG Bill Components'!$I$56,0) -> 0 | Y42: =Q42*'Exh. ELJ-6 NG Bill Components'!$D$51+'Big Schedules'!R42*'Exh. ELJ-6 NG Bill Components'!$D$52+'Big Schedules'!S42*'Exh. ELJ-6 NG Bill Components'!$D$53+'Big Schedules'!T42*'Exh. ELJ-6 NG Bill Components'!$D$54+'Big Schedules'!U42*'Exh. ELJ-6 NG Bill Components'!$D$55+'Exh. ELJ-6 NG Bill Components'!$D$49*12+W42 -> 106258.3408 | Z42: =Q42*'Exh. ELJ-6 NG Bill Components'!$I$51+'Big Schedules'!R42*'Exh. ELJ-6 NG Bill Components'!$I$52+'Big Schedules'!S42*'Exh. ELJ-6 NG Bill Components'!$I$53+'Big Schedules'!T42*'Exh. ELJ-6 NG Bill Components'!$I$54+'Big Schedules'!U42*'Exh. ELJ-6 NG Bill Components'!$I$55+'Exh. ELJ-6 NG Bill Components'!$I$49*12+X42 -> 113155.8475 | AA42: 0.06491261379
O43: 0 | Q43: 0 | R43: =R$3*12-SUM($Q43:Q43)-SUMPRODUCT(--($C43:$N43<=R$3),R$3-$C43:$N43) -> 0 | S43: =S$3*12-SUM($Q43:R43)-SUMPRODUCT(--($C43:$N43<=S$3),S$3-$C43:$N43) -> 0 | T43: =T$3*12-SUM($Q43:S43)-SUMPRODUCT(--($C43:$N43<=T$3),T$3-$C43:$N43) -> 0 | U43: =U$3*12-SUM($Q43:T43)-SUMPRODUCT(--($C43:$N43<=U$3),U$3-$C43:$N43) -> 0
B47: Total WA Sch 146 | C47: =SUM(C5:C46) -> 3476182 | D47: 3843413 | E47: 3968332 | F47: 3626532 | G47: 3078530 | H47: 2578802 | I47: 2404144 | J47: 2412367 | K47: 2314931 | L47: 2546043 | M47: 3376797 | N47: 3544158.868 | O47: =IF(ROUND(SUM(O5:O46),3)<>ROUND(SUM(C47:N47),3),#VALUE!,SUM(C47:N47)) -> 37170231.87 | Q47: =SUM(Q5:Q46) -> 8146142 | R47: =SUM(R5:R46) -> 8282125 | S47: =SUM(S5:S46) -> 14410467 | T47: =SUM(T5:T46) -> 2975780.868 | U47: =SUM(U5:U46) -> 3355717 | W47: =SUM(W5:W46) -> 26560.54656 | X47: =SUM(X5:X46) -> 28415.46048 | Y47: =SUM(Y5:Y46) -> 3580860.637 | Z47: =SUM(Z5:Z46) -> 3811072.903 | AA47: 0.06428964697
U48: =SUM(Q47:U47) -> 37170231.87 | Y48: =(Y47/1000)-'Proposed Increase'!D18 -> 4.538010216e-07 | Z48: =(Z47/1000)-'Proposed Increase'!F18 -> 2.725718787e-06
B49: Revenue Runs | C49: ='12MEDEC19'!D166 -> 3545563 | D49: ='12MEDEC19'!E166 -> 3917949 | E49: ='12MEDEC19'!F166 -> 4055434 | F49: ='12MEDEC19'!G166 -> 3694851 | G49: ='12MEDEC19'!H166 -> 3110140 | H49: ='12MEDEC19'!I166 -> 2599480 | I49: ='12MEDEC19'!J166 -> 2420678 | J49: ='12MEDEC19'!K166 -> 2424503 | K49: ='12MEDEC19'!L166 -> 2325589 | L49: ='12MEDEC19'!M166 -> 2566070 | M49: ='12MEDEC19'!N166 -> 3210635 | N49: ='12MEDEC19'!O166 -> 3207391 | O49: =SUM(C49:N49) -> 37078283 | P49: =#REF! ->  | Q49: 1st | R49: =Q50 -> 200 | S49: =R50 -> 1000 | T49: =S50 -> 10000 | U49: =T50 -> 25000
O50: =SUM(C50:N50) -> 0 | Q50: 200 | R50: 1000 | S50: 10000 | T50: 25000 | U50: 99999999
B51: 92 Ces/Cer-M (to Sch 112 Nov-Dec) Back to 146 on Oct 20 | M51: =M6 -> 218461 | N51: =N6 -> 336767.868 | O51: 555228.868 | Q51: =(Q$50*12-SUMPRODUCT(--($C51:$N51<=Q$50),Q$50-$C51:$N51)) -> 400 | R51: =R$50*12-SUM($Q51:Q51)-SUMPRODUCT(--($C51:$N51<=R$50),R$50-$C51:$N51) -> 1600 | S51: =S$50*12-SUM($Q51:R51)-SUMPRODUCT(--($C51:$N51<=S$50),S$50-$C51:$N51) -> 18000 | T51: =T$50*12-SUM($Q51:S51)-SUMPRODUCT(--($C51:$N51<=T$50),T$50-$C51:$N51) -> 30000 | U51: =U$50*12-SUM($Q51:T51)-SUMPRODUCT(--($C51:$N51<=U$50),U$50-$C51:$N51) -> 505228.868
B52: Triumph Composite (to Sch 112) | C52: 69381 | D52: 74536 | E52: 87102 | F52: 68319 | G52: 31610 | H52: 20678 | I52: 16534 | J52: 12136 | K52: 10658 | L52: 20027 | M52: 52299 | N52: 0 | O52: 463280 | Q52: =Q$50*12-SUMPRODUCT(--($C52:$N52<=Q$50),Q$50-$C52:$N52) -> 2200 | R52: =R$50*12-SUM($Q52:Q52)-SUMPRODUCT(--($C52:$N52<=R$50),R$50-$C52:$N52) -> 8800 | S52: =S$50*12-SUM($Q52:R52)-SUMPRODUCT(--($C52:$N52<=S$50),S$50-$C52:$N52) -> 99000 | T52: =T$50*12-SUM($Q52:S52)-SUMPRODUCT(--($C52:$N52<=T$50),T$50-$C52:$N52) -> 120033 | U52: =U$61*12-SUM($Q52:T52)-SUMPRODUCT(--($C52:$N52<=U$61),U$61-$C52:$N52) -> 233247
O53: 0 | Q53: 0 | R53: =R$50*12-SUM($Q53:Q53)-SUMPRODUCT(--($C53:$N53<=R$50),R$50-$C53:$N53) -> 0 | S53: =S$50*12-SUM($Q53:R53)-SUMPRODUCT(--($C53:$N53<=S$50),S$50-$C53:$N53) -> 0 | T53: =T$50*12-SUM($Q53:S53)-SUMPRODUCT(--($C53:$N53<=T$50),T$50-$C53:$N53) -> 0 | U53: =U$61*12-SUM($Q53:T53)-SUMPRODUCT(--($C53:$N53<=U$61),U$61-$C53:$N53) -> 0
O54: 0 | Q54: 0 | R54: =R$50*12-SUM($Q54:Q54)-SUMPRODUCT(--($C54:$N54<=R$50),R$50-$C54:$N54) -> 0 | S54: =S$50*12-SUM($Q54:R54)-SUMPRODUCT(--($C54:$N54<=S$50),S$50-$C54:$N54) -> 0 | T54: =T$50*12-SUM($Q54:S54)-SUMPRODUCT(--($C54:$N54<=T$50),T$50-$C54:$N54) -> 0 | Y54: =COUNT(O5:P45) -> 39
O55: =SUM(C55:N55) -> 0 | Q55: =SUM(Q51:Q54) -> 2600 | R55: =SUM(R51:R54) -> 10400 | S55: 117000 | T55: 150033 | U55: 738475.868
O56: =SUM(C56:N56) -> 0 | Q56: =Q$50*12-SUMPRODUCT(--($C56:$N56<=Q$50),Q$50-$C56:$N56) -> 0 | R56: =R$50*12-SUM($Q56:Q56)-SUMPRODUCT(--($C56:$N56<=R$50),R$50-$C56:$N56) -> 0 | S56: =S$50*12-SUM($Q56:R56)-SUMPRODUCT(--($C56:$N56<=S$50),S$50-$C56:$N56) -> 0
O57: 0
B58: Total Sch 146 | C58: =C49-SUM(C51:C56) -> 3476182 | D58: =D49-SUM(D51:D56) -> 3843413 | E58: 3968332 | F58: 3626532 | G58: 3078530 | H58: 2578802 | I58: 2404144 | J58: 2412367 | K58: 2314931 | L58: 2546043 | M58: 2939875 | N58: 2870623.132 | O58: 36059774.13 | Q58: =SUM(Q51:Q54) -> 2600 | R58: =SUM(R51:R54) -> 10400 | S58: =SUM(S51:S54) -> 117000 | T58: 150033 | U58: 738475.868 | V58: =SUM(Q58:U58) -> 1018508.868
C59: =C47-C58 -> 0 | D59: =D47-D58 -> 0 | E59: =E47-E58 -> 0 | F59: 0 | G59: 0 | H59: 0 | I59: 0 | J59: 0 | K59: 0 | L59: 0 | M59: 436922 | N59: 673535.736 | O59: 1110457.736 | Q59: =SUM(Q55:Q56) -> 2600 | R59: =SUM(R55:R56) -> 10400 | S59: =SUM(S55:S56) -> 117000
C60: =COUNT(C5:C43) -> 38 | D60: 38 | E60: 38 | F60: 38 | G60: 38 | H60: 38 | I60: 38 | J60: 38 | K60: 38 | L60: 38 | M60: 38 | N60: 38 | Q60: 1st | R60: =Q61 -> 200 | S60: =R61 -> 1000 | T60: =S61 -> 10000 | U60: =T61 -> 25000
B61: ANNUAL USAGE, Sch 121/122 | Q61: 200 | R61: 1000 | S61: 10000 | T61: 25000 | U61: 99999999
B62: Washington | C62: =C4 -> 2019-01-01 | D62: 2019-02-01 | E62: 2019-03-01 | F62: 2019-04-01 | G62: 2019-05-01 | H62: 2019-06-01 | I62: 2019-07-01 | J62: 2019-08-01 | K62: 2019-09-01 | L62: 2019-10-01 | M62: 2019-11-01 | N62: 2019-12-01 | O62: Total | Q62: thms/mo | R62: thms/mo | S62: thms/mo | T62: thms/mo | U62: thms/mo | X62: 2014-10-01 | AD62: 2014-11-01 | AJ62: 2014-12-01 | AP62: 2015-01-01
B63: Discontinued in UG-190335 | O63: =SUM(B63:N63) -> 0 | Q63: =Q$61*12-SUMPRODUCT(--($B63:$N63<=Q$61),Q$61-$B63:$N63) ->  | R63: =R$61*12-SUM($Q63:Q63)-SUMPRODUCT(--($B63:$N63<=R$61),R$61-$B63:$N63) ->  | S63: =S$61*12-SUM($Q63:R63)-SUMPRODUCT(--($B63:$N63<=S$61),S$61-$B63:$N63) ->  | T63: =T$61*12-SUM($Q63:S63)-SUMPRODUCT(--($B63:$N63<=T$61),T$61-$B63:$N63) ->  | U63: =U$61*12-SUM($Q63:T63)-SUMPRODUCT(--($B63:$N63<=U$61),U$61-$B63:$N63) -> 
O64: =SUM(C64:N64) -> 0 | Q64: =Q$61*12-SUMPRODUCT(--($C64:$N64<=Q$61),Q$61-$C64:$N64) -> 0 | R64: =R$61*12-SUM($Q64:Q64)-SUMPRODUCT(--($C64:$N64<=R$61),R$61-$C64:$N64) -> 0 | S64: =S$61*12-SUM($Q64:R64)-SUMPRODUCT(--($C64:$N64<=S$61),S$61-$C64:$N64) -> 0 | T64: =T$61*12-SUM($Q64:S64)-SUMPRODUCT(--($C64:$N64<=T$61),T$61-$C64:$N64) -> 0 | U64: =U$61*12-SUM($Q64:T64)-SUMPRODUCT(--($C64:$N64<=U$61),U$61-$C64:$N64) -> 0
B65: Total WA Sch 121/122 | C65: =SUM(B63:B63) -> 0 | D65: =SUM(D63:D64) -> 0 | E65: 0 | F65: 0 | G65: 0 | H65: 0 | I65: 0 | J65: 0 | K65: 0 | L65: 0 | M65: 0 | N65: 0 | O65: =IF(ROUND(SUM(O63:O64),3)<>ROUND(SUM(C65:N65),3),#VALUE!,SUM(C65:N65)) -> 0 | Q65: =SUM(Q63:Q64) ->  | R65: =SUM(R63:R64) ->  | S65: =SUM(S63:S64) ->  | T65: =SUM(T63:T64) ->  | U65: =SUM(U63:U64) ->  | X65: =SUM(X63:X64) -> 0 | Y65: =SUM(Y63:Y64) -> 0 | Z65: =SUM(Z63:Z64) -> 0 | AA65: =SUM(AA63:AA64) -> 0 | AB65: =SUM(AB63:AB64) -> 0 | AD65: =SUM(AD63:AD64) -> 0 | AE65: =SUM(AE63:AE64) -> 0 | AF65: =SUM(AF63:AF64) -> 0 | AG65: =SUM(AG63:AG64) -> 0 | AH65: =SUM(AH63:AH64) -> 0 | AJ65: =SUM(AJ63:AJ64) -> 0 | AK65: =SUM(AK63:AK64) -> 0 | AL65: =SUM(AL63:AL64) -> 0 | AM65: =SUM(AM63:AM64) -> 0 | AN65: =SUM(AN63:AN64) -> 0 | AP65: =SUM(AP63:AP64) -> 0 | AQ65: =SUM(AQ63:AQ64) -> 0 | AR65: =SUM(AR63:AR64) -> 0 | AS65: =SUM(AS63:AS64) -> 0 | AT65: =SUM(AT63:AT64) -> 0
U66: =SUM(Q65:U65) -> 
B67: Revenue Runs | O67: =SUM(C67:N67) -> 0
O68: =SUM(C68:N68) -> 0 | Q68: =Q$61*12-SUMPRODUCT(--($C68:$N68<=Q$61),Q$61-$C68:$N68) -> 0 | R68: =R$61*12-SUM($Q68:Q68)-SUMPRODUCT(--($C68:$N68<=R$61),R$61-$C68:$N68) -> 0 | S68: =S$61*12-SUM($Q68:R68)-SUMPRODUCT(--($C68:$N68<=S$61),S$61-$C68:$N68) -> 0 | T68: =T$61*12-SUM($Q68:S68)-SUMPRODUCT(--($C68:$N68<=T$61),T$61-$C68:$N68) -> 0 | U68: =U$61*12-SUM($Q68:T68)-SUMPRODUCT(--($C68:$N68<=U$61),U$61-$C68:$N68) -> 0
O69: =SUM(C69:N69) -> 0 | Y69: =COUNT(#REF!) -> 0
O70: 0
B71: Total WA Sch 121/122 | C71: =C67-SUM(C68:C70) -> 0 | D71: =D67-SUM(D68:D70) -> 0 | E71: 0 | F71: 0 | G71: 0 | H71: 0 | I71: 0 | J71: 0 | K71: 0 | L71: 0 | M71: 0 | N71: 0 | O71: =IF(ROUND(O67-SUM(O68:O70),3)<>ROUND(SUM(C71:N71),3),#VALUE!,SUM(C71:N71)) -> 0
O72: =O65-O71 -> 0
L73: =COUNT(#REF!) -> 0 | M73: =COUNT(#REF!) -> 0 | N73: =COUNT(#REF!) -> 0
B74: ANNUAL USAGE, Sch 132 | O74: 12-mo ended | Q74: 10000 | R74: 25000 | S74: 50000 | T74: 99999999
B75: Washington | C75: =C4 -> 2019-01-01 | D75: 2019-02-01 | E75: 2019-03-01 | F75: 2019-04-01 | G75: 2019-05-01 | H75: 2019-06-01 | I75: 2019-07-01 | J75: 2019-08-01 | K75: 2019-09-01 | L75: 2019-10-01 | M75: 2019-11-01 | N75: 2019-12-01 | O75: Total | Q75: thms/mo | R75: thms/mo | S75: thms/mo | T75: thms/mo
C76: 72561.02 | D76: 82353.672 | E76: 62155.584 | F76: 45350.683 | G76: 40061.412 | H76: 28785.57 | I76: 28243.371 | J76: 23806.145 | K76: 0 | L76: 84296.074 | M76: 54158.992 | N76: 0 | O76: =SUM(C76:N76) -> 521772.523 | Q76: =Q$74*12-SUMPRODUCT(--($C76:$N76<=Q$74),Q$74-$C76:$N76) -> 100000 | R76: =R$74*12-SUM($Q76:Q76)-SUMPRODUCT(--($C76:$N76<=R$74),R$74-$C76:$N76) -> 148806.145 | S76: =S$74*12-SUM($Q76:R76)-SUMPRODUCT(--($C76:$N76<=S$74),S$74-$C76:$N76) -> 167441.036 | T76: =T$74*12-SUM($Q76:S76)-SUMPRODUCT(--($C76:$N76<=T$74),T$74-$C76:$N76) -> 105525.342
C77: 68662.578 | D77: 59742.29 | E77: 71279.67 | F77: 52448.472 | G77: 34233.804 | H77: 23689 | I77: =34044.925-23689 -> 10355.925 | J77: 13106.19 | K77: 11737.692 | L77: 22708.306 | M77: 41014.215 | N77: 62449.625 | O77: =SUM(C77:N77) -> 471427.767 | Q77: =Q$74*12-SUMPRODUCT(--($C77:$N77<=Q$74),Q$74-$C77:$N77) -> 120000 | R77: =R$74*12-SUM($Q77:Q77)-SUMPRODUCT(--($C77:$N77<=R$74),R$74-$C77:$N77) -> 136597.113 | S77: =S$74*12-SUM($Q77:R77)-SUMPRODUCT(--($C77:$N77<=S$74),S$74-$C77:$N77) -> 150248.019 | T77: =T$74*12-SUM($Q77:S77)-SUMPRODUCT(--($C77:$N77<=T$74),T$74-$C77:$N77) -> 64582.635
C79: =SUM(C76:C78) -> 141223.598 | D79: =SUM(D76:D78) -> 142095.962 | E79: 133435.254 | F79: 97799.155 | G79: 74295.216 | H79: 52474.57 | I79: 38599.296 | J79: 36912.335 | K79: 11737.692 | L79: 107004.38 | M79: 95173.207 | N79: 62449.625 | O79: =IF(ROUND(SUM(O76:O78),3)<>ROUND(SUM(C79:N79),3),#VALUE!,SUM(C79:N79)) -> 993200.29 | Q79: =SUM(Q76:Q78) -> 220000 | R79: =SUM(R76:R78) -> 285403.258 | S79: =SUM(S76:S78) -> 317689.055 | T79: =SUM(T76:T78) -> 170107.977
B81: Revenue Runs | C81: ='12MEDEC19'!D165 -> 141223.598 | D81: ='12MEDEC19'!E165 -> 142095.962 | E81: ='12MEDEC19'!F165 -> 133435.254 | F81: ='12MEDEC19'!G165 -> 97799.155 | G81: ='12MEDEC19'!H165 -> 74295.216 | H81: ='12MEDEC19'!I165 -> 52474.186 | I81: ='12MEDEC19'!J165 -> 38599.68 | J81: ='12MEDEC19'!K165 -> 36912.335 | K81: ='12MEDEC19'!L165 -> 11737.692 | L81: ='12MEDEC19'!M165 -> 107004.38 | M81: ='12MEDEC19'!N165 -> 95173.207 | N81: ='12MEDEC19'!O165 -> 62449.625 | O81: =SUM(C81:N81) -> 993200.29
B82: SPOKANE COUNTY COURTHOUSE (122 to 132) | C82: 0 | D82: 0 | E82: 0 | F82: 0 | G82: 0 | O82: =SUM(C82:N82) -> 0
B83: Total WA Sch 132 | C83: =SUM(C81:C82) -> 141223.598 | D83: =SUM(D81:D82) -> 142095.962 | E83: 133435.254 | F83: 97799.155 | G83: 74295.216 | H83: 52474.186 | I83: 38599.68 | J83: 36912.335 | K83: 11737.692 | L83: 107004.38 | M83: 95173.207 | N83: 62449.625 | O83: 993200.29 | T83: =SUM(Q79:T79) -> 993200.29
C84: =C79-C83 -> 0 | D84: =D79-D83 -> 0 | E84: 0 | F84: 0 | G84: 0 | H84: 0.384 | I84: -0.384 | J84: 0 | K84: 0 | L84: 0 | M84: =M79-M83 -> 0 | N84: 0 | O84: 0
B85: ANNUAL USAGE, Sch 148 | O85: 12-mo ended
B86: Washington | C86: =C4 -> 2019-01-01 | D86: 2019-02-01 | E86: 2019-03-01 | F86: 2019-04-01 | G86: 2019-05-01 | H86: 2019-06-01 | I86: 2019-07-01 | J86: 2019-08-01 | K86: 2019-09-01 | L86: 2019-10-01 | M86: 2019-11-01 | N86: 2019-12-01 | O86: Total
B87: Kaiser | C87: 2327028 | D87: 2165034 | E87: 2118541 | F87: 2272185 | G87: 1984568 | H87: 1866186 | I87: 1809837 | J87: 1872170 | K87: 1899436 | L87: 1909441 | M87: 1901257 | N87: 2120127 | O87: =SUM(C87:N87) -> 24245810
B88: Lamb | C88: 522394 | D88: 568799 | E88: 508451 | F88: 273898 | G88: 537508 | H88: 571198 | I88: 556999 | J88: 532355 | K88: 536866 | L88: 520901 | M88: 562339 | N88: 501596 | O88: =SUM(C88:N88) -> 6193304
B89: Mutual | C89: 188660 | D89: 186906 | E89: 175067 | F89: 195356 | G89: 178676 | H89: 175167 | I89: 168457 | J89: 175314 | K89: 171206 | L89: 168075 | M89: 172900 | N89: 176363 | O89: =SUM(C89:N89) -> 2132147
B90: Washington Potato | C90: 488805 | D90: 547793 | E90: 301654 | F90: 485201 | G90: =885978-485201 -> 400777 | H90: 483711 | I90: 453723 | J90: 447677 | K90: 442839 | L90: 450425 | M90: 449474 | N90: 467047 | O90: =SUM(C90:N90) -> 5419126
B91: WSU | C91: 1381050 | D91: 1361028 | E91: 985387 | F91: 1313866 | G91: 881821 | H91: 660073 | I91: 521533 | J91: 479531 | K91: 463738 | L91: 629185 | M91: 1084806 | N91: 1171447 | O91: =SUM(C91:N91) -> 10933465
B93: Total WA Sch 148 | C93: =SUM(C87:C92) -> 4907937 | D93: 4829560 | E93: 4089100 | F93: 4540506 | G93: 3983350 | H93: 3756335 | I93: 3510549 | J93: 3507047 | K93: 3514085 | L93: 3678027 | M93: 4170776 | N93: 4436580 | O93: =IF(ROUND(SUM(O87:O92),3)<>ROUND(SUM(C93:N93),3),#VALUE!,SUM(C93:N93)) -> 48923852
B95: Revenue Runs | C95: ='12MEDEC19'!D168 -> 4907937 | D95: ='12MEDEC19'!E168 -> 4829560 | E95: ='12MEDEC19'!F168 -> 4089100 | F95: ='12MEDEC19'!G168 -> 4540506 | G95: ='12MEDEC19'!H168 -> 3983350 | H95: ='12MEDEC19'!I168 -> 3756335 | I95: ='12MEDEC19'!J168 -> 3510549 | J95: ='12MEDEC19'!K168 -> 3507047 | K95: ='12MEDEC19'!L168 -> 3514085 | L95: ='12MEDEC19'!M168 -> 3678027 | M95: ='12MEDEC19'!N168 -> 4170776 | N95: ='12MEDEC19'!O168 -> 4436580 | O95: =SUM(C95:N95) -> 48923852
C96: =C93-C95 -> 0 | D96: =D93-D95 -> 0 | E96: 0 | F96: 0 | G96: 0 | H96: 0 | I96: 0 | J96: 0 | K96: 0 | L96: 0 | M96: 0 | N96: 0 | O96: 0
B98: ANNUAL USAGE, Sch 147 | O98: 12-mo ended
B99: Washington | C99: =C4 -> 2019-01-01 | D99: 2019-02-01 | E99: 2019-03-01 | F99: 2019-04-01 | G99: 2019-05-01 | H99: 2019-06-01 | I99: 2019-07-01 | J99: 2019-08-01 | K99: 2019-09-01 | L99: 2019-10-01 | M99: 2019-11-01 | N99: 2019-12-01 | O99: Total
C100: 311015 | D100: 144011 | E100: 442892 | F100: 580076 | G100: 64826 | H100: 121440 | I100: 283349 | J100: 514383 | K100: 1055696 | L100: 554725 | M100: 1038228 | N100: 690584 | O100: =SUM(C100:N100) -> 5801225
C101: 68149 | D101: 32701 | E101: 140837 | F101: 234196 | G101: 4149 | H101: 0 | I101: 86502 | J101: 135504 | K101: 349953 | L101: 259234 | M101: 396799 | N101: 397930 | O101: =SUM(C101:N101) -> 2105954
B103: Total WA Sch 147 | C103: =SUM(C100:C102) -> 379164 | D103: 176712 | E103: =SUM(E100:E102) -> 583729 | F103: 814272 | G103: 68975 | H103: 121440 | I103: 369851 | J103: 649887 | K103: 1405649 | L103: 813959 | M103: 1435027 | N103: 1088514 | O103: =IF(ROUND(SUM(O100:O102),3)<>ROUND(SUM(C103:N103),3),#VALUE!,SUM(C103:N103)) -> 7907179
B105: Revenue Runs | C105: ='12MEDEC19'!D167 -> 379164 | D105: ='12MEDEC19'!E167 -> 176712 | E105: ='12MEDEC19'!F167 -> 583729 | F105: ='12MEDEC19'!G167 -> 814272 | G105: ='12MEDEC19'!H167 -> 68975 | H105: ='12MEDEC19'!I167 -> 121440 | I105: ='12MEDEC19'!J167 -> 369851 | J105: ='12MEDEC19'!K167 -> 649887 | K105: ='12MEDEC19'!L167 -> 1405649 | L105: ='12MEDEC19'!M167 -> 813959 | M105: ='12MEDEC19'!N167 -> 1435027 | N105: ='12MEDEC19'!O167 -> 1088514 | O105: =SUM(C105:N105) -> 7907179
C106: =C103-C105 -> 0 | D106: 0 | E106: 0 | F106: 0 | G106: 0 | H106: 0 | I106: 0 | J106: 0 | K106: 0 | L106: 0 | M106: 0 | N106: 0 | O106: 0
B108: Sch 147 Revenue from Rev. Runs | C108: 7928.32 | D108: 3695.05 | E108: 12205.77 | F108: 17026.43 | G108: 1442.26 | H108: 2539.31 | I108: 7733.59 | J108: 13589.14 | K108: 29392.12 | L108: 17019.88 | M108: 30006.42 | N108: 22760.83 | O108: =SUM(C108:N108) -> 165339.12
B109: check | C109: =C103*0.02091 -> 7928.31924 | D109: =D103*0.02091 -> 3695.04792 | E109: 12205.77339 | F109: 17026.42752 | G109: 1442.26725 | H109: 2539.3104 | I109: 7733.58441 | J109: 13589.13717 | K109: 29392.12059 | L109: 17019.88269 | M109: =M103*0.02091 -> 30006.41457 | N109: 22760.82774 | O109: =SUM(C109:N109) -> 165339.1129

Sheet 12MEDEC19
A3: Gas Revenue Meters Report by Location Twelve Months Ended for Report Date : '12/31/2019'
A5: State Cde:WA
C7: Meters
B8: Period | C8: 201901 | D8: 201902 | E8: 201903 | F8: 201904 | G8: 201905 | H8: 201906 | I8: 201907 | J8: 201908 | K8: 201909 | L8: 201910 | M8: 201911 | N8: 201912 | O8: 12 Month Average | P8: 12 Month Total
A9: Rate Schedule Num
A10: 0101 | C10: 164288 | D10: 161396 | E10: 166929 | F10: 162943 | G10: 166722 | H10: 164425 | I10: 165191 | J10: 165534 | K10: 162178 | L10: 169324 | M10: 166592 | N10: 166937 | O10: =AVERAGE(C10:N10) -> 165204.9167 | P10: =SUM(C10:N10) -> 1982459
A11: 0102 | C11: 167 | D11: 165 | E11: 166 | F11: 163 | G11: 164 | H11: 162 | I11: 164 | J11: 159 | K11: 154 | L11: 124 | M11: 137 | N11: 155 | O11: =AVERAGE(C11:N11) -> 156.6666667 | P11: =SUM(C11:N11) -> 1880
A12: 0111 | C12: 3099 | D12: 3047 | E12: 3151 | F12: 3101 | G12: 3103 | H12: 3094 | I12: 3109 | J12: 3101 | K12: 3036 | L12: 3136 | M12: 3080 | N12: 3123 | O12: 3098.333333 | P12: 37180
A13: 0112 | C13: 1 | D13: 1 | E13: 1 | F13: 1 | G13: 1 | H13: 1 | I13: 1 | J13: 1 | K13: 1 | L13: 1 | M13: 1 | N13: 1 | O13: 1 | P13: 12
A14: 0121 | C14: 3 | D14: 3 | E14: 5 | F14: 5 | G14: 5 | H14: -7 | I14: 3 | J14: 4 | K14: 4 | L14: 4 | M14: 4 | N14: 4 | O14: 3.083333333 | P14: 37
A15: 0122 | C15: 1 | D15: 1 | E15: 1 | F15: 1 | G15: 1 | H15: 1 | I15: 1 | J15: 1 | K15: 1 | L15: 1 | M15: 2 | N15: 4 | O15: 1.333333333 | P15: 16
A16: 0132 | C16: 2 | D16: 2 | E16: 2 | F16: 2 | G16: 2 | H16: 2 | I16: 2 | J16: 2 | K16: 1 | L16: 3 | M16: 2 | N16: 1 | O16: 1.916666667 | P16: 23
A17: 0146 | C17: 39 | D17: 39 | E17: 39 | F17: 39 | G17: 39 | H17: 39 | I17: 39 | J17: 39 | K17: 39 | L17: 38 | M17: 37 | N17: 37 | O17: 38.58333333 | P17: 463
A18: 0147 | C18: 3 | D18: 3 | E18: 3 | F18: 3 | G18: 3 | H18: 1 | I18: 3 | J18: 3 | K18: 3 | L18: 3 | M18: 3 | N18: 3 | O18: 2.833333333 | P18: 34
A19: 0148 | C19: 5 | D19: 5 | E19: 5 | F19: 5 | G19: 5 | H19: 5 | I19: 5 | J19: 5 | K19: 5 | L19: 5 | M19: 5 | N19: 5 | O19: 5 | P19: 60
A20: 0158 | C20: 0 | D20: 0 | E20: 0 | F20: 0 | G20: 0 | H20: 0 | I20: 0 | J20: 0 | K20: 0 | L20: 0 | M20: 0 | N20: 0 | O20: 0 | P20: 0
A21: 0158A | C21: 0 | D21: 0 | E21: 0 | F21: 0 | G21: 0 | H21: 0 | I21: 0 | J21: 0 | K21: 0 | L21: 0 | M21: 0 | N21: 0 | O21: 0 | P21: 0
A22: 0199 | C22: 0 | D22: 0 | E22: 0 | F22: 0 | G22: 0 | H22: 0 | I22: 0 | J22: 0 | K22: 0 | L22: 0 | M22: 0 | N22: 0 | O22: 0 | P22: 0
A23: Total for WA | C23: =SUM(C10:C22) -> 167608 | D23: =SUM(D10:D22) -> 164662 | E23: 170302 | F23: 166263 | G23: 170045 | H23: 167723 | I23: 168518 | J23: 168849 | K23: 165422 | L23: 172639 | M23: 169863 | N23: 170270 | P23: =SUM(C23:N23) -> 2022164
O25: Total | P25: Avg
B26: 101/102 | C26: =C10+C11 -> 164455 | D26: =D10+D11 -> 161561 | E26: 167095 | F26: 163106 | G26: 166886 | H26: 164587 | I26: 165355 | J26: 165693 | K26: 162332 | L26: 169448 | M26: 166729 | N26: 167092 | O26: =SUM(C26:N26) -> 1984339 | P26: =AVERAGE(C26:N26) -> 165361.5833
B27: 111/112 | C27: =C12+C13 -> 3100 | D27: =D12+D13 -> 3048 | E27: 3152 | F27: 3102 | G27: 3104 | H27: 3095 | I27: 3110 | J27: 3102 | K27: 3037 | L27: 3137 | M27: 3081 | N27: 3124 | O27: =SUM(C27:N27) -> 37192 | P27: =AVERAGE(C27:N27) -> 3099.333333
B28: 121/122 | C28: =C14+C15 -> 4 | D28: =D14+D15 -> 4 | E28: 6 | F28: 6 | G28: 6 | H28: -6 | I28: 4 | J28: 5 | K28: 5 | L28: 5 | M28: 6 | N28: 8 | O28: 53 | P28: 4.416666667
B29: 132 | C29: =C16 -> 2 | D29: =D16 -> 2 | E29: 2 | F29: 2 | G29: 2 | H29: 2 | I29: 2 | J29: 2 | K29: 1 | L29: 3 | M29: 2 | N29: 1 | O29: 23 | P29: 1.916666667
B30: 146 | C30: =C17 -> 39 | D30: =D17 -> 39 | E30: 39 | F30: 39 | G30: 39 | H30: 39 | I30: 39 | J30: 39 | K30: 39 | L30: 38 | M30: 37 | N30: 37 | O30: 463 | P30: 38.58333333
B31: 147 | C31: =C18 -> 3 | D31: =D18 -> 3 | E31: 3 | F31: 3 | G31: 3 | H31: 1 | I31: 3 | J31: 3 | K31: 3 | L31: 3 | M31: 3 | N31: 3 | O31: 34 | P31: 2.833333333
B32: 148 | C32: =C19 -> 5 | D32: =D19 -> 5 | E32: 5 | F32: 5 | G32: 5 | H32: 5 | I32: 5 | J32: 5 | K32: 5 | L32: 5 | M32: 5 | N32: 5 | O32: 60 | P32: 5
B33: Total | C33: =SUM(C26:C32) -> 167608 | D33: =SUM(D26:D32) -> 164662 | E33: 170302 | F33: 166263 | G33: 170045 | H33: 167723 | I33: 168518 | J33: 168849 | K33: 165422 | L33: 172639 | M33: 169863 | N33: 170270 | O33: 2022164
C35: =C23-C33 -> 0 | D35: =D23-D33 -> 0 | E35: 0 | F35: 0 | G35: 0 | H35: 0 | I35: 0 | J35: 0 | K35: 0 | L35: 0 | M35: 0 | N35: 0
A37: Gas Revenue Meters Report by Location Twelve Months Ended for Report Date : '12/31/2019'
A39: State Cde:WA
D41: Usage
C42: Period | D42: 201901 | E42: 201902 | F42: 201903 | G42: 201904 | H42: 201905 | I42: 201906 | J42: 201907 | K42: 201908 | L42: 201909 | M42: 201910 | N42: 201911 | O42: 201912 | P42: 12 Month Total
A43: Rate Schedule Num | B43: Billing Determinant
A44: 0101 | B44: BASIC CHARGE GAS | D44: 0 | E44: 0 | F44: 0 | G44: 0 | H44: 0 | I44: 0 | J44: 0 | K44: 0 | L44: 0 | M44: 0 | N44: 0 | O44: 0 | P44: =SUM(D44:O44) -> 0
B45: NA | D45: 0 | E45: 0 | F45: 0 | G45: 0 | H45: 0 | I45: 0 | J45: 0 | K45: 0 | L45: 0 | M45: 0 | N45: 0 | O45: 0 | P45: 0
B46: RIDER 150 | D46: -1282.62 | E46: -1433 | F46: -1058 | G46: -821 | H46: -1649 | I46: -821 | J46: 0 | K46: -44 | L46: -130 | M46: -1110 | N46: -1712 | O46: -1937 | P46: =SUM(D46:O46) -> -11997.62
B47: RIDER 155 | D47: 0 | E47: 0 | F47: 0 | G47: 0 | H47: 0 | I47: 0 | J47: 0 | K47: 0 | L47: 0 | M47: 0 | N47: 0 | O47: 0 | P47: 0
B48: RIDER 156 | D48: 0 | E48: 0 | F48: 0 | G48: 0 | H48: 0 | I48: 0 | J48: 0 | K48: 0 | L48: 0 | M48: 0 | N48: 0 | O48: 0 | P48: 0
B49: RIDER 159 | D49: 0 | E49: 0 | F49: 0 | G49: 0 | H49: 0 | I49: 0 | J49: 0 | K49: 0 | L49: 0 | M49: 0 | N49: 0 | O49: 0 | P49: 0
B50: RIDER 175 | M50: 0 | N50: 0 | O50: 0 | P50: 0
B51: RIDER 191 | D51: 0 | E51: 0 | F51: 0 | G51: 0 | H51: 0 | I51: 0 | J51: 0 | K51: 0 | L51: 0 | M51: 0 | N51: 0 | O51: 0 | P51: 0
B52: RIDER 192 | D52: 0 | E52: 0 | F52: 0 | G52: 0 | H52: 0 | I52: 0 | J52: 0 | K52: 0 | L52: 0 | M52: 0 | N52: 0 | O52: 0 | P52: 0
B53: RIDER 197 | M53: 0 | N53: 0 | O53: 0 | P53: 0
B54: THERMS BLOCK 1 | D54: 10599098.86 | E54: 10474942.53 | F54: 10898959.14 | G54: 8787409.359 | H54: 5879186.055 | I54: 2894111.838 | J54: 2320621.923 | K54: 1982982.791 | L54: 2235091.875 | M54: 6563723.951 | N54: 9620467.134 | O54: 10697247.53 | P54: =SUM(D54:O54) -> 82953842.98
B55: THERMS BLOCK 2 | D55: 10571224.33 | E55: 11436355.54 | F55: 13019138.33 | G55: 3081201.737 | H55: 702856.4845 | I55: 184244.6388 | J55: 212767.5429 | K55: 157743.0168 | L55: 206674.8628 | M55: 1037706.607 | N55: 4314630.561 | O55: 9562077.931 | P55: =SUM(D55:O55) -> 54486621.58
B56: Total for 0101 | D56: =SUM(D44:D55) -> 21169040.57 | E56: =SUM(E44:E55) -> 21909865.07 | F56: 23917039.47 | G56: 11867790.1 | H56: 6580393.54 | I56: 3077535.477 | J56: 2533389.466 | K56: 2140681.808 | L56: 2441636.737 | M56: 7600320.558 | N56: 13933385.69 | O56: 20257388.46 | P56: =SUM(D56:O56) -> 137428466.9
A57: 0102 | B57: BASIC CHARGE GAS | D57: 0 | E57: 0 | F57: 0 | G57: 0 | H57: 0 | I57: 0 | J57: 0 | K57: 0 | L57: 0 | M57: 0 | N57: 0 | O57: 0 | P57: =SUM(D57:O57) -> 0
B58: NA | D58: 0 | E58: 0 | F58: 0 | G58: 0 | H58: 0 | I58: 0 | J58: 0 | K58: 0 | L58: 0 | M58: 0 | N58: 0 | O58: 0 | P58: 0
B59: RIDER 150 | D59: 0 | E59: 0 | F59: 0 | G59: 0 | H59: 0 | I59: 0 | J59: 0 | K59: 0 | L59: 0 | M59: 0 | N59: 0 | O59: 0 | P59: 0
B60: RIDER 155 | D60: 0 | E60: 0 | F60: 0 | G60: 0 | H60: 0 | I60: 0 | J60: 0 | K60: 0 | L60: 0 | M60: 0 | N60: 0 | O60: 0 | P60: 0
B61: RIDER 156 | D61: 0 | E61: 0 | F61: 0 | G61: 0 | H61: 0 | I61: 0 | J61: 0 | K61: 0 | L61: 0 | M61: 0 | N61: 0 | O61: 0 | P61: 0
B62: RIDER 159 | D62: 0 | E62: 0 | F62: 0 | G62: 0 | H62: 0 | I62: 0 | J62: 0 | K62: 0 | L62: 0 | M62: 0 | N62: 0 | O62: 0 | P62: 0
B63: RIDER 175 | N63: 0 | O63: 0 | P63: 0
B64: RIDER 189 | D64: 0 | E64: 0 | F64: 0 | G64: 0 | H64: 0 | I64: 0 | J64: 0 | K64: 0 | L64: 0 | M64: 0 | N64: 0 | O64: 0 | P64: 0
B65: RIDER 191 | D65: 0 | E65: 0 | F65: 0 | G65: 0 | H65: 0 | I65: 0 | J65: 0 | K65: 0 | L65: 0 | M65: 0 | N65: 0 | O65: 0 | P65: 0
B66: RIDER 192 | D66: 0 | E66: 0 | F66: 0 | G66: 0 | H66: 0 | I66: 0 | J66: 0 | K66: 0 | L66: 0 | M66: 0 | N66: 0 | O66: 0 | P66: 0
B67: THERMS BLOCK 1 | D67: 11502.24982 | E67: 11356.586 | F67: 11452.98929 | G67: 9777.84028 | H67: 6698.16806 | I67: 3018.10203 | J67: 2202.92064 | K67: 1688.24356 | L67: 2041.70389 | M67: 5658.94177 | N67: 8759.09391 | O67: 10607.95137 | P67: 84764.79062
B68: THERMS BLOCK 2 | D68: 10477.249 | E68: 11165.88384 | F68: 13080.97239 | G68: 2946.87029 | H68: 554.997 | I68: 26.334 | J68: 3.575 | K68: 184.076 | L68: 209.699 | M68: 601.42836 | N68: 3039.45739 | O68: 7968.67392 | P68: 50259.21619
B69: Total for 0102 | D69: =SUM(D57:D68) -> 21979.49882 | E69: =SUM(E57:E68) -> 22522.46984 | F69: 24533.96168 | G69: 12724.71057 | H69: 7253.16506 | I69: 3044.43603 | J69: 2206.49564 | K69: 1872.31956 | L69: 2251.40289 | M69: 6260.37013 | N69: 11798.5513 | O69: 18576.62529 | P69: =SUM(D69:O69) -> 135024.0068
A70: 0111 | B70: BASIC CHARGE GAS | D70: 0 | E70: 0 | F70: 0 | G70: 0 | H70: 0 | I70: 0 | J70: 0 | K70: 0 | L70: 0 | M70: 0 | N70: 0 | O70: 0 | P70: =SUM(D70:O70) -> 0
B71: NA | D71: 0 | E71: 0 | F71: 0 | G71: 0 | H71: 0 | I71: 0 | J71: 0 | K71: 0 | L71: 0 | M71: 0 | N71: 0 | O71: 0 | P71: =SUM(D71:O71) -> 0
B72: RIDER 150 | D72: 0 | E72: -201 | F72: 0 | G72: 0 | H72: 0 | I72: 0 | J72: 0 | K72: 0 | L72: 0 | M72: 0 | N72: -327 | O72: -167 | P72: -695
B73: RIDER 155 | D73: 0 | E73: 0 | F73: 0 | G73: 0 | H73: 0 | I73: 0 | J73: 0 | K73: 0 | L73: 0 | M73: 0 | N73: 0 | O73: 0 | P73: 0
B74: RIDER 156 | D74: 0 | E74: 0 | F74: 0 | G74: 0 | H74: 0 | I74: 0 | J74: 0 | K74: 0 | L74: 0 | M74: 0 | N74: 0 | O74: 0 | P74: 0
B75: RIDER 175 | M75: 0 | N75: 0 | O75: 0 | P75: 0
B76: RIDER 191 | D76: 0 | E76: 0 | F76: 0 | G76: 0 | H76: 0 | I76: 0 | J76: 0 | K76: 0 | L76: 0 | M76: 0 | N76: 0 | O76: 0 | P76: 0
B77: RIDER 192 | D77: 0 | E77: 0 | F77: 0 | G77: 0 | H77: 0 | I77: 0 | J77: 0 | K77: 0 | L77: 0 | M77: 0 | N77: 0 | O77: 0 | P77: 0
B78: THERMS BLOCK 1 | D78: 614056.3554 | E78: 602122.7429 | F78: 622422.3471 | G78: 609380.2634 | H78: 576533.9739 | I78: 475143.3911 | J78: 418973.5248 | K78: 390683.5233 | L78: 412392.8779 | M78: 583775.726 | N78: 605892.1986 | O78: 617103.1087 | P78: 6528480.033
B79: THERMS BLOCK 2 | D79: 2138595.432 | E79: 2126686.935 | F79: 2204489.04 | G79: 1740453.232 | H79: 1233274.335 | I79: 790386.6164 | J79: 661102.0173 | K79: 598927.161 | L79: 653630.3168 | M79: 1291112.343 | N79: 1852542.154 | O79: 2139447.97 | P79: 17430647.55
B80: THERMS BLOCK 3 | D80: 5155066.875 | E80: 5631083.606 | F80: 6052517.296 | G80: 3000246.717 | H80: 1482782.707 | I80: 1094702.384 | J80: 849960.7211 | K80: 736777.6499 | L80: 911913.0962 | M80: 1783804.863 | N80: 3226679.969 | O80: 4992833.867 | P80: 34918369.75
B81: Total for 0111 | D81: =SUM(D70:D80) -> 7907718.662 | E81: =SUM(E70:E80) -> 8359692.284 | F81: 8879428.683 | G81: 5350080.213 | H81: 3292591.016 | I81: 2360232.392 | J81: 1930036.263 | K81: 1726388.334 | L81: 1977936.291 | M81: 3658692.931 | N81: 5684787.321 | O81: 7749217.945 | P81: 58876802.34
A82: 0112 | B82: BASIC CHARGE GAS | D82: 0 | E82: 0 | F82: 0 | G82: 0 | H82: 0 | I82: 0 | J82: 0 | K82: 0 | L82: 0 | M82: 0 | N82: 0 | O82: 0 | P82: =SUM(D82:O82) -> 0
B83: NA | D83: 0 | E83: 0 | F83: 0 | G83: 0 | H83: 0 | I83: 0 | J83: 0 | K83: 0 | L83: 0 | M83: 0 | N83: 0 | O83: 0 | P83: =SUM(D83:O83) -> 0
B84: RIDER 150 | D84: 0 | E84: 0 | F84: 0 | G84: 0 | H84: 0 | I84: 0 | J84: 0 | K84: 0 | L84: 0 | M84: 0 | N84: 0 | O84: 0 | P84: 0
B85: RIDER 155 | D85: 0 | E85: 0 | F85: 0 | G85: 0 | H85: 0 | I85: 0 | J85: 0 | K85: 0 | L85: 0 | M85: 0 | N85: 0 | O85: 0 | P85: 0
B86: RIDER 156 | D86: 0 | E86: 0 | F86: 0 | G86: 0 | H86: 0 | I86: 0 | J86: 0 | K86: 0 | L86: 0 | M86: 0 | N86: 0 | O86: 0 | P86: 0
B87: RIDER 175 | M87: 0 | N87: 0 | O87: 0 | P87: 0
B88: RIDER 191 | D88: 0 | E88: 0 | F88: 0 | G88: 0 | H88: 0 | I88: 0 | J88: 0 | K88: 0 | L88: 0 | M88: 0 | N88: 0 | O88: 0 | P88: 0
B89: RIDER 192 | D89: 0 | E89: 0 | F89: 0 | G89: 0 | H89: 0 | I89: 0 | J89: 0 | K89: 0 | L89: 0 | M89: 0 | N89: 0 | O89: 0 | P89: 0
B90: THERMS BLOCK 1 | D90: 200 | E90: 200 | F90: 200 | G90: 200 | H90: 200 | I90: 200 | J90: 200 | K90: 200 | L90: 200 | M90: 200 | N90: 200 | O90: 200 | P90: 2400
B91: THERMS BLOCK 2 | D91: 800 | E91: 800 | F91: 800 | G91: 800 | H91: 800 | I91: 800 | J91: 800 | K91: 800 | L91: 800 | M91: 800 | N91: 800 | O91: 800 | P91: 9600
B92: THERMS BLOCK 3 | D92: 16301.426 | E92: 21381.554 | F92: 16519.166 | G92: 11233.788 | H92: 8290.106 | I92: 4926.224 | J92: 4552.99 | K92: 4665.086 | L92: 5765.294 | M92: 10540.242 | N92: 15255.312 | O92: 17990.132 | P92: 137421.32
B93: Total for 0112 | D93: =SUM(D82:D92) -> 17301.426 | E93: =SUM(E82:E92) -> 22381.554 | F93: =SUM(F82:F92) -> 17519.166 | G93: =SUM(G82:G92) -> 12233.788 | H93: =SUM(H82:H92) -> 9290.106 | I93: =SUM(I82:I92) -> 5926.224 | J93: =SUM(J82:J92) -> 5552.99 | K93: =SUM(K82:K92) -> 5665.086 | L93: =SUM(L82:L92) -> 6765.294 | M93: =SUM(M82:M92) -> 11540.242 | N93: =SUM(N82:N92) -> 16255.312 | O93: =SUM(O82:O92) -> 18990.132 | P93: 149421.32
A94: 0121 | B94: BASIC CHARGE GAS | L94: 0 | M94: 0 | N94: 0 | O94: 0 | P94: =SUM(D94:O94) -> 0
B95: NA | D95: 0 | E95: 0 | F95: 0 | G95: 0 | H95: 0 | I95: 0 | J95: 0 | K95: 0 | L95: 0 | M95: 0 | N95: 0 | O95: 0 | P95: =SUM(D95:O95) -> 0
B96: RIDER 150 | D96: 0 | E96: 0 | F96: 0 | G96: 0 | H96: 0 | I96: 0 | J96: 0 | K96: 0 | L96: 0 | M96: 0 | N96: 0 | O96: 0 | P96: 0
B97: RIDER 155 | D97: 0 | E97: 0 | F97: 0 | G97: 0 | H97: 0 | I97: 0 | J97: 0 | K97: 0 | L97: 0 | M97: 0 | N97: 0 | O97: 0 | P97: 0
B98: RIDER 156 | D98: 0 | E98: 0 | F98: 0 | G98: 0 | H98: 0 | I98: 0 | J98: 0 | K98: 0 | L98: 0 | M98: 0 | N98: 0 | O98: 0 | P98: 0
B99: RIDER 175 | N99: 0 | O99: 0 | P99: 0
B100: RIDER 191 | D100: 0 | E100: 0 | F100: 0 | G100: 0 | H100: 0 | I100: 0 | J100: 0 | K100: 0 | L100: 0 | M100: 0 | N100: 0 | O100: 0 | P100: 0
B101: RIDER 192 | D101: 0 | E101: 0 | F101: 0 | G101: 0 | H101: 0 | I101: 0 | J101: 0 | K101: 0 | L101: 0 | M101: 0 | N101: 0 | O101: 0 | P101: 0
B102: THERMS BLOCK 1 | D102: 1500 | E102: 1500 | F102: 1500 | G102: 2262.183 | H102: 2500 | I102: -3599.08267 | J102: 1500 | K102: 1916.66667 | L102: 2000 | M102: 2000 | N102: 2000 | O102: 2000 | P102: 17079.767
B103: THERMS BLOCK 2 | D103: 1500 | E103: 1500 | F103: 1500 | G103: 1733.7 | H103: 2371.2 | I103: -3616.66666 | J103: 1500 | K103: 1916.66666 | L103: 2000 | M103: 2000 | N103: 2000 | O103: 2000 | P103: 16404.9
B104: THERMS BLOCK 3 | D104: 27000 | E104: 27000 | F104: 27000 | G104: 26504.148 | H104: 29844.405 | I104: -63941.101 | J104: 21935.783 | K104: 28270.389 | L104: 27289.355 | M104: 30125 | N104: 32833.216 | O104: 32564.8 | P104: 246425.995
B105: THERMS BLOCK 4 | D105: 36521.375 | E105: 36230.736 | F105: 35818.734 | G105: 30000 | H105: 30000 | I105: 3070.43859 | J105: 30000 | K105: 42500 | L105: 30000 | M105: 45000 | N105: 45000 | O105: 45000 | P105: 409141.2836
B106: THERMS BLOCK 5 | D106: 106328.424 | E106: 104128.5 | F106: 99020.85 | G106: 57660.207 | H106: 43447.577 | I106: 26473.607 | J106: 24024.713 | K106: 35024.15467 | L106: 25157.077 | M106: 58216.474 | N106: 104272.602 | O106: 122777.09 | P106: 806531.2757
B107: Total for 0121 | D107: =SUM(D95:D106) -> 172849.799 | E107: =SUM(E95:E106) -> 170359.236 | F107: 164839.584 | G107: 118160.238 | H107: 108163.182 | I107: -41612.80474 | J107: 78960.496 | K107: 109627.877 | L107: 86446.432 | M107: 137341.474 | N107: 186105.818 | O107: 204341.89 | P107: 1495583.221
A108: 0122 | B108: BASIC CHARGE GAS | N108: 0 | O108: 0 | P108: =SUM(D108:O108) -> 0
B109: NA | D109: 0 | E109: 0 | F109: 0 | G109: 0 | H109: 0 | I109: 0 | J109: 0 | K109: 0 | L109: 0 | M109: 0 | N109: 0 | O109: 0 | P109: =SUM(D109:O109) -> 0
B110: RIDER 150 | D110: 0 | E110: 0 | F110: 0 | G110: 0 | H110: 0 | I110: 0 | J110: 0 | K110: 0 | L110: 0 | M110: 0 | N110: 0 | O110: 0 | P110: 0
B111: RIDER 155 | D111: 0 | E111: 0 | F111: 0 | G111: 0 | H111: 0 | I111: 0 | J111: 0 | K111: 0 | L111: 0 | M111: 0 | N111: 0 | O111: 0 | P111: 0
B112: RIDER 156 | D112: 0 | E112: 0 | F112: 0 | G112: 0 | H112: 0 | I112: 0 | J112: 0 | K112: 0 | L112: 0 | M112: 0 | N112: 0 | O112: 0 | P112: 0
B113: RIDER 175 | N113: 0 | O113: 0 | P113: 0
B114: RIDER 191 | D114: 0 | E114: 0 | F114: 0 | G114: 0 | H114: 0 | I114: 0 | J114: 0 | K114: 0 | L114: 0 | M114: 0 | N114: 0 | O114: 0 | P114: 0
B115: RIDER 192 | D115: 0 | E115: 0 | F115: 0 | G115: 0 | H115: 0 | I115: 0 | J115: 0 | K115: 0 | L115: 0 | M115: 0 | N115: 0 | O115: 0 | P115: 0
B116: THERMS BLOCK 1 | D116: 500 | E116: 500 | F116: 500 | G116: 500 | H116: 500 | I116: 500 | J116: 500 | K116: 500 | L116: 500 | M116: 500 | N116: 1000 | O116: 2000 | P116: 8000
B117: THERMS BLOCK 2 | D117: 500 | E117: 500 | F117: 500 | G117: 500 | H117: 500 | I117: 500 | J117: 500 | K117: 500 | L117: 500 | M117: 500 | N117: 1000 | O117: 2000 | P117: 8000
B118: THERMS BLOCK 3 | D118: 9000 | E118: 9000 | F118: 9000 | G118: 9000 | H118: 9000 | I118: 9000 | J118: 9000 | K118: 9000 | L118: 9000 | M118: 9000 | N118: 18000 | O118: 36000 | P118: 144000
B119: THERMS BLOCK 4 | D119: 15000 | E119: 15000 | F119: 15000 | G119: 15000 | H119: 15000 | I119: 15000 | J119: 15000 | K119: 15000 | L119: 14698.952 | M119: 15000 | N119: 30000 | O119: 60000 | P119: 239698.952
B120: THERMS BLOCK 5 | D120: 33512.194 | E120: 30557.244 | F120: 44433.48 | G120: 22250.396 | H120: 15225.32 | I120: 1141.696 | J120: 4214.02 | K120: 80.813 | L120: 0 | M120: 5772.944 | N120: 213533.557 | O120: 436882.139 | P120: 807603.803
B121: Total for 0122 | D121: =SUM(D109:D120) -> 58512.194 | E121: =SUM(E109:E120) -> 55557.244 | F121: 69433.48 | G121: 47250.396 | H121: 40225.32 | I121: 26141.696 | J121: 29214.02 | K121: 25080.813 | L121: 24698.952 | M121: 30772.944 | N121: 263533.557 | O121: 536882.139 | P121: 1207302.755
A122: 0132 | B122: NA | D122: 0 | E122: 0 | F122: 0 | G122: 0 | H122: 0 | I122: 0 | J122: 0 | K122: 0 | L122: 0 | M122: 0 | N122: 0 | O122: 0 | P122: =SUM(D122:O122) -> 0
B123: RIDER 150 | D123: 0 | E123: 0 | F123: 0 | G123: 0 | H123: 0 | I123: 0 | J123: 0 | K123: 0 | L123: 0 | M123: 0 | N123: 0 | O123: 0 | P123: =SUM(D123:O123) -> 0
B124: RIDER 155 | D124: 0 | E124: 0 | F124: 0 | G124: 0 | H124: 0 | I124: 0 | J124: 0 | K124: 0 | L124: 0 | M124: 0 | N124: 0 | O124: 0 | P124: 0
B125: RIDER 156 | D125: 0 | E125: 0 | F125: 0 | G125: 0 | H125: 0 | I125: 0 | J125: 0 | K125: 0 | L125: 0 | M125: 0 | N125: 0 | O125: 0 | P125: 0
B126: RIDER 175 | N126: 0 | O126: 0 | P126: 0
B127: RIDER 191 | D127: 0 | E127: 0 | F127: 0 | G127: 0 | H127: 0 | I127: 0 | J127: 0 | K127: 0 | L127: 0 | M127: 0 | N127: 0 | O127: 0 | P127: 0
B128: RIDER 192 | D128: 0 | E128: 0 | F128: 0 | G128: 0 | H128: 0 | I128: 0 | J128: 0 | K128: 0 | L128: 0 | M128: 0 | N128: 0 | O128: 0 | P128: 0
B129: THERMS BLOCK 1 | D129: 20000 | E129: 20000 | F129: 20000 | G129: 20000 | H129: 20000 | I129: 20000 | J129: 20000 | K129: 20000 | L129: 10000 | M129: 30000 | N129: 20000 | O129: 10000 | P129: 230000
B130: THERMS BLOCK 2 | D130: 30000 | E130: 30000 | F130: 30000 | G130: 30000 | H130: 30000 | I130: 28688.616 | J130: 15356.309 | K130: 16912.335 | L130: 1737.692 | M130: 42708.306 | N130: 30000 | O130: 15000 | P130: 300403.258
B131: THERMS BLOCK 3 | D131: 50000 | E131: 50000 | F131: 50000 | G131: 45350.683 | H131: 24295.216 | I131: 3785.57 | J131: 3243.371 | K131: 0 | L131: 0 | M131: 34296.074 | N131: 41014.215 | O131: 25000 | P131: 326985.129
B132: THERMS BLOCK 4 | D132: 41223.598 | E132: 42095.962 | F132: 33435.254 | G132: 2448.472 | H132: 0 | I132: 0 | J132: 0 | K132: 0 | L132: 0 | M132: 0 | N132: 4158.992 | O132: 12449.625 | P132: 135811.903
B133: Total for 0132 | D133: =SUM(D122:D132) -> 141223.598 | E133: =SUM(E122:E132) -> 142095.962 | F133: 133435.254 | G133: 97799.155 | H133: 74295.216 | I133: 52474.186 | J133: 38599.68 | K133: 36912.335 | L133: 11737.692 | M133: 107004.38 | N133: 95173.207 | O133: 62449.625 | P133: 993200.29
A134: 0146 | B134: BASIC CHARGE GAS | D134: 0 | E134: 0 | F134: 0 | G134: 0 | H134: 0 | I134: 0 | J134: 0 | K134: 0 | L134: 0 | M134: 0 | N134: 0 | O134: 0 | P134: =SUM(D134:O134) -> 0
B135: NA | D135: 0 | E135: 0 | F135: 0 | G135: 0 | H135: 0 | I135: 0 | J135: 0 | K135: 0 | L135: 0 | M135: 0 | N135: 0 | O135: 0 | P135: =SUM(D135:O135) -> 0
B136: RIDER 150 | D136: 0 | E136: 0 | F136: 0 | G136: 0 | H136: 0 | I136: 0 | J136: 0 | K136: 0 | L136: 0 | M136: 0 | N136: 0 | O136: 0 | P136: 0
B137: RIDER 155 | D137: 0 | E137: 0 | F137: 0 | G137: 0 | H137: 0 | I137: 0 | J137: 0 | K137: 0 | L137: 0 | M137: 0 | N137: 0 | O137: 0 | P137: 0
B138: RIDER 192 | D138: 0 | E138: 0 | F138: 0 | G138: 0 | H138: 0 | I138: 0 | J138: 0 | K138: 0 | L138: 0 | M138: 0 | N138: 0 | O138: 0 | P138: 0
B139: THERMS BLOCK 1 | D139: 675586 | E139: 676645 | F139: 676872 | G139: 680115 | H139: 737212 | I139: 729149 | J139: 682316 | K139: 660970 | L139: 651097 | M139: 725132 | N139: 730503 | O139: 679873 | P139: 8305470
B140: THERMS BLOCK 2 | D140: 789204 | E140: 857635 | F140: 821345 | G140: 814880 | H140: 705203 | I140: 617644 | J140: 540738 | K140: 541994 | L140: 516837 | M140: 586908 | N140: 844642 | O140: 747410 | P140: 8384440
B141: THERMS BLOCK 3 | D141: 1493745 | E141: 1724226 | F141: 1861045 | G141: 1620552 | H141: 1169089 | I141: 796207 | J141: 729723 | K141: 784513 | L141: 708883 | M141: 772666 | N141: 1157091 | O141: 1275903 | P141: 14093643
B142: THERMS BLOCK 4 | D142: 307320 | E142: 336828 | F142: 440471 | G142: 235580 | H142: 200000 | I142: 200000 | J142: 200000 | K142: 200000 | L142: 200000 | M142: 200000 | N142: 203840 | O142: 214974 | P142: 2939013
B143: THERMS BLOCK 5 | D143: 279708 | E143: 322615 | F143: 255701 | G143: 343724 | H143: 298636 | I143: 256480 | J143: 267901 | K143: 237026 | L143: 248772 | M143: 281364 | N143: 274559 | O143: 289231 | P143: 3355717
B144: Total for 0146 | D144: =SUM(D134:D143) -> 3545563 | E144: =SUM(E134:E143) -> 3917949 | F144: 4055434 | G144: 3694851 | H144: 3110140 | I144: 2599480 | J144: 2420678 | K144: 2424503 | L144: 2325589 | M144: 2566070 | N144: 3210635 | O144: 3207391 | P144: 37078283
A145: 0147 | B145: NA | D145: 0 | E145: 0 | F145: 0 | G145: 0 | H145: 0 | I145: 0 | J145: 0 | K145: 0 | L145: 0 | M145: 0 | N145: 0 | O145: 0 | P145: 0
B146: THERMS BLOCK 1 | D146: 379164 | E146: 176712 | F146: 583729 | G146: 814272 | H146: 68975 | I146: 121440 | J146: 369851 | K146: 649887 | L146: 1405649 | M146: 813959 | N146: 1435027 | O146: 1088514 | P146: =SUM(D146:O146) -> 7907179
B147: Total for 0147 | D147: =SUM(D145:D146) -> 379164 | E147: =SUM(E145:E146) -> 176712 | F147: 583729 | G147: 814272 | H147: 68975 | I147: 121440 | J147: 369851 | K147: 649887 | L147: 1405649 | M147: 813959 | N147: 1435027 | O147: 1088514 | P147: 7907179
A148: 0148 | B148: BASIC CHARGE GAS | D148: 0 | E148: 0 | F148: 0 | G148: 0 | H148: 0 | I148: 0 | J148: 0 | K148: 0 | L148: 0 | M148: 0 | N148: 0 | O148: 0 | P148: =SUM(D148:O148) -> 0
B149: NA | D149: 0 | E149: 0 | F149: 0 | G149: 0 | H149: 0 | I149: 0 | J149: 0 | K149: 0 | L149: 0 | M149: 0 | N149: 0 | O149: 0 | P149: =SUM(D149:O149) -> 0
B150: THERMS BLOCK 1 | D150: 4907937 | E150: 4829560 | F150: 4089100 | G150: 4540506 | H150: 3983350 | I150: 3756335 | J150: 3510549 | K150: 3507047 | L150: 3514085 | M150: 3678027 | N150: 4170776 | O150: 4436580 | P150: 48923852
B151: Total for 0148 | D151: =SUM(D148:D150) -> 4907937 | E151: =SUM(E148:E150) -> 4829560 | F151: 4089100 | G151: 4540506 | H151: 3983350 | I151: 3756335 | J151: 3510549 | K151: 3507047 | L151: 3514085 | M151: 3678027 | N151: 4170776 | O151: 4436580 | P151: 48923852
A152: 0158 | B152: NA | D152: 0 | E152: 0 | F152: 0 | G152: 0 | H152: 0 | I152: 0 | J152: 0 | K152: 0 | L152: 0 | M152: 0 | N152: 0 | O152: 0 | P152: 0
B153: RIDER 158 | D153: 0 | E153: 0 | F153: 0 | G153: 0 | H153: 0 | I153: 0 | J153: 0 | K153: 0 | L153: 0 | M153: 0 | N153: 0 | O153: 0 | P153: 0
B154: Total for 0158 | D154: 0 | E154: 0 | F154: 0 | G154: 0 | H154: 0 | I154: 0 | J154: 0 | K154: 0 | L154: 0 | M154: 0 | N154: 0 | O154: 0 | P154: 0
A155: 0158A | B155: RIDER 158 | D155: 0 | E155: 0 | F155: 0 | G155: 0 | H155: 0 | I155: 0 | J155: 0 | K155: 0 | L155: 0 | M155: 0 | N155: 0 | O155: 0 | P155: 0
B156: Total for 0158A | D156: 0 | E156: 0 | F156: 0 | G156: 0 | H156: 0 | I156: 0 | J156: 0 | K156: 0 | L156: 0 | M156: 0 | N156: 0 | O156: 0 | P156: 0
A157: 0199 | B157: NA | D157: 0 | E157: 0 | F157: 0 | G157: 0 | H157: 0 | I157: 0 | J157: 0 | K157: 0 | L157: 0 | M157: 0 | N157: 0 | O157: 0 | P157: 0
B158: Total for 0199 | D158: 0 | E158: 0 | F158: 0 | G158: 0 | H158: 0 | I158: 0 | J158: 0 | K158: 0 | L158: 0 | M158: 0 | N158: 0 | O158: 0 | P158: 0
A159: Total for WA | D159: =D56+D69+D81+D93+D107+D121+D133+D144+D147+D151 -> 38321289.75 | E159: =E56+E69+E81+E93+E107+E121+E133+E144+E147+E151 -> 39606694.82 | F159: 41934492.6 | G159: 26555667.6 | H159: 17274676.54 | I159: 11960996.61 | J159: 10919037.41 | K159: 10627665.57 | L159: 11796795.8 | M159: 18609988.9 | N159: 29007477.46 | O159: 37580331.82 | P159: 294195114.9
A161: Total Usage | D161: 201801 | E161: 201802 | F161: 201803 | G161: 201804 | H161: 201805 | I161: 201806 | J161: 201807 | K161: 201808 | L161: 201809 | M161: 201810 | N161: 201811 | O161: 201812 | P161: 12 Month Total
C162: 101/102 | D162: =D56+D69 -> 21191020.07 | E162: 21932387.54 | F162: 23941573.43 | G162: 11880514.81 | H162: 6587646.705 | I162: 3080579.913 | J162: 2535595.961 | K162: 2142554.127 | L162: 2443888.14 | M162: 7606580.928 | N162: 13945184.25 | O162: 20275965.08 | P162: 137563491
C163: 111/112 | D163: =D81+D93 -> 7925020.088 | E163: =E81+E93 -> 8382073.838 | F163: 8896947.849 | G163: 5362314.001 | H163: 3301881.122 | I163: 2366158.616 | J163: 1935589.253 | K163: 1732053.42 | L163: 1984701.585 | M163: 3670233.173 | N163: 5701042.633 | O163: 7768208.077 | P163: 59026223.66
C164: 121/122 | D164: =D107+D121 -> 231361.993 | E164: =E107+E121 -> 225916.48 | F164: 234273.064 | G164: 165410.634 | H164: 148388.502 | I164: -15471.10874 | J164: 108174.516 | K164: 134708.69 | L164: 111145.384 | M164: 168114.418 | N164: 449639.375 | O164: 741224.029 | P164: 2702885.976
C165: 132 | D165: =D133 -> 141223.598 | E165: =E133 -> 142095.962 | F165: 133435.254 | G165: 97799.155 | H165: 74295.216 | I165: 52474.186 | J165: 38599.68 | K165: 36912.335 | L165: 11737.692 | M165: 107004.38 | N165: 95173.207 | O165: 62449.625 | P165: 993200.29
C166: 146 | D166: =D144 -> 3545563 | E166: =E144 -> 3917949 | F166: 4055434 | G166: 3694851 | H166: 3110140 | I166: 2599480 | J166: 2420678 | K166: 2424503 | L166: 2325589 | M166: 2566070 | N166: 3210635 | O166: 3207391 | P166: 37078283
C167: 147 | D167: =D147 -> 379164 | E167: =E147 -> 176712 | F167: 583729 | G167: 814272 | H167: 68975 | I167: 121440 | J167: 369851 | K167: 649887 | L167: 1405649 | M167: 813959 | N167: 1435027 | O167: 1088514 | P167: 7907179
C168: 148 | D168: =D151 -> 4907937 | E168: =E151 -> 4829560 | F168: 4089100 | G168: 4540506 | H168: 3983350 | I168: 3756335 | J168: 3510549 | K168: 3507047 | L168: 3514085 | M168: 3678027 | N168: 4170776 | O168: 4436580 | P168: 48923852
C169: Total | D169: =SUM(D162:D168) -> 38321289.75 | E169: =SUM(E162:E168) -> 39606694.82 | F169: 41934492.6 | G169: 26555667.6 | H169: 17274676.54 | I169: 11960996.61 | J169: 10919037.41 | K169: 10627665.57 | L169: 11796795.8 | M169: 18609988.9 | N169: 29007477.46 | O169: 37580331.82 | P169: 294195114.9
D171: =D159-D169 -> 0 | E171: =E159-E169 -> 0 | F171: 0 | G171: 0 | H171: 0 | I171: 0 | J171: 0 | K171: 0 | L171: 0 | M171: 0 | N171: 0 | O171: 0 | P171: 0
A175: Gas Revenue Usage Report by Location Twelve Months Ended for Report Date : '12/31/2019'
A177: Revenue Class:<All> | B177: Jurisdiction:WA
D179: Unbilled Usage
C180: Period | D180: 201901 | E180: 201902 | F180: 201903 | G180: 201904 | H180: 201905 | I180: 201906 | J180: 201907 | K180: 201908 | L180: 201909 | M180: 201910 | N180: 201911 | O180: 201912 | P180: 12 Month Total
A181: Source Id | B181: Rate Schedule Num
A182: REVUNBL-G | B182: 101 | D182: 11324273 | E182: 12810504 | F182: 7364449 | G182: 4172084 | H182: 1901745 | I182: 1321131 | J182: 1180635 | K182: 1257274 | L182: 2486278 | M182: 7641625 | N182: 11025713 | O182: 10375003 | P182: =SUM(D182:O182) -> 72860714
B183: 111 | D183: 4053424 | E183: 4671541 | F183: 2618736 | G183: 1797571 | H183: 899949 | I183: 949948 | J183: 835623 | K183: 936252 | L183: 1802326 | M183: 3448041 | N183: 4267717 | O183: 3794161 | P183: =SUM(D183:O183) -> 30075289
B184: 112 | D184: 9263 | E184: 13099 | F184: 5399 | G184: 4303 | H184: 2686 | I184: 2543 | J184: 2586 | K184: 3326 | L184: 6886 | M184: 11606 | N184: 12872 | O184: 9733 | P184: 84302
B185: 121 | D185: 92544 | E185: 99707 | F185: 50802 | G185: 41565 | H185: 31269 | I185: -17856 | J185: 36777 | K185: 64354 | L185: 87993 | M185: 138127 | N185: 147373 | O185: 104730 | P185: 877385
B186: 122 | D186: 31328 | E186: 32516 | F186: 21399 | G186: 16621 | H186: 11629 | I186: 11217 | J186: 13607 | K186: 14723 | L186: 25141 | M186: 30949 | N186: 208686 | O186: 275164 | P186: 692980
B187: 146 | D187: 3917947 | E187: 3900871 | F187: 3691957 | G187: 3110199 | H187: 2599480 | I187: 2420689 | J187: 2422964 | K187: 2325581 | L187: 2566202 | M187: 3210986 | N187: 3206337 | O187: 3156615 | P187: 36529828
B188: 147 | P188: 0
B189: 148 | D189: 4829560 | E189: 3966821 | F189: 4540256 | G189: 4029134 | H189: 3756335 | I189: 3510549 | J189: 3507079 | K189: 3514085 | L189: 3678155 | M189: 4165893 | N189: 4436580 | O189: 4791048 | P189: 48725495
B190: Total for REVUNBL-G | D190: =SUM(D182:D189) -> 24258339 | E190: =SUM(E182:E189) -> 25495059 | F190: 18292998 | G190: 13171477 | H190: 9203093 | I190: 8198221 | J190: 7999271 | K190: 8115595 | L190: 10652981 | M190: 18647227 | N190: 23305278 | O190: 22506454 | P190: =SUM(P182:P189) -> 189845993
A191: REVUNBL-GR | B191: 101 | D191: -11417514 | E191: -11324273 | F191: -12810504 | G191: -7364449 | H191: -4172084 | I191: -1901745 | J191: -1321131 | K191: -1180635 | L191: -1257274 | M191: -2486278 | N191: -7641625 | O191: -11025713 | P191: =SUM(D191:O191) -> -73903225
B192: 111 | D192: -3956196 | E192: -4053424 | F192: -4671541 | G192: -2618736 | H192: -1797571 | I192: -899949 | J192: -949948 | K192: -835623 | L192: -936252 | M192: -1802326 | N192: -3448041 | O192: -4267717 | P192: -30237324
B193: 112 | D193: -10281 | E193: -9263 | F193: -13099 | G193: -5399 | H193: -4303 | I193: -2686 | J193: -2543 | K193: -2586 | L193: -3326 | M193: -6886 | N193: -11606 | O193: -12872 | P193: -84850
B194: 121 | D194: -134000 | E194: -92544 | F194: -99707 | G194: -50802 | H194: -41565 | I194: -31269 | J194: 17856 | K194: -36777 | L194: -64354 | M194: -87993 | N194: -138127 | O194: -147373 | P194: -906655
B195: 122 | D195: -32072 | E195: -31328 | F195: -32516 | G195: -21399 | H195: -16621 | I195: -11629 | J195: -11217 | K195: -13607 | L195: -14723 | M195: -25141 | N195: -30949 | O195: -208686 | P195: -449888
B196: 146 | D196: -3542437 | E196: -3917947 | F196: -3900871 | G196: -3691957 | H196: -3110199 | I196: -2599480 | J196: -2420689 | K196: -2422964 | L196: -2325581 | M196: -2566202 | N196: -3210986 | O196: -3206337 | P196: -36915650
B197: 147 | P197: 0
B198: 148 | D198: -4907937 | E198: -4829560 | F198: -3966821 | G198: -4540256 | H198: -4029134 | I198: -3756335 | J198: -3510549 | K198: -3507079 | L198: -3514085 | M198: -3678155 | N198: -4165893 | O198: -4436580 | P198: -48842384
B199: Total for REVUNBL-GR | D199: =SUM(D191:D198) -> -24000437 | E199: =SUM(E191:E198) -> -24258339 | F199: -25495059 | G199: -18292998 | H199: -13171477 | I199: -9203093 | J199: -8198221 | K199: -7999271 | L199: -8115595 | M199: -10652981 | N199: -18647227 | O199: -23305278 | P199: =SUM(P191:P198) -> -191339976
A200: Total for WA | D200: =D190+D199 -> 257902 | E200: =E190+E199 -> 1236720 | F200: -7202061 | G200: -5121521 | H200: -3968384 | I200: -1004872 | J200: -198950 | K200: 116324 | L200: 2537386 | M200: 7994246 | N200: 4658051 | O200: -798824 | P200: =P190+P199 -> -1493983
C204: 101 | D204: =D182+D191 -> -93241 | E204: =E182+E191 -> 1486231 | F204: -5446055 | G204: -3192365 | H204: -2270339 | I204: -580614 | J204: -140496 | K204: 76639 | L204: 1229004 | M204: 5155347 | N204: 3384088 | O204: -650710 | P204: =P182+P191 -> -1042511
C205: 111 | D205: =D183+D184+D193+D192 -> 96210 | E205: =E183+E184+E193+E192 -> 621953 | F205: -2060505 | G205: -822261 | H205: -899239 | I205: 49856 | J205: -114282 | K205: 101369 | L205: 869634 | M205: 1650435 | N205: 820942 | O205: -476695 | P205: =P183+P184+P193+P192 -> -162583
C206: 121 | D206: =D185+D186+D195+D194 -> -42200 | E206: =E185+E186+E195+E194 -> 8351 | F206: -60022 | G206: -14015 | H206: -15288 | I206: -49537 | J206: 57023 | K206: 28693 | L206: 34057 | M206: 55942 | N206: 186983 | O206: 23835 | P206: =P185+P186+P195+P194 -> 213822
C207: 146 | D207: =D187+D196 -> 375510 | E207: =E187+E196 -> -17076 | F207: -208914 | G207: -581758 | H207: -510719 | I207: -178791 | J207: 2275 | K207: -97383 | L207: 240621 | M207: 644784 | N207: -4649 | O207: -49722 | P207: =P187+P196 -> -385822
C208: 147 | D208: =D188+D197 -> 0 | E208: =E188+E197 -> 0 | F208: 0 | G208: 0 | H208: 0 | I208: 0 | J208: 0 | K208: 0 | L208: 0 | M208: 0 | N208: 0 | O208: 0 | P208: =P188+P197 -> 0
C209: 148 | D209: =D189+D198 -> -78377 | E209: =E189+E198 -> -862739 | F209: 573435 | G209: -511122 | H209: -272799 | I209: -245786 | J209: -3470 | K209: 7006 | L209: 164070 | M209: 487738 | N209: 270687 | O209: 354468 | P209: =P189+P198 -> -116889
C210: Total | D210: =SUM(D204:D209) -> 257902 | E210: =SUM(E204:E209) -> 1236720 | F210: -7202061 | G210: -5121521 | H210: -3968384 | I210: -1004872 | J210: -198950 | K210: 116324 | L210: 2537386 | M210: 7994246 | N210: 4658051 | O210: -798824 | P210: =SUM(P204:P209) -> -1493983
D212: =D200-D210 -> 0 | E212: =E200-E210 -> 0 | F212: 0 | G212: 0 | H212: 0 | I212: 0 | J212: 0 | K212: 0 | L212: 0 | M212: 0 | N212: 0 | O212: 0 | P212: 0
O214: 101-121 | P214: =P204+P205+P206 -> -991272
